Workbook

Sheet Notes
A2: Maternity Friends and Family Test (FFT) Data - March 2025

Sheet Summary
B7: FFT | C7: Number of organisations submitting | D7: Total responses to date | E7: Responses | G7: Percentage Positive | I7: Percentage Negative
C8: 2024-12-01 | D8: 2024-12-01 | E8: 2024-12-01 | F8: 2024-01-26 | G8: 2024-12-01 | H8: 2024-01-26 | I8: 2024-12-01 | J8: 2024-01-26
B9: Maternity Total | C9: NA | D9: 3578961 | E9: 16913 | F9: 16596 | G9: 0.9223674097 | H9: 0.9228729814 | I9: 0.04747827115 | J9: 0.04398650277
B10: Maternity NHS Total | C10: NA | D10: 3575558 | E10: 16913 | F10: 16596 | G10: 0.9223674097 | H10: 0.9228729814 | I10: 0.04747827115 | J10: 0.04398650277
B11: Maternity IS Total | C11: NA | D11: 3403 | E11: 0 | F11: 0 | G11: NA | H11: NA | I11: NA | J11: NA
B12: Antenatal Total | C12: 109 | D12: 782578 | E12: 5312 | F12: 4783 | G12: 0.921686747 | H12: 0.9184612168 | I12: 0.05233433735 | J12: 0.05080493414
B13: Antenatal NHS | C13: 109 | D13: 781394 | E13: 5312 | F13: 4783 | G13: 0.921686747 | H13: 0.9184612168 | I13: 0.05233433735 | J13: 0.05080493414
B14: Antenatal IS | C14: 0 | D14: 1184 | E14: 0 | F14: 0 | G14: NA | H14: NA | I14: NA | J14: NA
B15: Birth Total | C15: 118 | D15: 1103013 | E15: 4676 | F15: 4894 | G15: 0.9268605646 | H15: 0.9252145484 | I15: 0.04662104363 | J15: 0.04495300368
B16: Birth NHS | C16: 118 | D16: 1102589 | E16: 4676 | F16: 4894 | G16: 0.9268605646 | H16: 0.9252145484 | I16: 0.04662104363 | J16: 0.04495300368
B17: Birth IS | C17: 0 | D17: 424 | E17: 0 | F17: 0 | G17: NA | H17: NA | I17: NA | J17: NA
B18: Postnatal Ward Total | C18: 112 | D18: 1216360 | E18: 5616 | F18: 5415 | G18: 0.9196937322 | H18: 0.9216989843 | I18: 0.04504985755 | J18: 0.03988919668
B19: Postnatal Ward Total NHS | C19: 112 | D19: 1216360 | E19: 5616 | F19: 5415 | G19: 0.9196937322 | H19: 0.9216989843 | I19: 0.04504985755 | J19: 0.03988919668
B20: Postnatal Ward Total IS | C20: NA | D20: NA | E20: NA | F20: NA | G20: NA | H20: NA | I20: NA | J20: NA
B21: Postnatal Community Total | C21: 118 | D21: 477010 | E21: 1309 | F21: 1504 | G21: 0.9205500382 | H21: 0.9335106383 | I21: 0.04125286478 | J21: 0.03390957447
B22: Postnatal Community NHS | C22: 118 | D22: 475215 | E22: 1309 | F22: 1504 | G22: 0.9205500382 | H22: 0.9335106383 | I22: 0.04125286478 | J22: 0.03390957447
B23: Postnatal Community IS | C23: 0 | D23: 1795 | E23: 0 | F23: 0 | G23: NA | H23: NA | I23: NA | J23: NA

Sheet ICB Q1
B6: Sort data by:
A9: ICB Code | B9: ICB Name | C9: Total Responses | D9: Percentage Positive | E9: Percentage Negative | F9: Breakdown of Responses
F10: Very Good | G10: Good | H10: Neither Good nor Poor | I10: Poor | J10: Very Poor | K10: Don't Know
B11: England (including Independent Sector providers) | C11: 5312 | D11: 0.921686747 | E11: 0.05233433735 | F11: 4046 | G11: 850 | H11: 116 | I11: 116 | J11: 162 | K11: 22
B12: England (excluding Independent Sector providers) | C12: 5312 | D12: 0.921686747 | E12: 0.05233433735 | F12: 4046 | G12: 850 | H12: 116 | I12: 116 | J12: 162 | K12: 22
B13: Selection (excluding suppressed data) | C13: =SUBTOTAL(9,C14:C53) -> 5312 | D13: =IFERROR((F13+G13)/SUM(F13:K13), "-") -> 0.9216981132 | E13: =IFERROR((I13+J13)/SUM(F13:K13), "-") -> 0.05245283019 | F13: =SUBTOTAL(9,F14:F53) -> 4035 | G13: 850 | H13: 115 | I13: 116 | J13: 162 | K13: 22
A14: QE1 | B14: LANCASHIRE AND SOUTH CUMBRIA ICB | C14: 194 | D14: 0.9072164948 | E14: 0.0412371134 | F14: 144 | G14: 32 | H14: 6 | I14: 4 | J14: 4 | K14: 4
A15: QF7 | B15: SOUTH YORKSHIRE ICB | C15: 145 | D15: 0.9517241379 | E15: 0.03448275862 | F15: 112 | G15: 26 | H15: 2 | I15: 4 | J15: 1 | K15: 0
A16: QGH | B16: HEREFORDSHIRE AND WORCESTERSHIRE ICB | C16: 84 | D16: 0.9523809524 | E16: 0.03571428571 | F16: 71 | G16: 9 | H16: 1 | I16: 2 | J16: 1 | K16: 0
A17: QH8 | B17: MID AND SOUTH ESSEX ICB | C17: 12 | D17: 0.9166666667 | E17: 0.08333333333 | F17: 8 | G17: 3 | H17: 0 | I17: 0 | J17: 1 | K17: 0
A18: QHG | B18: BEDFORDSHIRE, LUTON AND MILTON KEYNES ICB | C18: 556 | D18: 0.9064748201 | E18: 0.04496402878 | F18: 355 | G18: 149 | H18: 23 | I18: 12 | J18: 13 | K18: 4
A19: QHL | B19: BIRMINGHAM AND SOLIHULL ICB | C19: 150 | D19: 0.9266666667 | E19: 0.06 | F19: 121 | G19: 18 | H19: 1 | I19: 3 | J19: 6 | K19: 1
A20: QHM | B20: NORTH EAST AND NORTH CUMBRIA ICB | C20: 341 | D20: 0.9501466276 | E20: 0.03812316716 | F20: 281 | G20: 43 | H20: 4 | I20: 7 | J20: 6 | K20: 0
A21: QJ2 | B21: DERBY AND DERBYSHIRE ICB | C21: 89 | D21: 0.8651685393 | E21: 0.06741573034 | F21: 53 | G21: 24 | H21: 6 | I21: 3 | J21: 3 | K21: 0
A22: QJG | B22: SUFFOLK AND NORTH EAST ESSEX ICB | C22: 11 | D22: 0.9090909091 | E22: 0 | F22: * | G22: * | H22: * | I22: * | J22: * | K22: *
A23: QJK | B23: DEVON ICB | C23: 12 | D23: 0.9166666667 | E23: 0 | F23: 9 | G23: 2 | H23: 1 | I23: 0 | J23: 0 | K23: 0
A24: QJM | B24: LINCOLNSHIRE ICB | C24: 0 | D24: NA | E24: NA | F24: 0 | G24: 0 | H24: 0 | I24: 0 | J24: 0 | K24: 0
A25: QK1 | B25: LEICESTER, LEICESTERSHIRE AND RUTLAND ICB | C25: 52 | D25: 0.9807692308 | E25: 0.01923076923 | F25: 43 | G25: 8 | H25: 0 | I25: 0 | J25: 1 | K25: 0
A26: QKK | B26: SOUTH EAST LONDON ICB | C26: 70 | D26: 0.9285714286 | E26: 0.01428571429 | F26: 44 | G26: 21 | H26: 3 | I26: 1 | J26: 0 | K26: 1
A27: QKS | B27: KENT AND MEDWAY ICB | C27: 274 | D27: 0.9197080292 | E27: 0.05474452555 | F27: 225 | G27: 27 | H27: 6 | I27: 7 | J27: 8 | K27: 1
A28: QM7 | B28: HERTFORDSHIRE AND WEST ESSEX ICB | C28: 55 | D28: 0.9818181818 | E28: 0.01818181818 | F28: 33 | G28: 21 | H28: 0 | I28: 1 | J28: 0 | K28: 0
A29: QMF | B29: NORTH EAST LONDON ICB | C29: 183 | D29: 0.8360655738 | E29: 0.1256830601 | F29: 131 | G29: 22 | H29: 6 | I29: 7 | J29: 16 | K29: 1
A30: QMJ | B30: NORTH CENTRAL LONDON ICB | C30: 155 | D30: 0.9096774194 | E30: 0.06451612903 | F30: 109 | G30: 32 | H30: 3 | I30: 3 | J30: 7 | K30: 1
A31: QMM | B31: NORFOLK AND WAVENEY ICB | C31: 113 | D31: 0.982300885 | E31: 0.008849557522 | F31: 101 | G31: 10 | H31: 0 | I31: 1 | J31: 0 | K31: 1
A32: QNC | B32: STAFFORDSHIRE AND STOKE-ON-TRENT ICB | C32: 26 | D32: 0.8076923077 | E32: 0.1538461538 | F32: 16 | G32: 5 | H32: 1 | I32: 0 | J32: 4 | K32: 0
A33: QNQ | B33: FRIMLEY ICB | C33: 45 | D33: 0.6444444444 | E33: 0.2888888889 | F33: 21 | G33: 8 | H33: 3 | I33: 2 | J33: 11 | K33: 0
A34: QOC | B34: SHROPSHIRE, TELFORD AND WREKIN ICB | C34: 22 | D34: 0.9545454545 | E34: 0 | F34: 21 | G34: 0 | H34: 1 | I34: 0 | J34: 0 | K34: 0
A35: QOP | B35: GREATER MANCHESTER ICB | C35: 578 | D35: 0.9602076125 | E35: 0.01903114187 | F35: 497 | G35: 58 | H35: 10 | I35: 3 | J35: 8 | K35: 2
A36: QOQ | B36: HUMBER AND NORTH YORKSHIRE ICB | C36: 21 | D36: 0.8095238095 | E36: 0.09523809524 | F36: 14 | G36: 3 | H36: 1 | I36: 1 | J36: 1 | K36: 1
A37: QOX | B37: BATH AND NORTH EAST SOMERSET, SWINDON AND WILTSHIRE ICB | C37: 106 | D37: 0.858490566 | E37: 0.1320754717 | F37: 71 | G37: 20 | H37: 1 | I37: 6 | J37: 8 | K37: 0
A38: QPM | B38: NORTHAMPTONSHIRE ICB | C38: 152 | D38: 0.9802631579 | E38: 0.01315789474 | F38: 139 | G38: 10 | H38: 1 | I38: 2 | J38: 0 | K38: 0
A39: QRL | B39: HAMPSHIRE AND ISLE OF WIGHT ICB | C39: 212 | D39: 0.9245283019 | E39: 0.05188679245 | F39: 153 | G39: 43 | H39: 5 | I39: 7 | J39: 4 | K39: 0
A40: QRV | B40: NORTH WEST LONDON ICB | C40: 158 | D40: 0.835443038 | E40: 0.1012658228 | F40: 98 | G40: 34 | H40: 10 | I40: 4 | J40: 12 | K40: 0
A41: QSL | B41: SOMERSET ICB | C41: 1 | D41: * | E41: * | F41: * | G41: * | H41: * | I41: * | J41: * | K41: *
A42: QT1 | B42: NOTTINGHAM AND NOTTINGHAMSHIRE ICB | C42: 125 | D42: 0.952 | E42: 0.024 | F42: 102 | G42: 17 | H42: 2 | I42: 2 | J42: 1 | K42: 1
A43: QT6 | B43: CORNWALL AND THE ISLES OF SCILLY ICB | C43: 25 | D43: 0.96 | E43: 0.04 | F43: 17 | G43: 7 | H43: 0 | I43: 1 | J43: 0 | K43: 0
A44: QU9 | B44: BUCKINGHAMSHIRE, OXFORDSHIRE AND BERKSHIRE WEST ICB | C44: 89 | D44: 0.8202247191 | E44: 0.1573033708 | F44: 59 | G44: 14 | H44: 2 | I44: 11 | J44: 3 | K44: 0
A45: QUA | B45: BLACK COUNTRY ICB | C45: 184 | D45: 0.9347826087 | E45: 0.04891304348 | F45: 96 | G45: 76 | H45: 2 | I45: 4 | J45: 5 | K45: 1
A46: QUE | B46: CAMBRIDGESHIRE AND PETERBOROUGH ICB | C46: 284 | D46: 0.9823943662 | E46: 0.01408450704 | F46: 267 | G46: 12 | H46: 1 | I46: 1 | J46: 3 | K46: 0
A47: QUY | B47: BRISTOL, NORTH SOMERSET AND SOUTH GLOUCESTERSHIRE ICB | C47: 32 | D47: 1 | E47: 0 | F47: 29 | G47: 3 | H47: 0 | I47: 0 | J47: 0 | K47: 0
A48: QVV | B48: DORSET ICB | C48: 40 | D48: 0.825 | E48: 0.1 | F48: 25 | G48: 8 | H48: 3 | I48: 2 | J48: 2 | K48: 0
A49: QWE | B49: SOUTH WEST LONDON ICB | C49: 93 | D49: 0.8924731183 | E49: 0.1075268817 | F49: 80 | G49: 3 | H49: 0 | I49: 2 | J49: 8 | K49: 0
A50: QWO | B50: WEST YORKSHIRE ICB | C50: 451 | D50: 0.9379157428 | E50: 0.0421286031 | F50: 375 | G50: 48 | H50: 7 | I50: 4 | J50: 15 | K50: 2
A51: QWU | B51: COVENTRY AND WARWICKSHIRE ICB | C51: 91 | D51: 0.8571428571 | E51: 0.1318681319 | F51: 62 | G51: 16 | H51: 0 | I51: 6 | J51: 6 | K51: 1
A52: QXU | B52: SURREY HEARTLANDS ICB | C52: 13 | D52: 0.7692307692 | E52: 0.2307692308 | F52: 7 | G52: 3 | H52: 0 | I52: 1 | J52: 2 | K52: 0
A53: QYG | B53: CHESHIRE AND MERSEYSIDE ICB | C53: 68 | D53: 0.8970588235 | E53: 0.05882352941 | F53: 46 | G53: 15 | H53: 3 | I53: 2 | J53: 2 | K53: 0

Sheet Trusts Q1
B6: Sort data by:
A9: ICB Code | B9: Trust Code | C9: Trust Name | D9: Total Responses | E9: Percentage Positive | F9: Percentage Negative | G9: Breakdown of Responses | M9: Mode of Collection
G10: Very Good | H10: Good | I10: Neither Good nor Poor | J10: Poor | K10: Very Poor | L10: Don't Know | M10: Mode SMS | N10: Mode Electronic Discharge | O10: Mode Electronic Home | P10: Mode Paper Discharge | Q10: Mode Paper Home | R10: Mode Telephone | S10: Mode Online | T10: Mode Other
C11: England (including Independent Sector providers) | D11: 5312 | E11: 0.921686747 | F11: 0.05233433735 | G11: 4046 | H11: 850 | I11: 116 | J11: 116 | K11: 162 | L11: 22 | M11: 1551 | N11: 781 | O11: 46 | P11: 1756 | Q11: 95 | R11: 6 | S11: 1068 | T11: 9
C12: England (excluding Independent Sector providers) | D12: 5312 | E12: 0.921686747 | F12: 0.05233433735 | G12: 4046 | H12: 850 | I12: 116 | J12: 116 | K12: 162 | L12: 22 | M12: 1551 | N12: 781 | O12: 46 | P12: 1756 | Q12: 95 | R12: 6 | S12: 1068 | T12: 9
C13: Selection (excluding suppressed data) | D13: =SUBTOTAL(9,D14:D298) -> 5312 | E13: =IFERROR((G13+H13)/SUM(G13:L13), "-") -> 0.9247673728 | F13: =IFERROR((J13+K13)/SUM(G13:L13), "-") -> 0.05008909127 | G13: =SUBTOTAL(9,G14:G298) -> 3875 | H13: 796 | I13: 108 | J13: 105 | K13: 148 | L13: 19 | M13: 1464 | N13: 722 | O13: 12 | P13: 1737 | Q13: 90 | R13: 0 | S13: 1022 | T13: =SUBTOTAL(9,T14:T298) -> 4
A14: QE1 | B14: RXN | C14: LANCASHIRE TEACHING HOSPITALS NHS FOUNDATION TRUST | D14: 13 | E14: 0.9230769231 | F14: 0 | G14: 8 | H14: 4 | I14: 0 | J14: 0 | K14: 0 | L14: 1 | M14: 13 | N14: 0 | O14: 0 | P14: 0 | Q14: 0 | R14: 0 | S14: 0 | T14: 0
A15: QE1 | B15: RTX | C15: UNIVERSITY HOSPITALS OF MORECAMBE BAY NHS FOUNDATION TRUST | D15: 24 | E15: 0.9166666667 | F15: 0 | G15: 19 | H15: 3 | I15: 1 | J15: 0 | K15: 0 | L15: 1 | M15: 0 | N15: 0 | O15: 0 | P15: 0 | Q15: 0 | R15: 0 | S15: 24 | T15: 0
A16: QE1 | B16: RXL | C16: BLACKPOOL TEACHING HOSPITALS NHS FOUNDATION TRUST | D16: 42 | E16: 0.9761904762 | F16: 0.02380952381 | G16: 32 | H16: 9 | I16: 0 | J16: 0 | K16: 1 | L16: 0 | M16: 17 | N16: 0 | O16: 0 | P16: 19 | Q16: 0 | R16: 0 | S16: 6 | T16: 0
A17: QE1 | B17: RXR | C17: EAST LANCASHIRE HOSPITALS NHS TRUST | D17: 115 | E17: 0.8782608696 | F17: 0.06086956522 | G17: 85 | H17: 16 | I17: 5 | J17: 4 | K17: 3 | L17: 2 | M17: 53 | N17: 0 | O17: 0 | P17: 62 | Q17: 0 | R17: 0 | S17: 0 | T17: 0
A18: QF7 | B18: RFF | C18: BARNSLEY HOSPITAL NHS FOUNDATION TRUST | D18: 9 | E18: 0.8888888889 | F18: 0.1111111111 | G18: 7 | H18: 1 | I18: 0 | J18: 1 | K18: 0 | L18: 0 | M18: 2 | N18: 5 | O18: 0 | P18: 0 | Q18: 0 | R18: 0 | S18: 2 | T18: 0
A19: QF7 | B19: RP5 | C19: DONCASTER AND BASSETLAW TEACHING HOSPITALS NHS FOUNDATION TRUST | D19: 12 | E19: 1 | F19: 0 | G19: 11 | H19: 1 | I19: 0 | J19: 0 | K19: 0 | L19: 0 | M19: 0 | N19: 0 | O19: 0 | P19: 0 | Q19: 0 | R19: 0 | S19: 12 | T19: 0
A20: QF7 | B20: RFR | C20: THE ROTHERHAM NHS FOUNDATION TRUST | D20: 30 | E20: 0.9666666667 | F20: 0.03333333333 | G20: 28 | H20: 1 | I20: 0 | J20: 0 | K20: 1 | L20: 0 | M20: 0 | N20: 0 | O20: 0 | P20: 29 | Q20: 0 | R20: 0 | S20: 1 | T20: 0
A21: QF7 | B21: RHQ | C21: SHEFFIELD TEACHING HOSPITALS NHS FOUNDATION TRUST | D21: 94 | E21: 0.9468085106 | F21: 0.03191489362 | G21: 66 | H21: 23 | I21: 2 | J21: 3 | K21: 0 | L21: 0 | M21: 63 | N21: 0 | O21: 0 | P21: 29 | Q21: 0 | R21: 0 | S21: 2 | T21: 0
A22: QGH | B22: RLQ | C22: WYE VALLEY NHS TRUST | D22: 10 | E22: 0.8 | F22: 0.2 | G22: 8 | H22: 0 | I22: 0 | J22: 1 | K22: 1 | L22: 0 | M22: 10 | N22: 0 | O22: 0 | P22: 0 | Q22: 0 | R22: 0 | S22: 0 | T22: 0
A23: QGH | B23: RWP | C23: WORCESTERSHIRE ACUTE HOSPITALS NHS TRUST | D23: 74 | E23: 0.972972973 | F23: 0.01351351351 | G23: 63 | H23: 9 | I23: 1 | J23: 1 | K23: 0 | L23: 0 | M23: 0 | N23: 74 | O23: 0 | P23: 0 | Q23: 0 | R23: 0 | S23: 0 | T23: 0
A24: QH8 | B24: RAJ | C24: MID AND SOUTH ESSEX NHS FOUNDATION TRUST | D24: 12 | E24: 0.9166666667 | F24: 0.08333333333 | G24: 8 | H24: 3 | I24: 0 | J24: 0 | K24: 1 | L24: 0 | M24: 0 | N24: 0 | O24: 0 | P24: 0 | Q24: 0 | R24: 0 | S24: 12 | T24: 0
A25: QHG | B25: RC9 | C25: BEDFORDSHIRE HOSPITALS NHS FOUNDATION TRUST | D25: 109 | E25: 0.9357798165 | F25: 0.03669724771 | G25: 67 | H25: 35 | I25: 3 | J25: 3 | K25: 1 | L25: 0 | M25: 0 | N25: 78 | O25: 0 | P25: 0 | Q25: 0 | R25: 0 | S25: 31 | T25: 0
A26: QHG | B26: RD8 | C26: MILTON KEYNES UNIVERSITY HOSPITAL NHS FOUNDATION TRUST | D26: 447 | E26: 0.8993288591 | F26: 0.04697986577 | G26: 288 | H26: 114 | I26: 20 | J26: 9 | K26: 12 | L26: 4 | M26: 415 | N26: 0 | O26: 0 | P26: 22 | Q26: 0 | R26: 0 | S26: 10 | T26: 0
A27: QHL | B27: RRK | C27: UNIVERSITY HOSPITALS BIRMINGHAM NHS FOUNDATION TRUST | D27: 4 | E27: * | F27: * | G27: * | H27: * | I27: * | J27: * | K27: * | L27: * | M27: * | N27: * | O27: * | P27: * | Q27: * | R27: * | S27: * | T27: *
A28: QHL | B28: RXK | C28: SANDWELL AND WEST BIRMINGHAM HOSPITALS NHS TRUST | D28: 40 | E28: 0.85 | F28: 0.1 | G28: * | H28: * | I28: * | J28: * | K28: * | L28: * | M28: * | N28: * | O28: * | P28: * | Q28: * | R28: * | S28: * | T28: *
A29: QHL | B29: RQ3 | C29: BIRMINGHAM WOMEN'S AND CHILDREN'S NHS FOUNDATION TRUST | D29: 106 | E29: 0.9716981132 | F29: 0.02830188679 | G29: 95 | H29: 8 | I29: 0 | J29: 1 | K29: 2 | L29: 0 | M29: 0 | N29: 0 | O29: 0 | P29: 0 | Q29: 0 | R29: 0 | S29: 106 | T29: 0
A30: QHM | B30: RTF | C30: NORTHUMBRIA HEALTHCARE NHS FOUNDATION TRUST | D30: 0 | E30: NA | F30: NA | G30: 0 | H30: 0 | I30: 0 | J30: 0 | K30: 0 | L30: 0 | M30: 0 | N30: 0 | O30: 0 | P30: 0 | Q30: 0 | R30: 0 | S30: 0 | T30: 0
A31: QHM | B31: RVW | C31: NORTH TEES AND HARTLEPOOL NHS FOUNDATION TRUST | D31: 4 | E31: * | F31: * | G31: * | H31: * | I31: * | J31: * | K31: * | L31: * | M31: * | N31: * | O31: * | P31: * | Q31: * | R31: * | S31: * | T31: *
A32: QHM | B32: RNN | C32: NORTH CUMBRIA INTEGRATED CARE NHS FOUNDATION TRUST | D32: 8 | E32: 1 | F32: 0 | G32: * | H32: * | I32: * | J32: * | K32: * | L32: * | M32: * | N32: * | O32: * | P32: * | Q32: * | R32: * | S32: * | T32: *
A33: QHM | B33: RR7 | C33: GATESHEAD HEALTH NHS FOUNDATION TRUST | D33: 8 | E33: 1 | F33: 0 | G33: 8 | H33: 0 | I33: 0 | J33: 0 | K33: 0 | L33: 0 | M33: 8 | N33: 0 | O33: 0 | P33: 0 | Q33: 0 | R33: 0 | S33: 0 | T33: 0
A34: QHM | B34: R0B | C34: SOUTH TYNESIDE AND SUNDERLAND NHS FOUNDATION TRUST | D34: 24 | E34: 0.9583333333 | F34: 0.04166666667 | G34: 21 | H34: 2 | I34: 0 | J34: 0 | K34: 1 | L34: 0 | M34: 0 | N34: 0 | O34: 0 | P34: 0 | Q34: 0 | R34: 0 | S34: 24 | T34: 0
A35: QHM | B35: RXP | C35: COUNTY DURHAM AND DARLINGTON NHS FOUNDATION TRUST | D35: 42 | E35: 1 | F35: 0 | G35: 38 | H35: 4 | I35: 0 | J35: 0 | K35: 0 | L35: 0 | M35: 0 | N35: 0 | O35: 0 | P35: 0 | Q35: 42 | R35: 0 | S35: 0 | T35: 0
A36: QHM | B36: RTD | C36: THE NEWCASTLE UPON TYNE HOSPITALS NHS FOUNDATION TRUST | D36: 55 | E36: 0.9272727273 | F36: 0.05454545455 | G36: 46 | H36: 5 | I36: 1 | J36: 2 | K36: 1 | L36: 0 | M36: 55 | N36: 0 | O36: 0 | P36: 0 | Q36: 0 | R36: 0 | S36: 0 | T36: 0
A37: QHM | B37: RTR | C37: SOUTH TEES HOSPITALS NHS FOUNDATION TRUST | D37: 200 | E37: 0.94 | F37: 0.045 | G37: 159 | H37: 29 | I37: 3 | J37: 5 | K37: 4 | L37: 0 | M37: 179 | N37: 21 | O37: 0 | P37: 0 | Q37: 0 | R37: 0 | S37: 0 | T37: 0
A38: QJ2 | B38: RFS | C38: CHESTERFIELD ROYAL HOSPITAL NHS FOUNDATION TRUST | D38: 24 | E38: 0.9166666667 | F38: 0.04166666667 | G38: 17 | H38: 5 | I38: 1 | J38: 1 | K38: 0 | L38: 0 | M38: 24 | N38: 0 | O38: 0 | P38: 0 | Q38: 0 | R38: 0 | S38: 0 | T38: 0
A39: QJ2 | B39: RTG | C39: UNIVERSITY HOSPITALS OF DERBY AND BURTON NHS FOUNDATION TRUST | D39: 65 | E39: 0.8461538462 | F39: 0.07692307692 | G39: 36 | H39: 19 | I39: 5 | J39: 2 | K39: 3 | L39: 0 | M39: 63 | N39: 2 | O39: 0 | P39: 0 | Q39: 0 | R39: 0 | S39: 0 | T39: 0
A40: QJG | B40: RGR | C40: WEST SUFFOLK NHS FOUNDATION TRUST | D40: 1 | E40: * | F40: * | G40: * | H40: * | I40: * | J40: * | K40: * | L40: * | M40: * | N40: * | O40: * | P40: * | Q40: * | R40: * | S40: * | T40: *
A41: QJG | B41: RDE | C41: EAST SUFFOLK AND NORTH ESSEX NHS FOUNDATION TRUST | D41: 10 | E41: 1 | F41: 0 | G41: * | H41: * | I41: * | J41: * | K41: * | L41: * | M41: * | N41: * | O41: * | P41: * | Q41: * | R41: * | S41: * | T41: *
A42: QJK | B42: RH8 | C42: ROYAL DEVON UNIVERSITY HEALTHCARE NHS FOUNDATION TRUST | D42: 2 | E42: * | F42: * | G42: * | H42: * | I42: * | J42: * | K42: * | L42: * | M42: * | N42: * | O42: * | P42: * | Q42: * | R42: * | S42: * | T42: *
A43: QJK | B43: RA9 | C43: TORBAY AND SOUTH DEVON NHS FOUNDATION TRUST | D43: 4 | E43: * | F43: * | G43: * | H43: * | I43: * | J43: * | K43: * | L43: * | M43: * | N43: * | O43: * | P43: * | Q43: * | R43: * | S43: * | T43: *
A44: QJK | B44: RK9 | C44: UNIVERSITY HOSPITALS PLYMOUTH NHS TRUST | D44: 6 | E44: 1 | F44: 0 | G44: 5 | H44: 1 | I44: 0 | J44: 0 | K44: 0 | L44: 0 | M44: 0 | N44: 0 | O44: 0 | P44: 0 | Q44: 0 | R44: 0 | S44: 6 | T44: 0
A45: QJM | B45: RWD | C45: UNITED LINCOLNSHIRE TEACHING HOSPITALS NHS TRUST | D45: 0 | E45: NA | F45: NA | G45: 0 | H45: 0 | I45: 0 | J45: 0 | K45: 0 | L45: 0 | M45: 0 | N45: 0 | O45: 0 | P45: 0 | Q45: 0 | R45: 0 | S45: 0 | T45: 0
A46: QK1 | B46: RWE | C46: UNIVERSITY HOSPITALS OF LEICESTER NHS TRUST | D46: 52 | E46: 0.9807692308 | F46: 0.01923076923 | G46: 43 | H46: 8 | I46: 0 | J46: 0 | K46: 1 | L46: 0 | M46: 44 | N46: 8 | O46: 0 | P46: 0 | Q46: 0 | R46: 0 | S46: 0 | T46: 0
A47: QKK | B47: RJ1 | C47: GUY'S AND ST THOMAS' NHS FOUNDATION TRUST | D47: 8 | E47: 0.75 | F47: 0 | G47: 6 | H47: 0 | I47: 2 | J47: 0 | K47: 0 | L47: 0 | M47: 0 | N47: 0 | O47: 0 | P47: 0 | Q47: 0 | R47: 0 | S47: 8 | T47: 0
A48: QKK | B48: RJ2 | C48: LEWISHAM AND GREENWICH NHS TRUST | D48: 62 | E48: 0.9516129032 | F48: 0.01612903226 | G48: 38 | H48: 21 | I48: 1 | J48: 1 | K48: 0 | L48: 1 | M48: 0 | N48: 0 | O48: 0 | P48: 48 | Q48: 0 | R48: 0 | S48: 14 | T48: 0
A49: QKS | B49: RPA | C49: MEDWAY NHS FOUNDATION TRUST | D49: 4 | E49: * | F49: * | G49: * | H49: * | I49: * | J49: * | K49: * | L49: * | M49: * | N49: * | O49: * | P49: * | Q49: * | R49: * | S49: * | T49: *
A50: QKS | B50: RVV | C50: EAST KENT HOSPITALS UNIVERSITY NHS FOUNDATION TRUST | D50: 25 | E50: 0.92 | F50: 0.04 | G50: * | H50: * | I50: * | J50: * | K50: * | L50: * | M50: * | N50: * | O50: * | P50: * | Q50: * | R50: * | S50: * | T50: *
A51: QKS | B51: RWF | C51: MAIDSTONE AND TUNBRIDGE WELLS NHS TRUST | D51: 74 | E51: 0.8918918919 | F51: 0.09459459459 | G51: 57 | H51: 9 | I51: 0 | J51: 3 | K51: 4 | L51: 1 | M51: 43 | N51: 0 | O51: 0 | P51: 0 | Q51: 23 | R51: 0 | S51: 8 | T51: 0
A52: QKS | B52: RN7 | C52: DARTFORD AND GRAVESHAM NHS TRUST | D52: 171 | E52: 0.9356725146 | F52: 0.0350877193 | G52: 147 | H52: 13 | I52: 5 | J52: 2 | K52: 4 | L52: 0 | M52: 0 | N52: 0 | O52: 0 | P52: 0 | Q52: 0 | R52: 0 | S52: 171 | T52: 0
A53: QM7 | B53: RQW | C53: THE PRINCESS ALEXANDRA HOSPITAL NHS TRUST | D53: 0 | E53: NA | F53: NA | G53: 0 | H53: 0 | I53: 0 | J53: 0 | K53: 0 | L53: 0 | M53: 0 | N53: 0 | O53: 0 | P53: 0 | Q53: 0 | R53: 0 | S53: 0 | T53: 0
A54: QM7 | B54: RWG | C54: WEST HERTFORDSHIRE TEACHING HOSPITALS NHS TRUST | D54: 2 | E54: * | F54: * | G54: * | H54: * | I54: * | J54: * | K54: * | L54: * | M54: * | N54: * | O54: * | P54: * | Q54: * | R54: * | S54: * | T54: *
A55: QM7 | B55: RWH | C55: EAST AND NORTH HERTFORDSHIRE NHS TRUST | D55: 53 | E55: 0.9811320755 | F55: 0.01886792453 | G55: * | H55: * | I55: * | J55: * | K55: * | L55: * | M55: * | N55: * | O55: * | P55: * | Q55: * | R55: * | S55: * | T55: *
A56: QMF | B56: RQX | C56: HOMERTON HEALTHCARE NHS FOUNDATION TRUST | D56: 5 | E56: 0.6 | F56: 0.4 | G56: 3 | H56: 0 | I56: 0 | J56: 1 | K56: 1 | L56: 0 | M56: 5 | N56: 0 | O56: 0 | P56: 0 | Q56: 0 | R56: 0 | S56: 0 | T56: 0
A57: QMF | B57: RF4 | C57: BARKING, HAVERING AND REDBRIDGE UNIVERSITY HOSPITALS NHS TRUST | D57: 55 | E57: 0.6727272727 | F57: 0.2 | G57: 27 | H57: 10 | I57: 6 | J57: 6 | K57: 5 | L57: 1 | M57: 0 | N57: 7 | O57: 0 | P57: 47 | Q57: 0 | R57: 0 | S57: 0 | T57: 1
A58: QMF | B58: R1H | C58: BARTS HEALTH NHS TRUST | D58: 123 | E58: 0.918699187 | F58: 0.08130081301 | G58: 101 | H58: 12 | I58: 0 | J58: 0 | K58: 10 | L58: 0 | M58: 0 | N58: 0 | O58: 0 | P58: 47 | Q58: 0 | R58: 0 | S58: 76 | T58: 0
A59: QMJ | B59: RRV | C59: UNIVERSITY COLLEGE LONDON HOSPITALS NHS FOUNDATION TRUST | D59: 0 | E59: NA | F59: NA | G59: 0 | H59: 0 | I59: 0 | J59: 0 | K59: 0 | L59: 0 | M59: 0 | N59: 0 | O59: 0 | P59: 0 | Q59: 0 | R59: 0 | S59: 0 | T59: 0
A60: QMJ | B60: RKE | C60: WHITTINGTON HEALTH NHS TRUST | D60: 18 | E60: 1 | F60: 0 | G60: 18 | H60: 0 | I60: 0 | J60: 0 | K60: 0 | L60: 0 | M60: 0 | N60: 0 | O60: 0 | P60: 17 | Q60: 0 | R60: 0 | S60: 1 | T60: 0
A61: QMJ | B61: RAL | C61: ROYAL FREE LONDON NHS FOUNDATION TRUST | D61: 137 | E61: 0.897810219 | F61: 0.07299270073 | G61: 91 | H61: 32 | I61: 3 | J61: 3 | K61: 7 | L61: 1 | M61: 42 | N61: 94 | O61: 0 | P61: 1 | Q61: 0 | R61: 0 | S61: 0 | T61: 0
A62: QMM | B62: RGP | C62: JAMES PAGET UNIVERSITY HOSPITALS NHS FOUNDATION TRUST | D62: 0 | E62: NA | F62: NA | G62: 0 | H62: 0 | I62: 0 | J62: 0 | K62: 0 | L62: 0 | M62: 0 | N62: 0 | O62: 0 | P62: 0 | Q62: 0 | R62: 0 | S62: 0 | T62: 0
A63: QMM | B63: RM1 | C63: NORFOLK AND NORWICH UNIVERSITY HOSPITALS NHS FOUNDATION TRUST | D63: 47 | E63: 0.9787234043 | F63: 0 | G63: 45 | H63: 1 | I63: 0 | J63: 0 | K63: 0 | L63: 1 | M63: 0 | N63: 0 | O63: 0 | P63: 44 | Q63: 0 | R63: 0 | S63: 3 | T63: 0
A64: QMM | B64: RCX | C64: THE QUEEN ELIZABETH HOSPITAL, KING'S LYNN, NHS FOUNDATION TRUST | D64: 66 | E64: 0.9848484848 | F64: 0.01515151515 | G64: 56 | H64: 9 | I64: 0 | J64: 1 | K64: 0 | L64: 0 | M64: 0 | N64: 0 | O64: 0 | P64: 66 | Q64: 0 | R64: 0 | S64: 0 | T64: 0
A65: QNC | B65: RJE | C65: UNIVERSITY HOSPITALS OF NORTH MIDLANDS NHS TRUST | D65: 26 | E65: 0.8076923077 | F65: 0.1538461538 | G65: 16 | H65: 5 | I65: 1 | J65: 0 | K65: 4 | L65: 0 | M65: 25 | N65: 0 | O65: 0 | P65: 0 | Q65: 0 | R65: 0 | S65: 1 | T65: 0
A66: QNQ | B66: RDU | C66: FRIMLEY HEALTH NHS FOUNDATION TRUST | D66: 45 | E66: 0.6444444444 | F66: 0.2888888889 | G66: 21 | H66: 8 | I66: 3 | J66: 2 | K66: 11 | L66: 0 | M66: 0 | N66: 0 | O66: 0 | P66: 2 | Q66: 0 | R66: 0 | S66: 43 | T66: 0
A67: QOC | B67: RXW | C67: THE SHREWSBURY AND TELFORD HOSPITAL NHS TRUST | D67: 22 | E67: 0.9545454545 | F67: 0 | G67: 21 | H67: 0 | I67: 1 | J67: 0 | K67: 0 | L67: 0 | M67: 0 | N67: 0 | O67: 0 | P67: 21 | Q67: 0 | R67: 0 | S67: 1 | T67: 0
A68: QOP | B68: RRF | C68: WRIGHTINGTON, WIGAN AND LEIGH NHS FOUNDATION TRUST | D68: 2 | E68: * | F68: * | G68: * | H68: * | I68: * | J68: * | K68: * | L68: * | M68: * | N68: * | O68: * | P68: * | Q68: * | R68: * | S68: * | T68: *
A69: QOP | B69: RWJ | C69: STOCKPORT NHS FOUNDATION TRUST | D69: 10 | E69: 0.8 | F69: 0.2 | G69: * | H69: * | I69: * | J69: * | K69: * | L69: * | M69: * | N69: * | O69: * | P69: * | Q69: * | R69: * | S69: * | T69: *
A70: QOP | B70: RMP | C70: TAMESIDE AND GLOSSOP INTEGRATED CARE NHS FOUNDATION TRUST | D70: 80 | E70: 0.95 | F70: 0.025 | G70: 75 | H70: 1 | I70: 2 | J70: 0 | K70: 2 | L70: 0 | M70: 0 | N70: 33 | O70: 0 | P70: 47 | Q70: 0 | R70: 0 | S70: 0 | T70: 0
A71: QOP | B71: RMC | C71: BOLTON NHS FOUNDATION TRUST | D71: 110 | E71: 0.9363636364 | F71: 0.03636363636 | G71: 102 | H71: 1 | I71: 3 | J71: 1 | K71: 3 | L71: 0 | M71: 0 | N71: 2 | O71: 0 | P71: 108 | Q71: 0 | R71: 0 | S71: 0 | T71: 0
A72: QOP | B72: R0A | C72: MANCHESTER UNIVERSITY NHS FOUNDATION TRUST | D72: 376 | E72: 0.9760638298 | F72: 0.007978723404 | G72: 313 | H72: 54 | I72: 5 | J72: 0 | K72: 3 | L72: 1 | M72: 0 | N72: 163 | O72: 0 | P72: 206 | Q72: 0 | R72: 0 | S72: 7 | T72: 0
A73: QOQ | B73: RCD | C73: HARROGATE AND DISTRICT NHS FOUNDATION TRUST | D73: 0 | E73: NA | F73: NA | G73: 0 | H73: 0 | I73: 0 | J73: 0 | K73: 0 | L73: 0 | M73: 0 | N73: 0 | O73: 0 | P73: 0 | Q73: 0 | R73: 0 | S73: 0 | T73: 0
A74: QOQ | B74: RWA | C74: HULL UNIVERSITY TEACHING HOSPITALS NHS TRUST | D74: 1 | E74: * | F74: * | G74: * | H74: * | I74: * | J74: * | K74: * | L74: * | M74: * | N74: * | O74: * | P74: * | Q74: * | R74: * | S74: * | T74: *
A75: QOQ | B75: RJL | C75: NORTHERN LINCOLNSHIRE AND GOOLE NHS FOUNDATION TRUST | D75: 20 | E75: 0.8 | F75: 0.1 | G75: * | H75: * | I75: * | J75: * | K75: * | L75: * | M75: * | N75: * | O75: * | P75: * | Q75: * | R75: * | S75: * | T75: *
A76: QOX | B76: RNZ | C76: SALISBURY NHS FOUNDATION TRUST | D76: 7 | E76: 1 | F76: 0 | G76: 5 | H76: 2 | I76: 0 | J76: 0 | K76: 0 | L76: 0 | M76: 6 | N76: 0 | O76: 0 | P76: 1 | Q76: 0 | R76: 0 | S76: 0 | T76: 0
A77: QOX | B77: RD1 | C77: ROYAL UNITED HOSPITALS BATH NHS FOUNDATION TRUST | D77: 19 | E77: 0.9473684211 | F77: 0.05263157895 | G77: 13 | H77: 5 | I77: 0 | J77: 1 | K77: 0 | L77: 0 | M77: 13 | N77: 0 | O77: 0 | P77: 6 | Q77: 0 | R77: 0 | S77: 0 | T77: 0
A78: QOX | B78: RN3 | C78: GREAT WESTERN HOSPITALS NHS FOUNDATION TRUST | D78: 80 | E78: 0.825 | F78: 0.1625 | G78: 53 | H78: 13 | I78: 1 | J78: 5 | K78: 8 | L78: 0 | M78: 0 | N78: 65 | O78: 0 | P78: 1 | Q78: 0 | R78: 0 | S78: 14 | T78: 0
A79: QPM | B79: RNQ | C79: KETTERING GENERAL HOSPITAL NHS FOUNDATION TRUST | D79: 36 | E79: 0.9722222222 | F79: 0.02777777778 | G79: 32 | H79: 3 | I79: 0 | J79: 1 | K79: 0 | L79: 0 | M79: 0 | N79: 0 | O79: 0 | P79: 0 | Q79: 20 | R79: 0 | S79: 16 | T79: 0
A80: QPM | B80: RNS | C80: NORTHAMPTON GENERAL HOSPITAL NHS TRUST | D80: 116 | E80: 0.9827586207 | F80: 0.008620689655 | G80: 107 | H80: 7 | I80: 1 | J80: 1 | K80: 0 | L80: 0 | M80: 7 | N80: 0 | O80: 0 | P80: 93 | Q80: 0 | R80: 0 | S80: 16 | T80: 0
A81: QRL | B81: R1F | C81: ISLE OF WIGHT NHS TRUST | D81: 5 | E81: 0.8 | F81: 0.2 | G81: 4 | H81: 0 | I81: 0 | J81: 1 | K81: 0 | L81: 0 | M81: 0 | N81: 0 | O81: 0 | P81: 0 | Q81: 5 | R81: 0 | S81: 0 | T81: 0
A82: QRL | B82: RHU | C82: PORTSMOUTH HOSPITALS UNIVERSITY NATIONAL HEALTH SERVICE TRUST | D82: 5 | E82: 1 | F82: 0 | G82: 4 | H82: 1 | I82: 0 | J82: 0 | K82: 0 | L82: 0 | M82: 0 | N82: 0 | O82: 0 | P82: 5 | Q82: 0 | R82: 0 | S82: 0 | T82: 0
A83: QRL | B83: RN5 | C83: HAMPSHIRE HOSPITALS NHS FOUNDATION TRUST | D83: 63 | E83: 0.9841269841 | F83: 0.01587301587 | G83: 58 | H83: 4 | I83: 0 | J83: 0 | K83: 1 | L83: 0 | M83: 0 | N83: 0 | O83: 0 | P83: 54 | Q83: 0 | R83: 0 | S83: 9 | T83: 0
A84: QRL | B84: RHM | C84: UNIVERSITY HOSPITAL SOUTHAMPTON NHS FOUNDATION TRUST | D84: 139 | E84: 0.8992805755 | F84: 0.06474820144 | G84: 87 | H84: 38 | I84: 5 | J84: 6 | K84: 3 | L84: 0 | M84: 0 | N84: 0 | O84: 0 | P84: 0 | Q84: 0 | R84: 0 | S84: 139 | T84: 0
A85: QRV | B85: RYJ | C85: IMPERIAL COLLEGE HEALTHCARE NHS TRUST | D85: 43 | E85: 0.9302325581 | F85: 0.02325581395 | G85: 35 | H85: 5 | I85: 2 | J85: 1 | K85: 0 | L85: 0 | M85: 0 | N85: 0 | O85: 0 | P85: 0 | Q85: 0 | R85: 0 | S85: 43 | T85: 0
A86: QRV | B86: R1K | C86: LONDON NORTH WEST UNIVERSITY HEALTHCARE NHS TRUST | D86: 53 | E86: 0.7169811321 | F86: 0.2264150943 | G86: 29 | H86: 9 | I86: 3 | J86: 2 | K86: 10 | L86: 0 | M86: 0 | N86: 0 | O86: 0 | P86: 53 | Q86: 0 | R86: 0 | S86: 0 | T86: 0
A87: QRV | B87: RAS | C87: THE HILLINGDON HOSPITALS NHS FOUNDATION TRUST | D87: 62 | E87: 0.8709677419 | F87: 0.04838709677 | G87: 34 | H87: 20 | I87: 5 | J87: 1 | K87: 2 | L87: 0 | M87: 0 | N87: 0 | O87: 0 | P87: 0 | Q87: 0 | R87: 0 | S87: 62 | T87: 0
A88: QSL | B88: RH5 | C88: SOMERSET NHS FOUNDATION TRUST | D88: 1 | E88: * | F88: * | G88: * | H88: * | I88: * | J88: * | K88: * | L88: * | M88: * | N88: * | O88: * | P88: * | Q88: * | R88: * | S88: * | T88: *
A89: QT1 | B89: RK5 | C89: SHERWOOD FOREST HOSPITALS NHS FOUNDATION TRUST | D89: 8 | E89: 0.75 | F89: 0.125 | G89: 4 | H89: 2 | I89: 1 | J89: 1 | K89: 0 | L89: 0 | M89: 0 | N89: 0 | O89: 0 | P89: 0 | Q89: 0 | R89: 0 | S89: 8 | T89: 0
A90: QT1 | B90: RX1 | C90: NOTTINGHAM UNIVERSITY HOSPITALS NHS TRUST | D90: 117 | E90: 0.9658119658 | F90: 0.01709401709 | G90: 98 | H90: 15 | I90: 1 | J90: 1 | K90: 1 | L90: 1 | M90: 0 | N90: 11 | O90: 0 | P90: 104 | Q90: 0 | R90: 0 | S90: 2 | T90: 0
A91: QT6 | B91: REF | C91: ROYAL CORNWALL HOSPITALS NHS TRUST | D91: 25 | E91: 0.96 | F91: 0.04 | G91: 17 | H91: 7 | I91: 0 | J91: 1 | K91: 0 | L91: 0 | M91: 0 | N91: 5 | O91: 0 | P91: 0 | Q91: 0 | R91: 0 | S91: 20 | T91: 0
A92: QU9 | B92: RTH | C92: OXFORD UNIVERSITY HOSPITALS NHS FOUNDATION TRUST | D92: 10 | E92: 0.9 | F92: 0 | G92: 8 | H92: 1 | I92: 1 | J92: 0 | K92: 0 | L92: 0 | M92: 0 | N92: 0 | O92: 0 | P92: 0 | Q92: 0 | R92: 0 | S92: 10 | T92: 0
A93: QU9 | B93: RHW | C93: ROYAL BERKSHIRE NHS FOUNDATION TRUST | D93: 26 | E93: 1 | F93: 0 | G93: 21 | H93: 5 | I93: 0 | J93: 0 | K93: 0 | L93: 0 | M93: 15 | N93: 0 | O93: 0 | P93: 11 | Q93: 0 | R93: 0 | S93: 0 | T93: 0
A94: QU9 | B94: RXQ | C94: BUCKINGHAMSHIRE HEALTHCARE NHS TRUST | D94: 53 | E94: 0.7169811321 | F94: 0.2641509434 | G94: 30 | H94: 8 | I94: 1 | J94: 11 | K94: 3 | L94: 0 | M94: 53 | N94: 0 | O94: 0 | P94: 0 | Q94: 0 | R94: 0 | S94: 0 | T94: 0
A95: QUA | B95: RNA | C95: THE DUDLEY GROUP NHS FOUNDATION TRUST | D95: 13 | E95: 0.9230769231 | F95: 0 | G95: 11 | H95: 1 | I95: 0 | J95: 0 | K95: 0 | L95: 1 | M95: 0 | N95: 0 | O95: 0 | P95: 12 | Q95: 0 | R95: 0 | S95: 1 | T95: 0
A96: QUA | B96: RL4 | C96: THE ROYAL WOLVERHAMPTON NHS TRUST | D96: 17 | E96: 0.8235294118 | F96: 0.1764705882 | G96: 11 | H96: 3 | I96: 0 | J96: 0 | K96: 3 | L96: 0 | M96: 17 | N96: 0 | O96: 0 | P96: 0 | Q96: 0 | R96: 0 | S96: 0 | T96: 0
A97: QUA | B97: RBK | C97: WALSALL HEALTHCARE NHS TRUST | D97: 154 | E97: 0.9480519481 | F97: 0.03896103896 | G97: 74 | H97: 72 | I97: 2 | J97: 4 | K97: 2 | L97: 0 | M97: 52 | N97: 102 | O97: 0 | P97: 0 | Q97: 0 | R97: 0 | S97: 0 | T97: 0
A98: QUE | B98: RGT | C98: CAMBRIDGE UNIVERSITY HOSPITALS NHS FOUNDATION TRUST | D98: 10 | E98: 0.5 | F98: 0.4 | G98: 5 | H98: 0 | I98: 1 | J98: 1 | K98: 3 | L98: 0 | M98: 0 | N98: 3 | O98: 0 | P98: 0 | Q98: 0 | R98: 0 | S98: 7 | T98: 0
A99: QUE | B99: RGN | C99: NORTH WEST ANGLIA NHS FOUNDATION TRUST | D99: 274 | E99: 1 | F99: 0 | G99: 262 | H99: 12 | I99: 0 | J99: 0 | K99: 0 | L99: 0 | M99: 0 | N99: 0 | O99: 0 | P99: 274 | Q99: 0 | R99: 0 | S99: 0 | T99: 0
A100: QUY | B100: RA7 | C100: UNIVERSITY HOSPITALS BRISTOL AND WESTON NHS FOUNDATION TRUST | D100: 32 | E100: 1 | F100: 0 | G100: 29 | H100: 3 | I100: 0 | J100: 0 | K100: 0 | L100: 0 | M100: 0 | N100: 0 | O100: 0 | P100: 32 | Q100: 0 | R100: 0 | S100: 0 | T100: 0
A101: QVV | B101: RBD | C101: DORSET COUNTY HOSPITAL NHS FOUNDATION TRUST | D101: 1 | E101: * | F101: * | G101: * | H101: * | I101: * | J101: * | K101: * | L101: * | M101: * | N101: * | O101: * | P101: * | Q101: * | R101: * | S101: * | T101: *
A102: QVV | B102: R0D | C102: UNIVERSITY HOSPITALS DORSET NHS FOUNDATION TRUST | D102: 39 | E102: 0.8205128205 | F102: 0.1025641026 | G102: * | H102: * | I102: * | J102: * | K102: * | L102: * | M102: * | N102: * | O102: * | P102: * | Q102: * | R102: * | S102: * | T102: *
A103: QWE | B103: RVR | C103: EPSOM AND ST HELIER UNIVERSITY HOSPITALS NHS TRUST | D103: 3 | E103: * | F103: * | G103: * | H103: * | I103: * | J103: * | K103: * | L103: * | M103: * | N103: * | O103: * | P103: * | Q103: * | R103: * | S103: * | T103: *
A104: QWE | B104: RJ7 | C104: ST GEORGE'S UNIVERSITY HOSPITALS NHS FOUNDATION TRUST | D104: 27 | E104: 0.7777777778 | F104: 0.2222222222 | G104: * | H104: * | I104: * | J104: * | K104: * | L104: * | M104: * | N104: * | O104: * | P104: * | Q104: * | R104: * | S104: * | T104: *
A105: QWE | B105: RAX | C105: KINGSTON AND RICHMOND NHS FOUNDATION TRUST | D105: 63 | E105: 0.9682539683 | F105: 0.03174603175 | G105: 59 | H105: 2 | I105: 0 | J105: 1 | K105: 1 | L105: 0 | M105: 0 | N105: 0 | O105: 12 | P105: 0 | Q105: 0 | R105: 0 | S105: 51 | T105: 0
A106: QWO | B106: RAE | C106: BRADFORD TEACHING HOSPITALS NHS FOUNDATION TRUST | D106: 5 | E106: 0.8 | F106: 0.2 | G106: 4 | H106: 0 | I106: 0 | J106: 0 | K106: 1 | L106: 0 | M106: 0 | N106: 0 | O106: 0 | P106: 0 | Q106: 0 | R106: 0 | S106: 5 | T106: 0
A107: QWO | B107: RWY | C107: CALDERDALE AND HUDDERSFIELD NHS FOUNDATION TRUST | D107: 15 | E107: 0.8 | F107: 0.2 | G107: 11 | H107: 1 | I107: 0 | J107: 1 | K107: 2 | L107: 0 | M107: 0 | N107: 0 | O107: 0 | P107: 0 | Q107: 0 | R107: 0 | S107: 15 | T107: 0
A108: QWO | B108: RR8 | C108: LEEDS TEACHING HOSPITALS NHS TRUST | D108: 85 | E108: 0.9647058824 | F108: 0.03529411765 | G108: 75 | H108: 7 | I108: 0 | J108: 2 | K108: 1 | L108: 0 | M108: 83 | N108: 2 | O108: 0 | P108: 0 | Q108: 0 | R108: 0 | S108: 0 | T108: 0
A109: QWO | B109: RXF | C109: MID YORKSHIRE TEACHING NHS TRUST | D109: 346 | E109: 0.9393063584 | F109: 0.03468208092 | G109: 285 | H109: 40 | I109: 7 | J109: 1 | K109: 11 | L109: 2 | M109: 84 | N109: 0 | O109: 0 | P109: 261 | Q109: 0 | R109: 0 | S109: 1 | T109: 0
A110: QWU | B110: RLT | C110: GEORGE ELIOT HOSPITAL NHS TRUST | D110: 0 | E110: NA | F110: NA | G110: 0 | H110: 0 | I110: 0 | J110: 0 | K110: 0 | L110: 0 | M110: 0 | N110: 0 | O110: 0 | P110: 0 | Q110: 0 | R110: 0 | S110: 0 | T110: 0
A111: QWU | B111: RJC | C111: SOUTH WARWICKSHIRE UNIVERSITY NHS FOUNDATION TRUST | D111: 11 | E111: 0.8181818182 | F111: 0.1818181818 | G111: 8 | H111: 1 | I111: 0 | J111: 1 | K111: 1 | L111: 0 | M111: 0 | N111: 0 | O111: 0 | P111: 0 | Q111: 0 | R111: 0 | S111: 11 | T111: 0
A112: QWU | B112: RKB | C112: UNIVERSITY HOSPITALS COVENTRY AND WARWICKSHIRE NHS TRUST | D112: 80 | E112: 0.8625 | F112: 0.125 | G112: 54 | H112: 15 | I112: 0 | J112: 5 | K112: 5 | L112: 1 | M112: 37 | N112: 39 | O112: 0 | P112: 0 | Q112: 0 | R112: 0 | S112: 4 | T112: 0
A113: QXU | B113: RTK | C113: ASHFORD AND ST PETER'S HOSPITALS NHS FOUNDATION TRUST | D113: 0 | E113: NA | F113: NA | G113: 0 | H113: 0 | I113: 0 | J113: 0 | K113: 0 | L113: 0 | M113: 0 | N113: 0 | O113: 0 | P113: 0 | Q113: 0 | R113: 0 | S113: 0 | T113: 0
A114: QXU | B114: RTP | C114: SURREY AND SUSSEX HEALTHCARE NHS TRUST | D114: 6 | E114: 0.6666666667 | F114: 0.3333333333 | G114: 2 | H114: 2 | I114: 0 | J114: 1 | K114: 1 | L114: 0 | M114: 0 | N114: 0 | O114: 0 | P114: 0 | Q114: 0 | R114: 0 | S114: 4 | T114: 2
A115: QXU | B115: RA2 | C115: ROYAL SURREY COUNTY HOSPITAL NHS FOUNDATION TRUST | D115: 7 | E115: 0.8571428571 | F115: 0.1428571429 | G115: 5 | H115: 1 | I115: 0 | J115: 0 | K115: 1 | L115: 0 | M115: 0 | N115: 0 | O115: 0 | P115: 5 | Q115: 0 | R115: 0 | S115: 2 | T115: 0
A116: QYG | B116: RWW | C116: WARRINGTON AND HALTON TEACHING HOSPITALS NHS FOUNDATION TRUST | D116: 0 | E116: NA | F116: NA | G116: 0 | H116: 0 | I116: 0 | J116: 0 | K116: 0 | L116: 0 | M116: 0 | N116: 0 | O116: 0 | P116: 0 | Q116: 0 | R116: 0 | S116: 0 | T116: 0
A117: QYG | B117: RJR | C117: COUNTESS OF CHESTER HOSPITAL NHS FOUNDATION TRUST | D117: 5 | E117: 0.8 | F117: 0.2 | G117: 3 | H117: 1 | I117: 0 | J117: 1 | K117: 0 | L117: 0 | M117: 5 | N117: 0 | O117: 0 | P117: 0 | Q117: 0 | R117: 0 | S117: 0 | T117: 0
A118: QYG | B118: RBT | C118: MID CHESHIRE HOSPITALS NHS FOUNDATION TRUST | D118: 7 | E118: 1 | F118: 0 | G118: 6 | H118: 1 | I118: 0 | J118: 0 | K118: 0 | L118: 0 | M118: 7 | N118: 0 | O118: 0 | P118: 0 | Q118: 0 | R118: 0 | S118: 0 | T118: 0
A119: QYG | B119: REP | C119: LIVERPOOL WOMEN'S NHS FOUNDATION TRUST | D119: 12 | E119: 0.8333333333 | F119: 0.08333333333 | G119: 7 | H119: 3 | I119: 1 | J119: 0 | K119: 1 | L119: 0 | M119: 11 | N119: 0 | O119: 0 | P119: 0 | Q119: 0 | R119: 0 | S119: 0 | T119: 1
A120: QYG | B120: RBN | C120: MERSEY AND WEST LANCASHIRE TEACHING HOSPITALS NHS TRUST | D120: 13 | E120: 0.9230769231 | F120: 0 | G120: 9 | H120: 3 | I120: 1 | J120: 0 | K120: 0 | L120: 0 | M120: 0 | N120: 0 | O120: 0 | P120: 0 | Q120: 0 | R120: 0 | S120: 13 | T120: 0
A121: QYG | B121: RJN | C121: EAST CHESHIRE NHS TRUST | D121: 13 | E121: 1 | F121: 0 | G121: 10 | H121: 3 | I121: 0 | J121: 0 | K121: 0 | L121: 0 | M121: 13 | N121: 0 | O121: 0 | P121: 0 | Q121: 0 | R121: 0 | S121: 0 | T121: 0
A122: QYG | B122: RBL | C122: WIRRAL UNIVERSITY TEACHING HOSPITAL NHS FOUNDATION TRUST | D122: 18 | E122: 0.8333333333 | F122: 0.1111111111 | G122: 11 | H122: 4 | I122: 1 | J122: 1 | K122: 1 | L122: 0 | M122: 0 | N122: 8 | O122: 0 | P122: 10 | Q122: 0 | R122: 0 | S122: 0 | T122: 0

Sheet Sites Q1
B6: Sort data by:
A9: ICB Code | B9: Trust Code | C9: Trust Name | D9: Site Code | E9: Site Name | F9: Total Responses | G9: Percentage Positive | H9: Percentage Negative | I9: Breakdown of Responses
I10: Very Good | J10: Good | K10: Neither Good nor Poor | L10: Poor | M10: Very Poor | N10: Don't Know
E11: England (including Independent Sector providers) | F11: 5312 | G11: 0.921686747 | H11: 0.05233433735 | I11: 4046 | J11: 850 | K11: 116 | L11: 116 | M11: 162 | N11: 22
E12: England (excluding Independent Sector providers) | F12: 5312 | G12: 0.921686747 | H12: 0.05233433735 | I12: 4046 | J12: 850 | K12: 116 | L12: 116 | M12: 162 | N12: 22
E13: Selection (excluding suppressed data) | F13: =SUBTOTAL(9,F14:F297) -> 5312 | G13: =IFERROR((I13+J13)/SUM(I13:N13), "-") -> 0.9249722531 | H13: =IFERROR((L13+M13)/SUM(I13:N13), "-") -> 0.04905660377 | I13: =SUBTOTAL(9,I14:I297) -> 3450 | J13: 717 | K13: 101 | L13: 93 | M13: 128 | N13: 16
A14: QE1 | B14: RXL | C14: BLACKPOOL TEACHING HOSPITALS NHS FOUNDATION TRUST | D14: RXL01 | E14: Blackpool Victoria Hospital | F14: 42 | G14: 0.9761904762 | H14: 0.02380952381 | I14: 32 | J14: 9 | K14: 0 | L14: 0 | M14: 1 | N14: 0
A15: QE1 | B15: RXR | C15: EAST LANCASHIRE HOSPITALS NHS TRUST | D15: RXR20 | E15: Royal Blackburn Hospital | F15: 115 | G15: 0.8782608696 | H15: 0.06086956522 | I15: 85 | J15: 16 | K15: 5 | L15: 4 | M15: 3 | N15: 2
A16: QE1 | B16: RXN | C16: LANCASHIRE TEACHING HOSPITALS NHS FOUNDATION TRUST | D16: RXN01 | E16: Chorley and South Ribble Hospital | F16: 0 | G16: NA | H16: NA | I16: 0 | J16: 0 | K16: 0 | L16: 0 | M16: 0 | N16: 0
A17: QE1 | B17: RXN | C17: LANCASHIRE TEACHING HOSPITALS NHS FOUNDATION TRUST | D17: RXN02 | E17: Royal Preston Hospital | F17: 13 | G17: 0.9230769231 | H17: 0 | I17: 8 | J17: 4 | K17: 0 | L17: 0 | M17: 0 | N17: 1
A18: QE1 | B18: RTX | C18: UNIVERSITY HOSPITALS OF MORECAMBE BAY NHS FOUNDATION TRUST | D18: RTXBU | E18: Furness General Hospital | F18: 12 | G18: 1 | H18: 0 | I18: 11 | J18: 1 | K18: 0 | L18: 0 | M18: 0 | N18: 0
A19: QE1 | B19: RTX | C19: UNIVERSITY HOSPITALS OF MORECAMBE BAY NHS FOUNDATION TRUST | D19: RTX02 | E19: Royal Lancaster Infirmary | F19: 9 | G19: 0.8888888889 | H19: 0 | I19: * | J19: * | K19: * | L19: * | M19: * | N19: *
A20: QE1 | B20: RTX | C20: UNIVERSITY HOSPITALS OF MORECAMBE BAY NHS FOUNDATION TRUST | D20: RTXBW | E20: Westmorland General Hospital | F20: 3 | G20: * | H20: * | I20: * | J20: * | K20: * | L20: * | M20: * | N20: *
A21: QF7 | B21: RFF | C21: BARNSLEY HOSPITAL NHS FOUNDATION TRUST | D21: RFFAA | E21: Barnsley Hospital NHS Foundation Trust HQ | F21: 9 | G21: 0.8888888889 | H21: 0.1111111111 | I21: 7 | J21: 1 | K21: 0 | L21: 1 | M21: 0 | N21: 0
A22: QF7 | B22: RP5 | C22: DONCASTER AND BASSETLAW TEACHING HOSPITALS NHS FOUNDATION TRUST | D22: RP5BA | E22: Bassetlaw Hospital | F22: 1 | G22: * | H22: * | I22: * | J22: * | K22: * | L22: * | M22: * | N22: *
A23: QF7 | B23: RP5 | C23: DONCASTER AND BASSETLAW TEACHING HOSPITALS NHS FOUNDATION TRUST | D23: RP5DR | E23: Doncaster Royal Infirmary | F23: 4 | G23: * | H23: * | I23: * | J23: * | K23: * | L23: * | M23: * | N23: *
A24: QF7 | B24: RP5 | C24: DONCASTER AND BASSETLAW TEACHING HOSPITALS NHS FOUNDATION TRUST | D24: RP5XXX | E24: Non-hospital site | F24: 7 | G24: 1 | H24: 0 | I24: 6 | J24: 1 | K24: 0 | L24: 0 | M24: 0 | N24: 0
A25: QF7 | B25: RHQ | C25: SHEFFIELD TEACHING HOSPITALS NHS FOUNDATION TRUST | D25: RHQHH | E25: Royal Hallamshire Hospital | F25: 94 | G25: 0.9468085106 | H25: 0.03191489362 | I25: 66 | J25: 23 | K25: 2 | L25: 3 | M25: 0 | N25: 0
A26: QF7 | B26: RFR | C26: THE ROTHERHAM NHS FOUNDATION TRUST | D26: RFRPA | E26: Rotherham District General Hospital | F26: 30 | G26: 0.9666666667 | H26: 0.03333333333 | I26: 28 | J26: 1 | K26: 0 | L26: 0 | M26: 1 | N26: 0
A27: QGH | B27: RWP | C27: WORCESTERSHIRE ACUTE HOSPITALS NHS TRUST | D27: RWP01 | E27: Alexandra Hospital | F27: 0 | G27: NA | H27: NA | I27: 0 | J27: 0 | K27: 0 | L27: 0 | M27: 0 | N27: 0
A28: QGH | B28: RWP | C28: WORCESTERSHIRE ACUTE HOSPITALS NHS TRUST | D28: RWP31 | E28: Kidderminster Hospital | F28: 0 | G28: NA | H28: NA | I28: 0 | J28: 0 | K28: 0 | L28: 0 | M28: 0 | N28: 0
A29: QGH | B29: RWP | C29: WORCESTERSHIRE ACUTE HOSPITALS NHS TRUST | D29: RWP50 | E29: Worcestershire Royal Hospital | F29: 74 | G29: 0.972972973 | H29: 0.01351351351 | I29: 63 | J29: 9 | K29: 1 | L29: 1 | M29: 0 | N29: 0
A30: QGH | B30: RLQ | C30: WYE VALLEY NHS TRUST | D30: RLQ01 | E30: Hereford County Hospital | F30: 10 | G30: 0.8 | H30: 0.2 | I30: 8 | J30: 0 | K30: 0 | L30: 1 | M30: 1 | N30: 0
A31: QH8 | B31: RAJ | C31: MID AND SOUTH ESSEX NHS FOUNDATION TRUST | D31: RAJ12 | E31: BASILDON HOSPITAL | F31: 1 | G31: * | H31: * | I31: * | J31: * | K31: * | L31: * | M31: * | N31: *
A32: QH8 | B32: RAJ | C32: MID AND SOUTH ESSEX NHS FOUNDATION TRUST | D32: RAJ32 | E32: MID ESSEX HOSPITAL | F32: 0 | G32: NA | H32: NA | I32: 0 | J32: 0 | K32: 0 | L32: 0 | M32: 0 | N32: 0
A33: QH8 | B33: RAJ | C33: MID AND SOUTH ESSEX NHS FOUNDATION TRUST | D33: RAJ01 | E33: Southend Hospital | F33: 11 | G33: 0.9090909091 | H33: 0.09090909091 | I33: * | J33: * | K33: * | L33: * | M33: * | N33: *
A34: QHG | B34: RC9 | C34: BEDFORDSHIRE HOSPITALS NHS FOUNDATION TRUST | D34: RC979 | E34: BEDFORD HOSPITAL SOUTH WING | F34: 7 | G34: 0.8571428571 | H34: 0.1428571429 | I34: 6 | J34: 0 | K34: 0 | L34: 1 | M34: 0 | N34: 0
A35: QHG | B35: RC9 | C35: BEDFORDSHIRE HOSPITALS NHS FOUNDATION TRUST | D35: RC971 | E35: Luton and Dunstable Hospital | F35: 102 | G35: 0.9411764706 | H35: 0.02941176471 | I35: 61 | J35: 35 | K35: 3 | L35: 2 | M35: 1 | N35: 0
A36: QHG | B36: RD8 | C36: MILTON KEYNES UNIVERSITY HOSPITAL NHS FOUNDATION TRUST | D36: RD816 | E36: Milton Keynes Hospital | F36: 447 | G36: 0.8993288591 | H36: 0.04697986577 | I36: 288 | J36: 114 | K36: 20 | L36: 9 | M36: 12 | N36: 4
A37: QHL | B37: RQ3 | C37: BIRMINGHAM WOMEN'S AND CHILDREN'S NHS FOUNDATION TRUST | D37: RQ370 | E37: Birmingham Women's Hospital | F37: 106 | G37: 0.9716981132 | H37: 0.02830188679 | I37: 95 | J37: 8 | K37: 0 | L37: 1 | M37: 2 | N37: 0
A38: QHL | B38: RXK | C38: SANDWELL AND WEST BIRMINGHAM HOSPITALS NHS TRUST | D38: RXK02 | E38: City Hospital | F38: 4 | G38: * | H38: * | I38: * | J38: * | K38: * | L38: * | M38: * | N38: *
A39: QHL | B39: RXK | C39: SANDWELL AND WEST BIRMINGHAM HOSPITALS NHS TRUST | D39: RXK01 | E39: Sandwell General Hospital | F39: 36 | G39: 0.8333333333 | H39: 0.1111111111 | I39: * | J39: * | K39: * | L39: * | M39: * | N39: *
A40: QHL | B40: RRK | C40: UNIVERSITY HOSPITALS BIRMINGHAM NHS FOUNDATION TRUST | D40: RRK98 | E40: Good Hope Hospital | F40: 0 | G40: NA | H40: NA | I40: 0 | J40: 0 | K40: 0 | L40: 0 | M40: 0 | N40: 0
A41: QHL | B41: RRK | C41: UNIVERSITY HOSPITALS BIRMINGHAM NHS FOUNDATION TRUST | D41: RRK97 | E41: Heartlands Hospital | F41: 4 | G41: * | H41: * | I41: * | J41: * | K41: * | L41: * | M41: * | N41: *
A42: QHL | B42: RRK | C42: UNIVERSITY HOSPITALS BIRMINGHAM NHS FOUNDATION TRUST | D42: RRK99 | E42: Solihull Hospital | F42: 0 | G42: NA | H42: NA | I42: 0 | J42: 0 | K42: 0 | L42: 0 | M42: 0 | N42: 0
A43: QHM | B43: RXP | C43: COUNTY DURHAM AND DARLINGTON NHS FOUNDATION TRUST | D43: RXPDA | E43: Darlington Memorial Hospital | F43: 18 | G43: 1 | H43: 0 | I43: 15 | J43: 3 | K43: 0 | L43: 0 | M43: 0 | N43: 0
A44: QHM | B44: RXP | C44: COUNTY DURHAM AND DARLINGTON NHS FOUNDATION TRUST | D44: RXPCP | E44: University Hospital Of North Durham | F44: 24 | G44: 1 | H44: 0 | I44: 23 | J44: 1 | K44: 0 | L44: 0 | M44: 0 | N44: 0
A45: QHM | B45: RR7 | C45: GATESHEAD HEALTH NHS FOUNDATION TRUST | D45: RR7EN | E45: Queen Elizabeth Hospital | F45: 8 | G45: 1 | H45: 0 | I45: 8 | J45: 0 | K45: 0 | L45: 0 | M45: 0 | N45: 0
A46: QHM | B46: RNN | C46: NORTH CUMBRIA INTEGRATED CARE NHS FOUNDATION TRUST | D46: RNN62 | E46: Cumberland Infirmary | F46: 1 | G46: * | H46: * | I46: * | J46: * | K46: * | L46: * | M46: * | N46: *
A47: QHM | B47: RNN | C47: NORTH CUMBRIA INTEGRATED CARE NHS FOUNDATION TRUST | D47: RNNBX | E47: West Cumberland Hospital | F47: 7 | G47: 1 | H47: 0 | I47: * | J47: * | K47: * | L47: * | M47: * | N47: *
A48: QHM | B48: RVW | C48: NORTH TEES AND HARTLEPOOL NHS FOUNDATION TRUST | D48: RVWAE | E48: University Hospital Of North Tees | F48: 4 | G48: * | H48: * | I48: * | J48: * | K48: * | L48: * | M48: * | N48: *
A49: QHM | B49: RTF | C49: NORTHUMBRIA HEALTHCARE NHS FOUNDATION TRUST | D49: RTFXXX | E49: Non-hospital site | F49: 0 | G49: NA | H49: NA | I49: 0 | J49: 0 | K49: 0 | L49: 0 | M49: 0 | N49: 0
A50: QHM | B50: RTR | C50: SOUTH TEES HOSPITALS NHS FOUNDATION TRUST | D50: RTR45 | E50: Friarage Hospital Site | F50: 4 | G50: * | H50: * | I50: * | J50: * | K50: * | L50: * | M50: * | N50: *
A51: QHM | B51: RTR | C51: SOUTH TEES HOSPITALS NHS FOUNDATION TRUST | D51: RTRAT | E51: The James Cook University Hospital | F51: 196 | G51: 0.9387755102 | H51: 0.04591836735 | I51: * | J51: * | K51: * | L51: * | M51: * | N51: *
A52: QHM | B52: R0B | C52: SOUTH TYNESIDE AND SUNDERLAND NHS FOUNDATION TRUST | D52: R0BXXX | E52: Non-hospital site | F52: 11 | G52: 1 | H52: 0 | I52: 11 | J52: 0 | K52: 0 | L52: 0 | M52: 0 | N52: 0
A53: QHM | B53: R0B | C53: SOUTH TYNESIDE AND SUNDERLAND NHS FOUNDATION TRUST | D53: R0B0Q | E53: South Tyneside District Hospital | F53: 2 | G53: * | H53: * | I53: * | J53: * | K53: * | L53: * | M53: * | N53: *
A54: QHM | B54: R0B | C54: SOUTH TYNESIDE AND SUNDERLAND NHS FOUNDATION TRUST | D54: R0B01 | E54: Sunderland Royal Hospital | F54: 11 | G54: 0.9090909091 | H54: 0.09090909091 | I54: * | J54: * | K54: * | L54: * | M54: * | N54: *
A55: QHM | B55: RTD | C55: THE NEWCASTLE UPON TYNE HOSPITALS NHS FOUNDATION TRUST | D55: RTD02 | E55: The Royal Victoria Infirmary | F55: 55 | G55: 0.9272727273 | H55: 0.05454545455 | I55: 46 | J55: 5 | K55: 1 | L55: 2 | M55: 1 | N55: 0
A56: QJ2 | B56: RFS | C56: CHESTERFIELD ROYAL HOSPITAL NHS FOUNDATION TRUST | D56: RFSDA | E56: Chesterfield Royal Hospital | F56: 24 | G56: 0.9166666667 | H56: 0.04166666667 | I56: 17 | J56: 5 | K56: 1 | L56: 1 | M56: 0 | N56: 0
A57: QJ2 | B57: RTG | C57: UNIVERSITY HOSPITALS OF DERBY AND BURTON NHS FOUNDATION TRUST | D57: RTG02 | E57: Queens Hospital, Burton Upon Trent | F57: 27 | G57: 0.9259259259 | H57: 0.07407407407 | I57: 16 | J57: 9 | K57: 0 | L57: 0 | M57: 2 | N57: 0
A58: QJ2 | B58: RTG | C58: UNIVERSITY HOSPITALS OF DERBY AND BURTON NHS FOUNDATION TRUST | D58: RTGFG | E58: Royal Derby Hospital | F58: 38 | G58: 0.7894736842 | H58: 0.07894736842 | I58: 20 | J58: 10 | K58: 5 | L58: 2 | M58: 1 | N58: 0
A59: QJG | B59: RDE | C59: EAST SUFFOLK AND NORTH ESSEX NHS FOUNDATION TRUST | D59: RDEE4 | E59: Colchester General Hospital | F59: 2 | G59: * | H59: * | I59: * | J59: * | K59: * | L59: * | M59: * | N59: *
A60: QJG | B60: RDE | C60: EAST SUFFOLK AND NORTH ESSEX NHS FOUNDATION TRUST | D60: RDE03 | E60: Ipswich Hospital | F60: 8 | G60: 1 | H60: 0 | I60: * | J60: * | K60: * | L60: * | M60: * | N60: *
A61: QJG | B61: RGR | C61: WEST SUFFOLK NHS FOUNDATION TRUST | D61: RGR50 | E61: West Suffolk Hospital | F61: 1 | G61: * | H61: * | I61: * | J61: * | K61: * | L61: * | M61: * | N61: *
A62: QJK | B62: RH8 | C62: ROYAL DEVON UNIVERSITY HEALTHCARE NHS FOUNDATION TRUST | D62: RH880 | E62: North Devon District Hospital | F62: 2 | G62: * | H62: * | I62: * | J62: * | K62: * | L62: * | M62: * | N62: *
A63: QJK | B63: RH8 | C63: ROYAL DEVON UNIVERSITY HEALTHCARE NHS FOUNDATION TRUST | D63: RH801 | E63: Royal Devon and Exeter Hospital (Wonford) | F63: 0 | G63: NA | H63: NA | I63: 0 | J63: 0 | K63: 0 | L63: 0 | M63: 0 | N63: 0
A64: QJK | B64: RA9 | C64: TORBAY AND SOUTH DEVON NHS FOUNDATION TRUST | D64: RA901 | E64: Torbay Hospital | F64: 4 | G64: * | H64: * | I64: * | J64: * | K64: * | L64: * | M64: * | N64: *
A65: QJK | B65: RK9 | C65: UNIVERSITY HOSPITALS PLYMOUTH NHS TRUST | D65: RK950 | E65: Derriford Hospital | F65: 3 | G65: * | H65: * | I65: * | J65: * | K65: * | L65: * | M65: * | N65: *
A66: QJK | B66: RK9 | C66: UNIVERSITY HOSPITALS PLYMOUTH NHS TRUST | D66: RK9XXX | E66: Non-hospital site | F66: 3 | G66: * | H66: * | I66: * | J66: * | K66: * | L66: * | M66: * | N66: *
A67: QJM | B67: RWD | C67: UNITED LINCOLNSHIRE TEACHING HOSPITALS NHS TRUST | D67: RWDLP | E67: Grantham and District Hospital | F67: 0 | G67: NA | H67: NA | I67: 0 | J67: 0 | K67: 0 | L67: 0 | M67: 0 | N67: 0
A68: QJM | B68: RWD | C68: UNITED LINCOLNSHIRE TEACHING HOSPITALS NHS TRUST | D68: RWDDA | E68: Lincoln County Hospital | F68: 0 | G68: NA | H68: NA | I68: 0 | J68: 0 | K68: 0 | L68: 0 | M68: 0 | N68: 0
A69: QJM | B69: RWD | C69: UNITED LINCOLNSHIRE TEACHING HOSPITALS NHS TRUST | D69: RWDLA | E69: Pilgrim Hospital | F69: 0 | G69: NA | H69: NA | I69: 0 | J69: 0 | K69: 0 | L69: 0 | M69: 0 | N69: 0
A70: QK1 | B70: RWE | C70: UNIVERSITY HOSPITALS OF LEICESTER NHS TRUST | D70: RWEAK | E70: Leicester General Hospital | F70: 0 | G70: NA | H70: NA | I70: 0 | J70: 0 | K70: 0 | L70: 0 | M70: 0 | N70: 0
A71: QK1 | B71: RWE | C71: UNIVERSITY HOSPITALS OF LEICESTER NHS TRUST | D71: RWEAA | E71: Leicester Royal Infirmary | F71: 3 | G71: * | H71: * | I71: * | J71: * | K71: * | L71: * | M71: * | N71: *
A72: QK1 | B72: RWE | C72: UNIVERSITY HOSPITALS OF LEICESTER NHS TRUST | D72: RWEXXX | E72: Non-hospital site | F72: 46 | G72: 1 | H72: 0 | I72: 40 | J72: 6 | K72: 0 | L72: 0 | M72: 0 | N72: 0
A73: QK1 | B73: RWE | C73: UNIVERSITY HOSPITALS OF LEICESTER NHS TRUST | D73: RWE10 | E73: St Mary's Hospital | F73: 3 | G73: * | H73: * | I73: * | J73: * | K73: * | L73: * | M73: * | N73: *
A74: QKK | B74: RJ1 | C74: GUY'S AND ST THOMAS' NHS FOUNDATION TRUST | D74: RJ122 | E74: St Thomas' Hospital | F74: 8 | G74: 0.75 | H74: 0 | I74: 6 | J74: 0 | K74: 2 | L74: 0 | M74: 0 | N74: 0
A75: QKK | B75: RJ2 | C75: LEWISHAM AND GREENWICH NHS TRUST | D75: RJ231 | E75: Queen Elizabeth Hospital | F75: 22 | G75: 0.9090909091 | H75: 0 | I75: 7 | J75: 13 | K75: 1 | L75: 0 | M75: 0 | N75: 1
A76: QKK | B76: RJ2 | C76: LEWISHAM AND GREENWICH NHS TRUST | D76: RJ224 | E76: University Hospital Lewisham | F76: 40 | G76: 0.975 | H76: 0.025 | I76: 31 | J76: 8 | K76: 0 | L76: 1 | M76: 0 | N76: 0
A77: QKS | B77: RN7 | C77: DARTFORD AND GRAVESHAM NHS TRUST | D77: RN707 | E77: Darent Valley Hospital | F77: 171 | G77: 0.9356725146 | H77: 0.0350877193 | I77: 147 | J77: 13 | K77: 5 | L77: 2 | M77: 4 | N77: 0
A78: QKS | B78: RVV | C78: EAST KENT HOSPITALS UNIVERSITY NHS FOUNDATION TRUST | D78: RVV02 | E78: Buckland Hospital | F78: 3 | G78: * | H78: * | I78: * | J78: * | K78: * | L78: * | M78: * | N78: *
A79: QKS | B79: RVV | C79: EAST KENT HOSPITALS UNIVERSITY NHS FOUNDATION TRUST | D79: RVVXXX | E79: Non-hospital site | F79: 9 | G79: 1 | H79: 0 | I79: 8 | J79: 1 | K79: 0 | L79: 0 | M79: 0 | N79: 0
A80: QKS | B80: RVV | C80: EAST KENT HOSPITALS UNIVERSITY NHS FOUNDATION TRUST | D80: RVV09 | E80: Queen Elizabeth The Queen Mother Hospital | F80: 4 | G80: * | H80: * | I80: * | J80: * | K80: * | L80: * | M80: * | N80: *
A81: QKS | B81: RVV | C81: EAST KENT HOSPITALS UNIVERSITY NHS FOUNDATION TRUST | D81: RVV03 | E81: Royal Victoria Hospital (Folkestone) | F81: 1 | G81: * | H81: * | I81: * | J81: * | K81: * | L81: * | M81: * | N81: *
A82: QKS | B82: RVV | C82: EAST KENT HOSPITALS UNIVERSITY NHS FOUNDATION TRUST | D82: RVV01 | E82: William Harvey Hospital (Ashford) | F82: 8 | G82: 1 | H82: 0 | I82: 6 | J82: 2 | K82: 0 | L82: 0 | M82: 0 | N82: 0
A83: QKS | B83: RWF | C83: MAIDSTONE AND TUNBRIDGE WELLS NHS TRUST | D83: RWF03 | E83: Maidstone District General Hospital | F83: 23 | G83: 0.9130434783 | H83: 0.04347826087 | I83: * | J83: * | K83: * | L83: * | M83: * | N83: *
A84: QKS | B84: RWF | C84: MAIDSTONE AND TUNBRIDGE WELLS NHS TRUST | D84: RWFXXX | E84: Non-hospital site | F84: 3 | G84: * | H84: * | I84: * | J84: * | K84: * | L84: * | M84: * | N84: *
A85: QKS | B85: RWF | C85: MAIDSTONE AND TUNBRIDGE WELLS NHS TRUST | D85: RWFTW | E85: The Tunbridge Wells Hospital | F85: 48 | G85: 0.875 | H85: 0.125 | I85: 35 | J85: 7 | K85: 0 | L85: 2 | M85: 4 | N85: 0
A86: QKS | B86: RPA | C86: MEDWAY NHS FOUNDATION TRUST | D86: RPA02 | E86: Medway Maritime Hospital | F86: 4 | G86: * | H86: * | I86: * | J86: * | K86: * | L86: * | M86: * | N86: *
A87: QM7 | B87: RWH | C87: EAST AND NORTH HERTFORDSHIRE NHS TRUST | D87: RWH23 | E87: Hertford County Hospital | F87: 0 | G87: NA | H87: NA | I87: 0 | J87: 0 | K87: 0 | L87: 0 | M87: 0 | N87: 0
A88: QM7 | B88: RWH | C88: EAST AND NORTH HERTFORDSHIRE NHS TRUST | D88: RWH01 | E88: Lister Hospital | F88: 38 | G88: 0.9736842105 | H88: 0.02631578947 | I88: * | J88: * | K88: * | L88: * | M88: * | N88: *
A89: QM7 | B89: RWH | C89: EAST AND NORTH HERTFORDSHIRE NHS TRUST | D89: RWHXXX | E89: Non-hospital site | F89: 0 | G89: NA | H89: NA | I89: 0 | J89: 0 | K89: 0 | L89: 0 | M89: 0 | N89: 0
A90: QM7 | B90: RWH | C90: EAST AND NORTH HERTFORDSHIRE NHS TRUST | D90: RWH20 | E90: Queen Elizabeth I I Hospital | F90: 15 | G90: 1 | H90: 0 | I90: * | J90: * | K90: * | L90: * | M90: * | N90: *
A91: QM7 | B91: RQW | C91: THE PRINCESS ALEXANDRA HOSPITAL NHS TRUST | D91: RQWG0 | E91: Princess Alexandra Hospital | F91: 0 | G91: NA | H91: NA | I91: 0 | J91: 0 | K91: 0 | L91: 0 | M91: 0 | N91: 0
A92: QM7 | B92: RWG | C92: WEST HERTFORDSHIRE TEACHING HOSPITALS NHS TRUST | D92: RWG02 | E92: Watford General Hospital | F92: 2 | G92: * | H92: * | I92: * | J92: * | K92: * | L92: * | M92: * | N92: *
A93: QMF | B93: RF4 | C93: BARKING, HAVERING AND REDBRIDGE UNIVERSITY HOSPITALS NHS TRUST | D93: RF4XXX | E93: Non-hospital site | F93: 55 | G93: 0.6727272727 | H93: 0.2 | I93: 27 | J93: 10 | K93: 6 | L93: 6 | M93: 5 | N93: 1
A94: QMF | B94: R1H | C94: BARTS HEALTH NHS TRUST | D94: R1HNH | E94: Newham General Hospital | F94: 66 | G94: 0.9696969697 | H94: 0.0303030303 | I94: 55 | J94: 9 | K94: 0 | L94: 0 | M94: 2 | N94: 0
A95: QMF | B95: R1H | C95: BARTS HEALTH NHS TRUST | D95: R1H12 | E95: The Royal London Hospital | F95: 27 | G95: 0.7407407407 | H95: 0.2592592593 | I95: 20 | J95: 0 | K95: 0 | L95: 0 | M95: 7 | N95: 0
A96: QMF | B96: R1H | C96: BARTS HEALTH NHS TRUST | D96: R1HKH | E96: Whipps Cross University Hospital | F96: 30 | G96: 0.9666666667 | H96: 0.03333333333 | I96: 26 | J96: 3 | K96: 0 | L96: 0 | M96: 1 | N96: 0
A97: QMF | B97: RQX | C97: HOMERTON HEALTHCARE NHS FOUNDATION TRUST | D97: RQXM1 | E97: Homerton University Hospital | F97: 5 | G97: 0.6 | H97: 0.4 | I97: 3 | J97: 0 | K97: 0 | L97: 1 | M97: 1 | N97: 0
A98: QMJ | B98: RAL | C98: ROYAL FREE LONDON NHS FOUNDATION TRUST | D98: RAL26 | E98: Barnet Hospital | F98: 25 | G98: 0.84 | H98: 0.12 | I98: 18 | J98: 3 | K98: 1 | L98: 2 | M98: 1 | N98: 0
A99: QMJ | B99: RAL | C99: ROYAL FREE LONDON NHS FOUNDATION TRUST | D99: RALC7 | E99: Chase Farm Hospital | F99: 6 | G99: 0.8333333333 | H99: 0 | I99: * | J99: * | K99: * | L99: * | M99: * | N99: *
A100: QMJ | B100: RAL | C100: ROYAL FREE LONDON NHS FOUNDATION TRUST | D100: RALRA | E100: Edgware Community Hospital | F100: 13 | G100: 1 | H100: 0 | I100: 11 | J100: 2 | K100: 0 | L100: 0 | M100: 0 | N100: 0
A101: QMJ | B101: RAL | C101: ROYAL FREE LONDON NHS FOUNDATION TRUST | D101: RAL22 | E101: Finchley Memorial Hospital | F101: 2 | G101: * | H101: * | I101: * | J101: * | K101: * | L101: * | M101: * | N101: *
A102: QMJ | B102: RAL | C102: ROYAL FREE LONDON NHS FOUNDATION TRUST | D102: RAL27 | E102: North Middlesex University Hospital | F102: 43 | G102: 0.8837209302 | H102: 0.1162790698 | I102: 28 | J102: 10 | K102: 0 | L102: 1 | M102: 4 | N102: 0
A103: QMJ | B103: RAL | C103: ROYAL FREE LONDON NHS FOUNDATION TRUST | D103: RAL01 | E103: Royal Free Hospital | F103: 48 | G103: 0.9166666667 | H103: 0.04166666667 | I103: 30 | J103: 14 | K103: 2 | L103: 0 | M103: 2 | N103: 0
A104: QMJ | B104: RRV | C104: UNIVERSITY COLLEGE LONDON HOSPITALS NHS FOUNDATION TRUST | D104: RRV11 | E104: University College Hospital Elizabeth Garrett Anderson Wing | F104: 0 | G104: NA | H104: NA | I104: 0 | J104: 0 | K104: 0 | L104: 0 | M104: 0 | N104: 0
A105: QMJ | B105: RKE | C105: WHITTINGTON HEALTH NHS TRUST | D105: RKEXXX | E105: Non-hospital site | F105: 14 | G105: 1 | H105: 0 | I105: * | J105: * | K105: * | L105: * | M105: * | N105: *
A106: QMJ | B106: RKE | C106: WHITTINGTON HEALTH NHS TRUST | D106: RKEQ4 | E106: The Whittington Hospital | F106: 4 | G106: * | H106: * | I106: * | J106: * | K106: * | L106: * | M106: * | N106: *
A107: QMM | B107: RGP | C107: JAMES PAGET UNIVERSITY HOSPITALS NHS FOUNDATION TRUST | D107: RGP75 | E107: James Paget University Hospital | F107: 0 | G107: NA | H107: NA | I107: 0 | J107: 0 | K107: 0 | L107: 0 | M107: 0 | N107: 0
A108: QMM | B108: RM1 | C108: NORFOLK AND NORWICH UNIVERSITY HOSPITALS NHS FOUNDATION TRUST | D108: RM102 | E108: Norfolk and Norwich University Hospital | F108: 47 | G108: 0.9787234043 | H108: 0 | I108: 45 | J108: 1 | K108: 0 | L108: 0 | M108: 0 | N108: 1
A109: QMM | B109: RCX | C109: THE QUEEN ELIZABETH HOSPITAL, KING'S LYNN, NHS FOUNDATION TRUST | D109: RCXXXX | E109: Non-hospital site | F109: 14 | G109: 1 | H109: 0 | I109: 13 | J109: 1 | K109: 0 | L109: 0 | M109: 0 | N109: 0
A110: QMM | B110: RCX | C110: THE QUEEN ELIZABETH HOSPITAL, KING'S LYNN, NHS FOUNDATION TRUST | D110: RCX66 | E110: North Cambridgeshire Hospital | F110: 0 | G110: NA | H110: NA | I110: 0 | J110: 0 | K110: 0 | L110: 0 | M110: 0 | N110: 0
A111: QMM | B111: RCX | C111: THE QUEEN ELIZABETH HOSPITAL, KING'S LYNN, NHS FOUNDATION TRUST | D111: RCX70 | E111: The Queen Elizabeth Hospital | F111: 52 | G111: 0.9807692308 | H111: 0.01923076923 | I111: 43 | J111: 8 | K111: 0 | L111: 1 | M111: 0 | N111: 0
A112: QNC | B112: RJE | C112: UNIVERSITY HOSPITALS OF NORTH MIDLANDS NHS TRUST | D112: RJE09 | E112: County Hospital | F112: 1 | G112: * | H112: * | I112: * | J112: * | K112: * | L112: * | M112: * | N112: *
A113: QNC | B113: RJE | C113: UNIVERSITY HOSPITALS OF NORTH MIDLANDS NHS TRUST | D113: RJEXXX | E113: Non-hospital site | F113: 4 | G113: * | H113: * | I113: * | J113: * | K113: * | L113: * | M113: * | N113: *
A114: QNC | B114: RJE | C114: UNIVERSITY HOSPITALS OF NORTH MIDLANDS NHS TRUST | D114: RJE01 | E114: Royal Stoke University Hospital | F114: 21 | G114: 0.7619047619 | H114: 0.1904761905 | I114: 12 | J114: 4 | K114: 1 | L114: 0 | M114: 4 | N114: 0
A115: QNQ | B115: RDU | C115: FRIMLEY HEALTH NHS FOUNDATION TRUST | D115: RDU01 | E115: Frimley Park Hospital | F115: 2 | G115: * | H115: * | I115: * | J115: * | K115: * | L115: * | M115: * | N115: *
A116: QNQ | B116: RDU | C116: FRIMLEY HEALTH NHS FOUNDATION TRUST | D116: RDU50 | E116: Wexham Park Hospital | F116: 43 | G116: 0.6511627907 | H116: 0.2790697674 | I116: * | J116: * | K116: * | L116: * | M116: * | N116: *
A117: QOC | B117: RXW | C117: THE SHREWSBURY AND TELFORD HOSPITAL NHS TRUST | D117: RXWAS | E117: Royal Shrewsbury Hospital | F117: 13 | G117: 1 | H117: 0 | I117: 13 | J117: 0 | K117: 0 | L117: 0 | M117: 0 | N117: 0
A118: QOC | B118: RXW | C118: THE SHREWSBURY AND TELFORD HOSPITAL NHS TRUST | D118: RXWAT | E118: The Princess Royal Hospital | F118: 9 | G118: 0.8888888889 | H118: 0 | I118: 8 | J118: 0 | K118: 1 | L118: 0 | M118: 0 | N118: 0
A119: QOP | B119: RMC | C119: BOLTON NHS FOUNDATION TRUST | D119: RMC01 | E119: Royal Bolton Hospital | F119: 110 | G119: 0.9363636364 | H119: 0.03636363636 | I119: 102 | J119: 1 | K119: 3 | L119: 1 | M119: 3 | N119: 0
A120: QOP | B120: R0A | C120: MANCHESTER UNIVERSITY NHS FOUNDATION TRUST | D120: R0A05 | E120: St Mary's Hospital | F120: 376 | G120: 0.9760638298 | H120: 0.007978723404 | I120: 313 | J120: 54 | K120: 5 | L120: 0 | M120: 3 | N120: 1
A121: QOP | B121: RWJ | C121: STOCKPORT NHS FOUNDATION TRUST | D121: RWJ09 | E121: Stepping Hill Hospital | F121: 10 | G121: 0.8 | H121: 0.2 | I121: * | J121: * | K121: * | L121: * | M121: * | N121: *
A122: QOP | B122: RMP | C122: TAMESIDE AND GLOSSOP INTEGRATED CARE NHS FOUNDATION TRUST | D122: RMP01 | E122: Tameside General Hospital | F122: 80 | G122: 0.95 | H122: 0.025 | I122: 75 | J122: 1 | K122: 2 | L122: 0 | M122: 2 | N122: 0
A123: QOP | B123: RRF | C123: WRIGHTINGTON, WIGAN AND LEIGH NHS FOUNDATION TRUST | D123: RRF02 | E123: Royal Albert Edward Infirmary | F123: 2 | G123: * | H123: * | I123: * | J123: * | K123: * | L123: * | M123: * | N123: *
A124: QOQ | B124: RCD | C124: HARROGATE AND DISTRICT NHS FOUNDATION TRUST | D124: RCD01 | E124: Harrogate District Hospital | F124: 0 | G124: NA | H124: NA | I124: 0 | J124: 0 | K124: 0 | L124: 0 | M124: 0 | N124: 0
A125: QOQ | B125: RWA | C125: HULL UNIVERSITY TEACHING HOSPITALS NHS TRUST | D125: RWA01 | E125: Hull Royal Infirmary | F125: 1 | G125: * | H125: * | I125: * | J125: * | K125: * | L125: * | M125: * | N125: *
A126: QOQ | B126: RJL | C126: NORTHERN LINCOLNSHIRE AND GOOLE NHS FOUNDATION TRUST | D126: RJL30 | E126: Diana, Princess Of Wales Hospital | F126: 9 | G126: 0.7777777778 | H126: 0.1111111111 | I126: * | J126: * | K126: * | L126: * | M126: * | N126: *
A127: QOQ | B127: RJL | C127: NORTHERN LINCOLNSHIRE AND GOOLE NHS FOUNDATION TRUST | D127: RJL31 | E127: Goole and District Hospital (Acute) | F127: 1 | G127: * | H127: * | I127: * | J127: * | K127: * | L127: * | M127: * | N127: *
A128: QOQ | B128: RJL | C128: NORTHERN LINCOLNSHIRE AND GOOLE NHS FOUNDATION TRUST | D128: RJL32 | E128: Scunthorpe General Hospital | F128: 10 | G128: 0.8 | H128: 0.1 | I128: 6 | J128: 2 | K128: 1 | L128: 0 | M128: 1 | N128: 0
A129: QOX | B129: RN3 | C129: GREAT WESTERN HOSPITALS NHS FOUNDATION TRUST | D129: RN325 | E129: The Great Western Hospital | F129: 80 | G129: 0.825 | H129: 0.1625 | I129: 53 | J129: 13 | K129: 1 | L129: 5 | M129: 8 | N129: 0
A130: QOX | B130: RD1 | C130: ROYAL UNITED HOSPITALS BATH NHS FOUNDATION TRUST | D130: RD102 | E130: Chippenham Community Hospital | F130: 8 | G130: 1 | H130: 0 | I130: 6 | J130: 2 | K130: 0 | L130: 0 | M130: 0 | N130: 0
A131: QOX | B131: RD1 | C131: ROYAL UNITED HOSPITALS BATH NHS FOUNDATION TRUST | D131: RD121 | E131: Frome Community Hospital | F131: 1 | G131: * | H131: * | I131: * | J131: * | K131: * | L131: * | M131: * | N131: *
A132: QOX | B132: RD1 | C132: ROYAL UNITED HOSPITALS BATH NHS FOUNDATION TRUST | D132: RD130 | E132: Princess Anne Wing RUH | F132: 7 | G132: 0.8571428571 | H132: 0.1428571429 | I132: 3 | J132: 3 | K132: 0 | L132: 1 | M132: 0 | N132: 0
A133: QOX | B133: RD1 | C133: ROYAL UNITED HOSPITALS BATH NHS FOUNDATION TRUST | D133: RD108 | E133: Trowbridge Community Hospital | F133: 3 | G133: * | H133: * | I133: * | J133: * | K133: * | L133: * | M133: * | N133: *
A134: QOX | B134: RNZ | C134: SALISBURY NHS FOUNDATION TRUST | D134: RNZ02 | E134: Salisbury District Hospital | F134: 7 | G134: 1 | H134: 0 | I134: 5 | J134: 2 | K134: 0 | L134: 0 | M134: 0 | N134: 0
A135: QPM | B135: RNQ | C135: KETTERING GENERAL HOSPITAL NHS FOUNDATION TRUST | D135: RNQ51 | E135: Kettering General Hospital | F135: 36 | G135: 0.9722222222 | H135: 0.02777777778 | I135: 32 | J135: 3 | K135: 0 | L135: 1 | M135: 0 | N135: 0
A136: QPM | B136: RNS | C136: NORTHAMPTON GENERAL HOSPITAL NHS TRUST | D136: RNS01 | E136: Northampton General Hospital (Acute) | F136: 116 | G136: 0.9827586207 | H136: 0.008620689655 | I136: 107 | J136: 7 | K136: 1 | L136: 1 | M136: 0 | N136: 0
A137: QRL | B137: RN5 | C137: HAMPSHIRE HOSPITALS NHS FOUNDATION TRUST | D137: RN542 | E137: Andover War Memorial Hospital | F137: 29 | G137: 0.9655172414 | H137: 0.03448275862 | I137: 28 | J137: 0 | K137: 0 | L137: 0 | M137: 1 | N137: 0
A138: QRL | B138: RN5 | C138: HAMPSHIRE HOSPITALS NHS FOUNDATION TRUST | D138: RN506 | E138: Basingstoke and North Hampshire Hospital | F138: 14 | G138: 1 | H138: 0 | I138: * | J138: * | K138: * | L138: * | M138: * | N138: *
A139: QRL | B139: RN5 | C139: HAMPSHIRE HOSPITALS NHS FOUNDATION TRUST | D139: RN5XXX | E139: Non-hospital site | F139: 3 | G139: * | H139: * | I139: * | J139: * | K139: * | L139: * | M139: * | N139: *
A140: QRL | B140: RN5 | C140: HAMPSHIRE HOSPITALS NHS FOUNDATION TRUST | D140: RN541 | E140: Royal Hampshire County Hospital | F140: 17 | G140: 1 | H140: 0 | I140: 15 | J140: 2 | K140: 0 | L140: 0 | M140: 0 | N140: 0
A141: QRL | B141: R1F | C141: ISLE OF WIGHT NHS TRUST | D141: R1F01 | E141: St Mary's Hospital | F141: 5 | G141: 0.8 | H141: 0.2 | I141: 4 | J141: 0 | K141: 0 | L141: 1 | M141: 0 | N141: 0
A142: QRL | B142: RHU | C142: PORTSMOUTH HOSPITALS UNIVERSITY NATIONAL HEALTH SERVICE TRUST | D142: RHU03 | E142: Queen Alexandra Hospital | F142: 5 | G142: 1 | H142: 0 | I142: 4 | J142: 1 | K142: 0 | L142: 0 | M142: 0 | N142: 0
A143: QRL | B143: RHM | C143: UNIVERSITY HOSPITAL SOUTHAMPTON NHS FOUNDATION TRUST | D143: RHM12 | E143: Princess Anne Hospital | F143: 139 | G143: 0.8992805755 | H143: 0.06474820144 | I143: 87 | J143: 38 | K143: 5 | L143: 6 | M143: 3 | N143: 0
A144: QRV | B144: RYJ | C144: IMPERIAL COLLEGE HEALTHCARE NHS TRUST | D144: RYJ04 | E144: Queen Charlotte's Hospital | F144: 32 | G144: 0.90625 | H144: 0.03125 | I144: 25 | J144: 4 | K144: 2 | L144: 1 | M144: 0 | N144: 0
A145: QRV | B145: RYJ | C145: IMPERIAL COLLEGE HEALTHCARE NHS TRUST | D145: RYJ01 | E145: St Mary's Hospital (HQ) | F145: 11 | G145: 1 | H145: 0 | I145: 10 | J145: 1 | K145: 0 | L145: 0 | M145: 0 | N145: 0
A146: QRV | B146: R1K | C146: LONDON NORTH WEST UNIVERSITY HEALTHCARE NHS TRUST | D146: R1K01 | E146: Northwick Park Hospital | F146: 53 | G146: 0.7169811321 | H146: 0.2264150943 | I146: 29 | J146: 9 | K146: 3 | L146: 2 | M146: 10 | N146: 0
A147: QRV | B147: RAS | C147: THE HILLINGDON HOSPITALS NHS FOUNDATION TRUST | D147: RAS01 | E147: Hillingdon Hospital | F147: 62 | G147: 0.8709677419 | H147: 0.04838709677 | I147: 34 | J147: 20 | K147: 5 | L147: 1 | M147: 2 | N147: 0
A148: QSL | B148: RH5 | C148: SOMERSET NHS FOUNDATION TRUST | D148: RH5K6 | E148: Bridgwater Hospital | F148: 0 | G148: NA | H148: NA | I148: 0 | J148: 0 | K148: 0 | L148: 0 | M148: 0 | N148: 0
A149: QSL | B149: RH5 | C149: SOMERSET NHS FOUNDATION TRUST | D149: RH5A8 | E149: MUSGROVE PARK HOSPITAL | F149: 1 | G149: * | H149: * | I149: * | J149: * | K149: * | L149: * | M149: * | N149: *
A150: QSL | B150: RH5 | C150: SOMERSET NHS FOUNDATION TRUST | D150: RH5XXXX | E150: Non-hospital site home/in-transit births | F150: 0 | G150: NA | H150: NA | I150: 0 | J150: 0 | K150: 0 | L150: 0 | M150: 0 | N150: 0
A151: QSL | B151: RH5 | C151: SOMERSET NHS FOUNDATION TRUST | D151: RH5O4 | E151: Yeovil District Hospital | F151: 0 | G151: NA | H151: NA | I151: 0 | J151: 0 | K151: 0 | L151: 0 | M151: 0 | N151: 0
A152: QT1 | B152: RX1 | C152: NOTTINGHAM UNIVERSITY HOSPITALS NHS TRUST | D152: RX1XXX | E152: Non-hospital site | F152: 3 | G152: * | H152: * | I152: * | J152: * | K152: * | L152: * | M152: * | N152: *
A153: QT1 | B153: RX1 | C153: NOTTINGHAM UNIVERSITY HOSPITALS NHS TRUST | D153: RX1CC | E153: Nottingham University Hospitals NHS Trust - City Campus | F153: 54 | G153: 1 | H153: 0 | I153: * | J153: * | K153: * | L153: * | M153: * | N153: *
A154: QT1 | B154: RX1 | C154: NOTTINGHAM UNIVERSITY HOSPITALS NHS TRUST | D154: RX1RA | E154: Nottingham University Hospitals NHS Trust - Queen's Medical Centre Campus | F154: 60 | G154: 0.9333333333 | H154: 0.03333333333 | I154: 52 | J154: 4 | K154: 1 | L154: 1 | M154: 1 | N154: 1
A155: QT1 | B155: RK5 | C155: SHERWOOD FOREST HOSPITALS NHS FOUNDATION TRUST | D155: RK5BC | E155: King's Mill Hospital | F155: 8 | G155: 0.75 | H155: 0.125 | I155: 4 | J155: 2 | K155: 1 | L155: 1 | M155: 0 | N155: 0
A156: QT6 | B156: REF | C156: ROYAL CORNWALL HOSPITALS NHS TRUST | D156: REFXXX | E156: Non-hospital site | F156: 4 | G156: * | H156: * | I156: * | J156: * | K156: * | L156: * | M156: * | N156: *
A157: QT6 | B157: REF | C157: ROYAL CORNWALL HOSPITALS NHS TRUST | D157: REF12 | E157: Royal Cornwall Hospital (Treliske) | F157: 21 | G157: 0.9523809524 | H157: 0.04761904762 | I157: * | J157: * | K157: * | L157: * | M157: * | N157: *
A158: QU9 | B158: RXQ | C158: BUCKINGHAMSHIRE HEALTHCARE NHS TRUST | D158: RXQ02 | E158: Stoke Mandeville Hospital | F158: 35 | G158: 0.7714285714 | H158: 0.2285714286 | I158: 21 | J158: 6 | K158: 0 | L158: 7 | M158: 1 | N158: 0
A159: QU9 | B159: RXQ | C159: BUCKINGHAMSHIRE HEALTHCARE NHS TRUST | D159: RXQ50 | E159: Wycombe Hospital | F159: 18 | G159: 0.6111111111 | H159: 0.3333333333 | I159: 9 | J159: 2 | K159: 1 | L159: 4 | M159: 2 | N159: 0
A160: QU9 | B160: RTH | C160: OXFORD UNIVERSITY HOSPITALS NHS FOUNDATION TRUST | D160: RTH08 | E160: John Radcliffe Hospital | F160: 10 | G160: 0.9 | H160: 0 | I160: 8 | J160: 1 | K160: 1 | L160: 0 | M160: 0 | N160: 0
A161: QU9 | B161: RHW | C161: ROYAL BERKSHIRE NHS FOUNDATION TRUST | D161: RHW01 | E161: Royal Berkshire Hospital | F161: 26 | G161: 1 | H161: 0 | I161: 21 | J161: 5 | K161: 0 | L161: 0 | M161: 0 | N161: 0
A162: QUA | B162: RNA | C162: THE DUDLEY GROUP NHS FOUNDATION TRUST | D162: RNA01 | E162: Russells Hall Hospital | F162: 13 | G162: 0.9230769231 | H162: 0 | I162: 11 | J162: 1 | K162: 0 | L162: 0 | M162: 0 | N162: 1
A163: QUA | B163: RL4 | C163: THE ROYAL WOLVERHAMPTON NHS TRUST | D163: RL403 | E163: New Cross Hospital | F163: 17 | G163: 0.8235294118 | H163: 0.1764705882 | I163: 11 | J163: 3 | K163: 0 | L163: 0 | M163: 3 | N163: 0
A164: QUA | B164: RBK | C164: WALSALL HEALTHCARE NHS TRUST | D164: RBK02 | E164: Manor Hospital | F164: 154 | G164: 0.9480519481 | H164: 0.03896103896 | I164: 74 | J164: 72 | K164: 2 | L164: 4 | M164: 2 | N164: 0
A165: QUE | B165: RGT | C165: CAMBRIDGE UNIVERSITY HOSPITALS NHS FOUNDATION TRUST | D165: RGT32 | E165: Rosie Hospital | F165: 10 | G165: 0.5 | H165: 0.4 | I165: 5 | J165: 0 | K165: 1 | L165: 1 | M165: 3 | N165: 0
A166: QUE | B166: RGN | C166: NORTH WEST ANGLIA NHS FOUNDATION TRUST | D166: RGN90 | E166: Hinchingbrooke Hospital | F166: 146 | G166: 1 | H166: 0 | I166: 143 | J166: 3 | K166: 0 | L166: 0 | M166: 0 | N166: 0
A167: QUE | B167: RGN | C167: NORTH WEST ANGLIA NHS FOUNDATION TRUST | D167: RGN80 | E167: Peterborough City Hospital | F167: 128 | G167: 1 | H167: 0 | I167: 119 | J167: 9 | K167: 0 | L167: 0 | M167: 0 | N167: 0
A168: QUY | B168: RA7 | C168: UNIVERSITY HOSPITALS BRISTOL AND WESTON NHS FOUNDATION TRUST | D168: RA707 | E168: ST MICHAEL'S HOSPITAL | F168: 32 | G168: 1 | H168: 0 | I168: 29 | J168: 3 | K168: 0 | L168: 0 | M168: 0 | N168: 0
A169: QVV | B169: RBD | C169: DORSET COUNTY HOSPITAL NHS FOUNDATION TRUST | D169: RBD01 | E169: Dorset County Hospital | F169: 1 | G169: * | H169: * | I169: * | J169: * | K169: * | L169: * | M169: * | N169: *
A170: QVV | B170: R0D | C170: UNIVERSITY HOSPITALS DORSET NHS FOUNDATION TRUST | D170: R0D01 | E170: Poole Hospital | F170: 39 | G170: 0.8205128205 | H170: 0.1025641026 | I170: * | J170: * | K170: * | L170: * | M170: * | N170: *
A171: QVV | B171: R0D | C171: UNIVERSITY HOSPITALS DORSET NHS FOUNDATION TRUST | D171: R0D02 | E171: Royal Bournemouth Hospital | F171: 0 | G171: NA | H171: NA | I171: 0 | J171: 0 | K171: 0 | L171: 0 | M171: 0 | N171: 0
A172: QWE | B172: RVR | C172: EPSOM AND ST HELIER UNIVERSITY HOSPITALS NHS TRUST | D172: RVR50 | E172: Epsom Hospital | F172: 3 | G172: * | H172: * | I172: * | J172: * | K172: * | L172: * | M172: * | N172: *
A173: QWE | B173: RVR | C173: EPSOM AND ST HELIER UNIVERSITY HOSPITALS NHS TRUST | D173: RVRXXX | E173: Non-hospital site | F173: 0 | G173: NA | H173: NA | I173: 0 | J173: 0 | K173: 0 | L173: 0 | M173: 0 | N173: 0
A174: QWE | B174: RVR | C174: EPSOM AND ST HELIER UNIVERSITY HOSPITALS NHS TRUST | D174: RVR05 | E174: St Helier Hospital | F174: 0 | G174: NA | H174: NA | I174: 0 | J174: 0 | K174: 0 | L174: 0 | M174: 0 | N174: 0
A175: QWE | B175: RAX | C175: KINGSTON AND RICHMOND NHS FOUNDATION TRUST | D175: RAX01 | E175: Kingston Hospital | F175: 63 | G175: 0.9682539683 | H175: 0.03174603175 | I175: 59 | J175: 2 | K175: 0 | L175: 1 | M175: 1 | N175: 0
A176: QWE | B176: RJ7 | C176: ST GEORGE'S UNIVERSITY HOSPITALS NHS FOUNDATION TRUST | D176: RJ701 | E176: St George's Hospital (Tooting) | F176: 27 | G176: 0.7777777778 | H176: 0.2222222222 | I176: * | J176: * | K176: * | L176: * | M176: * | N176: *
A177: QWO | B177: RAE | C177: BRADFORD TEACHING HOSPITALS NHS FOUNDATION TRUST | D177: RAE01 | E177: Bradford Royal Infirmary | F177: 5 | G177: 0.8 | H177: 0.2 | I177: 4 | J177: 0 | K177: 0 | L177: 0 | M177: 1 | N177: 0
A178: QWO | B178: RWY | C178: CALDERDALE AND HUDDERSFIELD NHS FOUNDATION TRUST | D178: RWY02 | E178: Calderdale Royal Hospital | F178: 10 | G178: 0.8 | H178: 0.2 | I178: 7 | J178: 1 | K178: 0 | L178: 1 | M178: 1 | N178: 0
A179: QWO | B179: RWY | C179: CALDERDALE AND HUDDERSFIELD NHS FOUNDATION TRUST | D179: RWY01 | E179: Huddersfield Royal Infirmary | F179: 3 | G179: * | H179: * | I179: * | J179: * | K179: * | L179: * | M179: * | N179: *
A180: QWO | B180: RWY | C180: CALDERDALE AND HUDDERSFIELD NHS FOUNDATION TRUST | D180: RWYXXX | E180: Non-hospital site | F180: 2 | G180: * | H180: * | I180: * | J180: * | K180: * | L180: * | M180: * | N180: *
A181: QWO | B181: RR8 | C181: LEEDS TEACHING HOSPITALS NHS TRUST | D181: RR801 | E181: Leeds General Infirmary | F181: 0 | G181: NA | H181: NA | I181: 0 | J181: 0 | K181: 0 | L181: 0 | M181: 0 | N181: 0
A182: QWO | B182: RR8 | C182: LEEDS TEACHING HOSPITALS NHS TRUST | D182: RR8XXX | E182: Non-hospital site | F182: 83 | G182: 0.9638554217 | H182: 0.03614457831 | I182: * | J182: * | K182: * | L182: * | M182: * | N182: *
A183: QWO | B183: RR8 | C183: LEEDS TEACHING HOSPITALS NHS TRUST | D183: RR813 | E183: St James's University Hospital | F183: 2 | G183: * | H183: * | I183: * | J183: * | K183: * | L183: * | M183: * | N183: *
A184: QWO | B184: RXF | C184: MID YORKSHIRE TEACHING NHS TRUST | D184: RXF10 | E184: Dewsbury and District Hospital | F184: 95 | G184: 0.9684210526 | H184: 0.02105263158 | I184: 87 | J184: 5 | K184: 1 | L184: 0 | M184: 2 | N184: 0
A185: QWO | B185: RXF | C185: MID YORKSHIRE TEACHING NHS TRUST | D185: RXF05 | E185: Pinderfields General Hospital | F185: 201 | G185: 0.9353233831 | H185: 0.02985074627 | I185: 158 | J185: 30 | K185: 5 | L185: 1 | M185: 5 | N185: 2
A186: QWO | B186: RXF | C186: MID YORKSHIRE TEACHING NHS TRUST | D186: RXF03 | E186: Pontefract General Infirmary | F186: 50 | G186: 0.9 | H186: 0.08 | I186: 40 | J186: 5 | K186: 1 | L186: 0 | M186: 4 | N186: 0
A187: QWU | B187: RLT | C187: GEORGE ELIOT HOSPITAL NHS TRUST | D187: RLT01 | E187: George Eliot Hospital - Acute Services | F187: 0 | G187: NA | H187: NA | I187: 0 | J187: 0 | K187: 0 | L187: 0 | M187: 0 | N187: 0
A188: QWU | B188: RJC | C188: SOUTH WARWICKSHIRE UNIVERSITY NHS FOUNDATION TRUST | D188: RJCXXX | E188: Non-hospital site | F188: 4 | G188: * | H188: * | I188: * | J188: * | K188: * | L188: * | M188: * | N188: *
A189: QWU | B189: RJC | C189: SOUTH WARWICKSHIRE UNIVERSITY NHS FOUNDATION TRUST | D189: RJC02 | E189: Warwick Hospital | F189: 7 | G189: 0.8571428571 | H189: 0.1428571429 | I189: * | J189: * | K189: * | L189: * | M189: * | N189: *
A190: QWU | B190: RKB | C190: UNIVERSITY HOSPITALS COVENTRY AND WARWICKSHIRE NHS TRUST | D190: RKB03 | E190: Hospital Of St Cross | F190: 0 | G190: NA | H190: NA | I190: 0 | J190: 0 | K190: 0 | L190: 0 | M190: 0 | N190: 0
A191: QWU | B191: RKB | C191: UNIVERSITY HOSPITALS COVENTRY AND WARWICKSHIRE NHS TRUST | D191: RKBXXX | E191: Non-hospital site | F191: 35 | G191: 0.8 | H191: 0.1714285714 | I191: 21 | J191: 7 | K191: 0 | L191: 3 | M191: 3 | N191: 1
A192: QWU | B192: RKB | C192: UNIVERSITY HOSPITALS COVENTRY AND WARWICKSHIRE NHS TRUST | D192: RKB01 | E192: University Hospital (Coventry) | F192: 45 | G192: 0.9111111111 | H192: 0.08888888889 | I192: 33 | J192: 8 | K192: 0 | L192: 2 | M192: 2 | N192: 0
A193: QXU | B193: RTK | C193: ASHFORD AND ST PETER'S HOSPITALS NHS FOUNDATION TRUST | D193: RTK02 | E193: Ashford Hospital | F193: 0 | G193: NA | H193: NA | I193: 0 | J193: 0 | K193: 0 | L193: 0 | M193: 0 | N193: 0
A194: QXU | B194: RA2 | C194: ROYAL SURREY COUNTY HOSPITAL NHS FOUNDATION TRUST | D194: RA201 | E194: Royal Surrey County Hospital | F194: 7 | G194: 0.8571428571 | H194: 0.1428571429 | I194: 5 | J194: 1 | K194: 0 | L194: 0 | M194: 1 | N194: 0
A195: QXU | B195: RTP | C195: SURREY AND SUSSEX HEALTHCARE NHS TRUST | D195: RTP04 | E195: East Surrey Hospital | F195: 6 | G195: 0.6666666667 | H195: 0.3333333333 | I195: 2 | J195: 2 | K195: 0 | L195: 1 | M195: 1 | N195: 0
A196: QYG | B196: RJR | C196: COUNTESS OF CHESTER HOSPITAL NHS FOUNDATION TRUST | D196: RJR05 | E196: Countess Of Chester Hospital | F196: 5 | G196: 0.8 | H196: 0.2 | I196: 3 | J196: 1 | K196: 0 | L196: 1 | M196: 0 | N196: 0
A197: QYG | B197: RJN | C197: EAST CHESHIRE NHS TRUST | D197: RJN71 | E197: Macclesfield District General Hospital | F197: 13 | G197: 1 | H197: 0 | I197: 10 | J197: 3 | K197: 0 | L197: 0 | M197: 0 | N197: 0
A198: QYG | B198: REP | C198: LIVERPOOL WOMEN'S NHS FOUNDATION TRUST | D198: REP01 | E198: Liverpool Womens Hospital | F198: 12 | G198: 0.8333333333 | H198: 0.08333333333 | I198: 7 | J198: 3 | K198: 1 | L198: 0 | M198: 1 | N198: 0
A199: QYG | B199: RBN | C199: MERSEY AND WEST LANCASHIRE TEACHING HOSPITALS NHS TRUST | D199: RBN52 | E199: Ormskirk and District General Hospital | F199: 1 | G199: * | H199: * | I199: * | J199: * | K199: * | L199: * | M199: * | N199: *
A200: QYG | B200: RBN | C200: MERSEY AND WEST LANCASHIRE TEACHING HOSPITALS NHS TRUST | D200: RBN01 | E200: Whiston Hospital | F200: 12 | G200: 1 | H200: 0 | I200: * | J200: * | K200: * | L200: * | M200: * | N200: *
A201: QYG | B201: RBT | C201: MID CHESHIRE HOSPITALS NHS FOUNDATION TRUST | D201: RBT20 | E201: Leighton Hospital | F201: 7 | G201: 1 | H201: 0 | I201: 6 | J201: 1 | K201: 0 | L201: 0 | M201: 0 | N201: 0
A202: QYG | B202: RWW | C202: WARRINGTON AND HALTON TEACHING HOSPITALS NHS FOUNDATION TRUST | D202: RWWWH | E202: Warrington Hospital | F202: 0 | G202: NA | H202: NA | I202: 0 | J202: 0 | K202: 0 | L202: 0 | M202: 0 | N202: 0
A203: QYG | B203: RBL | C203: WIRRAL UNIVERSITY TEACHING HOSPITAL NHS FOUNDATION TRUST | D203: RBL14 | E203: Arrowe Park Hospital | F203: 18 | G203: 0.8333333333 | H203: 0.1111111111 | I203: 11 | J203: 4 | K203: 1 | L203: 1 | M203: 1 | N203: 0

Sheet ICB Q2
B6: Sort data by:
A9: ICB Code | B9: ICB Name | C9: Total Responses | D9: Total Eligible | E9: Percentage Positive | F9: Percentage Negative | G9: Breakdown of Responses | M9: Total Responses | N9: Total Eligible | O9: Percentage Positive | P9: Percentage Negative | Q9: Breakdown of Responses | W9: Total Responses | X9: Total Eligible | Y9: Percentage Positive | Z9: Percentage Negative | AA9: Breakdown of Responses
G10: Very Good | H10: Good | I10: Neither Good nor Poor | J10: Poor | K10: Very Poor | L10: Don't Know | Q10: Very Good | R10: Good | S10: Neither Good nor Poor | T10: Poor | U10: Very Poor | V10: Don't Know | AA10: Very Good | AB10: Good | AC10: Neither Good nor Poor | AD10: Poor | AE10: Very Poor | AF10: Don't Know
B11: England (including Independent Sector providers) | C11: 4676 | D11: 42098 | E11: 0.9268605646 | F11: 0.04662104363 | G11: 3716 | H11: 618 | I11: 95 | J11: 86 | K11: 132 | L11: 29 | M11: =SUM(M14:M55) -> 4676 | N11: =SUM(N14:N55) -> 42098 | O11: =SUM(Q11+R11)/SUM(Q11:V11) -> 0.9268605646 | P11: =SUM(T11+U11)/SUM(Q11:V11) -> 0.04662104363 | Q11: 3716 | R11: 618 | S11: 95 | T11: 86 | U11: 132 | V11: 29 | W11: =IFERROR(C11-M11,0) -> 0 | X11: =IFERROR(D11-N11,0) -> 0 | Y11: =IFERROR(E11-O11,0) -> 0 | Z11: =IFERROR(F11-P11,0) -> 0 | AA11: =IFERROR(G11-Q11,0) -> 0 | AB11: =IFERROR(H11-R11,0) -> 0 | AC11: =IFERROR(I11-S11,0) -> 0 | AD11: =IFERROR(J11-T11,0) -> 0 | AE11: =IFERROR(K11-U11,0) -> 0 | AF11: =IFERROR(L11-V11,0) -> 0
B12: England (excluding Independent Sector providers) | C12: 4676 | D12: 42098 | E12: 0.9268605646 | F12: 0.04662104363 | G12: 3716 | H12: 618 | I12: 95 | J12: 86 | K12: 132 | L12: 29 | M12: =SUM(M14:M55) -> 4676 | N12: =SUM(N14:N55) -> 42098 | O12: 0.9268605646 | P12: 0.04662104363 | Q12: 3716 | R12: 618 | S12: 95 | T12: 86 | U12: 132 | V12: 29 | W12: 0 | X12: 0 | Y12: 0 | Z12: 0 | AA12: 0 | AB12: 0 | AC12: 0 | AD12: 0 | AE12: 0 | AF12: 0
B13: Selection (excluding suppressed data) | C13: =SUBTOTAL(9,C14:C55) -> 4676 | D13: =SUBTOTAL(9,D14:D55) -> 42098 | E13: =IFERROR((G13+H13)/SUM(G13:L13), "-") -> 0.9265779304 | F13: =IFERROR((J13+K13)/SUM(G13:L13), "-") -> 0.04680120223 | G13: =SUBTOTAL(9,G14:G55) -> 3701 | H13: 615 | I13: 95 | J13: 86 | K13: 132 | L13: 29 | M13: =SUMIF(C14:C55,"<>*",M14:M55) -> 4676 | N13: =SUMIF(D14:D55,"<>*",N14:N55) -> 42098 | O13: 0.9265779304 | P13: 0.04680120223 | Q13: 3701 | R13: 615 | S13: 95 | T13: 86 | U13: 132 | V13: 29 | W13: 0 | X13: 0 | Y13: 0 | Z13: 0 | AA13: 0 | AB13: 0 | AC13: 0 | AD13: 0 | AE13: 0 | AF13: 0
A14: QE1 | B14: LANCASHIRE AND SOUTH CUMBRIA ICB | C14: 135 | D14: 1005 | E14: 0.8074074074 | F14: 0.08148148148 | G14: 98 | H14: 11 | I14: 9 | J14: 5 | K14: 6 | L14: 6 | M14: =VLOOKUP($A14,[1]Sheet2!$A$49:$I$90,2,0) -> 135 | N14: =VLOOKUP($A14,[1]Sheet2!$A$49:$I$90,3,0) -> 1005 | O14: =SUM(Q14+R14)/SUM(Q14:V14) -> 0.8074074074 | P14: =SUM(T14+U14)/SUM(Q14:V14) -> 0.08148148148 | Q14: =VLOOKUP($A14,[1]Sheet2!$A$49:$I$90,4,0) -> 98 | R14: =VLOOKUP($A14,[1]Sheet2!$A$49:$I$90,5,0) -> 11 | S14: =VLOOKUP($A14,[1]Sheet2!$A$49:$I$90,6,0) -> 9 | T14: =VLOOKUP($A14,[1]Sheet2!$A$49:$I$90,7,0) -> 5 | U14: =VLOOKUP($A14,[1]Sheet2!$A$49:$I$90,8,0) -> 6 | V14: =VLOOKUP($A14,[1]Sheet2!$A$49:$I$90,9,0) -> 6 | W14: =IFERROR(C14-M14,0) -> 0 | X14: =IFERROR(D14-N14,0) -> 0 | Y14: 0 | Z14: 0 | AA14: 0 | AB14: 0 | AC14: 0 | AD14: 0 | AE14: 0 | AF14: 0
A15: QF7 | B15: SOUTH YORKSHIRE ICB | C15: 107 | D15: 1249 | E15: 0.9345794393 | F15: 0.02803738318 | G15: 86 | H15: 14 | I15: 4 | J15: 1 | K15: 2 | L15: 0 | M15: =VLOOKUP($A15,[1]Sheet2!$A$49:$I$90,2,0) -> 107 | N15: =VLOOKUP($A15,[1]Sheet2!$A$49:$I$90,3,0) -> 1249 | O15: =SUM(Q15+R15)/SUM(Q15:V15) -> 0.9345794393 | P15: =SUM(T15+U15)/SUM(Q15:V15) -> 0.02803738318 | Q15: =VLOOKUP($A15,[1]Sheet2!$A$49:$I$90,4,0) -> 86 | R15: =VLOOKUP($A15,[1]Sheet2!$A$49:$I$90,5,0) -> 14 | S15: =VLOOKUP($A15,[1]Sheet2!$A$49:$I$90,6,0) -> 4 | T15: =VLOOKUP($A15,[1]Sheet2!$A$49:$I$90,7,0) -> 1 | U15: =VLOOKUP($A15,[1]Sheet2!$A$49:$I$90,8,0) -> 2 | V15: =VLOOKUP($A15,[1]Sheet2!$A$49:$I$90,9,0) -> 0 | W15: =IFERROR(C15-M15,0) -> 0 | X15: =IFERROR(D15-N15,0) -> 0 | Y15: =IFERROR(E15-O15,0) -> 0 | Z15: =IFERROR(F15-P15,0) -> 0 | AA15: =IFERROR(G15-Q15,0) -> 0 | AB15: =IFERROR(H15-R15,0) -> 0 | AC15: =IFERROR(I15-S15,0) -> 0 | AD15: =IFERROR(J15-T15,0) -> 0 | AE15: =IFERROR(K15-U15,0) -> 0 | AF15: =IFERROR(L15-V15,0) -> 0
A16: QGH | B16: HEREFORDSHIRE AND WORCESTERSHIRE ICB | C16: 93 | D16: 263 | E16: 0.9892473118 | F16: 0.01075268817 | G16: 85 | H16: 7 | I16: 0 | J16: 1 | K16: 0 | L16: 0 | M16: =VLOOKUP($A16,[1]Sheet2!$A$49:$I$90,2,0) -> 93 | N16: =VLOOKUP($A16,[1]Sheet2!$A$49:$I$90,3,0) -> 263 | O16: 0.9892473118 | P16: 0.01075268817 | Q16: =VLOOKUP($A16,[1]Sheet2!$A$49:$I$90,4,0) -> 85 | R16: =VLOOKUP($A16,[1]Sheet2!$A$49:$I$90,5,0) -> 7 | S16: =VLOOKUP($A16,[1]Sheet2!$A$49:$I$90,6,0) -> 0 | T16: =VLOOKUP($A16,[1]Sheet2!$A$49:$I$90,7,0) -> 1 | U16: =VLOOKUP($A16,[1]Sheet2!$A$49:$I$90,8,0) -> 0 | V16: =VLOOKUP($A16,[1]Sheet2!$A$49:$I$90,9,0) -> 0 | W16: 0 | X16: 0 | Y16: 0 | Z16: 0 | AA16: 0 | AB16: 0 | AC16: 0 | AD16: 0 | AE16: 0 | AF16: 0
A17: QH8 | B17: MID AND SOUTH ESSEX ICB | C17: 181 | D17: 610 | E17: 0.8839779006 | F17: 0.08839779006 | G17: 143 | H17: 17 | I17: 4 | J17: 6 | K17: 10 | L17: 1 | M17: =VLOOKUP($A17,[1]Sheet2!$A$49:$I$90,2,0) -> 181 | N17: =VLOOKUP($A17,[1]Sheet2!$A$49:$I$90,3,0) -> 610 | O17: 0.8839779006 | P17: 0.08839779006 | Q17: =VLOOKUP($A17,[1]Sheet2!$A$49:$I$90,4,0) -> 143 | R17: =VLOOKUP($A17,[1]Sheet2!$A$49:$I$90,5,0) -> 17 | S17: =VLOOKUP($A17,[1]Sheet2!$A$49:$I$90,6,0) -> 4 | T17: =VLOOKUP($A17,[1]Sheet2!$A$49:$I$90,7,0) -> 6 | U17: =VLOOKUP($A17,[1]Sheet2!$A$49:$I$90,8,0) -> 10 | V17: =VLOOKUP($A17,[1]Sheet2!$A$49:$I$90,9,0) -> 1 | W17: 0 | X17: 0 | Y17: 0 | Z17: 0 | AA17: 0 | AB17: 0 | AC17: 0 | AD17: 0 | AE17: 0 | AF17: 0
A18: QHG | B18: BEDFORDSHIRE, LUTON AND MILTON KEYNES ICB | C18: 77 | D18: 625 | E18: 0.9480519481 | F18: 0.03896103896 | G18: 54 | H18: 19 | I18: 1 | J18: 2 | K18: 1 | L18: 0 | M18: =VLOOKUP($A18,[1]Sheet2!$A$49:$I$90,2,0) -> 77 | N18: =VLOOKUP($A18,[1]Sheet2!$A$49:$I$90,3,0) -> 625 | O18: 0.9480519481 | P18: 0.03896103896 | Q18: =VLOOKUP($A18,[1]Sheet2!$A$49:$I$90,4,0) -> 54 | R18: =VLOOKUP($A18,[1]Sheet2!$A$49:$I$90,5,0) -> 19 | S18: =VLOOKUP($A18,[1]Sheet2!$A$49:$I$90,6,0) -> 1 | T18: =VLOOKUP($A18,[1]Sheet2!$A$49:$I$90,7,0) -> 2 | U18: =VLOOKUP($A18,[1]Sheet2!$A$49:$I$90,8,0) -> 1 | V18: =VLOOKUP($A18,[1]Sheet2!$A$49:$I$90,9,0) -> 0 | W18: 0 | X18: 0 | Y18: 0 | Z18: 0 | AA18: 0 | AB18: 0 | AC18: 0 | AD18: 0 | AE18: 0 | AF18: 0
A19: QHL | B19: BIRMINGHAM AND SOLIHULL ICB | C19: 116 | D19: 1927 | E19: 0.8362068966 | F19: 0.09482758621 | G19: 77 | H19: 20 | I19: 7 | J19: 1 | K19: 10 | L19: 1 | M19: =VLOOKUP($A19,[1]Sheet2!$A$49:$I$90,2,0) -> 116 | N19: =VLOOKUP($A19,[1]Sheet2!$A$49:$I$90,3,0) -> 1927 | O19: 0.8362068966 | P19: 0.09482758621 | Q19: =VLOOKUP($A19,[1]Sheet2!$A$49:$I$90,4,0) -> 77 | R19: =VLOOKUP($A19,[1]Sheet2!$A$49:$I$90,5,0) -> 20 | S19: =VLOOKUP($A19,[1]Sheet2!$A$49:$I$90,6,0) -> 7 | T19: =VLOOKUP($A19,[1]Sheet2!$A$49:$I$90,7,0) -> 1 | U19: =VLOOKUP($A19,[1]Sheet2!$A$49:$I$90,8,0) -> 10 | V19: =VLOOKUP($A19,[1]Sheet2!$A$49:$I$90,9,0) -> 1 | W19: 0 | X19: 0 | Y19: 0 | Z19: 0 | AA19: 0 | AB19: 0 | AC19: 0 | AD19: 0 | AE19: 0 | AF19: 0
A20: QHM | B20: NORTH EAST AND NORTH CUMBRIA ICB | C20: 200 | D20: 2307 | E20: 0.975 | F20: 0.01 | G20: 166 | H20: 29 | I20: 3 | J20: 1 | K20: 1 | L20: 0 | M20: =VLOOKUP($A20,[1]Sheet2!$A$49:$I$90,2,0) -> 200 | N20: =VLOOKUP($A20,[1]Sheet2!$A$49:$I$90,3,0) -> 2307 | O20: 0.975 | P20: 0.01 | Q20: =VLOOKUP($A20,[1]Sheet2!$A$49:$I$90,4,0) -> 166 | R20: =VLOOKUP($A20,[1]Sheet2!$A$49:$I$90,5,0) -> 29 | S20: =VLOOKUP($A20,[1]Sheet2!$A$49:$I$90,6,0) -> 3 | T20: =VLOOKUP($A20,[1]Sheet2!$A$49:$I$90,7,0) -> 1 | U20: =VLOOKUP($A20,[1]Sheet2!$A$49:$I$90,8,0) -> 1 | V20: =VLOOKUP($A20,[1]Sheet2!$A$49:$I$90,9,0) -> 0 | W20: 0 | X20: 0 | Y20: 0 | Z20: 0 | AA20: 0 | AB20: 0 | AC20: 0 | AD20: 0 | AE20: 0 | AF20: 0
A21: QJ2 | B21: DERBY AND DERBYSHIRE ICB | C21: 131 | D21: 929 | E21: 0.9007633588 | F21: 0.0534351145 | G21: 89 | H21: 29 | I21: 5 | J21: 6 | K21: 1 | L21: 1 | M21: =VLOOKUP($A21,[1]Sheet2!$A$49:$I$90,2,0) -> 131 | N21: =VLOOKUP($A21,[1]Sheet2!$A$49:$I$90,3,0) -> 929 | O21: 0.9007633588 | P21: 0.0534351145 | Q21: =VLOOKUP($A21,[1]Sheet2!$A$49:$I$90,4,0) -> 89 | R21: =VLOOKUP($A21,[1]Sheet2!$A$49:$I$90,5,0) -> 29 | S21: =VLOOKUP($A21,[1]Sheet2!$A$49:$I$90,6,0) -> 5 | T21: =VLOOKUP($A21,[1]Sheet2!$A$49:$I$90,7,0) -> 6 | U21: =VLOOKUP($A21,[1]Sheet2!$A$49:$I$90,8,0) -> 1 | V21: =VLOOKUP($A21,[1]Sheet2!$A$49:$I$90,9,0) -> 1 | W21: 0 | X21: 0 | Y21: 0 | Z21: 0 | AA21: 0 | AB21: 0 | AC21: 0 | AD21: 0 | AE21: 0 | AF21: 0
A22: QJG | B22: SUFFOLK AND NORTH EAST ESSEX ICB | C22: 30 | D22: 593 | E22: 0.9666666667 | F22: 0.03333333333 | G22: 27 | H22: 2 | I22: 0 | J22: 1 | K22: 0 | L22: 0 | M22: =VLOOKUP($A22,[1]Sheet2!$A$49:$I$90,2,0) -> 30 | N22: =VLOOKUP($A22,[1]Sheet2!$A$49:$I$90,3,0) -> 593 | O22: 0.9666666667 | P22: 0.03333333333 | Q22: =VLOOKUP($A22,[1]Sheet2!$A$49:$I$90,4,0) -> 27 | R22: =VLOOKUP($A22,[1]Sheet2!$A$49:$I$90,5,0) -> 2 | S22: =VLOOKUP($A22,[1]Sheet2!$A$49:$I$90,6,0) -> 0 | T22: =VLOOKUP($A22,[1]Sheet2!$A$49:$I$90,7,0) -> 1 | U22: =VLOOKUP($A22,[1]Sheet2!$A$49:$I$90,8,0) -> 0 | V22: =VLOOKUP($A22,[1]Sheet2!$A$49:$I$90,9,0) -> 0 | W22: 0 | X22: 0 | Y22: 0 | Z22: 0 | AA22: 0 | AB22: 0 | AC22: 0 | AD22: 0 | AE22: 0 | AF22: 0
A23: QJK | B23: DEVON ICB | C23: 23 | D23: 609 | E23: 0.8260869565 | F23: 0.1304347826 | G23: 17 | H23: 2 | I23: 1 | J23: 3 | K23: 0 | L23: 0 | M23: =VLOOKUP($A23,[1]Sheet2!$A$49:$I$90,2,0) -> 23 | N23: =VLOOKUP($A23,[1]Sheet2!$A$49:$I$90,3,0) -> 609 | O23: 0.8260869565 | P23: 0.1304347826 | Q23: =VLOOKUP($A23,[1]Sheet2!$A$49:$I$90,4,0) -> 17 | R23: =VLOOKUP($A23,[1]Sheet2!$A$49:$I$90,5,0) -> 2 | S23: =VLOOKUP($A23,[1]Sheet2!$A$49:$I$90,6,0) -> 1 | T23: =VLOOKUP($A23,[1]Sheet2!$A$49:$I$90,7,0) -> 3 | U23: =VLOOKUP($A23,[1]Sheet2!$A$49:$I$90,8,0) -> 0 | V23: =VLOOKUP($A23,[1]Sheet2!$A$49:$I$90,9,0) -> 0 | W23: 0 | X23: 0 | Y23: 0 | Z23: 0 | AA23: 0 | AB23: 0 | AC23: 0 | AD23: 0 | AE23: 0 | AF23: 0
A24: QJM | B24: LINCOLNSHIRE ICB | C24: 0 | D24: 354 | E24: NA | F24: NA | G24: 0 | H24: 0 | I24: 0 | J24: 0 | K24: 0 | L24: 0 | M24: =VLOOKUP($A24,[1]Sheet2!$A$49:$I$90,2,0) -> 0 | N24: =VLOOKUP($A24,[1]Sheet2!$A$49:$I$90,3,0) -> 354 | Q24: =VLOOKUP($A24,[1]Sheet2!$A$49:$I$90,4,0) -> 0 | R24: =VLOOKUP($A24,[1]Sheet2!$A$49:$I$90,5,0) -> 0 | S24: =VLOOKUP($A24,[1]Sheet2!$A$49:$I$90,6,0) -> 0 | T24: =VLOOKUP($A24,[1]Sheet2!$A$49:$I$90,7,0) -> 0 | U24: =VLOOKUP($A24,[1]Sheet2!$A$49:$I$90,8,0) -> 0 | V24: =VLOOKUP($A24,[1]Sheet2!$A$49:$I$90,9,0) -> 0 | W24: 0 | X24: 0 | Y24: 0 | Z24: 0 | AA24: 0 | AB24: 0 | AC24: 0 | AD24: 0 | AE24: 0 | AF24: 0
A25: QK1 | B25: LEICESTER, LEICESTERSHIRE AND RUTLAND ICB | C25: 136 | D25: 749 | E25: 0.9338235294 | F25: 0.02941176471 | G25: 97 | H25: 30 | I25: 4 | J25: 2 | K25: 2 | L25: 1 | M25: =VLOOKUP($A25,[1]Sheet2!$A$49:$I$90,2,0) -> 136 | N25: =VLOOKUP($A25,[1]Sheet2!$A$49:$I$90,3,0) -> 749 | O25: 0.9338235294 | P25: 0.02941176471 | Q25: =VLOOKUP($A25,[1]Sheet2!$A$49:$I$90,4,0) -> 97 | R25: =VLOOKUP($A25,[1]Sheet2!$A$49:$I$90,5,0) -> 30 | S25: =VLOOKUP($A25,[1]Sheet2!$A$49:$I$90,6,0) -> 4 | T25: =VLOOKUP($A25,[1]Sheet2!$A$49:$I$90,7,0) -> 2 | U25: =VLOOKUP($A25,[1]Sheet2!$A$49:$I$90,8,0) -> 2 | V25: =VLOOKUP($A25,[1]Sheet2!$A$49:$I$90,9,0) -> 1 | W25: 0 | X25: 0 | Y25: 0 | Z25: 0 | AA25: 0 | AB25: 0 | AC25: 0 | AD25: 0 | AE25: 0 | AF25: 0
A26: QKK | B26: SOUTH EAST LONDON ICB | C26: 230 | D26: 1499 | E26: 0.9391304348 | F26: 0.01739130435 | G26: 176 | H26: 40 | I26: 8 | J26: 2 | K26: 2 | L26: 2 | M26: =VLOOKUP($A26,[1]Sheet2!$A$49:$I$90,2,0) -> 230 | N26: =VLOOKUP($A26,[1]Sheet2!$A$49:$I$90,3,0) -> 1499 | O26: 0.9391304348 | P26: 0.01739130435 | Q26: =VLOOKUP($A26,[1]Sheet2!$A$49:$I$90,4,0) -> 176 | R26: =VLOOKUP($A26,[1]Sheet2!$A$49:$I$90,5,0) -> 40 | S26: =VLOOKUP($A26,[1]Sheet2!$A$49:$I$90,6,0) -> 8 | T26: =VLOOKUP($A26,[1]Sheet2!$A$49:$I$90,7,0) -> 2 | U26: =VLOOKUP($A26,[1]Sheet2!$A$49:$I$90,8,0) -> 2 | V26: =VLOOKUP($A26,[1]Sheet2!$A$49:$I$90,9,0) -> 2 | W26: 0 | X26: 0 | Y26: 0 | Z26: 0 | AA26: 0 | AB26: 0 | AC26: 0 | AD26: 0 | AE26: 0 | AF26: 0
A27: QKS | B27: KENT AND MEDWAY ICB | C27: 175 | D27: 1598 | E27: 0.9714285714 | F27: 0.02285714286 | G27: 153 | H27: 17 | I27: 1 | J27: 2 | K27: 2 | L27: 0 | M27: =VLOOKUP($A27,[1]Sheet2!$A$49:$I$90,2,0) -> 175 | N27: =VLOOKUP($A27,[1]Sheet2!$A$49:$I$90,3,0) -> 1598 | O27: 0.9714285714 | P27: 0.02285714286 | Q27: =VLOOKUP($A27,[1]Sheet2!$A$49:$I$90,4,0) -> 153 | R27: =VLOOKUP($A27,[1]Sheet2!$A$49:$I$90,5,0) -> 17 | S27: =VLOOKUP($A27,[1]Sheet2!$A$49:$I$90,6,0) -> 1 | T27: =VLOOKUP($A27,[1]Sheet2!$A$49:$I$90,7,0) -> 2 | U27: =VLOOKUP($A27,[1]Sheet2!$A$49:$I$90,8,0) -> 2 | V27: =VLOOKUP($A27,[1]Sheet2!$A$49:$I$90,9,0) -> 0 | W27: 0 | X27: 0 | Y27: 0 | Z27: 0 | AA27: 0 | AB27: 0 | AC27: 0 | AD27: 0 | AE27: 0 | AF27: 0
A28: QM7 | B28: HERTFORDSHIRE AND WEST ESSEX ICB | C28: 48 | D28: 975 | E28: 0.9375 | F28: 0.0625 | G28: 41 | H28: 4 | I28: 0 | J28: 2 | K28: 1 | L28: 0 | M28: =VLOOKUP($A28,[1]Sheet2!$A$49:$I$90,2,0) -> 48 | N28: =VLOOKUP($A28,[1]Sheet2!$A$49:$I$90,3,0) -> 975 | O28: 0.9375 | P28: 0.0625 | Q28: =VLOOKUP($A28,[1]Sheet2!$A$49:$I$90,4,0) -> 41 | R28: =VLOOKUP($A28,[1]Sheet2!$A$49:$I$90,5,0) -> 4 | S28: =VLOOKUP($A28,[1]Sheet2!$A$49:$I$90,6,0) -> 0 | T28: =VLOOKUP($A28,[1]Sheet2!$A$49:$I$90,7,0) -> 2 | U28: =VLOOKUP($A28,[1]Sheet2!$A$49:$I$90,8,0) -> 1 | V28: =VLOOKUP($A28,[1]Sheet2!$A$49:$I$90,9,0) -> 0 | W28: 0 | X28: 0 | Y28: 0 | Z28: 0 | AA28: 0 | AB28: 0 | AC28: 0 | AD28: 0 | AE28: 0 | AF28: 0
A29: QMF | B29: NORTH EAST LONDON ICB | C29: 134 | D29: 2263 | E29: 0.8208955224 | F29: 0.1268656716 | G29: 87 | H29: 23 | I29: 6 | J29: 1 | K29: 16 | L29: 1 | M29: =VLOOKUP($A29,[1]Sheet2!$A$49:$I$90,2,0) -> 134 | N29: =VLOOKUP($A29,[1]Sheet2!$A$49:$I$90,3,0) -> 2263 | O29: 0.8208955224 | P29: 0.1268656716 | Q29: =VLOOKUP($A29,[1]Sheet2!$A$49:$I$90,4,0) -> 87 | R29: =VLOOKUP($A29,[1]Sheet2!$A$49:$I$90,5,0) -> 23 | S29: =VLOOKUP($A29,[1]Sheet2!$A$49:$I$90,6,0) -> 6 | T29: =VLOOKUP($A29,[1]Sheet2!$A$49:$I$90,7,0) -> 1 | U29: =VLOOKUP($A29,[1]Sheet2!$A$49:$I$90,8,0) -> 16 | V29: =VLOOKUP($A29,[1]Sheet2!$A$49:$I$90,9,0) -> 1 | W29: 0 | X29: 0 | Y29: 0 | Z29: 0 | AA29: 0 | AB29: 0 | AC29: 0 | AD29: 0 | AE29: 0 | AF29: 0
A30: QMJ | B30: NORTH CENTRAL LONDON ICB | C30: 131 | D30: 1574 | E30: 0.8854961832 | F30: 0.06870229008 | G30: 81 | H30: 35 | I30: 6 | J30: 2 | K30: 7 | L30: 0 | M30: =VLOOKUP($A30,[1]Sheet2!$A$49:$I$90,2,0) -> 131 | N30: =VLOOKUP($A30,[1]Sheet2!$A$49:$I$90,3,0) -> 1574 | O30: 0.8854961832 | P30: 0.06870229008 | Q30: =VLOOKUP($A30,[1]Sheet2!$A$49:$I$90,4,0) -> 81 | R30: =VLOOKUP($A30,[1]Sheet2!$A$49:$I$90,5,0) -> 35 | S30: =VLOOKUP($A30,[1]Sheet2!$A$49:$I$90,6,0) -> 6 | T30: =VLOOKUP($A30,[1]Sheet2!$A$49:$I$90,7,0) -> 2 | U30: =VLOOKUP($A30,[1]Sheet2!$A$49:$I$90,8,0) -> 7 | V30: =VLOOKUP($A30,[1]Sheet2!$A$49:$I$90,9,0) -> 0 | W30: 0 | X30: 0 | Y30: 0 | Z30: 0 | AA30: 0 | AB30: 0 | AC30: 0 | AD30: 0 | AE30: 0 | AF30: 0
A31: QMM | B31: NORFOLK AND WAVENEY ICB | C31: 31 | D31: 651 | E31: 0.9677419355 | F31: 0.03225806452 | G31: 30 | H31: 0 | I31: 0 | J31: 1 | K31: 0 | L31: 0 | M31: =VLOOKUP($A31,[1]Sheet2!$A$49:$I$90,2,0) -> 31 | N31: =VLOOKUP($A31,[1]Sheet2!$A$49:$I$90,3,0) -> 651 | O31: 0.9677419355 | P31: 0.03225806452 | Q31: =VLOOKUP($A31,[1]Sheet2!$A$49:$I$90,4,0) -> 30 | R31: =VLOOKUP($A31,[1]Sheet2!$A$49:$I$90,5,0) -> 0 | S31: =VLOOKUP($A31,[1]Sheet2!$A$49:$I$90,6,0) -> 0 | T31: =VLOOKUP($A31,[1]Sheet2!$A$49:$I$90,7,0) -> 1 | U31: =VLOOKUP($A31,[1]Sheet2!$A$49:$I$90,8,0) -> 0 | V31: =VLOOKUP($A31,[1]Sheet2!$A$49:$I$90,9,0) -> 0 | W31: 0 | X31: 0 | Y31: 0 | Z31: 0 | AA31: 0 | AB31: 0 | AC31: 0 | AD31: 0 | AE31: 0 | AF31: 0
A32: QNC | B32: STAFFORDSHIRE AND STOKE-ON-TRENT ICB | C32: 37 | D32: 511 | E32: 0.7837837838 | F32: 0.2162162162 | G32: 24 | H32: 5 | I32: 0 | J32: 1 | K32: 7 | L32: 0 | M32: =VLOOKUP($A32,[1]Sheet2!$A$49:$I$90,2,0) -> 37 | N32: =VLOOKUP($A32,[1]Sheet2!$A$49:$I$90,3,0) -> 511 | O32: 0.7837837838 | P32: 0.2162162162 | Q32: =VLOOKUP($A32,[1]Sheet2!$A$49:$I$90,4,0) -> 24 | R32: =VLOOKUP($A32,[1]Sheet2!$A$49:$I$90,5,0) -> 5 | S32: =VLOOKUP($A32,[1]Sheet2!$A$49:$I$90,6,0) -> 0 | T32: =VLOOKUP($A32,[1]Sheet2!$A$49:$I$90,7,0) -> 1 | U32: =VLOOKUP($A32,[1]Sheet2!$A$49:$I$90,8,0) -> 7 | V32: =VLOOKUP($A32,[1]Sheet2!$A$49:$I$90,9,0) -> 0 | W32: 0 | X32: 0 | Y32: 0 | Z32: 0 | AA32: 0 | AB32: 0 | AC32: 0 | AD32: 0 | AE32: 0 | AF32: 0
A33: QNQ | B33: FRIMLEY ICB | C33: 67 | D33: 0 | E33: 0.9701492537 | F33: 0.02985074627 | G33: 59 | H33: 6 | I33: 0 | J33: 0 | K33: 2 | L33: 0 | M33: =VLOOKUP($A33,[1]Sheet2!$A$49:$I$90,2,0) -> 67 | N33: =VLOOKUP($A33,[1]Sheet2!$A$49:$I$90,3,0) -> 0 | O33: 0.9701492537 | P33: 0.02985074627 | Q33: =VLOOKUP($A33,[1]Sheet2!$A$49:$I$90,4,0) -> 59 | R33: =VLOOKUP($A33,[1]Sheet2!$A$49:$I$90,5,0) -> 6 | S33: =VLOOKUP($A33,[1]Sheet2!$A$49:$I$90,6,0) -> 0 | T33: =VLOOKUP($A33,[1]Sheet2!$A$49:$I$90,7,0) -> 0 | U33: =VLOOKUP($A33,[1]Sheet2!$A$49:$I$90,8,0) -> 2 | V33: =VLOOKUP($A33,[1]Sheet2!$A$49:$I$90,9,0) -> 0 | W33: 0 | X33: 0 | Y33: 0 | Z33: 0 | AA33: 0 | AB33: 0 | AC33: 0 | AD33: 0 | AE33: 0 | AF33: 0
A34: QNX | B34: SUSSEX ICB | C34: 78 | D34: 917 | E34: 0.9487179487 | F34: 0.02564102564 | G34: 63 | H34: 11 | I34: 2 | J34: 1 | K34: 1 | L34: 0 | M34: =VLOOKUP($A34,[1]Sheet2!$A$49:$I$90,2,0) -> 78 | N34: =VLOOKUP($A34,[1]Sheet2!$A$49:$I$90,3,0) -> 917 | O34: 0.9487179487 | P34: 0.02564102564 | Q34: =VLOOKUP($A34,[1]Sheet2!$A$49:$I$90,4,0) -> 63 | R34: =VLOOKUP($A34,[1]Sheet2!$A$49:$I$90,5,0) -> 11 | S34: =VLOOKUP($A34,[1]Sheet2!$A$49:$I$90,6,0) -> 2 | T34: =VLOOKUP($A34,[1]Sheet2!$A$49:$I$90,7,0) -> 1 | U34: =VLOOKUP($A34,[1]Sheet2!$A$49:$I$90,8,0) -> 1 | V34: =VLOOKUP($A34,[1]Sheet2!$A$49:$I$90,9,0) -> 0 | W34: 0 | X34: 0 | Y34: 0 | Z34: 0 | AA34: 0 | AB34: 0 | AC34: 0 | AD34: 0 | AE34: 0 | AF34: 0
A35: QOC | B35: SHROPSHIRE, TELFORD AND WREKIN ICB | C35: 22 | D35: 321 | E35: 0.9545454545 | F35: 0.04545454545 | G35: 20 | H35: 1 | I35: 0 | J35: 1 | K35: 0 | L35: 0 | M35: =VLOOKUP($A35,[1]Sheet2!$A$49:$I$90,2,0) -> 22 | N35: =VLOOKUP($A35,[1]Sheet2!$A$49:$I$90,3,0) -> 321 | O35: 0.9545454545 | P35: 0.04545454545 | Q35: =VLOOKUP($A35,[1]Sheet2!$A$49:$I$90,4,0) -> 20 | R35: =VLOOKUP($A35,[1]Sheet2!$A$49:$I$90,5,0) -> 1 | S35: =VLOOKUP($A35,[1]Sheet2!$A$49:$I$90,6,0) -> 0 | T35: =VLOOKUP($A35,[1]Sheet2!$A$49:$I$90,7,0) -> 1 | U35: =VLOOKUP($A35,[1]Sheet2!$A$49:$I$90,8,0) -> 0 | V35: =VLOOKUP($A35,[1]Sheet2!$A$49:$I$90,9,0) -> 0 | W35: 0 | X35: 0 | Y35: 0 | Z35: 0 | AA35: 0 | AB35: 0 | AC35: 0 | AD35: 0 | AE35: 0 | AF35: 0
A36: QOP | B36: GREATER MANCHESTER ICB | C36: 505 | D36: 4861 | E36: 0.9247524752 | F36: 0.05940594059 | G36: 388 | H36: 79 | I36: 8 | J36: 11 | K36: 19 | L36: 0 | M36: =VLOOKUP($A36,[1]Sheet2!$A$49:$I$90,2,0) -> 505 | N36: =VLOOKUP($A36,[1]Sheet2!$A$49:$I$90,3,0) -> 4861 | O36: 0.9247524752 | P36: 0.05940594059 | Q36: =VLOOKUP($A36,[1]Sheet2!$A$49:$I$90,4,0) -> 388 | R36: =VLOOKUP($A36,[1]Sheet2!$A$49:$I$90,5,0) -> 79 | S36: =VLOOKUP($A36,[1]Sheet2!$A$49:$I$90,6,0) -> 8 | T36: =VLOOKUP($A36,[1]Sheet2!$A$49:$I$90,7,0) -> 11 | U36: =VLOOKUP($A36,[1]Sheet2!$A$49:$I$90,8,0) -> 19 | V36: =VLOOKUP($A36,[1]Sheet2!$A$49:$I$90,9,0) -> 0 | W36: 0 | X36: 0 | Y36: 0 | Z36: 0 | AA36: 0 | AB36: 0 | AC36: 0 | AD36: 0 | AE36: 0 | AF36: 0
A37: QOQ | B37: HUMBER AND NORTH YORKSHIRE ICB | C37: 74 | D37: 939 | E37: 0.9594594595 | F37: 0.04054054054 | G37: 66 | H37: 5 | I37: 0 | J37: 2 | K37: 1 | L37: 0 | M37: =VLOOKUP($A37,[1]Sheet2!$A$49:$I$90,2,0) -> 74 | N37: =VLOOKUP($A37,[1]Sheet2!$A$49:$I$90,3,0) -> 939 | O37: 0.9594594595 | P37: 0.04054054054 | Q37: =VLOOKUP($A37,[1]Sheet2!$A$49:$I$90,4,0) -> 66 | R37: =VLOOKUP($A37,[1]Sheet2!$A$49:$I$90,5,0) -> 5 | S37: =VLOOKUP($A37,[1]Sheet2!$A$49:$I$90,6,0) -> 0 | T37: =VLOOKUP($A37,[1]Sheet2!$A$49:$I$90,7,0) -> 2 | U37: =VLOOKUP($A37,[1]Sheet2!$A$49:$I$90,8,0) -> 1 | V37: =VLOOKUP($A37,[1]Sheet2!$A$49:$I$90,9,0) -> 0 | W37: 0 | X37: 0 | Y37: 0 | Z37: 0 | AA37: 0 | AB37: 0 | AC37: 0 | AD37: 0 | AE37: 0 | AF37: 0
A38: QOX | B38: BATH AND NORTH EAST SOMERSET, SWINDON AND WILTSHIRE ICB | C38: 15 | D38: 313 | E38: 0.7333333333 | F38: 0.2666666667 | G38: 8 | H38: 3 | I38: 0 | J38: 4 | K38: 0 | L38: 0 | M38: =VLOOKUP($A38,[1]Sheet2!$A$49:$I$90,2,0) -> 15 | N38: =VLOOKUP($A38,[1]Sheet2!$A$49:$I$90,3,0) -> 313 | O38: 0.7333333333 | P38: 0.2666666667 | Q38: =VLOOKUP($A38,[1]Sheet2!$A$49:$I$90,4,0) -> 8 | R38: =VLOOKUP($A38,[1]Sheet2!$A$49:$I$90,5,0) -> 3 | S38: =VLOOKUP($A38,[1]Sheet2!$A$49:$I$90,6,0) -> 0 | T38: =VLOOKUP($A38,[1]Sheet2!$A$49:$I$90,7,0) -> 4 | U38: =VLOOKUP($A38,[1]Sheet2!$A$49:$I$90,8,0) -> 0 | V38: =VLOOKUP($A38,[1]Sheet2!$A$49:$I$90,9,0) -> 0 | W38: 0 | X38: 0 | Y38: 0 | Z38: 0 | AA38: 0 | AB38: 0 | AC38: 0 | AD38: 0 | AE38: 0 | AF38: 0
A39: QPM | B39: NORTHAMPTONSHIRE ICB | C39: 37 | D39: 566 | E39: 0.972972973 | F39: 0.02702702703 | G39: 33 | H39: 3 | I39: 0 | J39: 1 | K39: 0 | L39: 0 | M39: =VLOOKUP($A39,[1]Sheet2!$A$49:$I$90,2,0) -> 37 | N39: =VLOOKUP($A39,[1]Sheet2!$A$49:$I$90,3,0) -> 566 | O39: 0.972972973 | P39: 0.02702702703 | Q39: =VLOOKUP($A39,[1]Sheet2!$A$49:$I$90,4,0) -> 33 | R39: =VLOOKUP($A39,[1]Sheet2!$A$49:$I$90,5,0) -> 3 | S39: =VLOOKUP($A39,[1]Sheet2!$A$49:$I$90,6,0) -> 0 | T39: =VLOOKUP($A39,[1]Sheet2!$A$49:$I$90,7,0) -> 1 | U39: =VLOOKUP($A39,[1]Sheet2!$A$49:$I$90,8,0) -> 0 | V39: =VLOOKUP($A39,[1]Sheet2!$A$49:$I$90,9,0) -> 0 | W39: 0 | X39: 0 | Y39: 0 | Z39: 0 | AA39: 0 | AB39: 0 | AC39: 0 | AD39: 0 | AE39: 0 | AF39: 0
A40: QR1 | B40: GLOUCESTERSHIRE ICB | C40: 57 | D40: 100 | E40: 0.9473684211 | F40: 0.05263157895 | G40: 46 | H40: 8 | I40: 0 | J40: 2 | K40: 1 | L40: 0 | M40: =VLOOKUP($A40,[1]Sheet2!$A$49:$I$90,2,0) -> 57 | N40: =VLOOKUP($A40,[1]Sheet2!$A$49:$I$90,3,0) -> 100 | O40: 0.9473684211 | P40: 0.05263157895 | Q40: =VLOOKUP($A40,[1]Sheet2!$A$49:$I$90,4,0) -> 46 | R40: =VLOOKUP($A40,[1]Sheet2!$A$49:$I$90,5,0) -> 8 | S40: =VLOOKUP($A40,[1]Sheet2!$A$49:$I$90,6,0) -> 0 | T40: =VLOOKUP($A40,[1]Sheet2!$A$49:$I$90,7,0) -> 2 | U40: =VLOOKUP($A40,[1]Sheet2!$A$49:$I$90,8,0) -> 1 | V40: =VLOOKUP($A40,[1]Sheet2!$A$49:$I$90,9,0) -> 0 | W40: 0 | X40: 0 | Y40: 0 | Z40: 0 | AA40: 0 | AB40: 0 | AC40: 0 | AD40: 0 | AE40: 0 | AF40: 0
A41: QRL | B41: HAMPSHIRE AND ISLE OF WIGHT ICB | C41: 357 | D41: 1252 | E41: 0.9831932773 | F41: 0.005602240896 | G41: 319 | H41: 32 | I41: 4 | J41: 2 | K41: 0 | L41: 0 | M41: =VLOOKUP($A41,[1]Sheet2!$A$49:$I$90,2,0) -> 357 | N41: =VLOOKUP($A41,[1]Sheet2!$A$49:$I$90,3,0) -> 1252 | O41: 0.9831932773 | P41: 0.005602240896 | Q41: =VLOOKUP($A41,[1]Sheet2!$A$49:$I$90,4,0) -> 319 | R41: =VLOOKUP($A41,[1]Sheet2!$A$49:$I$90,5,0) -> 32 | S41: =VLOOKUP($A41,[1]Sheet2!$A$49:$I$90,6,0) -> 4 | T41: =VLOOKUP($A41,[1]Sheet2!$A$49:$I$90,7,0) -> 2 | U41: =VLOOKUP($A41,[1]Sheet2!$A$49:$I$90,8,0) -> 0 | V41: =VLOOKUP($A41,[1]Sheet2!$A$49:$I$90,9,0) -> 0 | W41: 0 | X41: 0 | Y41: 0 | Z41: 0 | AA41: 0 | AB41: 0 | AC41: 0 | AD41: 0 | AE41: 0 | AF41: 0
A42: QRV | B42: NORTH WEST LONDON ICB | C42: 179 | D42: 1444 | E42: 0.9441340782 | F42: 0.03351955307 | G42: 123 | H42: 46 | I42: 4 | J42: 6 | K42: 0 | L42: 0 | M42: =VLOOKUP($A42,[1]Sheet2!$A$49:$I$90,2,0) -> 179 | N42: =VLOOKUP($A42,[1]Sheet2!$A$49:$I$90,3,0) -> 1444 | O42: 0.9441340782 | P42: 0.03351955307 | Q42: =VLOOKUP($A42,[1]Sheet2!$A$49:$I$90,4,0) -> 123 | R42: =VLOOKUP($A42,[1]Sheet2!$A$49:$I$90,5,0) -> 46 | S42: =VLOOKUP($A42,[1]Sheet2!$A$49:$I$90,6,0) -> 4 | T42: =VLOOKUP($A42,[1]Sheet2!$A$49:$I$90,7,0) -> 6 | U42: =VLOOKUP($A42,[1]Sheet2!$A$49:$I$90,8,0) -> 0 | V42: =VLOOKUP($A42,[1]Sheet2!$A$49:$I$90,9,0) -> 0 | W42: 0 | X42: 0 | Y42: 0 | Z42: 0 | AA42: 0 | AB42: 0 | AC42: 0 | AD42: 0 | AE42: 0 | AF42: 0
A43: QSL | B43: SOMERSET ICB | C43: 4 | D43: 352 | E43: * | F43: * | G43: * | H43: * | I43: * | J43: * | K43: * | L43: * | M43: =VLOOKUP($A43,[1]Sheet2!$A$49:$I$90,2,0) -> 4 | N43: =VLOOKUP($A43,[1]Sheet2!$A$49:$I$90,3,0) -> 352 | O43: 1 | P43: 0 | Q43: =VLOOKUP($A43,[1]Sheet2!$A$49:$I$90,4,0) -> 3 | R43: =VLOOKUP($A43,[1]Sheet2!$A$49:$I$90,5,0) -> 1 | S43: =VLOOKUP($A43,[1]Sheet2!$A$49:$I$90,6,0) -> 0 | T43: =VLOOKUP($A43,[1]Sheet2!$A$49:$I$90,7,0) -> 0 | U43: =VLOOKUP($A43,[1]Sheet2!$A$49:$I$90,8,0) -> 0 | V43: =VLOOKUP($A43,[1]Sheet2!$A$49:$I$90,9,0) -> 0 | W43: 0 | X43: 0 | Y43: 0 | Z43: 0 | AA43: 0 | AB43: 0 | AC43: 0 | AD43: 0 | AE43: 0 | AF43: 0
A44: QT1 | B44: NOTTINGHAM AND NOTTINGHAMSHIRE ICB | C44: 54 | D44: 644 | E44: 0.8888888889 | F44: 0.09259259259 | G44: 42 | H44: 6 | I44: 1 | J44: 2 | K44: 3 | L44: 0 | M44: =VLOOKUP($A44,[1]Sheet2!$A$49:$I$90,2,0) -> 54 | N44: =VLOOKUP($A44,[1]Sheet2!$A$49:$I$90,3,0) -> 644 | O44: 0.8888888889 | P44: 0.09259259259 | Q44: =VLOOKUP($A44,[1]Sheet2!$A$49:$I$90,4,0) -> 42 | R44: =VLOOKUP($A44,[1]Sheet2!$A$49:$I$90,5,0) -> 6 | S44: =VLOOKUP($A44,[1]Sheet2!$A$49:$I$90,6,0) -> 1 | T44: =VLOOKUP($A44,[1]Sheet2!$A$49:$I$90,7,0) -> 2 | U44: =VLOOKUP($A44,[1]Sheet2!$A$49:$I$90,8,0) -> 3 | V44: =VLOOKUP($A44,[1]Sheet2!$A$49:$I$90,9,0) -> 0 | W44: 0 | X44: 0 | Y44: 0 | Z44: 0 | AA44: 0 | AB44: 0 | AC44: 0 | AD44: 0 | AE44: 0 | AF44: 0
A45: QT6 | B45: CORNWALL AND THE ISLES OF SCILLY ICB | C45: 14 | D45: 283 | E45: 1 | F45: 0 | G45: * | H45: * | I45: * | J45: * | K45: * | L45: * | M45: =VLOOKUP($A45,[1]Sheet2!$A$49:$I$90,2,0) -> 14 | N45: =VLOOKUP($A45,[1]Sheet2!$A$49:$I$90,3,0) -> 283 | O45: 1 | P45: 0 | Q45: =VLOOKUP($A45,[1]Sheet2!$A$49:$I$90,4,0) -> 12 | R45: =VLOOKUP($A45,[1]Sheet2!$A$49:$I$90,5,0) -> 2 | S45: =VLOOKUP($A45,[1]Sheet2!$A$49:$I$90,6,0) -> 0 | T45: =VLOOKUP($A45,[1]Sheet2!$A$49:$I$90,7,0) -> 0 | U45: =VLOOKUP($A45,[1]Sheet2!$A$49:$I$90,8,0) -> 0 | V45: =VLOOKUP($A45,[1]Sheet2!$A$49:$I$90,9,0) -> 0 | W45: 0 | X45: 0 | Y45: 0 | Z45: 0 | AA45: 0 | AB45: 0 | AC45: 0 | AD45: 0 | AE45: 0 | AF45: 0
A46: QU9 | B46: BUCKINGHAMSHIRE, OXFORDSHIRE AND BERKSHIRE WEST ICB | C46: 48 | D46: 1204 | E46: 0.9375 | F46: 0.04166666667 | G46: 42 | H46: 3 | I46: 1 | J46: 0 | K46: 2 | L46: 0 | M46: =VLOOKUP($A46,[1]Sheet2!$A$49:$I$90,2,0) -> 48 | N46: =VLOOKUP($A46,[1]Sheet2!$A$49:$I$90,3,0) -> 1204 | O46: 0.9375 | P46: 0.04166666667 | Q46: =VLOOKUP($A46,[1]Sheet2!$A$49:$I$90,4,0) -> 42 | R46: =VLOOKUP($A46,[1]Sheet2!$A$49:$I$90,5,0) -> 3 | S46: =VLOOKUP($A46,[1]Sheet2!$A$49:$I$90,6,0) -> 1 | T46: =VLOOKUP($A46,[1]Sheet2!$A$49:$I$90,7,0) -> 0 | U46: =VLOOKUP($A46,[1]Sheet2!$A$49:$I$90,8,0) -> 2 | V46: =VLOOKUP($A46,[1]Sheet2!$A$49:$I$90,9,0) -> 0 | W46: 0 | X46: 0 | Y46: 0 | Z46: 0 | AA46: 0 | AB46: 0 | AC46: 0 | AD46: 0 | AE46: 0 | AF46: 0
A47: QUA | B47: BLACK COUNTRY ICB | C47: 174 | D47: 942 | E47: 0.9252873563 | F47: 0.01724137931 | G47: 146 | H47: 15 | I47: 4 | J47: 2 | K47: 1 | L47: 6 | M47: =VLOOKUP($A47,[1]Sheet2!$A$49:$I$90,2,0) -> 174 | N47: =VLOOKUP($A47,[1]Sheet2!$A$49:$I$90,3,0) -> 942 | O47: 0.9252873563 | P47: 0.01724137931 | Q47: =VLOOKUP($A47,[1]Sheet2!$A$49:$I$90,4,0) -> 146 | R47: =VLOOKUP($A47,[1]Sheet2!$A$49:$I$90,5,0) -> 15 | S47: =VLOOKUP($A47,[1]Sheet2!$A$49:$I$90,6,0) -> 4 | T47: =VLOOKUP($A47,[1]Sheet2!$A$49:$I$90,7,0) -> 2 | U47: =VLOOKUP($A47,[1]Sheet2!$A$49:$I$90,8,0) -> 1 | V47: =VLOOKUP($A47,[1]Sheet2!$A$49:$I$90,9,0) -> 6 | W47: 0 | X47: 0 | Y47: 0 | Z47: 0 | AA47: 0 | AB47: 0 | AC47: 0 | AD47: 0 | AE47: 0 | AF47: 0
A48: QUE | B48: CAMBRIDGESHIRE AND PETERBOROUGH ICB | C48: 63 | D48: 929 | E48: 0.873015873 | F48: 0.09523809524 | G48: 51 | H48: 4 | I48: 1 | J48: 0 | K48: 6 | L48: 1 | M48: =VLOOKUP($A48,[1]Sheet2!$A$49:$I$90,2,0) -> 63 | N48: =VLOOKUP($A48,[1]Sheet2!$A$49:$I$90,3,0) -> 929 | O48: 0.873015873 | P48: 0.09523809524 | Q48: =VLOOKUP($A48,[1]Sheet2!$A$49:$I$90,4,0) -> 51 | R48: =VLOOKUP($A48,[1]Sheet2!$A$49:$I$90,5,0) -> 4 | S48: =VLOOKUP($A48,[1]Sheet2!$A$49:$I$90,6,0) -> 1 | T48: =VLOOKUP($A48,[1]Sheet2!$A$49:$I$90,7,0) -> 0 | U48: =VLOOKUP($A48,[1]Sheet2!$A$49:$I$90,8,0) -> 6 | V48: =VLOOKUP($A48,[1]Sheet2!$A$49:$I$90,9,0) -> 1 | W48: 0 | X48: 0 | Y48: 0 | Z48: 0 | AA48: 0 | AB48: 0 | AC48: 0 | AD48: 0 | AE48: 0 | AF48: 0
A49: QUY | B49: BRISTOL, NORTH SOMERSET AND SOUTH GLOUCESTERSHIRE ICB | C49: 79 | D49: 733 | E49: 0.9746835443 | F49: 0.01265822785 | G49: 68 | H49: 9 | I49: 1 | J49: 0 | K49: 1 | L49: 0 | M49: =VLOOKUP($A49,[1]Sheet2!$A$49:$I$90,2,0) -> 79 | N49: =VLOOKUP($A49,[1]Sheet2!$A$49:$I$90,3,0) -> 733 | O49: 0.9746835443 | P49: 0.01265822785 | Q49: =VLOOKUP($A49,[1]Sheet2!$A$49:$I$90,4,0) -> 68 | R49: =VLOOKUP($A49,[1]Sheet2!$A$49:$I$90,5,0) -> 9 | S49: =VLOOKUP($A49,[1]Sheet2!$A$49:$I$90,6,0) -> 1 | T49: =VLOOKUP($A49,[1]Sheet2!$A$49:$I$90,7,0) -> 0 | U49: =VLOOKUP($A49,[1]Sheet2!$A$49:$I$90,8,0) -> 1 | V49: =VLOOKUP($A49,[1]Sheet2!$A$49:$I$90,9,0) -> 0 | W49: 0 | X49: 0 | Y49: 0 | Z49: 0 | AA49: 0 | AB49: 0 | AC49: 0 | AD49: 0 | AE49: 0 | AF49: 0
A50: QVV | B50: DORSET ICB | C50: 30 | D50: 407 | E50: 0.9333333333 | F50: 0.06666666667 | G50: 22 | H50: 6 | I50: 0 | J50: 0 | K50: 2 | L50: 0 | M50: =VLOOKUP($A50,[1]Sheet2!$A$49:$I$90,2,0) -> 30 | N50: =VLOOKUP($A50,[1]Sheet2!$A$49:$I$90,3,0) -> 407 | O50: 0.9333333333 | P50: 0.06666666667 | Q50: =VLOOKUP($A50,[1]Sheet2!$A$49:$I$90,4,0) -> 22 | R50: =VLOOKUP($A50,[1]Sheet2!$A$49:$I$90,5,0) -> 6 | S50: =VLOOKUP($A50,[1]Sheet2!$A$49:$I$90,6,0) -> 0 | T50: =VLOOKUP($A50,[1]Sheet2!$A$49:$I$90,7,0) -> 0 | U50: =VLOOKUP($A50,[1]Sheet2!$A$49:$I$90,8,0) -> 2 | V50: =VLOOKUP($A50,[1]Sheet2!$A$49:$I$90,9,0) -> 0 | W50: 0 | X50: 0 | Y50: 0 | Z50: 0 | AA50: 0 | AB50: 0 | AC50: 0 | AD50: 0 | AE50: 0 | AF50: 0
A51: QWE | B51: SOUTH WEST LONDON ICB | C51: 93 | D51: 970 | E51: 0.9784946237 | F51: 0.01075268817 | G51: 82 | H51: 9 | I51: 1 | J51: 0 | K51: 1 | L51: 0 | M51: =VLOOKUP($A51,[1]Sheet2!$A$49:$I$90,2,0) -> 93 | N51: =VLOOKUP($A51,[1]Sheet2!$A$49:$I$90,3,0) -> 970 | O51: 0.9784946237 | P51: 0.01075268817 | Q51: =VLOOKUP($A51,[1]Sheet2!$A$49:$I$90,4,0) -> 82 | R51: =VLOOKUP($A51,[1]Sheet2!$A$49:$I$90,5,0) -> 9 | S51: =VLOOKUP($A51,[1]Sheet2!$A$49:$I$90,6,0) -> 1 | T51: =VLOOKUP($A51,[1]Sheet2!$A$49:$I$90,7,0) -> 0 | U51: =VLOOKUP($A51,[1]Sheet2!$A$49:$I$90,8,0) -> 1 | V51: =VLOOKUP($A51,[1]Sheet2!$A$49:$I$90,9,0) -> 0 | W51: 0 | X51: 0 | Y51: 0 | Z51: 0 | AA51: 0 | AB51: 0 | AC51: 0 | AD51: 0 | AE51: 0 | AF51: 0
A52: QWO | B52: WEST YORKSHIRE ICB | C52: 261 | D52: 1494 | E52: 0.9770114943 | F52: 0.0153256705 | G52: 239 | H52: 16 | I52: 2 | J52: 1 | K52: 3 | L52: 0 | M52: =VLOOKUP($A52,[1]Sheet2!$A$49:$I$90,2,0) -> 261 | N52: =VLOOKUP($A52,[1]Sheet2!$A$49:$I$90,3,0) -> 1494 | O52: 0.9770114943 | P52: 0.0153256705 | Q52: =VLOOKUP($A52,[1]Sheet2!$A$49:$I$90,4,0) -> 239 | R52: =VLOOKUP($A52,[1]Sheet2!$A$49:$I$90,5,0) -> 16 | S52: =VLOOKUP($A52,[1]Sheet2!$A$49:$I$90,6,0) -> 2 | T52: =VLOOKUP($A52,[1]Sheet2!$A$49:$I$90,7,0) -> 1 | U52: =VLOOKUP($A52,[1]Sheet2!$A$49:$I$90,8,0) -> 3 | V52: =VLOOKUP($A52,[1]Sheet2!$A$49:$I$90,9,0) -> 0 | W52: 0 | X52: 0 | Y52: 0 | Z52: 0 | AA52: 0 | AB52: 0 | AC52: 0 | AD52: 0 | AE52: 0 | AF52: 0
A53: QWU | B53: COVENTRY AND WARWICKSHIRE ICB | C53: 71 | D53: 930 | E53: 0.9718309859 | F53: 0.01408450704 | G53: 65 | H53: 4 | I53: 1 | J53: 1 | K53: 0 | L53: 0 | M53: =VLOOKUP($A53,[1]Sheet2!$A$49:$I$90,2,0) -> 71 | N53: =VLOOKUP($A53,[1]Sheet2!$A$49:$I$90,3,0) -> 930 | O53: 0.9718309859 | P53: 0.01408450704 | Q53: =VLOOKUP($A53,[1]Sheet2!$A$49:$I$90,4,0) -> 65 | R53: =VLOOKUP($A53,[1]Sheet2!$A$49:$I$90,5,0) -> 4 | S53: =VLOOKUP($A53,[1]Sheet2!$A$49:$I$90,6,0) -> 1 | T53: =VLOOKUP($A53,[1]Sheet2!$A$49:$I$90,7,0) -> 1 | U53: =VLOOKUP($A53,[1]Sheet2!$A$49:$I$90,8,0) -> 0 | V53: =VLOOKUP($A53,[1]Sheet2!$A$49:$I$90,9,0) -> 0 | W53: 0 | X53: 0 | Y53: 0 | Z53: 0 | AA53: 0 | AB53: 0 | AC53: 0 | AD53: 0 | AE53: 0 | AF53: 0
A54: QXU | B54: SURREY HEARTLANDS ICB | C54: 217 | D54: 523 | E54: 0.8387096774 | F54: 0.1013824885 | G54: 163 | H54: 19 | I54: 4 | J54: 5 | K54: 17 | L54: 9 | M54: =VLOOKUP($A54,[1]Sheet2!$A$49:$I$90,2,0) -> 217 | N54: =VLOOKUP($A54,[1]Sheet2!$A$49:$I$90,3,0) -> 523 | O54: 0.8387096774 | P54: 0.1013824885 | Q54: =VLOOKUP($A54,[1]Sheet2!$A$49:$I$90,4,0) -> 163 | R54: =VLOOKUP($A54,[1]Sheet2!$A$49:$I$90,5,0) -> 19 | S54: =VLOOKUP($A54,[1]Sheet2!$A$49:$I$90,6,0) -> 4 | T54: =VLOOKUP($A54,[1]Sheet2!$A$49:$I$90,7,0) -> 5 | U54: =VLOOKUP($A54,[1]Sheet2!$A$49:$I$90,8,0) -> 17 | V54: =VLOOKUP($A54,[1]Sheet2!$A$49:$I$90,9,0) -> 9 | W54: 0 | X54: 0 | Y54: 0 | Z54: 0 | AA54: 0 | AB54: 0 | AC54: 0 | AD54: 0 | AE54: 0 | AF54: 0
A55: QYG | B55: CHESHIRE AND MERSEYSIDE ICB | C55: 162 | D55: 1683 | E55: 0.9320987654 | F55: 0.05555555556 | G55: 125 | H55: 26 | I55: 2 | J55: 5 | K55: 4 | L55: 0 | M55: =VLOOKUP($A55,[1]Sheet2!$A$49:$I$90,2,0) -> 162 | N55: =VLOOKUP($A55,[1]Sheet2!$A$49:$I$90,3,0) -> 1683 | O55: 0.9320987654 | P55: 0.05555555556 | Q55: =VLOOKUP($A55,[1]Sheet2!$A$49:$I$90,4,0) -> 125 | R55: =VLOOKUP($A55,[1]Sheet2!$A$49:$I$90,5,0) -> 26 | S55: =VLOOKUP($A55,[1]Sheet2!$A$49:$I$90,6,0) -> 2 | T55: =VLOOKUP($A55,[1]Sheet2!$A$49:$I$90,7,0) -> 5 | U55: =VLOOKUP($A55,[1]Sheet2!$A$49:$I$90,8,0) -> 4 | V55: =VLOOKUP($A55,[1]Sheet2!$A$49:$I$90,9,0) -> 0 | W55: 0 | X55: 0 | Y55: 0 | Z55: 0 | AA55: 0 | AB55: 0 | AC55: 0 | AD55: 0 | AE55: 0 | AF55: 0

Sheet Trusts Q2
B6: Sort data by:
A9: ICB Code | B9: Trust Code | C9: Trust Name | D9: Total Responses | E9: Total Eligible | F9: Percentage Positive | G9: Percentage Negative | H9: Breakdown of Responses | N9: Mode of Collection
H10: Very Good | I10: Good | J10: Neither Good nor Poor | K10: Poor | L10: Very Poor | M10: Don't Know | N10: Mode SMS | O10: Mode Electronic Discharge | P10: Mode Electronic Home | Q10: Mode Paper Discharge | R10: Mode Paper Home | S10: Mode Telephone | T10: Mode Online | U10: Mode Other
C11: England (including Independent Sector providers) | D11: 4676 | E11: 42098 | F11: 0.9268605646 | G11: 0.04662104363 | H11: 3716 | I11: 618 | J11: 95 | K11: 86 | L11: 132 | M11: 29 | N11: 1729 | O11: 1009 | P11: 50 | Q11: 984 | R11: 30 | S11: 2 | T11: 848 | U11: 24
C12: England (excluding Independent Sector providers) | D12: 4676 | E12: 42098 | F12: 0.9268605646 | G12: 0.04662104363 | H12: 3716 | I12: 618 | J12: 95 | K12: 86 | L12: 132 | M12: 29 | N12: 1729 | O12: 1009 | P12: 50 | Q12: 984 | R12: 30 | S12: 2 | T12: 848 | U12: 24
C13: Selection (excluding suppressed data) | D13: =SUBTOTAL(9,D14:D299) -> 4676 | E13: =SUBTOTAL(9,E14:E299) -> 42098 | F13: =IFERROR((H13+I13)/SUM(H13:M13), "-") -> 0.9253968254 | G13: =IFERROR((K13+L13)/SUM(H13:M13), "-") -> 0.04761904762 | H13: =SUBTOTAL(9,H14:H299) -> 3496 | I13: =SUBTOTAL(9,I14:I299) -> 585 | J13: 91 | K13: 81 | L13: 129 | M13: 28 | N13: 1629 | O13: 972 | P13: 50 | Q13: 901 | R13: 28 | S13: 2 | T13: 804 | U13: 24
A14: QE1 | B14: RXL | C14: BLACKPOOL TEACHING HOSPITALS NHS FOUNDATION TRUST | D14: 26 | E14: 220 | F14: 0.7692307692 | G14: 0.07692307692 | H14: 18 | I14: 2 | J14: 4 | K14: 0 | L14: 2 | M14: 0 | N14: 25 | O14: 0 | P14: 0 | Q14: 0 | R14: 0 | S14: 0 | T14: 1 | U14: 0
A15: QE1 | B15: RXR | C15: EAST LANCASHIRE HOSPITALS NHS TRUST | D15: 73 | E15: 502 | F15: 0.8493150685 | G15: 0.08219178082 | H15: 54 | I15: 8 | J15: 4 | K15: 3 | L15: 3 | M15: 1 | N15: 50 | O15: 0 | P15: 0 | Q15: 21 | R15: 0 | S15: 0 | T15: 2 | U15: 0
A16: QE1 | B16: RXN | C16: LANCASHIRE TEACHING HOSPITALS NHS FOUNDATION TRUST | D16: 13 | E16: 260 | F16: 0.6923076923 | G16: 0.2307692308 | H16: 9 | I16: 0 | J16: 1 | K16: 2 | L16: 1 | M16: 0 | N16: 13 | O16: 0 | P16: 0 | Q16: 0 | R16: 0 | S16: 0 | T16: 0 | U16: 0
A17: QE1 | B17: RTX | C17: UNIVERSITY HOSPITALS OF MORECAMBE BAY NHS FOUNDATION TRUST | D17: 23 | E17: 23 | F17: 0.7826086957 | G17: 0 | H17: 17 | I17: 1 | J17: 0 | K17: 0 | L17: 0 | M17: 5 | N17: 0 | O17: 0 | P17: 0 | Q17: 0 | R17: 0 | S17: 0 | T17: 23 | U17: 0
A18: QF7 | B18: RFF | C18: BARNSLEY HOSPITAL NHS FOUNDATION TRUST | D18: 28 | E18: 242 | F18: 0.9285714286 | G18: 0.03571428571 | H18: 24 | I18: 2 | J18: 1 | K18: 0 | L18: 1 | M18: 0 | N18: 12 | O18: 15 | P18: 0 | Q18: 0 | R18: 0 | S18: 0 | T18: 1 | U18: 0
A19: QF7 | B19: RP5 | C19: DONCASTER AND BASSETLAW TEACHING HOSPITALS NHS FOUNDATION TRUST | D19: 32 | E19: 375 | F19: 0.90625 | G19: 0.03125 | H19: 24 | I19: 5 | J19: 2 | K19: 1 | L19: 0 | M19: 0 | N19: 0 | O19: 0 | P19: 0 | Q19: 0 | R19: 0 | S19: 0 | T19: 32 | U19: 0
A20: QF7 | B20: RHQ | C20: SHEFFIELD TEACHING HOSPITALS NHS FOUNDATION TRUST | D20: 36 | E20: 426 | F20: 0.9444444444 | G20: 0.02777777778 | H20: 27 | I20: 7 | J20: 1 | K20: 0 | L20: 1 | M20: 0 | N20: 30 | O20: 0 | P20: 0 | Q20: 3 | R20: 0 | S20: 0 | T20: 3 | U20: 0
A21: QF7 | B21: RFR | C21: THE ROTHERHAM NHS FOUNDATION TRUST | D21: 11 | E21: 206 | F21: 1 | G21: 0 | H21: 11 | I21: 0 | J21: 0 | K21: 0 | L21: 0 | M21: 0 | N21: 0 | O21: 0 | P21: 0 | Q21: 11 | R21: 0 | S21: 0 | T21: 0 | U21: 0
A22: QGH | B22: RWP | C22: WORCESTERSHIRE ACUTE HOSPITALS NHS TRUST | D22: 64 | E22: 144 | F22: 0.984375 | G22: 0.015625 | H22: 61 | I22: 2 | J22: 0 | K22: 1 | L22: 0 | M22: 0 | N22: 0 | O22: 64 | P22: 0 | Q22: 0 | R22: 0 | S22: 0 | T22: 0 | U22: 0
A23: QGH | B23: RLQ | C23: WYE VALLEY NHS TRUST | D23: 29 | E23: 119 | F23: 1 | G23: 0 | H23: 24 | I23: 5 | J23: 0 | K23: 0 | L23: 0 | M23: 0 | N23: 29 | O23: 0 | P23: 0 | Q23: 0 | R23: 0 | S23: 0 | T23: 0 | U23: 0
A24: QH8 | B24: RAJ | C24: MID AND SOUTH ESSEX NHS FOUNDATION TRUST | D24: 181 | E24: 610 | F24: 0.8839779006 | G24: 0.08839779006 | H24: 143 | I24: 17 | J24: 4 | K24: 6 | L24: 10 | M24: 1 | N24: 175 | O24: 0 | P24: 0 | Q24: 0 | R24: 0 | S24: 0 | T24: 6 | U24: 0
A25: QHG | B25: RC9 | C25: BEDFORDSHIRE HOSPITALS NHS FOUNDATION TRUST | D25: 47 | E25: 305 | F25: 0.914893617 | G25: 0.06382978723 | H25: 31 | I25: 12 | J25: 1 | K25: 2 | L25: 1 | M25: 0 | N25: 0 | O25: 38 | P25: 0 | Q25: 0 | R25: 0 | S25: 0 | T25: 9 | U25: 0
A26: QHG | B26: RD8 | C26: MILTON KEYNES UNIVERSITY HOSPITAL NHS FOUNDATION TRUST | D26: 30 | E26: 320 | F26: 1 | G26: 0 | H26: 23 | I26: 7 | J26: 0 | K26: 0 | L26: 0 | M26: 0 | N26: 7 | O26: 0 | P26: 0 | Q26: 17 | R26: 0 | S26: 0 | T26: 6 | U26: 0
A27: QHL | B27: RQ3 | C27: BIRMINGHAM WOMEN'S AND CHILDREN'S NHS FOUNDATION TRUST | D27: 15 | E27: 612 | F27: 1 | G27: 0 | H27: 13 | I27: 2 | J27: 0 | K27: 0 | L27: 0 | M27: 0 | N27: 0 | O27: 0 | P27: 0 | Q27: 0 | R27: 0 | S27: 0 | T27: 15 | U27: 0
A28: QHL | B28: RXK | C28: SANDWELL AND WEST BIRMINGHAM HOSPITALS NHS TRUST | D28: 31 | E28: 442 | F28: 0.8064516129 | G28: 0.09677419355 | H28: 21 | I28: 4 | J28: 2 | K28: 0 | L28: 3 | M28: 1 | N28: 31 | O28: 0 | P28: 0 | Q28: 0 | R28: 0 | S28: 0 | T28: 0 | U28: 0
A29: QHL | B29: RRK | C29: UNIVERSITY HOSPITALS BIRMINGHAM NHS FOUNDATION TRUST | D29: 70 | E29: 873 | F29: 0.8142857143 | G29: 0.1142857143 | H29: 43 | I29: 14 | J29: 5 | K29: 1 | L29: 7 | M29: 0 | N29: 68 | O29: 2 | P29: 0 | Q29: 0 | R29: 0 | S29: 0 | T29: 0 | U29: 0
A30: QHM | B30: RXP | C30: COUNTY DURHAM AND DARLINGTON NHS FOUNDATION TRUST | D30: 58 | E30: 330 | F30: 1 | G30: 0 | H30: 51 | I30: 7 | J30: 0 | K30: 0 | L30: 0 | M30: 0 | N30: 0 | O30: 0 | P30: 0 | Q30: 58 | R30: 0 | S30: 0 | T30: 0 | U30: 0
A31: QHM | B31: RR7 | C31: GATESHEAD HEALTH NHS FOUNDATION TRUST | D31: 8 | E31: 147 | F31: 1 | G31: 0 | H31: 8 | I31: 0 | J31: 0 | K31: 0 | L31: 0 | M31: 0 | N31: 8 | O31: 0 | P31: 0 | Q31: 0 | R31: 0 | S31: 0 | T31: 0 | U31: 0
A32: QHM | B32: RNN | C32: NORTH CUMBRIA INTEGRATED CARE NHS FOUNDATION TRUST | D32: 15 | E32: 202 | F32: 1 | G32: 0 | H32: 13 | I32: 2 | J32: 0 | K32: 0 | L32: 0 | M32: 0 | N32: 0 | O32: 0 | P32: 0 | Q32: 0 | R32: 15 | S32: 0 | T32: 0 | U32: 0
A33: QHM | B33: RVW | C33: NORTH TEES AND HARTLEPOOL NHS FOUNDATION TRUST | D33: 0 | E33: 257 | F33: NA | G33: NA | H33: 0 | I33: 0 | J33: 0 | K33: 0 | L33: 0 | M33: 0 | N33: 0 | O33: 0 | P33: 0 | Q33: 0 | R33: 0 | S33: 0 | T33: 0 | U33: 0
A34: QHM | B34: RTF | C34: NORTHUMBRIA HEALTHCARE NHS FOUNDATION TRUST | D34: 24 | E34: 286 | F34: 1 | G34: 0 | H34: 22 | I34: 2 | J34: 0 | K34: 0 | L34: 0 | M34: 0 | N34: 9 | O34: 0 | P34: 0 | Q34: 15 | R34: 0 | S34: 0 | T34: 0 | U34: 0
A35: QHM | B35: RTR | C35: SOUTH TEES HOSPITALS NHS FOUNDATION TRUST | D35: 31 | E35: 371 | F35: 0.9677419355 | G35: 0.03225806452 | H35: 23 | I35: 7 | J35: 0 | K35: 1 | L35: 0 | M35: 0 | N35: 28 | O35: 2 | P35: 0 | Q35: 0 | R35: 0 | S35: 0 | T35: 0 | U35: 1
A36: QHM | B36: R0B | C36: SOUTH TYNESIDE AND SUNDERLAND NHS FOUNDATION TRUST | D36: 9 | E36: 307 | F36: 1 | G36: 0 | H36: 9 | I36: 0 | J36: 0 | K36: 0 | L36: 0 | M36: 0 | N36: 0 | O36: 0 | P36: 0 | Q36: 0 | R36: 0 | S36: 0 | T36: 9 | U36: 0
A37: QHM | B37: RTD | C37: THE NEWCASTLE UPON TYNE HOSPITALS NHS FOUNDATION TRUST | D37: 55 | E37: 407 | F37: 0.9272727273 | G37: 0.01818181818 | H37: 40 | I37: 11 | J37: 3 | K37: 0 | L37: 1 | M37: 0 | N37: 55 | O37: 0 | P37: 0 | Q37: 0 | R37: 0 | S37: 0 | T37: 0 | U37: 0
A38: QJ2 | B38: RFS | C38: CHESTERFIELD ROYAL HOSPITAL NHS FOUNDATION TRUST | D38: 62 | E38: 232 | F38: 0.9516129032 | G38: 0.03225806452 | H38: 46 | I38: 13 | J38: 1 | K38: 1 | L38: 1 | M38: 0 | N38: 18 | O38: 4 | P38: 40 | Q38: 0 | R38: 0 | S38: 0 | T38: 0 | U38: 0
A39: QJ2 | B39: RTG | C39: UNIVERSITY HOSPITALS OF DERBY AND BURTON NHS FOUNDATION TRUST | D39: 69 | E39: 697 | F39: 0.8550724638 | G39: 0.07246376812 | H39: 43 | I39: 16 | J39: 4 | K39: 5 | L39: 0 | M39: 1 | N39: 65 | O39: 0 | P39: 0 | Q39: 4 | R39: 0 | S39: 0 | T39: 0 | U39: 0
A40: QJG | B40: RDE | C40: EAST SUFFOLK AND NORTH ESSEX NHS FOUNDATION TRUST | D40: 8 | E40: 541 | F40: 1 | G40: 0 | H40: 7 | I40: 1 | J40: 0 | K40: 0 | L40: 0 | M40: 0 | N40: 0 | O40: 0 | P40: 0 | Q40: 0 | R40: 0 | S40: 0 | T40: 8 | U40: 0
A41: QJG | B41: RGR | C41: WEST SUFFOLK NHS FOUNDATION TRUST | D41: 22 | E41: 52 | F41: 0.9545454545 | G41: 0.04545454545 | H41: 20 | I41: 1 | J41: 0 | K41: 1 | L41: 0 | M41: 0 | N41: 0 | O41: 9 | P41: 0 | Q41: 0 | R41: 0 | S41: 0 | T41: 13 | U41: 0
A42: QJK | B42: RH8 | C42: ROYAL DEVON UNIVERSITY HEALTHCARE NHS FOUNDATION TRUST | D42: 4 | E42: 404 | F42: * | G42: * | H42: * | I42: * | J42: * | K42: * | L42: * | M42: * | N42: * | O42: * | P42: * | Q42: * | R42: * | S42: * | T42: * | U42: *
A43: QJK | B43: RA9 | C43: TORBAY AND SOUTH DEVON NHS FOUNDATION TRUST | D43: 0 | E43: 152 | F43: NA | G43: NA | H43: 0 | I43: 0 | J43: 0 | K43: 0 | L43: 0 | M43: 0 | N43: 0 | O43: 0 | P43: 0 | Q43: 0 | R43: 0 | S43: 0 | T43: 0 | U43: 0
A44: QJK | B44: RK9 | C44: UNIVERSITY HOSPITALS PLYMOUTH NHS TRUST | D44: 19 | E44: 53 | F44: 0.8421052632 | G44: 0.1052631579 | H44: * | I44: * | J44: * | K44: * | L44: * | M44: * | N44: * | O44: * | P44: * | Q44: * | R44: * | S44: * | T44: * | U44: *
A45: QJM | B45: RWD | C45: UNITED LINCOLNSHIRE TEACHING HOSPITALS NHS TRUST | D45: 0 | E45: 354 | F45: NA | G45: NA | H45: 0 | I45: 0 | J45: 0 | K45: 0 | L45: 0 | M45: 0 | N45: 0 | O45: 0 | P45: 0 | Q45: 0 | R45: 0 | S45: 0 | T45: 0 | U45: 0
A46: QK1 | B46: RWE | C46: UNIVERSITY HOSPITALS OF LEICESTER NHS TRUST | D46: 136 | E46: 749 | F46: 0.9338235294 | G46: 0.02941176471 | H46: 97 | I46: 30 | J46: 4 | K46: 2 | L46: 2 | M46: 1 | N46: 0 | O46: 136 | P46: 0 | Q46: 0 | R46: 0 | S46: 0 | T46: 0 | U46: 0
A47: QKK | B47: RJ1 | C47: GUY'S AND ST THOMAS' NHS FOUNDATION TRUST | D47: 87 | E47: 527 | F47: 0.908045977 | G47: 0.04597701149 | H47: 63 | I47: 16 | J47: 4 | K47: 2 | L47: 2 | M47: 0 | N47: 0 | O47: 0 | P47: 0 | Q47: 82 | R47: 0 | S47: 0 | T47: 5 | U47: 0
A48: QKK | B48: RJZ | C48: KING'S COLLEGE HOSPITAL NHS FOUNDATION TRUST | D48: 68 | E48: 464 | F48: 0.9705882353 | G48: 0 | H48: 60 | I48: 6 | J48: 2 | K48: 0 | L48: 0 | M48: 0 | N48: 0 | O48: 68 | P48: 0 | Q48: 0 | R48: 0 | S48: 0 | T48: 0 | U48: 0
A49: QKK | B49: RJ2 | C49: LEWISHAM AND GREENWICH NHS TRUST | D49: 75 | E49: 508 | F49: 0.9466666667 | G49: 0 | H49: 53 | I49: 18 | J49: 2 | K49: 0 | L49: 0 | M49: 2 | N49: 0 | O49: 72 | P49: 0 | Q49: 3 | R49: 0 | S49: 0 | T49: 0 | U49: 0
A50: QKS | B50: RN7 | C50: DARTFORD AND GRAVESHAM NHS TRUST | D50: 25 | E50: 354 | F50: 1 | G50: 0 | H50: 23 | I50: 2 | J50: 0 | K50: 0 | L50: 0 | M50: 0 | N50: 0 | O50: 11 | P50: 0 | Q50: 0 | R50: 0 | S50: 0 | T50: 14 | U50: 0
A51: QKS | B51: RVV | C51: EAST KENT HOSPITALS UNIVERSITY NHS FOUNDATION TRUST | D51: 57 | E51: 472 | F51: 0.9473684211 | G51: 0.0350877193 | H51: 43 | I51: 11 | J51: 1 | K51: 1 | L51: 1 | M51: 0 | N51: 57 | O51: 0 | P51: 0 | Q51: 0 | R51: 0 | S51: 0 | T51: 0 | U51: 0
A52: QKS | B52: RWF | C52: MAIDSTONE AND TUNBRIDGE WELLS NHS TRUST | D52: 54 | E52: 433 | F52: 1 | G52: 0 | H52: 52 | I52: 2 | J52: 0 | K52: 0 | L52: 0 | M52: 0 | N52: 11 | O52: 0 | P52: 0 | Q52: 14 | R52: 0 | S52: 0 | T52: 29 | U52: 0
A53: QKS | B53: RPA | C53: MEDWAY NHS FOUNDATION TRUST | D53: 39 | E53: 339 | F53: 0.9487179487 | G53: 0.05128205128 | H53: 35 | I53: 2 | J53: 0 | K53: 1 | L53: 1 | M53: 0 | N53: 0 | O53: 0 | P53: 0 | Q53: 0 | R53: 0 | S53: 0 | T53: 39 | U53: 0
A54: QM7 | B54: RWH | C54: EAST AND NORTH HERTFORDSHIRE NHS TRUST | D54: 16 | E54: 351 | F54: 1 | G54: 0 | H54: 13 | I54: 3 | J54: 0 | K54: 0 | L54: 0 | M54: 0 | N54: 0 | O54: 8 | P54: 1 | Q54: 7 | R54: 0 | S54: 0 | T54: 0 | U54: 0
A55: QM7 | B55: RQW | C55: THE PRINCESS ALEXANDRA HOSPITAL NHS TRUST | D55: 7 | E55: 313 | F55: 0.8571428571 | G55: 0.1428571429 | H55: 5 | I55: 1 | J55: 0 | K55: 0 | L55: 1 | M55: 0 | N55: 7 | O55: 0 | P55: 0 | Q55: 0 | R55: 0 | S55: 0 | T55: 0 | U55: 0
A56: QM7 | B56: RWG | C56: WEST HERTFORDSHIRE TEACHING HOSPITALS NHS TRUST | D56: 25 | E56: 311 | F56: 0.92 | G56: 0.08 | H56: 23 | I56: 0 | J56: 0 | K56: 2 | L56: 0 | M56: 0 | N56: 0 | O56: 25 | P56: 0 | Q56: 0 | R56: 0 | S56: 0 | T56: 0 | U56: 0
A57: QMF | B57: RF4 | C57: BARKING, HAVERING AND REDBRIDGE UNIVERSITY HOSPITALS NHS TRUST | D57: 41 | E57: 534 | F57: 0.9512195122 | G57: 0.0243902439 | H57: * | I57: * | J57: * | K57: * | L57: * | M57: * | N57: * | O57: * | P57: * | Q57: * | R57: * | S57: * | T57: * | U57: *
A58: QMF | B58: R1H | C58: BARTS HEALTH NHS TRUST | D58: 91 | E58: 1251 | F58: 0.7582417582 | G58: 0.1758241758 | H58: 55 | I58: 14 | J58: 6 | K58: 1 | L58: 15 | M58: 0 | N58: 62 | O58: 0 | P58: 0 | Q58: 19 | R58: 0 | S58: 0 | T58: 10 | U58: 0
A59: QMF | B59: RQX | C59: HOMERTON HEALTHCARE NHS FOUNDATION TRUST | D59: 2 | E59: 478 | F59: * | G59: * | H59: * | I59: * | J59: * | K59: * | L59: * | M59: * | N59: * | O59: * | P59: * | Q59: * | R59: * | S59: * | T59: * | U59: *
A60: QMJ | B60: RAL | C60: ROYAL FREE LONDON NHS FOUNDATION TRUST | D60: 126 | E60: 863 | F60: 0.880952381 | G60: 0.07142857143 | H60: 76 | I60: 35 | J60: 6 | K60: 2 | L60: 7 | M60: 0 | N60: 24 | O60: 19 | P60: 0 | Q60: 81 | R60: 0 | S60: 2 | T60: 0 | U60: 0
A61: QMJ | B61: RRV | C61: UNIVERSITY COLLEGE LONDON HOSPITALS NHS FOUNDATION TRUST | D61: 0 | E61: 524 | F61: NA | G61: NA | H61: 0 | I61: 0 | J61: 0 | K61: 0 | L61: 0 | M61: 0 | N61: 0 | O61: 0 | P61: 0 | Q61: 0 | R61: 0 | S61: 0 | T61: 0 | U61: 0
A62: QMJ | B62: RKE | C62: WHITTINGTON HEALTH NHS TRUST | D62: 5 | E62: 187 | F62: 1 | G62: 0 | H62: 5 | I62: 0 | J62: 0 | K62: 0 | L62: 0 | M62: 0 | N62: 0 | O62: 0 | P62: 0 | Q62: 4 | R62: 0 | S62: 0 | T62: 1 | U62: 0
A63: QMM | B63: RGP | C63: JAMES PAGET UNIVERSITY HOSPITALS NHS FOUNDATION TRUST | D63: 9 | E63: 125 | F63: 1 | G63: 0 | H63: * | I63: * | J63: * | K63: * | L63: * | M63: * | N63: * | O63: * | P63: * | Q63: * | R63: * | S63: * | T63: * | U63: *
A64: QMM | B64: RM1 | C64: NORFOLK AND NORWICH UNIVERSITY HOSPITALS NHS FOUNDATION TRUST | D64: 3 | E64: 394 | F64: * | G64: * | H64: * | I64: * | J64: * | K64: * | L64: * | M64: * | N64: * | O64: * | P64: * | Q64: * | R64: * | S64: * | T64: * | U64: *
A65: QMM | B65: RCX | C65: THE QUEEN ELIZABETH HOSPITAL, KING'S LYNN, NHS FOUNDATION TRUST | D65: 19 | E65: 132 | F65: 1 | G65: 0 | H65: 19 | I65: 0 | J65: 0 | K65: 0 | L65: 0 | M65: 0 | N65: 0 | O65: 0 | P65: 0 | Q65: 18 | R65: 0 | S65: 0 | T65: 1 | U65: 0
A66: QNC | B66: RJE | C66: UNIVERSITY HOSPITALS OF NORTH MIDLANDS NHS TRUST | D66: 37 | E66: 511 | F66: 0.7837837838 | G66: 0.2162162162 | H66: 24 | I66: 5 | J66: 0 | K66: 1 | L66: 7 | M66: 0 | N66: 37 | O66: 0 | P66: 0 | Q66: 0 | R66: 0 | S66: 0 | T66: 0 | U66: 0
A67: QNQ | B67: RDU | C67: FRIMLEY HEALTH NHS FOUNDATION TRUST | D67: 67 | E67: 0 | F67: 0.9701492537 | G67: 0.02985074627 | H67: 59 | I67: 6 | J67: 0 | K67: 0 | L67: 2 | M67: 0 | N67: 0 | O67: 0 | P67: 0 | Q67: 31 | R67: 0 | S67: 0 | T67: 36 | U67: 0
A68: QNX | B68: RXC | C68: EAST SUSSEX HEALTHCARE NHS TRUST | D68: 27 | E68: 211 | F68: 1 | G68: 0 | H68: 21 | I68: 6 | J68: 0 | K68: 0 | L68: 0 | M68: 0 | N68: 20 | O68: 0 | P68: 0 | Q68: 0 | R68: 0 | S68: 0 | T68: 7 | U68: 0
A69: QNX | B69: RYR | C69: UNIVERSITY HOSPITALS SUSSEX NHS FOUNDATION TRUST | D69: 51 | E69: 706 | F69: 0.9215686275 | G69: 0.03921568627 | H69: 42 | I69: 5 | J69: 2 | K69: 1 | L69: 1 | M69: 0 | N69: 51 | O69: 0 | P69: 0 | Q69: 0 | R69: 0 | S69: 0 | T69: 0 | U69: 0
A70: QOC | B70: RXW | C70: THE SHREWSBURY AND TELFORD HOSPITAL NHS TRUST | D70: 22 | E70: 321 | F70: 0.9545454545 | G70: 0.04545454545 | H70: 20 | I70: 1 | J70: 0 | K70: 1 | L70: 0 | M70: 0 | N70: 0 | O70: 0 | P70: 0 | Q70: 22 | R70: 0 | S70: 0 | T70: 0 | U70: 0
A71: QOP | B71: RMC | C71: BOLTON NHS FOUNDATION TRUST | D71: 169 | E71: 398 | F71: 0.9467455621 | G71: 0.04733727811 | H71: 132 | I71: 28 | J71: 1 | K71: 5 | L71: 3 | M71: 0 | N71: 130 | O71: 0 | P71: 0 | Q71: 39 | R71: 0 | S71: 0 | T71: 0 | U71: 0
A72: QOP | B72: R0A | C72: MANCHESTER UNIVERSITY NHS FOUNDATION TRUST | D72: 174 | E72: 3392 | F72: 0.9655172414 | G72: 0.01149425287 | H72: 142 | I72: 26 | J72: 4 | K72: 1 | L72: 1 | M72: 0 | N72: 0 | O72: 145 | P72: 0 | Q72: 9 | R72: 0 | S72: 0 | T72: 20 | U72: 0
A73: QOP | B73: RM3 | C73: NORTHERN CARE ALLIANCE NHS FOUNDATION TRUST | D73: 144 | E73: 477 | F73: 0.8472222222 | G73: 0.1319444444 | H73: 98 | I73: 24 | J73: 3 | K73: 5 | L73: 14 | M73: 0 | N73: 59 | O73: 0 | P73: 0 | Q73: 0 | R73: 0 | S73: 0 | T73: 85 | U73: 0
A74: QOP | B74: RWJ | C74: STOCKPORT NHS FOUNDATION TRUST | D74: 1 | E74: 212 | F74: * | G74: * | H74: * | I74: * | J74: * | K74: * | L74: * | M74: * | N74: * | O74: * | P74: * | Q74: * | R74: * | S74: * | T74: * | U74: *
A75: QOP | B75: RMP | C75: TAMESIDE AND GLOSSOP INTEGRATED CARE NHS FOUNDATION TRUST | D75: 13 | E75: 194 | F75: 0.9230769231 | G75: 0.07692307692 | H75: 12 | I75: 0 | J75: 0 | K75: 0 | L75: 1 | M75: 0 | N75: 0 | O75: 11 | P75: 0 | Q75: 2 | R75: 0 | S75: 0 | T75: 0 | U75: 0
A76: QOP | B76: RRF | C76: WRIGHTINGTON, WIGAN AND LEIGH NHS FOUNDATION TRUST | D76: 4 | E76: 188 | F76: * | G76: * | H76: * | I76: * | J76: * | K76: * | L76: * | M76: * | N76: * | O76: * | P76: * | Q76: * | R76: * | S76: * | T76: * | U76: *
A77: QOQ | B77: RCD | C77: HARROGATE AND DISTRICT NHS FOUNDATION TRUST | D77: 0 | E77: 2 | F77: NA | G77: NA | H77: 0 | I77: 0 | J77: 0 | K77: 0 | L77: 0 | M77: 0 | N77: 0 | O77: 0 | P77: 0 | Q77: 0 | R77: 0 | S77: 0 | T77: 0 | U77: 0
A78: QOQ | B78: RWA | C78: HULL UNIVERSITY TEACHING HOSPITALS NHS TRUST | D78: 55 | E78: 311 | F78: 0.9454545455 | G78: 0.05454545455 | H78: 50 | I78: 2 | J78: 0 | K78: 2 | L78: 1 | M78: 0 | N78: 6 | O78: 0 | P78: 0 | Q78: 0 | R78: 1 | S78: 0 | T78: 48 | U78: 0
A79: QOQ | B79: RJL | C79: NORTHERN LINCOLNSHIRE AND GOOLE NHS FOUNDATION TRUST | D79: 19 | E79: 309 | F79: 1 | G79: 0 | H79: 16 | I79: 3 | J79: 0 | K79: 0 | L79: 0 | M79: 0 | N79: 18 | O79: 0 | P79: 0 | Q79: 1 | R79: 0 | S79: 0 | T79: 0 | U79: 0
A80: QOQ | B80: RCB | C80: YORK AND SCARBOROUGH TEACHING HOSPITALS NHS FOUNDATION TRUST | D80: 0 | E80: 317 | F80: NA | G80: NA | H80: 0 | I80: 0 | J80: 0 | K80: 0 | L80: 0 | M80: 0 | N80: 0 | O80: 0 | P80: 0 | Q80: 0 | R80: 0 | S80: 0 | T80: 0 | U80: 0
A81: QOX | B81: RN3 | C81: GREAT WESTERN HOSPITALS NHS FOUNDATION TRUST | D81: 11 | E81: 4 | F81: 0.6363636364 | G81: 0.3636363636 | H81: 5 | I81: 2 | J81: 0 | K81: 4 | L81: 0 | M81: 0 | N81: 0 | O81: 4 | P81: 0 | Q81: 0 | R81: 0 | S81: 0 | T81: 7 | U81: 0
A82: QOX | B82: RD1 | C82: ROYAL UNITED HOSPITALS BATH NHS FOUNDATION TRUST | D82: 1 | E82: 306 | F82: * | G82: * | H82: * | I82: * | J82: * | K82: * | L82: * | M82: * | N82: * | O82: * | P82: * | Q82: * | R82: * | S82: * | T82: * | U82: *
A83: QOX | B83: RNZ | C83: SALISBURY NHS FOUNDATION TRUST | D83: 3 | E83: 3 | F83: * | G83: * | H83: * | I83: * | J83: * | K83: * | L83: * | M83: * | N83: * | O83: * | P83: * | Q83: * | R83: * | S83: * | T83: * | U83: *
A84: QPM | B84: RNQ | C84: KETTERING GENERAL HOSPITAL NHS FOUNDATION TRUST | D84: 1 | E84: 224 | F84: * | G84: * | H84: * | I84: * | J84: * | K84: * | L84: * | M84: * | N84: * | O84: * | P84: * | Q84: * | R84: * | S84: * | T84: * | U84: *
A85: QPM | B85: RNS | C85: NORTHAMPTON GENERAL HOSPITAL NHS TRUST | D85: 36 | E85: 342 | F85: 0.9722222222 | G85: 0.02777777778 | H85: * | I85: * | J85: * | K85: * | L85: * | M85: * | N85: * | O85: * | P85: * | Q85: * | R85: * | S85: * | T85: * | U85: *
A86: QR1 | B86: RTE | C86: GLOUCESTERSHIRE HOSPITALS NHS FOUNDATION TRUST | D86: 57 | E86: 100 | F86: 0.9473684211 | G86: 0.05263157895 | H86: 46 | I86: 8 | J86: 0 | K86: 2 | L86: 1 | M86: 0 | N86: 48 | O86: 0 | P86: 9 | Q86: 0 | R86: 0 | S86: 0 | T86: 0 | U86: 0
A87: QRL | B87: RN5 | C87: HAMPSHIRE HOSPITALS NHS FOUNDATION TRUST | D87: 180 | E87: 381 | F87: 0.9833333333 | G87: 0.005555555556 | H87: 162 | I87: 15 | J87: 2 | K87: 1 | L87: 0 | M87: 0 | N87: 0 | O87: 0 | P87: 0 | Q87: 173 | R87: 0 | S87: 0 | T87: 7 | U87: 0
A88: QRL | B88: R1F | C88: ISLE OF WIGHT NHS TRUST | D88: 6 | E88: 93 | F88: 1 | G88: 0 | H88: 6 | I88: 0 | J88: 0 | K88: 0 | L88: 0 | M88: 0 | N88: 0 | O88: 0 | P88: 0 | Q88: 0 | R88: 6 | S88: 0 | T88: 0 | U88: 0
A89: QRL | B89: RHU | C89: PORTSMOUTH HOSPITALS UNIVERSITY NATIONAL HEALTH SERVICE TRUST | D89: 27 | E89: 380 | F89: 1 | G89: 0 | H89: 26 | I89: 1 | J89: 0 | K89: 0 | L89: 0 | M89: 0 | N89: 0 | O89: 0 | P89: 0 | Q89: 27 | R89: 0 | S89: 0 | T89: 0 | U89: 0
A90: QRL | B90: RHM | C90: UNIVERSITY HOSPITAL SOUTHAMPTON NHS FOUNDATION TRUST | D90: 144 | E90: 398 | F90: 0.9791666667 | G90: 0.006944444444 | H90: 125 | I90: 16 | J90: 2 | K90: 1 | L90: 0 | M90: 0 | N90: 0 | O90: 0 | P90: 0 | Q90: 0 | R90: 0 | S90: 0 | T90: 144 | U90: 0
A91: QRV | B91: RYJ | C91: IMPERIAL COLLEGE HEALTHCARE NHS TRUST | D91: 77 | E91: 695 | F91: 0.974025974 | G91: 0.02597402597 | H91: 64 | I91: 11 | J91: 0 | K91: 2 | L91: 0 | M91: 0 | N91: 0 | O91: 16 | P91: 0 | Q91: 10 | R91: 0 | S91: 0 | T91: 51 | U91: 0
A92: QRV | B92: R1K | C92: LONDON NORTH WEST UNIVERSITY HEALTHCARE NHS TRUST | D92: 67 | E92: 440 | F92: 0.9402985075 | G92: 0.0447761194 | H92: 30 | I92: 33 | J92: 1 | K92: 3 | L92: 0 | M92: 0 | N92: 0 | O92: 0 | P92: 0 | Q92: 67 | R92: 0 | S92: 0 | T92: 0 | U92: 0
A93: QRV | B93: RAS | C93: THE HILLINGDON HOSPITALS NHS FOUNDATION TRUST | D93: 35 | E93: 309 | F93: 0.8857142857 | G93: 0.02857142857 | H93: 29 | I93: 2 | J93: 3 | K93: 1 | L93: 0 | M93: 0 | N93: 0 | O93: 0 | P93: 0 | Q93: 0 | R93: 0 | S93: 0 | T93: 35 | U93: 0
A94: QSL | B94: RH5 | C94: SOMERSET NHS FOUNDATION TRUST | D94: 4 | E94: 352 | F94: * | G94: * | H94: * | I94: * | J94: * | K94: * | L94: * | M94: * | N94: * | O94: * | P94: * | Q94: * | R94: * | S94: * | T94: * | U94: *
A95: QT1 | B95: RX1 | C95: NOTTINGHAM UNIVERSITY HOSPITALS NHS TRUST | D95: 13 | E95: 377 | F95: 1 | G95: 0 | H95: 13 | I95: 0 | J95: 0 | K95: 0 | L95: 0 | M95: 0 | N95: 0 | O95: 0 | P95: 0 | Q95: 12 | R95: 0 | S95: 0 | T95: 1 | U95: 0
A96: QT1 | B96: RK5 | C96: SHERWOOD FOREST HOSPITALS NHS FOUNDATION TRUST | D96: 41 | E96: 267 | F96: 0.8536585366 | G96: 0.1219512195 | H96: 29 | I96: 6 | J96: 1 | K96: 2 | L96: 3 | M96: 0 | N96: 0 | O96: 0 | P96: 0 | Q96: 0 | R96: 0 | S96: 0 | T96: 41 | U96: 0
A97: QT6 | B97: REF | C97: ROYAL CORNWALL HOSPITALS NHS TRUST | D97: 14 | E97: 283 | F97: 1 | G97: 0 | H97: * | I97: * | J97: * | K97: * | L97: * | M97: * | N97: * | O97: * | P97: * | Q97: * | R97: * | S97: * | T97: * | U97: *
A98: QU9 | B98: RXQ | C98: BUCKINGHAMSHIRE HEALTHCARE NHS TRUST | D98: 30 | E98: 327 | F98: 0.9333333333 | G98: 0.06666666667 | H98: 25 | I98: 3 | J98: 0 | K98: 0 | L98: 2 | M98: 0 | N98: 30 | O98: 0 | P98: 0 | Q98: 0 | R98: 0 | S98: 0 | T98: 0 | U98: 0
A99: QU9 | B99: RTH | C99: OXFORD UNIVERSITY HOSPITALS NHS FOUNDATION TRUST | D99: 13 | E99: 477 | F99: 0.9230769231 | G99: 0 | H99: 12 | I99: 0 | J99: 1 | K99: 0 | L99: 0 | M99: 0 | N99: 0 | O99: 0 | P99: 0 | Q99: 0 | R99: 0 | S99: 0 | T99: 13 | U99: 0
A100: QU9 | B100: RHW | C100: ROYAL BERKSHIRE NHS FOUNDATION TRUST | D100: 5 | E100: 400 | F100: 1 | G100: 0 | H100: 5 | I100: 0 | J100: 0 | K100: 0 | L100: 0 | M100: 0 | N100: 0 | O100: 0 | P100: 0 | Q100: 4 | R100: 0 | S100: 0 | T100: 1 | U100: 0
A101: QUA | B101: RNA | C101: THE DUDLEY GROUP NHS FOUNDATION TRUST | D101: 49 | E101: 288 | F101: 0.8775510204 | G101: 0 | H101: 34 | I101: 9 | J101: 0 | K101: 0 | L101: 0 | M101: 6 | N101: 1 | O101: 0 | P101: 0 | Q101: 46 | R101: 0 | S101: 0 | T101: 2 | U101: 0
A102: QUA | B102: RL4 | C102: THE ROYAL WOLVERHAMPTON NHS TRUST | D102: 44 | E102: 367 | F102: 0.9545454545 | G102: 0.02272727273 | H102: 41 | I102: 1 | J102: 1 | K102: 0 | L102: 1 | M102: 0 | N102: 44 | O102: 0 | P102: 0 | Q102: 0 | R102: 0 | S102: 0 | T102: 0 | U102: 0
A103: QUA | B103: RBK | C103: WALSALL HEALTHCARE NHS TRUST | D103: 81 | E103: 287 | F103: 0.9382716049 | G103: 0.02469135802 | H103: 71 | I103: 5 | J103: 3 | K103: 2 | L103: 0 | M103: 0 | N103: 27 | O103: 54 | P103: 0 | Q103: 0 | R103: 0 | S103: 0 | T103: 0 | U103: 0
A104: QUE | B104: RGT | C104: CAMBRIDGE UNIVERSITY HOSPITALS NHS FOUNDATION TRUST | D104: 35 | E104: 411 | F104: 0.8857142857 | G104: 0.08571428571 | H104: 27 | I104: 4 | J104: 0 | K104: 0 | L104: 3 | M104: 1 | N104: 0 | O104: 27 | P104: 0 | Q104: 2 | R104: 0 | S104: 0 | T104: 6 | U104: 0
A105: QUE | B105: RGN | C105: NORTH WEST ANGLIA NHS FOUNDATION TRUST | D105: 28 | E105: 518 | F105: 0.8571428571 | G105: 0.1071428571 | H105: 24 | I105: 0 | J105: 1 | K105: 0 | L105: 3 | M105: 0 | N105: 0 | O105: 0 | P105: 0 | Q105: 28 | R105: 0 | S105: 0 | T105: 0 | U105: 0
A106: QUY | B106: RVJ | C106: NORTH BRISTOL NHS TRUST | D106: 76 | E106: 372 | F106: 0.9736842105 | G106: 0.01315789474 | H106: * | I106: * | J106: * | K106: * | L106: * | M106: * | N106: * | O106: * | P106: * | Q106: * | R106: * | S106: * | T106: * | U106: *
A107: QUY | B107: RA7 | C107: UNIVERSITY HOSPITALS BRISTOL AND WESTON NHS FOUNDATION TRUST | D107: 3 | E107: 361 | F107: * | G107: * | H107: * | I107: * | J107: * | K107: * | L107: * | M107: * | N107: * | O107: * | P107: * | Q107: * | R107: * | S107: * | T107: * | U107: *
A108: QVV | B108: RBD | C108: DORSET COUNTY HOSPITAL NHS FOUNDATION TRUST | D108: 5 | E108: 98 | F108: 1 | G108: 0 | H108: 1 | I108: 4 | J108: 0 | K108: 0 | L108: 0 | M108: 0 | N108: 0 | O108: 0 | P108: 0 | Q108: 5 | R108: 0 | S108: 0 | T108: 0 | U108: 0
A109: QVV | B109: R0D | C109: UNIVERSITY HOSPITALS DORSET NHS FOUNDATION TRUST | D109: 25 | E109: 309 | F109: 0.92 | G109: 0.08 | H109: 21 | I109: 2 | J109: 0 | K109: 0 | L109: 2 | M109: 0 | N109: 0 | O109: 20 | P109: 0 | Q109: 0 | R109: 0 | S109: 0 | T109: 5 | U109: 0
A110: QWE | B110: RJ6 | C110: CROYDON HEALTH SERVICES NHS TRUST | D110: 13 | E110: 248 | F110: 0.8461538462 | G110: 0.07692307692 | H110: * | I110: * | J110: * | K110: * | L110: * | M110: * | N110: * | O110: * | P110: * | Q110: * | R110: * | S110: * | T110: * | U110: *
A111: QWE | B111: RVR | C111: EPSOM AND ST HELIER UNIVERSITY HOSPITALS NHS TRUST | D111: 2 | E111: 312 | F111: * | G111: * | H111: * | I111: * | J111: * | K111: * | L111: * | M111: * | N111: * | O111: * | P111: * | Q111: * | R111: * | S111: * | T111: * | U111: *
A112: QWE | B112: RAX | C112: KINGSTON AND RICHMOND NHS FOUNDATION TRUST | D112: 52 | E112: 360 | F112: 1 | G112: 0 | H112: 51 | I112: 1 | J112: 0 | K112: 0 | L112: 0 | M112: 0 | N112: 0 | O112: 36 | P112: 0 | Q112: 0 | R112: 0 | S112: 0 | T112: 16 | U112: 0
A113: QWE | B113: RJ7 | C113: ST GEORGE'S UNIVERSITY HOSPITALS NHS FOUNDATION TRUST | D113: 26 | E113: 50 | F113: 1 | G113: 0 | H113: 19 | I113: 7 | J113: 0 | K113: 0 | L113: 0 | M113: 0 | N113: 0 | O113: 19 | P113: 0 | Q113: 0 | R113: 6 | S113: 0 | T113: 1 | U113: 0
A114: QWO | B114: RCF | C114: AIREDALE NHS FOUNDATION TRUST | D114: 18 | E114: 132 | F114: 0.9444444444 | G114: 0.05555555556 | H114: 15 | I114: 2 | J114: 0 | K114: 1 | L114: 0 | M114: 0 | N114: 18 | O114: 0 | P114: 0 | Q114: 0 | R114: 0 | S114: 0 | T114: 0 | U114: 0
A115: QWO | B115: RAE | C115: BRADFORD TEACHING HOSPITALS NHS FOUNDATION TRUST | D115: 25 | E115: 80 | F115: 1 | G115: 0 | H115: 24 | I115: 1 | J115: 0 | K115: 0 | L115: 0 | M115: 0 | N115: 0 | O115: 0 | P115: 0 | Q115: 0 | R115: 0 | S115: 0 | T115: 5 | U115: 20
A116: QWO | B116: RWY | C116: CALDERDALE AND HUDDERSFIELD NHS FOUNDATION TRUST | D116: 23 | E116: 303 | F116: 0.9130434783 | G116: 0.08695652174 | H116: 21 | I116: 0 | J116: 0 | K116: 0 | L116: 2 | M116: 0 | N116: 0 | O116: 0 | P116: 0 | Q116: 0 | R116: 0 | S116: 0 | T116: 23 | U116: 0
A117: QWO | B117: RR8 | C117: LEEDS TEACHING HOSPITALS NHS TRUST | D117: 128 | E117: 506 | F117: 0.984375 | G117: 0.0078125 | H117: 115 | I117: 11 | J117: 1 | K117: 0 | L117: 1 | M117: 0 | N117: 119 | O117: 8 | P117: 0 | Q117: 0 | R117: 0 | S117: 0 | T117: 1 | U117: 0
A118: QWO | B118: RXF | C118: MID YORKSHIRE TEACHING NHS TRUST | D118: 67 | E118: 473 | F118: 0.9850746269 | G118: 0 | H118: 64 | I118: 2 | J118: 1 | K118: 0 | L118: 0 | M118: 0 | N118: 9 | O118: 0 | P118: 0 | Q118: 55 | R118: 0 | S118: 0 | T118: 3 | U118: 0
A119: QWU | B119: RLT | C119: GEORGE ELIOT HOSPITAL NHS TRUST | D119: 23 | E119: 160 | F119: 0.9565217391 | G119: 0 | H119: * | I119: * | J119: * | K119: * | L119: * | M119: * | N119: * | O119: * | P119: * | Q119: * | R119: * | S119: * | T119: * | U119: *
A120: QWU | B120: RJC | C120: SOUTH WARWICKSHIRE UNIVERSITY NHS FOUNDATION TRUST | D120: 4 | E120: 295 | F120: * | G120: * | H120: * | I120: * | J120: * | K120: * | L120: * | M120: * | N120: * | O120: * | P120: * | Q120: * | R120: * | S120: * | T120: * | U120: *
A121: QWU | B121: RKB | C121: UNIVERSITY HOSPITALS COVENTRY AND WARWICKSHIRE NHS TRUST | D121: 44 | E121: 475 | F121: 0.9772727273 | G121: 0.02272727273 | H121: 43 | I121: 0 | J121: 0 | K121: 1 | L121: 0 | M121: 0 | N121: 38 | O121: 1 | P121: 0 | Q121: 0 | R121: 0 | S121: 0 | T121: 5 | U121: 0
A122: QXU | B122: RTK | C122: ASHFORD AND ST PETER'S HOSPITALS NHS FOUNDATION TRUST | D122: 158 | E122: 233 | F122: 0.7911392405 | G122: 0.1329113924 | H122: 112 | I122: 13 | J122: 3 | K122: 4 | L122: 17 | M122: 9 | N122: 0 | O122: 158 | P122: 0 | Q122: 0 | R122: 0 | S122: 0 | T122: 0 | U122: 0
A123: QXU | B123: RA2 | C123: ROYAL SURREY COUNTY HOSPITAL NHS FOUNDATION TRUST | D123: 49 | E123: 280 | F123: 0.9795918367 | G123: 0.02040816327 | H123: 44 | I123: 4 | J123: 0 | K123: 1 | L123: 0 | M123: 0 | N123: 43 | O123: 0 | P123: 0 | Q123: 4 | R123: 0 | S123: 0 | T123: 2 | U123: 0
A124: QXU | B124: RTP | C124: SURREY AND SUSSEX HEALTHCARE NHS TRUST | D124: 10 | E124: 10 | F124: 0.9 | G124: 0 | H124: 7 | I124: 2 | J124: 1 | K124: 0 | L124: 0 | M124: 0 | N124: 0 | O124: 0 | P124: 0 | Q124: 2 | R124: 0 | S124: 0 | T124: 7 | U124: 1
A125: QYG | B125: RJR | C125: COUNTESS OF CHESTER HOSPITAL NHS FOUNDATION TRUST | D125: 14 | E125: 128 | F125: 1 | G125: 0 | H125: 9 | I125: 5 | J125: 0 | K125: 0 | L125: 0 | M125: 0 | N125: 14 | O125: 0 | P125: 0 | Q125: 0 | R125: 0 | S125: 0 | T125: 0 | U125: 0
A126: QYG | B126: RJN | C126: EAST CHESHIRE NHS TRUST | D126: 19 | E126: 106 | F126: 1 | G126: 0 | H126: 18 | I126: 1 | J126: 0 | K126: 0 | L126: 0 | M126: 0 | N126: 19 | O126: 0 | P126: 0 | Q126: 0 | R126: 0 | S126: 0 | T126: 0 | U126: 0
A127: QYG | B127: REP | C127: LIVERPOOL WOMEN'S NHS FOUNDATION TRUST | D127: 49 | E127: 587 | F127: 0.9387755102 | G127: 0.0612244898 | H127: 35 | I127: 11 | J127: 0 | K127: 1 | L127: 2 | M127: 0 | N127: 47 | O127: 0 | P127: 0 | Q127: 0 | R127: 0 | S127: 0 | T127: 0 | U127: 2
A128: QYG | B128: RBN | C128: MERSEY AND WEST LANCASHIRE TEACHING HOSPITALS NHS TRUST | D128: 60 | E128: 366 | F128: 0.9166666667 | G128: 0.06666666667 | H128: 46 | I128: 9 | J128: 1 | K128: 2 | L128: 2 | M128: 0 | N128: 59 | O128: 0 | P128: 0 | Q128: 1 | R128: 0 | S128: 0 | T128: 0 | U128: 0
A129: QYG | B129: RBT | C129: MID CHESHIRE HOSPITALS NHS FOUNDATION TRUST | D129: 17 | E129: 265 | F129: 0.8235294118 | G129: 0.1176470588 | H129: 14 | I129: 0 | J129: 1 | K129: 2 | L129: 0 | M129: 0 | N129: 8 | O129: 0 | P129: 0 | Q129: 4 | R129: 0 | S129: 0 | T129: 5 | U129: 0
A130: QYG | B130: RWW | C130: WARRINGTON AND HALTON TEACHING HOSPITALS NHS FOUNDATION TRUST | D130: 2 | E130: 2 | F130: * | G130: * | H130: * | I130: * | J130: * | K130: * | L130: * | M130: * | N130: * | O130: * | P130: * | Q130: * | R130: * | S130: * | T130: * | U130: *
A131: QYG | B131: RBL | C131: WIRRAL UNIVERSITY TEACHING HOSPITAL NHS FOUNDATION TRUST | D131: 1 | E131: 229 | F131: * | G131: * | H131: * | I131: * | J131: * | K131: * | L131: * | M131: * | N131: * | O131: * | P131: * | Q131: * | R131: * | S131: * | T131: * | U131: *

Sheet Sites Q2
B6: Sort data by:
A9: ICB Code | B9: Trust Code | C9: Trust Name | D9: Site Code | E9: Site Name | F9: Total Responses | G9: Percentage Positive | H9: Percentage Negative | I9: Breakdown of Responses
I10: Very Good | J10: Good | K10: Neither Good nor Poor | L10: Poor | M10: Very Poor | N10: Don't Know
E11: England (including Independent Sector providers) | F11: 4676 | G11: 0.9268605646 | H11: 0.04662104363 | I11: 3716 | J11: 618 | K11: 95 | L11: 86 | M11: 132 | N11: 29
E12: England (excluding Independent Sector providers) | F12: 4676 | G12: 0.9268605646 | H12: 0.04662104363 | I12: 3716 | J12: 618 | K12: 95 | L12: 86 | M12: 132 | N12: 29
E13: Selection (excluding suppressed data) | F13: =SUBTOTAL(9,F14:F299) -> 4676 | G13: =IFERROR((I13+J13)/SUM(I13:N13), "-") -> 0.9230404925 | H13: =IFERROR((L13+M13)/SUM(I13:N13), "-") -> 0.04949088326 | I13: =SUBTOTAL(9,I14:I299) -> 3330 | J13: 568 | K13: 91 | L13: 80 | M13: 129 | N13: 25
A14: QE1 | B14: RXL | C14: BLACKPOOL TEACHING HOSPITALS NHS FOUNDATION TRUST | D14: RXL01 | E14: Blackpool Victoria Hospital | F14: 26 | G14: 0.7692307692 | H14: 0.07692307692 | I14: 18 | J14: 2 | K14: 4 | L14: 0 | M14: 2 | N14: 0
A15: QE1 | B15: RXR | C15: EAST LANCASHIRE HOSPITALS NHS TRUST | D15: RXR20 | E15: Royal Blackburn Hospital | F15: 73 | G15: 0.8493150685 | H15: 0.08219178082 | I15: 54 | J15: 8 | K15: 4 | L15: 3 | M15: 3 | N15: 1
A16: QE1 | B16: RXN | C16: LANCASHIRE TEACHING HOSPITALS NHS FOUNDATION TRUST | D16: RXN01 | E16: Chorley and South Ribble Hospital | F16: 0 | G16: NA | H16: NA | I16: 0 | J16: 0 | K16: 0 | L16: 0 | M16: 0 | N16: 0
A17: QE1 | B17: RXN | C17: LANCASHIRE TEACHING HOSPITALS NHS FOUNDATION TRUST | D17: RXN02 | E17: Royal Preston Hospital | F17: 13 | G17: 0.6923076923 | H17: 0.2307692308 | I17: 9 | J17: 0 | K17: 1 | L17: 2 | M17: 1 | N17: 0
A18: QE1 | B18: RTX | C18: UNIVERSITY HOSPITALS OF MORECAMBE BAY NHS FOUNDATION TRUST | D18: RTXBU | E18: Furness General Hospital | F18: 10 | G18: 0.8 | H18: 0 | I18: * | J18: * | K18: * | L18: * | M18: * | N18: *
A19: QE1 | B19: RTX | C19: UNIVERSITY HOSPITALS OF MORECAMBE BAY NHS FOUNDATION TRUST | D19: RTX02 | E19: Royal Lancaster Infirmary | F19: 11 | G19: 0.8181818182 | H19: 0 | I19: 8 | J19: 1 | K19: 0 | L19: 0 | M19: 0 | N19: 2
A20: QE1 | B20: RTX | C20: UNIVERSITY HOSPITALS OF MORECAMBE BAY NHS FOUNDATION TRUST | D20: RTXBW | E20: Westmorland General Hospital | F20: 2 | G20: * | H20: * | I20: * | J20: * | K20: * | L20: * | M20: * | N20: *
A21: QF7 | B21: RFF | C21: BARNSLEY HOSPITAL NHS FOUNDATION TRUST | D21: RFFAA | E21: Barnsley Hospital NHS Foundation Trust HQ | F21: 28 | G21: 0.9285714286 | H21: 0.03571428571 | I21: 24 | J21: 2 | K21: 1 | L21: 0 | M21: 1 | N21: 0
A22: QF7 | B22: RP5 | C22: DONCASTER AND BASSETLAW TEACHING HOSPITALS NHS FOUNDATION TRUST | D22: RP5BA | E22: Bassetlaw Hospital | F22: 10 | G22: 1 | H22: 0 | I22: * | J22: * | K22: * | L22: * | M22: * | N22: *
A23: QF7 | B23: RP5 | C23: DONCASTER AND BASSETLAW TEACHING HOSPITALS NHS FOUNDATION TRUST | D23: RP5DR | E23: Doncaster Royal Infirmary | F23: 20 | G23: 0.85 | H23: 0.05 | I23: 15 | J23: 2 | K23: 2 | L23: 1 | M23: 0 | N23: 0
A24: QF7 | B24: RP5 | C24: DONCASTER AND BASSETLAW TEACHING HOSPITALS NHS FOUNDATION TRUST | D24: RP5XXX | E24: Non-hospital site | F24: 2 | G24: * | H24: * | I24: * | J24: * | K24: * | L24: * | M24: * | N24: *
A25: QF7 | B25: RHQ | C25: SHEFFIELD TEACHING HOSPITALS NHS FOUNDATION TRUST | D25: RHQHH | E25: Royal Hallamshire Hospital | F25: 36 | G25: 0.9444444444 | H25: 0.02777777778 | I25: 27 | J25: 7 | K25: 1 | L25: 0 | M25: 1 | N25: 0
A26: QF7 | B26: RFR | C26: THE ROTHERHAM NHS FOUNDATION TRUST | D26: RFRPA | E26: Rotherham District General Hospital | F26: 11 | G26: 1 | H26: 0 | I26: 11 | J26: 0 | K26: 0 | L26: 0 | M26: 0 | N26: 0
A27: QGH | B27: RWP | C27: WORCESTERSHIRE ACUTE HOSPITALS NHS TRUST | D27: RWP50 | E27: Worcestershire Royal Hospital | F27: 64 | G27: 0.984375 | H27: 0.015625 | I27: 61 | J27: 2 | K27: 0 | L27: 1 | M27: 0 | N27: 0
A28: QGH | B28: RLQ | C28: WYE VALLEY NHS TRUST | D28: RLQ01 | E28: Hereford County Hospital | F28: 29 | G28: 1 | H28: 0 | I28: 24 | J28: 5 | K28: 0 | L28: 0 | M28: 0 | N28: 0
A29: QH8 | B29: RAJ | C29: MID AND SOUTH ESSEX NHS FOUNDATION TRUST | D29: RAJ12 | E29: BASILDON HOSPITAL | F29: 64 | G29: 0.84375 | H29: 0.125 | I29: 49 | J29: 5 | K29: 2 | L29: 2 | M29: 6 | N29: 0
A30: QH8 | B30: RAJ | C30: MID AND SOUTH ESSEX NHS FOUNDATION TRUST | D30: RAJ32 | E30: MID ESSEX HOSPITAL | F30: 57 | G30: 0.8771929825 | H30: 0.1052631579 | I30: 42 | J30: 8 | K30: 1 | L30: 2 | M30: 4 | N30: 0
A31: QH8 | B31: RAJ | C31: MID AND SOUTH ESSEX NHS FOUNDATION TRUST | D31: RAJ01 | E31: Southend Hospital | F31: 60 | G31: 0.9333333333 | H31: 0.03333333333 | I31: 52 | J31: 4 | K31: 1 | L31: 2 | M31: 0 | N31: 1
A32: QHG | B32: RC9 | C32: BEDFORDSHIRE HOSPITALS NHS FOUNDATION TRUST | D32: RC979 | E32: BEDFORD HOSPITAL SOUTH WING | F32: 15 | G32: 0.9333333333 | H32: 0.06666666667 | I32: 12 | J32: 2 | K32: 0 | L32: 0 | M32: 1 | N32: 0
A33: QHG | B33: RC9 | C33: BEDFORDSHIRE HOSPITALS NHS FOUNDATION TRUST | D33: RC971 | E33: Luton and Dunstable Hospital | F33: 32 | G33: 0.90625 | H33: 0.0625 | I33: 19 | J33: 10 | K33: 1 | L33: 2 | M33: 0 | N33: 0
A34: QHG | B34: RD8 | C34: MILTON KEYNES UNIVERSITY HOSPITAL NHS FOUNDATION TRUST | D34: RD816 | E34: Milton Keynes Hospital | F34: 30 | G34: 1 | H34: 0 | I34: 23 | J34: 7 | K34: 0 | L34: 0 | M34: 0 | N34: 0
A35: QHL | B35: RQ3 | C35: BIRMINGHAM WOMEN'S AND CHILDREN'S NHS FOUNDATION TRUST | D35: RQ370 | E35: Birmingham Women's Hospital | F35: 15 | G35: 1 | H35: 0 | I35: 13 | J35: 2 | K35: 0 | L35: 0 | M35: 0 | N35: 0
A36: QHL | B36: RXK | C36: SANDWELL AND WEST BIRMINGHAM HOSPITALS NHS TRUST | D36: RXK02 | E36: City Hospital | F36: 0 | G36: NA | H36: NA | I36: 0 | J36: 0 | K36: 0 | L36: 0 | M36: 0 | N36: 0
A37: QHL | B37: RXK | C37: SANDWELL AND WEST BIRMINGHAM HOSPITALS NHS TRUST | D37: I3W1A | E37: MIDLAND METROPOLITAN UNIVERSITY HOSPITAL | F37: 31 | G37: 0.8064516129 | H37: 0.09677419355 | I37: 21 | J37: 4 | K37: 2 | L37: 0 | M37: 3 | N37: 1
A38: QHL | B38: RRK | C38: UNIVERSITY HOSPITALS BIRMINGHAM NHS FOUNDATION TRUST | D38: RRK98 | E38: Good Hope Hospital | F38: 22 | G38: 0.8181818182 | H38: 0.04545454545 | I38: 14 | J38: 4 | K38: 3 | L38: 0 | M38: 1 | N38: 0
A39: QHL | B39: RRK | C39: UNIVERSITY HOSPITALS BIRMINGHAM NHS FOUNDATION TRUST | D39: RRK97 | E39: Heartlands Hospital | F39: 48 | G39: 0.8125 | H39: 0.1458333333 | I39: 29 | J39: 10 | K39: 2 | L39: 1 | M39: 6 | N39: 0
A40: QHL | B40: RRK | C40: UNIVERSITY HOSPITALS BIRMINGHAM NHS FOUNDATION TRUST | D40: RRK99 | E40: Solihull Hospital | F40: 0 | G40: NA | H40: NA | I40: 0 | J40: 0 | K40: 0 | L40: 0 | M40: 0 | N40: 0
A41: QHM | B41: RXP | C41: COUNTY DURHAM AND DARLINGTON NHS FOUNDATION TRUST | D41: RXPDA | E41: Darlington Memorial Hospital | F41: 55 | G41: 1 | H41: 0 | I41: * | J41: * | K41: * | L41: * | M41: * | N41: *
A42: QHM | B42: RXP | C42: COUNTY DURHAM AND DARLINGTON NHS FOUNDATION TRUST | D42: RXPCP | E42: University Hospital Of North Durham | F42: 3 | G42: * | H42: * | I42: * | J42: * | K42: * | L42: * | M42: * | N42: *
A43: QHM | B43: RR7 | C43: GATESHEAD HEALTH NHS FOUNDATION TRUST | D43: RR7EN | E43: Queen Elizabeth Hospital | F43: 8 | G43: 1 | H43: 0 | I43: 8 | J43: 0 | K43: 0 | L43: 0 | M43: 0 | N43: 0
A44: QHM | B44: RNN | C44: NORTH CUMBRIA INTEGRATED CARE NHS FOUNDATION TRUST | D44: RNN62 | E44: Cumberland Infirmary | F44: 7 | G44: 1 | H44: 0 | I44: 6 | J44: 1 | K44: 0 | L44: 0 | M44: 0 | N44: 0
A45: QHM | B45: RNN | C45: NORTH CUMBRIA INTEGRATED CARE NHS FOUNDATION TRUST | D45: RNNBX | E45: West Cumberland Hospital | F45: 8 | G45: 1 | H45: 0 | I45: 7 | J45: 1 | K45: 0 | L45: 0 | M45: 0 | N45: 0
A46: QHM | B46: RVW | C46: NORTH TEES AND HARTLEPOOL NHS FOUNDATION TRUST | D46: RVWAE | E46: University Hospital Of North Tees | F46: 0 | G46: NA | H46: NA | I46: 0 | J46: 0 | K46: 0 | L46: 0 | M46: 0 | N46: 0
A47: QHM | B47: RTF | C47: NORTHUMBRIA HEALTHCARE NHS FOUNDATION TRUST | D47: RTFDJ | E47: Alnwick Infirmary | F47: 0 | G47: NA | H47: NA | I47: 0 | J47: 0 | K47: 0 | L47: 0 | M47: 0 | N47: 0
A48: QHM | B48: RTF | C48: NORTHUMBRIA HEALTHCARE NHS FOUNDATION TRUST | D48: RTFDH | E48: Berwick Infirmary | F48: 0 | G48: NA | H48: NA | I48: 0 | J48: 0 | K48: 0 | L48: 0 | M48: 0 | N48: 0
A49: QHM | B49: RTF | C49: NORTHUMBRIA HEALTHCARE NHS FOUNDATION TRUST | D49: RTFDR | E49: Hexham General Hospital | F49: 0 | G49: NA | H49: NA | I49: 0 | J49: 0 | K49: 0 | L49: 0 | M49: 0 | N49: 0
A50: QHM | B50: RTF | C50: NORTHUMBRIA HEALTHCARE NHS FOUNDATION TRUST | D50: RTFXXX | E50: Non-hospital site | F50: 0 | G50: NA | H50: NA | I50: 0 | J50: 0 | K50: 0 | L50: 0 | M50: 0 | N50: 0
A51: QHM | B51: RTF | C51: NORTHUMBRIA HEALTHCARE NHS FOUNDATION TRUST | D51: RTF86 | E51: The Northumbria | F51: 24 | G51: 1 | H51: 0 | I51: 22 | J51: 2 | K51: 0 | L51: 0 | M51: 0 | N51: 0
A52: QHM | B52: RTR | C52: SOUTH TEES HOSPITALS NHS FOUNDATION TRUST | D52: RTR45 | E52: Friarage Hospital Site | F52: 0 | G52: NA | H52: NA | I52: 0 | J52: 0 | K52: 0 | L52: 0 | M52: 0 | N52: 0
A53: QHM | B53: RTR | C53: SOUTH TEES HOSPITALS NHS FOUNDATION TRUST | D53: RTRAT | E53: The James Cook University Hospital | F53: 31 | G53: 0.9677419355 | H53: 0.03225806452 | I53: 23 | J53: 7 | K53: 0 | L53: 1 | M53: 0 | N53: 0
A54: QHM | B54: R0B | C54: SOUTH TYNESIDE AND SUNDERLAND NHS FOUNDATION TRUST | D54: R0B0Q | E54: South Tyneside District Hospital | F54: 4 | G54: * | H54: * | I54: * | J54: * | K54: * | L54: * | M54: * | N54: *
A55: QHM | B55: R0B | C55: SOUTH TYNESIDE AND SUNDERLAND NHS FOUNDATION TRUST | D55: R0B01 | E55: Sunderland Royal Hospital | F55: 5 | G55: 1 | H55: 0 | I55: * | J55: * | K55: * | L55: * | M55: * | N55: *
A56: QHM | B56: RTD | C56: THE NEWCASTLE UPON TYNE HOSPITALS NHS FOUNDATION TRUST | D56: RTD02 | E56: The Royal Victoria Infirmary | F56: 55 | G56: 0.9272727273 | H56: 0.01818181818 | I56: 40 | J56: 11 | K56: 3 | L56: 0 | M56: 1 | N56: 0
A57: QJ2 | B57: RFS | C57: CHESTERFIELD ROYAL HOSPITAL NHS FOUNDATION TRUST | D57: RFSDA | E57: Chesterfield Royal Hospital | F57: 62 | G57: 0.9516129032 | H57: 0.03225806452 | I57: 46 | J57: 13 | K57: 1 | L57: 1 | M57: 1 | N57: 0
A58: QJ2 | B58: RTG | C58: UNIVERSITY HOSPITALS OF DERBY AND BURTON NHS FOUNDATION TRUST | D58: RTG02 | E58: Queens Hospital, Burton Upon Trent | F58: 6 | G58: 1 | H58: 0 | I58: 5 | J58: 1 | K58: 0 | L58: 0 | M58: 0 | N58: 0
A59: QJ2 | B59: RTG | C59: UNIVERSITY HOSPITALS OF DERBY AND BURTON NHS FOUNDATION TRUST | D59: RTGFG | E59: Royal Derby Hospital | F59: 63 | G59: 0.8412698413 | H59: 0.07936507937 | I59: 38 | J59: 15 | K59: 4 | L59: 5 | M59: 0 | N59: 1
A60: QJG | B60: RDE | C60: EAST SUFFOLK AND NORTH ESSEX NHS FOUNDATION TRUST | D60: RDEE2 | E60: Clacton and District Hospital | F60: 0 | G60: NA | H60: NA | I60: 0 | J60: 0 | K60: 0 | L60: 0 | M60: 0 | N60: 0
A61: QJG | B61: RDE | C61: EAST SUFFOLK AND NORTH ESSEX NHS FOUNDATION TRUST | D61: RDEE4 | E61: Colchester General Hospital | F61: 4 | G61: * | H61: * | I61: * | J61: * | K61: * | L61: * | M61: * | N61: *
A62: QJG | B62: RDE | C62: EAST SUFFOLK AND NORTH ESSEX NHS FOUNDATION TRUST | D62: RDE03 | E62: Ipswich Hospital | F62: 4 | G62: * | H62: * | I62: * | J62: * | K62: * | L62: * | M62: * | N62: *
A63: QJG | B63: RDE | C63: EAST SUFFOLK AND NORTH ESSEX NHS FOUNDATION TRUST | D63: RDEXXX | E63: Non-hospital site | F63: 0 | G63: NA | H63: NA | I63: 0 | J63: 0 | K63: 0 | L63: 0 | M63: 0 | N63: 0
A64: QJG | B64: RGR | C64: WEST SUFFOLK NHS FOUNDATION TRUST | D64: RGR50 | E64: West Suffolk Hospital | F64: 22 | G64: 0.9545454545 | H64: 0.04545454545 | I64: 20 | J64: 1 | K64: 0 | L64: 1 | M64: 0 | N64: 0
A65: QJK | B65: RH8 | C65: ROYAL DEVON UNIVERSITY HEALTHCARE NHS FOUNDATION TRUST | D65: RH8XXX | E65: Non-hospital site | F65: 0 | G65: NA | H65: NA | I65: 0 | J65: 0 | K65: 0 | L65: 0 | M65: 0 | N65: 0
A66: QJK | B66: RH8 | C66: ROYAL DEVON UNIVERSITY HEALTHCARE NHS FOUNDATION TRUST | D66: RH880 | E66: North Devon District Hospital | F66: 1 | G66: * | H66: * | I66: * | J66: * | K66: * | L66: * | M66: * | N66: *
A67: QJK | B67: RH8 | C67: ROYAL DEVON UNIVERSITY HEALTHCARE NHS FOUNDATION TRUST | D67: RH801 | E67: Royal Devon and Exeter Hospital (Wonford) | F67: 3 | G67: * | H67: * | I67: * | J67: * | K67: * | L67: * | M67: * | N67: *
A68: QJK | B68: RH8 | C68: ROYAL DEVON UNIVERSITY HEALTHCARE NHS FOUNDATION TRUST | D68: RH853 | E68: Tiverton and District Hospital | F68: 0 | G68: NA | H68: NA | I68: 0 | J68: 0 | K68: 0 | L68: 0 | M68: 0 | N68: 0
A69: QJK | B69: RA9 | C69: TORBAY AND SOUTH DEVON NHS FOUNDATION TRUST | D69: RA901 | E69: Torbay Hospital | F69: 0 | G69: NA | H69: NA | I69: 0 | J69: 0 | K69: 0 | L69: 0 | M69: 0 | N69: 0
A70: QJK | B70: RK9 | C70: UNIVERSITY HOSPITALS PLYMOUTH NHS TRUST | D70: RK950 | E70: Derriford Hospital | F70: 17 | G70: 0.8823529412 | H70: 0.05882352941 | I70: * | J70: * | K70: * | L70: * | M70: * | N70: *
A71: QJK | B71: RK9 | C71: UNIVERSITY HOSPITALS PLYMOUTH NHS TRUST | D71: RK9XXX | E71: Non-hospital site | F71: 2 | G71: * | H71: * | I71: * | J71: * | K71: * | L71: * | M71: * | N71: *
A72: QJM | B72: RWD | C72: UNITED LINCOLNSHIRE TEACHING HOSPITALS NHS TRUST | D72: RWDLP | E72: Grantham and District Hospital | F72: 0 | G72: NA | H72: NA | I72: 0 | J72: 0 | K72: 0 | L72: 0 | M72: 0 | N72: 0
A73: QJM | B73: RWD | C73: UNITED LINCOLNSHIRE TEACHING HOSPITALS NHS TRUST | D73: RWDDA | E73: Lincoln County Hospital | F73: 0 | G73: NA | H73: NA | I73: 0 | J73: 0 | K73: 0 | L73: 0 | M73: 0 | N73: 0
A74: QJM | B74: RWD | C74: UNITED LINCOLNSHIRE TEACHING HOSPITALS NHS TRUST | D74: RWDLA | E74: Pilgrim Hospital | F74: 0 | G74: NA | H74: NA | I74: 0 | J74: 0 | K74: 0 | L74: 0 | M74: 0 | N74: 0
A75: QK1 | B75: RWE | C75: UNIVERSITY HOSPITALS OF LEICESTER NHS TRUST | D75: RWEAK | E75: Leicester General Hospital | F75: 41 | G75: 0.8780487805 | H75: 0.0243902439 | I75: 27 | J75: 9 | K75: 4 | L75: 1 | M75: 0 | N75: 0
A76: QK1 | B76: RWE | C76: UNIVERSITY HOSPITALS OF LEICESTER NHS TRUST | D76: RWEAA | E76: Leicester Royal Infirmary | F76: 87 | G76: 0.9540229885 | H76: 0.03448275862 | I76: 62 | J76: 21 | K76: 0 | L76: 1 | M76: 2 | N76: 1
A77: QK1 | B77: RWE | C77: UNIVERSITY HOSPITALS OF LEICESTER NHS TRUST | D77: RWEXXX | E77: Non-hospital site | F77: 5 | G77: 1 | H77: 0 | I77: * | J77: * | K77: * | L77: * | M77: * | N77: *
A78: QK1 | B78: RWE | C78: UNIVERSITY HOSPITALS OF LEICESTER NHS TRUST | D78: RWE10 | E78: St Mary's Hospital | F78: 3 | G78: * | H78: * | I78: * | J78: * | K78: * | L78: * | M78: * | N78: *
A79: QKK | B79: RJ1 | C79: GUY'S AND ST THOMAS' NHS FOUNDATION TRUST | D79: RJ1XXX | E79: Non-hospital site | F79: 0 | G79: NA | H79: NA | I79: 0 | J79: 0 | K79: 0 | L79: 0 | M79: 0 | N79: 0
A80: QKK | B80: RJ1 | C80: GUY'S AND ST THOMAS' NHS FOUNDATION TRUST | D80: RJ122 | E80: St Thomas' Hospital | F80: 87 | G80: 0.908045977 | H80: 0.04597701149 | I80: 63 | J80: 16 | K80: 4 | L80: 2 | M80: 2 | N80: 0
A81: QKK | B81: RJZ | C81: KING'S COLLEGE HOSPITAL NHS FOUNDATION TRUST | D81: RJZ01 | E81: King's College Hospital (Denmark Hill) | F81: 0 | G81: NA | H81: NA | I81: 0 | J81: 0 | K81: 0 | L81: 0 | M81: 0 | N81: 0
A82: QKK | B82: RJZ | C82: KING'S COLLEGE HOSPITAL NHS FOUNDATION TRUST | D82: RJZ30 | E82: Princess Royal University Hospital | F82: 68 | G82: 0.9705882353 | H82: 0 | I82: 60 | J82: 6 | K82: 2 | L82: 0 | M82: 0 | N82: 0
A83: QKK | B83: RJ2 | C83: LEWISHAM AND GREENWICH NHS TRUST | D83: RJ231 | E83: Queen Elizabeth Hospital | F83: 34 | G83: 0.9705882353 | H83: 0 | I83: 26 | J83: 7 | K83: 1 | L83: 0 | M83: 0 | N83: 0
A84: QKK | B84: RJ2 | C84: LEWISHAM AND GREENWICH NHS TRUST | D84: RJ224 | E84: University Hospital Lewisham | F84: 41 | G84: 0.9268292683 | H84: 0 | I84: 27 | J84: 11 | K84: 1 | L84: 0 | M84: 0 | N84: 2
A85: QKS | B85: RN7 | C85: DARTFORD AND GRAVESHAM NHS TRUST | D85: RN707 | E85: Darent Valley Hospital | F85: 25 | G85: 1 | H85: 0 | I85: 23 | J85: 2 | K85: 0 | L85: 0 | M85: 0 | N85: 0
A86: QKS | B86: RVV | C86: EAST KENT HOSPITALS UNIVERSITY NHS FOUNDATION TRUST | D86: RVV09 | E86: Queen Elizabeth The Queen Mother Hospital | F86: 24 | G86: 0.9583333333 | H86: 0 | I86: 22 | J86: 1 | K86: 1 | L86: 0 | M86: 0 | N86: 0
A87: QKS | B87: RVV | C87: EAST KENT HOSPITALS UNIVERSITY NHS FOUNDATION TRUST | D87: RVV01 | E87: William Harvey Hospital (Ashford) | F87: 33 | G87: 0.9393939394 | H87: 0.06060606061 | I87: 21 | J87: 10 | K87: 0 | L87: 1 | M87: 1 | N87: 0
A88: QKS | B88: RWF | C88: MAIDSTONE AND TUNBRIDGE WELLS NHS TRUST | D88: RWF08 | E88: Crowborough Birthing Centre | F88: 6 | G88: 1 | H88: 0 | I88: 6 | J88: 0 | K88: 0 | L88: 0 | M88: 0 | N88: 0
A89: QKS | B89: RWF | C89: MAIDSTONE AND TUNBRIDGE WELLS NHS TRUST | D89: RWF03 | E89: Maidstone District General Hospital | F89: 24 | G89: 1 | H89: 0 | I89: 22 | J89: 2 | K89: 0 | L89: 0 | M89: 0 | N89: 0
A90: QKS | B90: RWF | C90: MAIDSTONE AND TUNBRIDGE WELLS NHS TRUST | D90: RWFXXX | E90: Non-hospital site | F90: 0 | G90: NA | H90: NA | I90: 0 | J90: 0 | K90: 0 | L90: 0 | M90: 0 | N90: 0
A91: QKS | B91: RWF | C91: MAIDSTONE AND TUNBRIDGE WELLS NHS TRUST | D91: RWFTW | E91: The Tunbridge Wells Hospital | F91: 24 | G91: 1 | H91: 0 | I91: 24 | J91: 0 | K91: 0 | L91: 0 | M91: 0 | N91: 0
A92: QKS | B92: RPA | C92: MEDWAY NHS FOUNDATION TRUST | D92: RPA02 | E92: Medway Maritime Hospital | F92: 39 | G92: 0.9487179487 | H92: 0.05128205128 | I92: 35 | J92: 2 | K92: 0 | L92: 1 | M92: 1 | N92: 0
A93: QM7 | B93: RWH | C93: EAST AND NORTH HERTFORDSHIRE NHS TRUST | D93: RWH01 | E93: Lister Hospital | F93: 16 | G93: 1 | H93: 0 | I93: 13 | J93: 3 | K93: 0 | L93: 0 | M93: 0 | N93: 0
A94: QM7 | B94: RWH | C94: EAST AND NORTH HERTFORDSHIRE NHS TRUST | D94: RWHXXX | E94: Non-hospital site | F94: 0 | G94: NA | H94: NA | I94: 0 | J94: 0 | K94: 0 | L94: 0 | M94: 0 | N94: 0
A95: QM7 | B95: RQW | C95: THE PRINCESS ALEXANDRA HOSPITAL NHS TRUST | D95: RQWG0 | E95: Princess Alexandra Hospital | F95: 7 | G95: 0.8571428571 | H95: 0.1428571429 | I95: 5 | J95: 1 | K95: 0 | L95: 0 | M95: 1 | N95: 0
A96: QM7 | B96: RWG | C96: WEST HERTFORDSHIRE TEACHING HOSPITALS NHS TRUST | D96: RWG02 | E96: Watford General Hospital | F96: 25 | G96: 0.92 | H96: 0.08 | I96: 23 | J96: 0 | K96: 0 | L96: 2 | M96: 0 | N96: 0
A97: QMF | B97: RF4 | C97: BARKING, HAVERING AND REDBRIDGE UNIVERSITY HOSPITALS NHS TRUST | D97: RF4QH | E97: Queen's Hospital | F97: 41 | G97: 0.9512195122 | H97: 0.0243902439 | I97: * | J97: * | K97: * | L97: * | M97: * | N97: *
A98: QMF | B98: R1H | C98: BARTS HEALTH NHS TRUST | D98: R1HNH | E98: Newham General Hospital | F98: 34 | G98: 0.7941176471 | H98: 0.1176470588 | I98: 24 | J98: 3 | K98: 3 | L98: 0 | M98: 4 | N98: 0
A99: QMF | B99: R1H | C99: BARTS HEALTH NHS TRUST | D99: R1H12 | E99: The Royal London Hospital | F99: 41 | G99: 0.7073170732 | H99: 0.2195121951 | I99: 19 | J99: 10 | K99: 3 | L99: 1 | M99: 8 | N99: 0
A100: QMF | B100: R1H | C100: BARTS HEALTH NHS TRUST | D100: R1HKH | E100: Whipps Cross University Hospital | F100: 16 | G100: 0.8125 | H100: 0.1875 | I100: 12 | J100: 1 | K100: 0 | L100: 0 | M100: 3 | N100: 0
A101: QMF | B101: RQX | C101: HOMERTON HEALTHCARE NHS FOUNDATION TRUST | D101: RQXM1 | E101: Homerton University Hospital | F101: 2 | G101: * | H101: * | I101: * | J101: * | K101: * | L101: * | M101: * | N101: *
A102: QMJ | B102: RAL | C102: ROYAL FREE LONDON NHS FOUNDATION TRUST | D102: RAL26 | E102: Barnet Hospital | F102: 7 | G102: 1 | H102: 0 | I102: 3 | J102: 4 | K102: 0 | L102: 0 | M102: 0 | N102: 0
A103: QMJ | B103: RAL | C103: ROYAL FREE LONDON NHS FOUNDATION TRUST | D103: RAL27 | E103: North Middlesex University Hospital | F103: 107 | G103: 0.8598130841 | H103: 0.08411214953 | I103: 70 | J103: 22 | K103: 6 | L103: 2 | M103: 7 | N103: 0
A104: QMJ | B104: RAL | C104: ROYAL FREE LONDON NHS FOUNDATION TRUST | D104: RAL01 | E104: Royal Free Hospital | F104: 12 | G104: 1 | H104: 0 | I104: 3 | J104: 9 | K104: 0 | L104: 0 | M104: 0 | N104: 0
A105: QMJ | B105: RRV | C105: UNIVERSITY COLLEGE LONDON HOSPITALS NHS FOUNDATION TRUST | D105: RRV11 | E105: University College Hospital Elizabeth Garrett Anderson Wing | F105: 0 | G105: NA | H105: NA | I105: 0 | J105: 0 | K105: 0 | L105: 0 | M105: 0 | N105: 0
A106: QMJ | B106: RKE | C106: WHITTINGTON HEALTH NHS TRUST | D106: RKEXXX | E106: Non-hospital site | F106: 0 | G106: NA | H106: NA | I106: 0 | J106: 0 | K106: 0 | L106: 0 | M106: 0 | N106: 0
A107: QMJ | B107: RKE | C107: WHITTINGTON HEALTH NHS TRUST | D107: RKEQ4 | E107: The Whittington Hospital | F107: 5 | G107: 1 | H107: 0 | I107: 5 | J107: 0 | K107: 0 | L107: 0 | M107: 0 | N107: 0
A108: QMM | B108: RGP | C108: JAMES PAGET UNIVERSITY HOSPITALS NHS FOUNDATION TRUST | D108: RGP75 | E108: James Paget University Hospital | F108: 9 | G108: 1 | H108: 0 | I108: * | J108: * | K108: * | L108: * | M108: * | N108: *
A109: QMM | B109: RM1 | C109: NORFOLK AND NORWICH UNIVERSITY HOSPITALS NHS FOUNDATION TRUST | D109: RM102 | E109: Norfolk and Norwich University Hospital | F109: 3 | G109: * | H109: * | I109: * | J109: * | K109: * | L109: * | M109: * | N109: *
A110: QMM | B110: RCX | C110: THE QUEEN ELIZABETH HOSPITAL, KING'S LYNN, NHS FOUNDATION TRUST | D110: RCXXXX | E110: Non-hospital site | F110: 0 | G110: NA | H110: NA | I110: 0 | J110: 0 | K110: 0 | L110: 0 | M110: 0 | N110: 0
A111: QMM | B111: RCX | C111: THE QUEEN ELIZABETH HOSPITAL, KING'S LYNN, NHS FOUNDATION TRUST | D111: RCX70 | E111: The Queen Elizabeth Hospital | F111: 19 | G111: 1 | H111: 0 | I111: 19 | J111: 0 | K111: 0 | L111: 0 | M111: 0 | N111: 0
A112: QNC | B112: RJE | C112: UNIVERSITY HOSPITALS OF NORTH MIDLANDS NHS TRUST | D112: RJE01 | E112: Royal Stoke University Hospital | F112: 37 | G112: 0.7837837838 | H112: 0.2162162162 | I112: 24 | J112: 5 | K112: 0 | L112: 1 | M112: 7 | N112: 0
A113: QNQ | B113: RDU | C113: FRIMLEY HEALTH NHS FOUNDATION TRUST | D113: RDU01 | E113: Frimley Park Hospital | F113: 6 | G113: 1 | H113: 0 | I113: 6 | J113: 0 | K113: 0 | L113: 0 | M113: 0 | N113: 0
A114: QNQ | B114: RDU | C114: FRIMLEY HEALTH NHS FOUNDATION TRUST | D114: RDU50 | E114: Wexham Park Hospital | F114: 61 | G114: 0.9672131148 | H114: 0.03278688525 | I114: 53 | J114: 6 | K114: 0 | L114: 0 | M114: 2 | N114: 0
A115: QNX | B115: RXC | C115: EAST SUSSEX HEALTHCARE NHS TRUST | D115: RXC01 | E115: Conquest Hospital | F115: 25 | G115: 1 | H115: 0 | I115: * | J115: * | K115: * | L115: * | M115: * | N115: *
A116: QNX | B116: RXC | C116: EAST SUSSEX HEALTHCARE NHS TRUST | D116: RXC02 | E116: Eastbourne District General Hospital | F116: 0 | G116: NA | H116: NA | I116: 0 | J116: 0 | K116: 0 | L116: 0 | M116: 0 | N116: 0
A117: QNX | B117: RXC | C117: EAST SUSSEX HEALTHCARE NHS TRUST | D117: RXCXXX | E117: Non-hospital site | F117: 2 | G117: * | H117: * | I117: * | J117: * | K117: * | L117: * | M117: * | N117: *
A118: QNX | B118: RYR | C118: UNIVERSITY HOSPITALS SUSSEX NHS FOUNDATION TRUST | D118: N6J7V | E118: Princess Royal Hospital | F118: 15 | G118: 0.9333333333 | H118: 0 | I118: 14 | J118: 0 | K118: 1 | L118: 0 | M118: 0 | N118: 0
A119: QNX | B119: RYR | C119: UNIVERSITY HOSPITALS SUSSEX NHS FOUNDATION TRUST | D119: E0A3H | E119: Royal Sussex County Hospital | F119: 13 | G119: 0.9230769231 | H119: 0.07692307692 | I119: 9 | J119: 3 | K119: 0 | L119: 0 | M119: 1 | N119: 0
A120: QNX | B120: RYR | C120: UNIVERSITY HOSPITALS SUSSEX NHS FOUNDATION TRUST | D120: RYR16 | E120: St Richard's Hospital | F120: 15 | G120: 0.8666666667 | H120: 0.06666666667 | I120: 12 | J120: 1 | K120: 1 | L120: 1 | M120: 0 | N120: 0
A121: QNX | B121: RYR | C121: UNIVERSITY HOSPITALS SUSSEX NHS FOUNDATION TRUST | D121: RYR18 | E121: Worthing Hospital | F121: 8 | G121: 1 | H121: 0 | I121: 7 | J121: 1 | K121: 0 | L121: 0 | M121: 0 | N121: 0
A122: QOC | B122: RXW | C122: THE SHREWSBURY AND TELFORD HOSPITAL NHS TRUST | D122: RXWMB | E122: Bridgnorth Hospital (Maternity) | F122: 0 | G122: NA | H122: NA | I122: 0 | J122: 0 | K122: 0 | L122: 0 | M122: 0 | N122: 0
A123: QOC | B123: RXW | C123: THE SHREWSBURY AND TELFORD HOSPITAL NHS TRUST | D123: RXWML | E123: Ludlow Hospital (Maternity) | F123: 0 | G123: NA | H123: NA | I123: 0 | J123: 0 | K123: 0 | L123: 0 | M123: 0 | N123: 0
A124: QOC | B124: RXW | C124: THE SHREWSBURY AND TELFORD HOSPITAL NHS TRUST | D124: RXWXXX | E124: Non-hospital site | F124: 0 | G124: NA | H124: NA | I124: 0 | J124: 0 | K124: 0 | L124: 0 | M124: 0 | N124: 0
A125: QOC | B125: RXW | C125: THE SHREWSBURY AND TELFORD HOSPITAL NHS TRUST | D125: RXWMJ | E125: Robert Jones & Agnes Hunt Orthopaedic & District Hospital | F125: 0 | G125: NA | H125: NA | I125: 0 | J125: 0 | K125: 0 | L125: 0 | M125: 0 | N125: 0
A126: QOC | B126: RXW | C126: THE SHREWSBURY AND TELFORD HOSPITAL NHS TRUST | D126: RXWAS | E126: Royal Shrewsbury Hospital | F126: 0 | G126: NA | H126: NA | I126: 0 | J126: 0 | K126: 0 | L126: 0 | M126: 0 | N126: 0
A127: QOC | B127: RXW | C127: THE SHREWSBURY AND TELFORD HOSPITAL NHS TRUST | D127: RXWAT | E127: The Princess Royal Hospital | F127: 22 | G127: 0.9545454545 | H127: 0.04545454545 | I127: 20 | J127: 1 | K127: 0 | L127: 1 | M127: 0 | N127: 0
A128: QOP | B128: RMC | C128: BOLTON NHS FOUNDATION TRUST | D128: RMC01 | E128: Royal Bolton Hospital | F128: 169 | G128: 0.9467455621 | H128: 0.04733727811 | I128: 132 | J128: 28 | K128: 1 | L128: 5 | M128: 3 | N128: 0
A129: QOP | B129: R0A | C129: MANCHESTER UNIVERSITY NHS FOUNDATION TRUST | D129: R0A05 | E129: St Mary's Hospital | F129: 174 | G129: 0.9655172414 | H129: 0.01149425287 | I129: 142 | J129: 26 | K129: 4 | L129: 1 | M129: 1 | N129: 0
A130: QOP | B130: RM3 | C130: NORTHERN CARE ALLIANCE NHS FOUNDATION TRUST | D130: RM317 | E130: Royal Oldham Hospital | F130: 144 | G130: 0.8472222222 | H130: 0.1319444444 | I130: 98 | J130: 24 | K130: 3 | L130: 5 | M130: 14 | N130: 0
A131: QOP | B131: RWJ | C131: STOCKPORT NHS FOUNDATION TRUST | D131: RWJXXX | E131: Non-hospital site | F131: 0 | G131: NA | H131: NA | I131: 0 | J131: 0 | K131: 0 | L131: 0 | M131: 0 | N131: 0
A132: QOP | B132: RWJ | C132: STOCKPORT NHS FOUNDATION TRUST | D132: RWJ09 | E132: Stepping Hill Hospital | F132: 1 | G132: * | H132: * | I132: * | J132: * | K132: * | L132: * | M132: * | N132: *
A133: QOP | B133: RMP | C133: TAMESIDE AND GLOSSOP INTEGRATED CARE NHS FOUNDATION TRUST | D133: RMP01 | E133: Tameside General Hospital | F133: 13 | G133: 0.9230769231 | H133: 0.07692307692 | I133: 12 | J133: 0 | K133: 0 | L133: 0 | M133: 1 | N133: 0
A134: QOP | B134: RRF | C134: WRIGHTINGTON, WIGAN AND LEIGH NHS FOUNDATION TRUST | D134: RRF02 | E134: Royal Albert Edward Infirmary | F134: 4 | G134: * | H134: * | I134: * | J134: * | K134: * | L134: * | M134: * | N134: *
A135: QOQ | B135: RCD | C135: HARROGATE AND DISTRICT NHS FOUNDATION TRUST | D135: RCD01 | E135: Harrogate District Hospital | F135: 0 | G135: NA | H135: NA | I135: 0 | J135: 0 | K135: 0 | L135: 0 | M135: 0 | N135: 0
A136: QOQ | B136: RWA | C136: HULL UNIVERSITY TEACHING HOSPITALS NHS TRUST | D136: RWA01 | E136: Hull Royal Infirmary | F136: 55 | G136: 0.9454545455 | H136: 0.05454545455 | I136: 50 | J136: 2 | K136: 0 | L136: 2 | M136: 1 | N136: 0
A137: QOQ | B137: RJL | C137: NORTHERN LINCOLNSHIRE AND GOOLE NHS FOUNDATION TRUST | D137: RJL30 | E137: Diana, Princess Of Wales Hospital | F137: 13 | G137: 1 | H137: 0 | I137: 11 | J137: 2 | K137: 0 | L137: 0 | M137: 0 | N137: 0
A138: QOQ | B138: RJL | C138: NORTHERN LINCOLNSHIRE AND GOOLE NHS FOUNDATION TRUST | D138: RJL32 | E138: Scunthorpe General Hospital | F138: 6 | G138: 1 | H138: 0 | I138: 5 | J138: 1 | K138: 0 | L138: 0 | M138: 0 | N138: 0
A139: QOQ | B139: RCB | C139: YORK AND SCARBOROUGH TEACHING HOSPITALS NHS FOUNDATION TRUST | D139: RCBCA | E139: Scarborough General Hospital | F139: 0 | G139: NA | H139: NA | I139: 0 | J139: 0 | K139: 0 | L139: 0 | M139: 0 | N139: 0
A140: QOQ | B140: RCB | C140: YORK AND SCARBOROUGH TEACHING HOSPITALS NHS FOUNDATION TRUST | D140: RCB55 | E140: York Hospital | F140: 0 | G140: NA | H140: NA | I140: 0 | J140: 0 | K140: 0 | L140: 0 | M140: 0 | N140: 0
A141: QOX | B141: RN3 | C141: GREAT WESTERN HOSPITALS NHS FOUNDATION TRUST | D141: RN3XXX | E141: Non-hospital site | F141: 0 | G141: NA | H141: NA | I141: 0 | J141: 0 | K141: 0 | L141: 0 | M141: 0 | N141: 0
A142: QOX | B142: RN3 | C142: GREAT WESTERN HOSPITALS NHS FOUNDATION TRUST | D142: RN325 | E142: The Great Western Hospital | F142: 11 | G142: 0.6363636364 | H142: 0.3636363636 | I142: 5 | J142: 2 | K142: 0 | L142: 4 | M142: 0 | N142: 0
A143: QOX | B143: RD1 | C143: ROYAL UNITED HOSPITALS BATH NHS FOUNDATION TRUST | D143: RD130 | E143: Princess Anne Wing RUH | F143: 1 | G143: * | H143: * | I143: * | J143: * | K143: * | L143: * | M143: * | N143: *
A144: QOX | B144: RNZ | C144: SALISBURY NHS FOUNDATION TRUST | D144: RNZXXX | E144: Non-hospital site | F144: 0 | G144: NA | H144: NA | I144: 0 | J144: 0 | K144: 0 | L144: 0 | M144: 0 | N144: 0
A145: QOX | B145: RNZ | C145: SALISBURY NHS FOUNDATION TRUST | D145: RNZ02 | E145: Salisbury District Hospital | F145: 3 | G145: * | H145: * | I145: * | J145: * | K145: * | L145: * | M145: * | N145: *
A146: QPM | B146: RNQ | C146: KETTERING GENERAL HOSPITAL NHS FOUNDATION TRUST | D146: RNQ51 | E146: Kettering General Hospital | F146: 1 | G146: * | H146: * | I146: * | J146: * | K146: * | L146: * | M146: * | N146: *
A147: QPM | B147: RNS | C147: NORTHAMPTON GENERAL HOSPITAL NHS TRUST | D147: RNS01 | E147: Northampton General Hospital (Acute) | F147: 36 | G147: 0.9722222222 | H147: 0.02777777778 | I147: * | J147: * | K147: * | L147: * | M147: * | N147: *
A148: QR1 | B148: RTE | C148: GLOUCESTERSHIRE HOSPITALS NHS FOUNDATION TRUST | D148: RTE03 | E148: Gloucestershire Royal Hospital | F148: 51 | G148: 0.9411764706 | H148: 0.05882352941 | I148: 40 | J148: 8 | K148: 0 | L148: 2 | M148: 1 | N148: 0
A149: QR1 | B149: RTE | C149: GLOUCESTERSHIRE HOSPITALS NHS FOUNDATION TRUST | D149: RTEXXX | E149: Non-hospital site | F149: 6 | G149: 1 | H149: 0 | I149: 6 | J149: 0 | K149: 0 | L149: 0 | M149: 0 | N149: 0
A150: QRL | B150: RN5 | C150: HAMPSHIRE HOSPITALS NHS FOUNDATION TRUST | D150: RN506 | E150: Basingstoke and North Hampshire Hospital | F150: 120 | G150: 0.9916666667 | H150: 0 | I150: 107 | J150: 12 | K150: 1 | L150: 0 | M150: 0 | N150: 0
A151: QRL | B151: RN5 | C151: HAMPSHIRE HOSPITALS NHS FOUNDATION TRUST | D151: RN541 | E151: Royal Hampshire County Hospital | F151: 60 | G151: 0.9666666667 | H151: 0.01666666667 | I151: 55 | J151: 3 | K151: 1 | L151: 1 | M151: 0 | N151: 0
A152: QRL | B152: R1F | C152: ISLE OF WIGHT NHS TRUST | D152: R1F01 | E152: St Mary's Hospital | F152: 6 | G152: 1 | H152: 0 | I152: 6 | J152: 0 | K152: 0 | L152: 0 | M152: 0 | N152: 0
A153: QRL | B153: RHU | C153: PORTSMOUTH HOSPITALS UNIVERSITY NATIONAL HEALTH SERVICE TRUST | D153: RHU03 | E153: Queen Alexandra Hospital | F153: 27 | G153: 1 | H153: 0 | I153: 26 | J153: 1 | K153: 0 | L153: 0 | M153: 0 | N153: 0
A154: QRL | B154: RHM | C154: UNIVERSITY HOSPITAL SOUTHAMPTON NHS FOUNDATION TRUST | D154: RHM12 | E154: Princess Anne Hospital | F154: 144 | G154: 0.9791666667 | H154: 0.006944444444 | I154: 125 | J154: 16 | K154: 2 | L154: 1 | M154: 0 | N154: 0
A155: QRV | B155: RYJ | C155: IMPERIAL COLLEGE HEALTHCARE NHS TRUST | D155: RYJ04 | E155: Queen Charlotte's Hospital | F155: 54 | G155: 1 | H155: 0 | I155: 45 | J155: 9 | K155: 0 | L155: 0 | M155: 0 | N155: 0
A156: QRV | B156: RYJ | C156: IMPERIAL COLLEGE HEALTHCARE NHS TRUST | D156: RYJ01 | E156: St Mary's Hospital (HQ) | F156: 23 | G156: 0.9130434783 | H156: 0.08695652174 | I156: 19 | J156: 2 | K156: 0 | L156: 2 | M156: 0 | N156: 0
A157: QRV | B157: R1K | C157: LONDON NORTH WEST UNIVERSITY HEALTHCARE NHS TRUST | D157: R1K01 | E157: Northwick Park Hospital | F157: 67 | G157: 0.9402985075 | H157: 0.0447761194 | I157: 30 | J157: 33 | K157: 1 | L157: 3 | M157: 0 | N157: 0
A158: QRV | B158: RAS | C158: THE HILLINGDON HOSPITALS NHS FOUNDATION TRUST | D158: RAS01 | E158: Hillingdon Hospital | F158: 35 | G158: 0.8857142857 | H158: 0.02857142857 | I158: 29 | J158: 2 | K158: 3 | L158: 1 | M158: 0 | N158: 0
A159: QSL | B159: RH5 | C159: SOMERSET NHS FOUNDATION TRUST | D159: RH5K6 | E159: Bridgwater Hospital | F159: 0 | G159: NA | H159: NA | I159: 0 | J159: 0 | K159: 0 | L159: 0 | M159: 0 | N159: 0
A160: QSL | B160: RH5 | C160: SOMERSET NHS FOUNDATION TRUST | D160: RH5A8 | E160: MUSGROVE PARK HOSPITAL | F160: 1 | G160: * | H160: * | I160: * | J160: * | K160: * | L160: * | M160: * | N160: *
A161: QSL | B161: RH5 | C161: SOMERSET NHS FOUNDATION TRUST | D161: RH5XXXX | E161: Non-hospital site home/in-transit births | F161: 1 | G161: * | H161: * | I161: * | J161: * | K161: * | L161: * | M161: * | N161: *
A162: QSL | B162: RH5 | C162: SOMERSET NHS FOUNDATION TRUST | D162: RH5O4 | E162: Yeovil District Hospital | F162: 2 | G162: * | H162: * | I162: * | J162: * | K162: * | L162: * | M162: * | N162: *
A163: QT1 | B163: RX1 | C163: NOTTINGHAM UNIVERSITY HOSPITALS NHS TRUST | D163: RX1XXX | E163: Non-hospital site | F163: 0 | G163: NA | H163: NA | I163: 0 | J163: 0 | K163: 0 | L163: 0 | M163: 0 | N163: 0
A164: QT1 | B164: RX1 | C164: NOTTINGHAM UNIVERSITY HOSPITALS NHS TRUST | D164: RX1CC | E164: Nottingham University Hospitals NHS Trust - City Campus | F164: 0 | G164: NA | H164: NA | I164: 0 | J164: 0 | K164: 0 | L164: 0 | M164: 0 | N164: 0
A165: QT1 | B165: RX1 | C165: NOTTINGHAM UNIVERSITY HOSPITALS NHS TRUST | D165: RX1RA | E165: Nottingham University Hospitals NHS Trust - Queen's Medical Centre Campus | F165: 13 | G165: 1 | H165: 0 | I165: 13 | J165: 0 | K165: 0 | L165: 0 | M165: 0 | N165: 0
A166: QT1 | B166: RK5 | C166: SHERWOOD FOREST HOSPITALS NHS FOUNDATION TRUST | D166: RK5BC | E166: King's Mill Hospital | F166: 41 | G166: 0.8536585366 | H166: 0.1219512195 | I166: 29 | J166: 6 | K166: 1 | L166: 2 | M166: 3 | N166: 0
A167: QT1 | B167: RK5 | C167: SHERWOOD FOREST HOSPITALS NHS FOUNDATION TRUST | D167: RK5XXX | E167: Non-hospital site | F167: 0 | G167: NA | H167: NA | I167: 0 | J167: 0 | K167: 0 | L167: 0 | M167: 0 | N167: 0
A168: QT6 | B168: REF | C168: ROYAL CORNWALL HOSPITALS NHS TRUST | D168: REFXXX | E168: Non-hospital site | F168: 0 | G168: NA | H168: NA | I168: 0 | J168: 0 | K168: 0 | L168: 0 | M168: 0 | N168: 0
A169: QT6 | B169: REF | C169: ROYAL CORNWALL HOSPITALS NHS TRUST | D169: REF12 | E169: Royal Cornwall Hospital (Treliske) | F169: 14 | G169: 1 | H169: 0 | I169: * | J169: * | K169: * | L169: * | M169: * | N169: *
A170: QU9 | B170: RXQ | C170: BUCKINGHAMSHIRE HEALTHCARE NHS TRUST | D170: RXQ02 | E170: Stoke Mandeville Hospital | F170: 30 | G170: 0.9333333333 | H170: 0.06666666667 | I170: 25 | J170: 3 | K170: 0 | L170: 0 | M170: 2 | N170: 0
A171: QU9 | B171: RTH | C171: OXFORD UNIVERSITY HOSPITALS NHS FOUNDATION TRUST | D171: RTH19 | E171: Chipping Norton Community Hospital | F171: 0 | G171: NA | H171: NA | I171: 0 | J171: 0 | K171: 0 | L171: 0 | M171: 0 | N171: 0
A172: QU9 | B172: RTH | C172: OXFORD UNIVERSITY HOSPITALS NHS FOUNDATION TRUST | D172: RTH05 | E172: Horton General Hospital | F172: 0 | G172: NA | H172: NA | I172: 0 | J172: 0 | K172: 0 | L172: 0 | M172: 0 | N172: 0
A173: QU9 | B173: RTH | C173: OXFORD UNIVERSITY HOSPITALS NHS FOUNDATION TRUST | D173: RTH08 | E173: John Radcliffe Hospital | F173: 13 | G173: 0.9230769231 | H173: 0 | I173: 12 | J173: 0 | K173: 1 | L173: 0 | M173: 0 | N173: 0
A174: QU9 | B174: RTH | C174: OXFORD UNIVERSITY HOSPITALS NHS FOUNDATION TRUST | D174: RTH16 | E174: Wallingford Community Hospital | F174: 0 | G174: NA | H174: NA | I174: 0 | J174: 0 | K174: 0 | L174: 0 | M174: 0 | N174: 0
A175: QU9 | B175: RTH | C175: OXFORD UNIVERSITY HOSPITALS NHS FOUNDATION TRUST | D175: RTH21 | E175: Wantage Community Hospital | F175: 0 | G175: NA | H175: NA | I175: 0 | J175: 0 | K175: 0 | L175: 0 | M175: 0 | N175: 0
A176: QU9 | B176: RHW | C176: ROYAL BERKSHIRE NHS FOUNDATION TRUST | D176: RHW01 | E176: Royal Berkshire Hospital | F176: 5 | G176: 1 | H176: 0 | I176: 5 | J176: 0 | K176: 0 | L176: 0 | M176: 0 | N176: 0
A177: QUA | B177: RNA | C177: THE DUDLEY GROUP NHS FOUNDATION TRUST | D177: RNA01 | E177: Russells Hall Hospital | F177: 49 | G177: 0.8775510204 | H177: 0 | I177: 34 | J177: 9 | K177: 0 | L177: 0 | M177: 0 | N177: 6
A178: QUA | B178: RL4 | C178: THE ROYAL WOLVERHAMPTON NHS TRUST | D178: RL403 | E178: New Cross Hospital | F178: 44 | G178: 0.9545454545 | H178: 0.02272727273 | I178: 41 | J178: 1 | K178: 1 | L178: 0 | M178: 1 | N178: 0
A179: QUA | B179: RBK | C179: WALSALL HEALTHCARE NHS TRUST | D179: RBK02 | E179: Manor Hospital | F179: 81 | G179: 0.9382716049 | H179: 0.02469135802 | I179: 71 | J179: 5 | K179: 3 | L179: 2 | M179: 0 | N179: 0
A180: QUE | B180: RGT | C180: CAMBRIDGE UNIVERSITY HOSPITALS NHS FOUNDATION TRUST | D180: RGT32 | E180: Rosie Hospital | F180: 35 | G180: 0.8857142857 | H180: 0.08571428571 | I180: 27 | J180: 4 | K180: 0 | L180: 0 | M180: 3 | N180: 1
A181: QUE | B181: RGN | C181: NORTH WEST ANGLIA NHS FOUNDATION TRUST | D181: RGN90 | E181: Hinchingbrooke Hospital | F181: 17 | G181: 0.9411764706 | H181: 0 | I181: 16 | J181: 0 | K181: 1 | L181: 0 | M181: 0 | N181: 0
A182: QUE | B182: RGN | C182: NORTH WEST ANGLIA NHS FOUNDATION TRUST | D182: RGN80 | E182: Peterborough City Hospital | F182: 11 | G182: 0.7272727273 | H182: 0.2727272727 | I182: 8 | J182: 0 | K182: 0 | L182: 0 | M182: 3 | N182: 0
A183: QUY | B183: RVJ | C183: NORTH BRISTOL NHS TRUST | D183: RVJXXX | E183: Non-hospital site | F183: 0 | G183: NA | H183: NA | I183: 0 | J183: 0 | K183: 0 | L183: 0 | M183: 0 | N183: 0
A184: QUY | B184: RVJ | C184: NORTH BRISTOL NHS TRUST | D184: RVJ01 | E184: Southmead Hospital | F184: 76 | G184: 0.9736842105 | H184: 0.01315789474 | I184: * | J184: * | K184: * | L184: * | M184: * | N184: *
A185: QUY | B185: RA7 | C185: UNIVERSITY HOSPITALS BRISTOL AND WESTON NHS FOUNDATION TRUST | D185: RA707 | E185: ST MICHAEL'S HOSPITAL | F185: 3 | G185: * | H185: * | I185: * | J185: * | K185: * | L185: * | M185: * | N185: *
A186: QVV | B186: RBD | C186: DORSET COUNTY HOSPITAL NHS FOUNDATION TRUST | D186: RBD01 | E186: Dorset County Hospital | F186: 5 | G186: 1 | H186: 0 | I186: 1 | J186: 4 | K186: 0 | L186: 0 | M186: 0 | N186: 0
A187: QVV | B187: R0D | C187: UNIVERSITY HOSPITALS DORSET NHS FOUNDATION TRUST | D187: R0D01 | E187: Poole Hospital | F187: 25 | G187: 0.92 | H187: 0.08 | I187: 21 | J187: 2 | K187: 0 | L187: 0 | M187: 2 | N187: 0
A188: QVV | B188: R0D | C188: UNIVERSITY HOSPITALS DORSET NHS FOUNDATION TRUST | D188: R0D02 | E188: Royal Bournemouth Hospital | F188: 0 | G188: NA | H188: NA | I188: 0 | J188: 0 | K188: 0 | L188: 0 | M188: 0 | N188: 0
A189: QWE | B189: RJ6 | C189: CROYDON HEALTH SERVICES NHS TRUST | D189: RJ611 | E189: Croydon University Hospital | F189: 13 | G189: 0.8461538462 | H189: 0.07692307692 | I189: * | J189: * | K189: * | L189: * | M189: * | N189: *
A190: QWE | B190: RVR | C190: EPSOM AND ST HELIER UNIVERSITY HOSPITALS NHS TRUST | D190: RVR50 | E190: Epsom Hospital | F190: 2 | G190: * | H190: * | I190: * | J190: * | K190: * | L190: * | M190: * | N190: *
A191: QWE | B191: RVR | C191: EPSOM AND ST HELIER UNIVERSITY HOSPITALS NHS TRUST | D191: RVRXXX | E191: Non-hospital site | F191: 0 | G191: NA | H191: NA | I191: 0 | J191: 0 | K191: 0 | L191: 0 | M191: 0 | N191: 0
A192: QWE | B192: RVR | C192: EPSOM AND ST HELIER UNIVERSITY HOSPITALS NHS TRUST | D192: RVR05 | E192: St Helier Hospital | F192: 0 | G192: NA | H192: NA | I192: 0 | J192: 0 | K192: 0 | L192: 0 | M192: 0 | N192: 0
A193: QWE | B193: RAX | C193: KINGSTON AND RICHMOND NHS FOUNDATION TRUST | D193: RAX01 | E193: Kingston Hospital | F193: 52 | G193: 1 | H193: 0 | I193: 51 | J193: 1 | K193: 0 | L193: 0 | M193: 0 | N193: 0
A194: QWE | B194: RJ7 | C194: ST GEORGE'S UNIVERSITY HOSPITALS NHS FOUNDATION TRUST | D194: RJ701 | E194: St George's Hospital (Tooting) | F194: 26 | G194: 1 | H194: 0 | I194: 19 | J194: 7 | K194: 0 | L194: 0 | M194: 0 | N194: 0
A195: QWO | B195: RCF | C195: AIREDALE NHS FOUNDATION TRUST | D195: RCF22 | E195: Airedale General Hospital | F195: 18 | G195: 0.9444444444 | H195: 0.05555555556 | I195: 15 | J195: 2 | K195: 0 | L195: 1 | M195: 0 | N195: 0
A196: QWO | B196: RAE | C196: BRADFORD TEACHING HOSPITALS NHS FOUNDATION TRUST | D196: RAE01 | E196: Bradford Royal Infirmary | F196: 25 | G196: 1 | H196: 0 | I196: 24 | J196: 1 | K196: 0 | L196: 0 | M196: 0 | N196: 0
A197: QWO | B197: RWY | C197: CALDERDALE AND HUDDERSFIELD NHS FOUNDATION TRUST | D197: RWY02 | E197: Calderdale Royal Hospital | F197: 23 | G197: 0.9130434783 | H197: 0.08695652174 | I197: 21 | J197: 0 | K197: 0 | L197: 0 | M197: 2 | N197: 0
A198: QWO | B198: RR8 | C198: LEEDS TEACHING HOSPITALS NHS TRUST | D198: RR801 | E198: Leeds General Infirmary | F198: 68 | G198: 0.9852941176 | H198: 0 | I198: 64 | J198: 3 | K198: 1 | L198: 0 | M198: 0 | N198: 0
A199: QWO | B199: RR8 | C199: LEEDS TEACHING HOSPITALS NHS TRUST | D199: RR8XXX | E199: Non-hospital site | F199: 0 | G199: NA | H199: NA | I199: 0 | J199: 0 | K199: 0 | L199: 0 | M199: 0 | N199: 0
A200: QWO | B200: RR8 | C200: LEEDS TEACHING HOSPITALS NHS TRUST | D200: RR813 | E200: St James's University Hospital | F200: 60 | G200: 0.9833333333 | H200: 0.01666666667 | I200: 51 | J200: 8 | K200: 0 | L200: 0 | M200: 1 | N200: 0
A201: QWO | B201: RXF | C201: MID YORKSHIRE TEACHING NHS TRUST | D201: RXF10 | E201: Dewsbury and District Hospital | F201: 7 | G201: 1 | H201: 0 | I201: * | J201: * | K201: * | L201: * | M201: * | N201: *
A202: QWO | B202: RXF | C202: MID YORKSHIRE TEACHING NHS TRUST | D202: RXFXXX | E202: Non-hospital site | F202: 2 | G202: * | H202: * | I202: * | J202: * | K202: * | L202: * | M202: * | N202: *
A203: QWO | B203: RXF | C203: MID YORKSHIRE TEACHING NHS TRUST | D203: RXF05 | E203: Pinderfields General Hospital | F203: 58 | G203: 0.9827586207 | H203: 0 | I203: 55 | J203: 2 | K203: 1 | L203: 0 | M203: 0 | N203: 0
A204: QWO | B204: RXF | C204: MID YORKSHIRE TEACHING NHS TRUST | D204: RXF03 | E204: Pontefract General Infirmary | F204: 0 | G204: NA | H204: NA | I204: 0 | J204: 0 | K204: 0 | L204: 0 | M204: 0 | N204: 0
A205: QWU | B205: RLT | C205: GEORGE ELIOT HOSPITAL NHS TRUST | D205: RLT01 | E205: George Eliot Hospital - Acute Services | F205: 23 | G205: 0.9565217391 | H205: 0 | I205: * | J205: * | K205: * | L205: * | M205: * | N205: *
A206: QWU | B206: RJC | C206: SOUTH WARWICKSHIRE UNIVERSITY NHS FOUNDATION TRUST | D206: RJC02 | E206: Warwick Hospital | F206: 4 | G206: * | H206: * | I206: * | J206: * | K206: * | L206: * | M206: * | N206: *
A207: QWU | B207: RKB | C207: UNIVERSITY HOSPITALS COVENTRY AND WARWICKSHIRE NHS TRUST | D207: RKB03 | E207: Hospital Of St Cross | F207: 0 | G207: NA | H207: NA | I207: 0 | J207: 0 | K207: 0 | L207: 0 | M207: 0 | N207: 0
... 13 more rows

Sheet ICB Q3
B6: Sort data by:
A9: ICB Code | B9: ICB Name | C9: Total Responses | D9: Percentage Positive | E9: Percentage Negative | F9: Breakdown of Responses | L9: Total Responses | M9: Percentage Positive | N9: Percentage Negative | O9: Breakdown of Responses | U9: Total Responses | V9: Percentage Positive | W9: Percentage Negative | X9: Breakdown of Responses
F10: Very Good | G10: Good | H10: Neither Good nor Poor | I10: Poor | J10: Very Poor | K10: Don't Know | O10: Very Good | P10: Good | Q10: Neither Good nor Poor | R10: Poor | S10: Very Poor | T10: Don't Know | X10: Very Good | Y10: Good | Z10: Neither Good nor Poor | AA10: Poor | AB10: Very Poor | AC10: Don't Know
B11: England (including Independent Sector providers) | C11: 5616 | D11: 0.9196937322 | E11: 0.04504985755 | F11: 4024 | G11: 1141 | H11: 164 | I11: 125 | J11: 128 | K11: 34 | L11: =SUM(L14:L55) -> 5616 | M11: =SUM(O11+P11)/SUM(O11:T11) -> 0.9196937322 | N11: =SUM(R11+S11)/SUM(O11:T11) -> 0.04504985755 | O11: =SUM(O14:O55) -> 4024 | P11: 1141 | Q11: 164 | R11: 125 | S11: 128 | T11: 34 | U11: =IFERROR(C11-L11,0) -> 0 | V11: =IFERROR(D11-M11,0) -> 0 | W11: =IFERROR(E11-N11,0) -> 0 | X11: =IFERROR(F11-O11,0) -> 0 | Y11: =IFERROR(G11-P11,0) -> 0 | Z11: =IFERROR(H11-Q11,0) -> 0 | AA11: =IFERROR(I11-R11,0) -> 0 | AB11: =IFERROR(J11-S11,0) -> 0 | AC11: =IFERROR(K11-T11,0) -> 0
B12: England (excluding Independent Sector providers) | C12: 5616 | D12: 0.9196937322 | E12: 0.04504985755 | F12: 4024 | G12: 1141 | H12: 164 | I12: 125 | J12: 128 | K12: 34 | L12: =SUM(L14:L55) -> 5616 | M12: 0.9196937322 | N12: 0.04504985755 | O12: =SUM(O14:O55) -> 4024 | P12: 1141 | Q12: 164 | R12: 125 | S12: 128 | T12: 34 | U12: 0 | V12: 0 | W12: 0 | X12: 0 | Y12: 0 | Z12: 0 | AA12: 0 | AB12: 0 | AC12: 0
B13: Selection (excluding suppressed data) | C13: =SUBTOTAL(9,C14:C55) -> 5616 | D13: =IFERROR((F13+G13)/SUM(F13:K13), "-") -> 0.9197067239 | E13: =IFERROR((I13+J13)/SUM(F13:K13), "-") -> 0.04506437768 | F13: =SUBTOTAL(9,F14:F55) -> 4006 | G13: 1137 | H13: 163 | I13: 124 | J13: 128 | K13: 34 | L13: =SUMIF(C14:C55,"<>*",L14:L55) -> 5616 | M13: 0.9197067239 | N13: 0.04506437768 | O13: =SUMIF(F14:F55,"<>*",O14:O55) -> 4006 | P13: 1137 | Q13: 163 | R13: 124 | S13: 128 | T13: 34 | U13: 0 | V13: 0 | W13: 0 | X13: 0 | Y13: 0 | Z13: 0 | AA13: 0 | AB13: 0 | AC13: 0
A14: QE1 | B14: LANCASHIRE AND SOUTH CUMBRIA ICB | C14: 190 | D14: 0.7789473684 | E14: 0.1368421053 | F14: 98 | G14: 50 | H14: 15 | I14: 13 | J14: 13 | K14: 1 | L14: =VLOOKUP($A14,[1]Sheet3!$A$49:$H$90,2,0) -> 190 | M14: =SUM(O14+P14)/SUM(O14:T14) -> 0.7789473684 | N14: =SUM(R14+S14)/SUM(O14:T14) -> 0.1368421053 | O14: =VLOOKUP($A14,[1]Sheet3!$A$49:$H$90,3,0) -> 98 | P14: =VLOOKUP($A14,[1]Sheet3!$A$49:$H$90,4,0) -> 50 | Q14: =VLOOKUP($A14,[1]Sheet3!$A$49:$H$90,5,0) -> 15 | R14: =VLOOKUP($A14,[1]Sheet3!$A$49:$H$90,6,0) -> 13 | S14: =VLOOKUP($A14,[1]Sheet3!$A$49:$H$90,7,0) -> 13 | T14: =VLOOKUP($A14,[1]Sheet3!$A$49:$H$90,8,0) -> 1 | U14: =IFERROR(C14-L14,0) -> 0 | V14: =IFERROR(D14-M14,0) -> 0 | W14: 0 | X14: 0 | Y14: 0 | Z14: 0 | AA14: 0 | AB14: 0 | AC14: 0
A15: QF7 | B15: SOUTH YORKSHIRE ICB | C15: 59 | D15: 0.9152542373 | E15: 0.06779661017 | F15: 47 | G15: 7 | H15: 1 | I15: 3 | J15: 1 | K15: 0 | L15: =VLOOKUP($A15,[1]Sheet3!$A$49:$H$90,2,0) -> 59 | M15: =SUM(O15+P15)/SUM(O15:T15) -> 0.9152542373 | N15: =SUM(R15+S15)/SUM(O15:T15) -> 0.06779661017 | O15: =VLOOKUP($A15,[1]Sheet3!$A$49:$H$90,3,0) -> 47 | P15: =VLOOKUP($A15,[1]Sheet3!$A$49:$H$90,4,0) -> 7 | Q15: =VLOOKUP($A15,[1]Sheet3!$A$49:$H$90,5,0) -> 1 | R15: =VLOOKUP($A15,[1]Sheet3!$A$49:$H$90,6,0) -> 3 | S15: =VLOOKUP($A15,[1]Sheet3!$A$49:$H$90,7,0) -> 1 | T15: =VLOOKUP($A15,[1]Sheet3!$A$49:$H$90,8,0) -> 0 | U15: =IFERROR(C15-L15,0) -> 0 | V15: =IFERROR(D15-M15,0) -> 0 | W15: =IFERROR(E15-N15,0) -> 0 | X15: =IFERROR(F15-O15,0) -> 0 | Y15: =IFERROR(G15-P15,0) -> 0 | Z15: =IFERROR(H15-Q15,0) -> 0 | AA15: =IFERROR(I15-R15,0) -> 0 | AB15: =IFERROR(J15-S15,0) -> 0 | AC15: =IFERROR(K15-T15,0) -> 0
A16: QGH | B16: HEREFORDSHIRE AND WORCESTERSHIRE ICB | C16: 44 | D16: 0.9090909091 | E16: 0.02272727273 | F16: 31 | G16: 9 | H16: 3 | I16: 1 | J16: 0 | K16: 0 | L16: =VLOOKUP($A16,[1]Sheet3!$A$49:$H$90,2,0) -> 44 | M16: 0.9090909091 | N16: 0.02272727273 | O16: =VLOOKUP($A16,[1]Sheet3!$A$49:$H$90,3,0) -> 31 | P16: =VLOOKUP($A16,[1]Sheet3!$A$49:$H$90,4,0) -> 9 | Q16: =VLOOKUP($A16,[1]Sheet3!$A$49:$H$90,5,0) -> 3 | R16: =VLOOKUP($A16,[1]Sheet3!$A$49:$H$90,6,0) -> 1 | S16: =VLOOKUP($A16,[1]Sheet3!$A$49:$H$90,7,0) -> 0 | T16: =VLOOKUP($A16,[1]Sheet3!$A$49:$H$90,8,0) -> 0 | U16: 0 | V16: 0 | W16: 0 | X16: 0 | Y16: 0 | Z16: 0 | AA16: 0 | AB16: 0 | AC16: 0
A17: QH8 | B17: MID AND SOUTH ESSEX ICB | C17: 75 | D17: 0.76 | E17: 0.16 | F17: 50 | G17: 7 | H17: 5 | I17: 3 | J17: 9 | K17: 1 | L17: =VLOOKUP($A17,[1]Sheet3!$A$49:$H$90,2,0) -> 75 | M17: 0.76 | N17: 0.16 | O17: =VLOOKUP($A17,[1]Sheet3!$A$49:$H$90,3,0) -> 50 | P17: =VLOOKUP($A17,[1]Sheet3!$A$49:$H$90,4,0) -> 7 | Q17: =VLOOKUP($A17,[1]Sheet3!$A$49:$H$90,5,0) -> 5 | R17: =VLOOKUP($A17,[1]Sheet3!$A$49:$H$90,6,0) -> 3 | S17: =VLOOKUP($A17,[1]Sheet3!$A$49:$H$90,7,0) -> 9 | T17: =VLOOKUP($A17,[1]Sheet3!$A$49:$H$90,8,0) -> 1 | U17: 0 | V17: 0 | W17: 0 | X17: 0 | Y17: 0 | Z17: 0 | AA17: 0 | AB17: 0 | AC17: 0
A18: QHG | B18: BEDFORDSHIRE, LUTON AND MILTON KEYNES ICB | C18: 202 | D18: 0.9356435644 | E18: 0.04455445545 | F18: 135 | G18: 54 | H18: 4 | I18: 5 | J18: 4 | K18: 0 | L18: =VLOOKUP($A18,[1]Sheet3!$A$49:$H$90,2,0) -> 202 | M18: 0.9356435644 | N18: 0.04455445545 | O18: =VLOOKUP($A18,[1]Sheet3!$A$49:$H$90,3,0) -> 135 | P18: =VLOOKUP($A18,[1]Sheet3!$A$49:$H$90,4,0) -> 54 | Q18: =VLOOKUP($A18,[1]Sheet3!$A$49:$H$90,5,0) -> 4 | R18: =VLOOKUP($A18,[1]Sheet3!$A$49:$H$90,6,0) -> 5 | S18: =VLOOKUP($A18,[1]Sheet3!$A$49:$H$90,7,0) -> 4 | T18: =VLOOKUP($A18,[1]Sheet3!$A$49:$H$90,8,0) -> 0 | U18: 0 | V18: 0 | W18: 0 | X18: 0 | Y18: 0 | Z18: 0 | AA18: 0 | AB18: 0 | AC18: 0
A19: QHL | B19: BIRMINGHAM AND SOLIHULL ICB | C19: 160 | D19: 0.93125 | E19: 0.04375 | F19: 125 | G19: 24 | H19: 4 | I19: 3 | J19: 4 | K19: 0 | L19: =VLOOKUP($A19,[1]Sheet3!$A$49:$H$90,2,0) -> 160 | M19: 0.93125 | N19: 0.04375 | O19: =VLOOKUP($A19,[1]Sheet3!$A$49:$H$90,3,0) -> 125 | P19: =VLOOKUP($A19,[1]Sheet3!$A$49:$H$90,4,0) -> 24 | Q19: =VLOOKUP($A19,[1]Sheet3!$A$49:$H$90,5,0) -> 4 | R19: =VLOOKUP($A19,[1]Sheet3!$A$49:$H$90,6,0) -> 3 | S19: =VLOOKUP($A19,[1]Sheet3!$A$49:$H$90,7,0) -> 4 | T19: =VLOOKUP($A19,[1]Sheet3!$A$49:$H$90,8,0) -> 0 | U19: 0 | V19: 0 | W19: 0 | X19: 0 | Y19: 0 | Z19: 0 | AA19: 0 | AB19: 0 | AC19: 0
A20: QHM | B20: NORTH EAST AND NORTH CUMBRIA ICB | C20: 274 | D20: 0.9635036496 | E20: 0.02554744526 | F20: 229 | G20: 35 | H20: 3 | I20: 5 | J20: 2 | K20: 0 | L20: =VLOOKUP($A20,[1]Sheet3!$A$49:$H$90,2,0) -> 274 | M20: 0.9635036496 | N20: 0.02554744526 | O20: =VLOOKUP($A20,[1]Sheet3!$A$49:$H$90,3,0) -> 229 | P20: =VLOOKUP($A20,[1]Sheet3!$A$49:$H$90,4,0) -> 35 | Q20: =VLOOKUP($A20,[1]Sheet3!$A$49:$H$90,5,0) -> 3 | R20: =VLOOKUP($A20,[1]Sheet3!$A$49:$H$90,6,0) -> 5 | S20: =VLOOKUP($A20,[1]Sheet3!$A$49:$H$90,7,0) -> 2 | T20: =VLOOKUP($A20,[1]Sheet3!$A$49:$H$90,8,0) -> 0 | U20: 0 | V20: 0 | W20: 0 | X20: 0 | Y20: 0 | Z20: 0 | AA20: 0 | AB20: 0 | AC20: 0
A21: QJ2 | B21: DERBY AND DERBYSHIRE ICB | C21: 82 | D21: 0.9390243902 | E21: 0.0487804878 | F21: 60 | G21: 17 | H21: 1 | I21: 2 | J21: 2 | K21: 0 | L21: =VLOOKUP($A21,[1]Sheet3!$A$49:$H$90,2,0) -> 82 | M21: 0.9390243902 | N21: 0.0487804878 | O21: =VLOOKUP($A21,[1]Sheet3!$A$49:$H$90,3,0) -> 60 | P21: =VLOOKUP($A21,[1]Sheet3!$A$49:$H$90,4,0) -> 17 | Q21: =VLOOKUP($A21,[1]Sheet3!$A$49:$H$90,5,0) -> 1 | R21: =VLOOKUP($A21,[1]Sheet3!$A$49:$H$90,6,0) -> 2 | S21: =VLOOKUP($A21,[1]Sheet3!$A$49:$H$90,7,0) -> 2 | T21: =VLOOKUP($A21,[1]Sheet3!$A$49:$H$90,8,0) -> 0 | U21: 0 | V21: 0 | W21: 0 | X21: 0 | Y21: 0 | Z21: 0 | AA21: 0 | AB21: 0 | AC21: 0
A22: QJG | B22: SUFFOLK AND NORTH EAST ESSEX ICB | C22: 36 | D22: 0.8333333333 | E22: 0.1388888889 | F22: 25 | G22: 5 | H22: 1 | I22: 1 | J22: 4 | K22: 0 | L22: =VLOOKUP($A22,[1]Sheet3!$A$49:$H$90,2,0) -> 36 | M22: 0.8333333333 | N22: 0.1388888889 | O22: =VLOOKUP($A22,[1]Sheet3!$A$49:$H$90,3,0) -> 25 | P22: =VLOOKUP($A22,[1]Sheet3!$A$49:$H$90,4,0) -> 5 | Q22: =VLOOKUP($A22,[1]Sheet3!$A$49:$H$90,5,0) -> 1 | R22: =VLOOKUP($A22,[1]Sheet3!$A$49:$H$90,6,0) -> 1 | S22: =VLOOKUP($A22,[1]Sheet3!$A$49:$H$90,7,0) -> 4 | T22: =VLOOKUP($A22,[1]Sheet3!$A$49:$H$90,8,0) -> 0 | U22: 0 | V22: 0 | W22: 0 | X22: 0 | Y22: 0 | Z22: 0 | AA22: 0 | AB22: 0 | AC22: 0
A23: QJK | B23: DEVON ICB | C23: 13 | D23: 0.9230769231 | E23: 0 | F23: * | G23: * | H23: * | I23: * | J23: * | K23: * | L23: =VLOOKUP($A23,[1]Sheet3!$A$49:$H$90,2,0) -> 13 | M23: 0.9230769231 | N23: 0 | O23: =VLOOKUP($A23,[1]Sheet3!$A$49:$H$90,3,0) -> 12 | P23: =VLOOKUP($A23,[1]Sheet3!$A$49:$H$90,4,0) -> 0 | Q23: =VLOOKUP($A23,[1]Sheet3!$A$49:$H$90,5,0) -> 1 | R23: =VLOOKUP($A23,[1]Sheet3!$A$49:$H$90,6,0) -> 0 | S23: =VLOOKUP($A23,[1]Sheet3!$A$49:$H$90,7,0) -> 0 | T23: =VLOOKUP($A23,[1]Sheet3!$A$49:$H$90,8,0) -> 0 | U23: 0 | V23: 0 | W23: 0 | X23: 0 | Y23: 0 | Z23: 0 | AA23: 0 | AB23: 0 | AC23: 0
A24: QJM | B24: LINCOLNSHIRE ICB | C24: 0 | D24: NA | E24: NA | F24: 0 | G24: 0 | H24: 0 | I24: 0 | J24: 0 | K24: 0 | L24: =VLOOKUP($A24,[1]Sheet3!$A$49:$H$90,2,0) -> 0 | O24: =VLOOKUP($A24,[1]Sheet3!$A$49:$H$90,3,0) -> 0 | P24: =VLOOKUP($A24,[1]Sheet3!$A$49:$H$90,4,0) -> 0 | Q24: =VLOOKUP($A24,[1]Sheet3!$A$49:$H$90,5,0) -> 0 | R24: =VLOOKUP($A24,[1]Sheet3!$A$49:$H$90,6,0) -> 0 | S24: =VLOOKUP($A24,[1]Sheet3!$A$49:$H$90,7,0) -> 0 | T24: =VLOOKUP($A24,[1]Sheet3!$A$49:$H$90,8,0) -> 0 | U24: 0 | V24: 0 | W24: 0 | X24: 0 | Y24: 0 | Z24: 0 | AA24: 0 | AB24: 0 | AC24: 0
A25: QK1 | B25: LEICESTER, LEICESTERSHIRE AND RUTLAND ICB | C25: 102 | D25: 0.8823529412 | E25: 0.05882352941 | F25: 62 | G25: 28 | H25: 6 | I25: 5 | J25: 1 | K25: 0 | L25: =VLOOKUP($A25,[1]Sheet3!$A$49:$H$90,2,0) -> 102 | M25: 0.8823529412 | N25: 0.05882352941 | O25: =VLOOKUP($A25,[1]Sheet3!$A$49:$H$90,3,0) -> 62 | P25: =VLOOKUP($A25,[1]Sheet3!$A$49:$H$90,4,0) -> 28 | Q25: =VLOOKUP($A25,[1]Sheet3!$A$49:$H$90,5,0) -> 6 | R25: =VLOOKUP($A25,[1]Sheet3!$A$49:$H$90,6,0) -> 5 | S25: =VLOOKUP($A25,[1]Sheet3!$A$49:$H$90,7,0) -> 1 | T25: =VLOOKUP($A25,[1]Sheet3!$A$49:$H$90,8,0) -> 0 | U25: 0 | V25: 0 | W25: 0 | X25: 0 | Y25: 0 | Z25: 0 | AA25: 0 | AB25: 0 | AC25: 0
A26: QKK | B26: SOUTH EAST LONDON ICB | C26: 147 | D26: 0.8911564626 | E26: 0.05442176871 | F26: 75 | G26: 56 | H26: 7 | I26: 7 | J26: 1 | K26: 1 | L26: =VLOOKUP($A26,[1]Sheet3!$A$49:$H$90,2,0) -> 147 | M26: 0.8911564626 | N26: 0.05442176871 | O26: =VLOOKUP($A26,[1]Sheet3!$A$49:$H$90,3,0) -> 75 | P26: =VLOOKUP($A26,[1]Sheet3!$A$49:$H$90,4,0) -> 56 | Q26: =VLOOKUP($A26,[1]Sheet3!$A$49:$H$90,5,0) -> 7 | R26: =VLOOKUP($A26,[1]Sheet3!$A$49:$H$90,6,0) -> 7 | S26: =VLOOKUP($A26,[1]Sheet3!$A$49:$H$90,7,0) -> 1 | T26: =VLOOKUP($A26,[1]Sheet3!$A$49:$H$90,8,0) -> 1 | U26: 0 | V26: 0 | W26: 0 | X26: 0 | Y26: 0 | Z26: 0 | AA26: 0 | AB26: 0 | AC26: 0
A27: QKS | B27: KENT AND MEDWAY ICB | C27: 225 | D27: 0.9377777778 | E27: 0.03111111111 | F27: 178 | G27: 33 | H27: 7 | I27: 5 | J27: 2 | K27: 0 | L27: =VLOOKUP($A27,[1]Sheet3!$A$49:$H$90,2,0) -> 225 | M27: 0.9377777778 | N27: 0.03111111111 | O27: =VLOOKUP($A27,[1]Sheet3!$A$49:$H$90,3,0) -> 178 | P27: =VLOOKUP($A27,[1]Sheet3!$A$49:$H$90,4,0) -> 33 | Q27: =VLOOKUP($A27,[1]Sheet3!$A$49:$H$90,5,0) -> 7 | R27: =VLOOKUP($A27,[1]Sheet3!$A$49:$H$90,6,0) -> 5 | S27: =VLOOKUP($A27,[1]Sheet3!$A$49:$H$90,7,0) -> 2 | T27: =VLOOKUP($A27,[1]Sheet3!$A$49:$H$90,8,0) -> 0 | U27: 0 | V27: 0 | W27: 0 | X27: 0 | Y27: 0 | Z27: 0 | AA27: 0 | AB27: 0 | AC27: 0
A28: QM7 | B28: HERTFORDSHIRE AND WEST ESSEX ICB | C28: 85 | D28: 0.9529411765 | E28: 0.03529411765 | F28: 63 | G28: 18 | H28: 1 | I28: 2 | J28: 1 | K28: 0 | L28: =VLOOKUP($A28,[1]Sheet3!$A$49:$H$90,2,0) -> 85 | M28: 0.9529411765 | N28: 0.03529411765 | O28: =VLOOKUP($A28,[1]Sheet3!$A$49:$H$90,3,0) -> 63 | P28: =VLOOKUP($A28,[1]Sheet3!$A$49:$H$90,4,0) -> 18 | Q28: =VLOOKUP($A28,[1]Sheet3!$A$49:$H$90,5,0) -> 1 | R28: =VLOOKUP($A28,[1]Sheet3!$A$49:$H$90,6,0) -> 2 | S28: =VLOOKUP($A28,[1]Sheet3!$A$49:$H$90,7,0) -> 1 | T28: =VLOOKUP($A28,[1]Sheet3!$A$49:$H$90,8,0) -> 0 | U28: 0 | V28: 0 | W28: 0 | X28: 0 | Y28: 0 | Z28: 0 | AA28: 0 | AB28: 0 | AC28: 0
A29: QMF | B29: NORTH EAST LONDON ICB | C29: 235 | D29: 0.9361702128 | E29: 0.05106382979 | F29: 182 | G29: 38 | H29: 2 | I29: 3 | J29: 9 | K29: 1 | L29: =VLOOKUP($A29,[1]Sheet3!$A$49:$H$90,2,0) -> 235 | M29: 0.9361702128 | N29: 0.05106382979 | O29: =VLOOKUP($A29,[1]Sheet3!$A$49:$H$90,3,0) -> 182 | P29: =VLOOKUP($A29,[1]Sheet3!$A$49:$H$90,4,0) -> 38 | Q29: =VLOOKUP($A29,[1]Sheet3!$A$49:$H$90,5,0) -> 2 | R29: =VLOOKUP($A29,[1]Sheet3!$A$49:$H$90,6,0) -> 3 | S29: =VLOOKUP($A29,[1]Sheet3!$A$49:$H$90,7,0) -> 9 | T29: =VLOOKUP($A29,[1]Sheet3!$A$49:$H$90,8,0) -> 1 | U29: 0 | V29: 0 | W29: 0 | X29: 0 | Y29: 0 | Z29: 0 | AA29: 0 | AB29: 0 | AC29: 0
A30: QMJ | B30: NORTH CENTRAL LONDON ICB | C30: 261 | D30: 0.938697318 | E30: 0.030651341 | F30: 122 | G30: 123 | H30: 7 | I30: 2 | J30: 6 | K30: 1 | L30: =VLOOKUP($A30,[1]Sheet3!$A$49:$H$90,2,0) -> 261 | M30: 0.938697318 | N30: 0.030651341 | O30: =VLOOKUP($A30,[1]Sheet3!$A$49:$H$90,3,0) -> 122 | P30: =VLOOKUP($A30,[1]Sheet3!$A$49:$H$90,4,0) -> 123 | Q30: =VLOOKUP($A30,[1]Sheet3!$A$49:$H$90,5,0) -> 7 | R30: =VLOOKUP($A30,[1]Sheet3!$A$49:$H$90,6,0) -> 2 | S30: =VLOOKUP($A30,[1]Sheet3!$A$49:$H$90,7,0) -> 6 | T30: =VLOOKUP($A30,[1]Sheet3!$A$49:$H$90,8,0) -> 1 | U30: 0 | V30: 0 | W30: 0 | X30: 0 | Y30: 0 | Z30: 0 | AA30: 0 | AB30: 0 | AC30: 0
A31: QMM | B31: NORFOLK AND WAVENEY ICB | C31: 25 | D31: 0.88 | E31: 0.12 | F31: 19 | G31: 3 | H31: 0 | I31: 1 | J31: 2 | K31: 0 | L31: =VLOOKUP($A31,[1]Sheet3!$A$49:$H$90,2,0) -> 25 | M31: 0.88 | N31: 0.12 | O31: =VLOOKUP($A31,[1]Sheet3!$A$49:$H$90,3,0) -> 19 | P31: =VLOOKUP($A31,[1]Sheet3!$A$49:$H$90,4,0) -> 3 | Q31: =VLOOKUP($A31,[1]Sheet3!$A$49:$H$90,5,0) -> 0 | R31: =VLOOKUP($A31,[1]Sheet3!$A$49:$H$90,6,0) -> 1 | S31: =VLOOKUP($A31,[1]Sheet3!$A$49:$H$90,7,0) -> 2 | T31: =VLOOKUP($A31,[1]Sheet3!$A$49:$H$90,8,0) -> 0 | U31: 0 | V31: 0 | W31: 0 | X31: 0 | Y31: 0 | Z31: 0 | AA31: 0 | AB31: 0 | AC31: 0
A32: QNC | B32: STAFFORDSHIRE AND STOKE-ON-TRENT ICB | C32: 49 | D32: 0.8775510204 | E32: 0.08163265306 | F32: 40 | G32: 3 | H32: 2 | I32: 2 | J32: 2 | K32: 0 | L32: =VLOOKUP($A32,[1]Sheet3!$A$49:$H$90,2,0) -> 49 | M32: 0.8775510204 | N32: 0.08163265306 | O32: =VLOOKUP($A32,[1]Sheet3!$A$49:$H$90,3,0) -> 40 | P32: =VLOOKUP($A32,[1]Sheet3!$A$49:$H$90,4,0) -> 3 | Q32: =VLOOKUP($A32,[1]Sheet3!$A$49:$H$90,5,0) -> 2 | R32: =VLOOKUP($A32,[1]Sheet3!$A$49:$H$90,6,0) -> 2 | S32: =VLOOKUP($A32,[1]Sheet3!$A$49:$H$90,7,0) -> 2 | T32: =VLOOKUP($A32,[1]Sheet3!$A$49:$H$90,8,0) -> 0 | U32: 0 | V32: 0 | W32: 0 | X32: 0 | Y32: 0 | Z32: 0 | AA32: 0 | AB32: 0 | AC32: 0
A33: QNQ | B33: FRIMLEY ICB | C33: 83 | D33: 0.9879518072 | E33: 0.01204819277 | F33: 65 | G33: 17 | H33: 0 | I33: 0 | J33: 1 | K33: 0 | L33: =VLOOKUP($A33,[1]Sheet3!$A$49:$H$90,2,0) -> 83 | M33: 0.9879518072 | N33: 0.01204819277 | O33: =VLOOKUP($A33,[1]Sheet3!$A$49:$H$90,3,0) -> 65 | P33: =VLOOKUP($A33,[1]Sheet3!$A$49:$H$90,4,0) -> 17 | Q33: =VLOOKUP($A33,[1]Sheet3!$A$49:$H$90,5,0) -> 0 | R33: =VLOOKUP($A33,[1]Sheet3!$A$49:$H$90,6,0) -> 0 | S33: =VLOOKUP($A33,[1]Sheet3!$A$49:$H$90,7,0) -> 1 | T33: =VLOOKUP($A33,[1]Sheet3!$A$49:$H$90,8,0) -> 0 | U33: 0 | V33: 0 | W33: 0 | X33: 0 | Y33: 0 | Z33: 0 | AA33: 0 | AB33: 0 | AC33: 0
A34: QNX | B34: SUSSEX ICB | C34: 146 | D34: 0.9383561644 | E34: 0.03424657534 | F34: 118 | G34: 19 | H34: 4 | I34: 1 | J34: 4 | K34: 0 | L34: =VLOOKUP($A34,[1]Sheet3!$A$49:$H$90,2,0) -> 146 | M34: 0.9383561644 | N34: 0.03424657534 | O34: =VLOOKUP($A34,[1]Sheet3!$A$49:$H$90,3,0) -> 118 | P34: =VLOOKUP($A34,[1]Sheet3!$A$49:$H$90,4,0) -> 19 | Q34: =VLOOKUP($A34,[1]Sheet3!$A$49:$H$90,5,0) -> 4 | R34: =VLOOKUP($A34,[1]Sheet3!$A$49:$H$90,6,0) -> 1 | S34: =VLOOKUP($A34,[1]Sheet3!$A$49:$H$90,7,0) -> 4 | T34: =VLOOKUP($A34,[1]Sheet3!$A$49:$H$90,8,0) -> 0 | U34: 0 | V34: 0 | W34: 0 | X34: 0 | Y34: 0 | Z34: 0 | AA34: 0 | AB34: 0 | AC34: 0
A35: QOC | B35: SHROPSHIRE, TELFORD AND WREKIN ICB | C35: 4 | D35: * | E35: * | F35: * | G35: * | H35: * | I35: * | J35: * | K35: * | L35: =VLOOKUP($A35,[1]Sheet3!$A$49:$H$90,2,0) -> 4 | M35: 1 | N35: 0 | O35: =VLOOKUP($A35,[1]Sheet3!$A$49:$H$90,3,0) -> 4 | P35: =VLOOKUP($A35,[1]Sheet3!$A$49:$H$90,4,0) -> 0 | Q35: =VLOOKUP($A35,[1]Sheet3!$A$49:$H$90,5,0) -> 0 | R35: =VLOOKUP($A35,[1]Sheet3!$A$49:$H$90,6,0) -> 0 | S35: =VLOOKUP($A35,[1]Sheet3!$A$49:$H$90,7,0) -> 0 | T35: =VLOOKUP($A35,[1]Sheet3!$A$49:$H$90,8,0) -> 0 | U35: 0 | V35: 0 | W35: 0 | X35: 0 | Y35: 0 | Z35: 0 | AA35: 0 | AB35: 0 | AC35: 0
A36: QOP | B36: GREATER MANCHESTER ICB | C36: 474 | D36: 0.9261603376 | E36: 0.03164556962 | F36: 362 | G36: 77 | H36: 19 | I36: 8 | J36: 7 | K36: 1 | L36: =VLOOKUP($A36,[1]Sheet3!$A$49:$H$90,2,0) -> 474 | M36: 0.9261603376 | N36: 0.03164556962 | O36: =VLOOKUP($A36,[1]Sheet3!$A$49:$H$90,3,0) -> 362 | P36: =VLOOKUP($A36,[1]Sheet3!$A$49:$H$90,4,0) -> 77 | Q36: =VLOOKUP($A36,[1]Sheet3!$A$49:$H$90,5,0) -> 19 | R36: =VLOOKUP($A36,[1]Sheet3!$A$49:$H$90,6,0) -> 8 | S36: =VLOOKUP($A36,[1]Sheet3!$A$49:$H$90,7,0) -> 7 | T36: =VLOOKUP($A36,[1]Sheet3!$A$49:$H$90,8,0) -> 1 | U36: 0 | V36: 0 | W36: 0 | X36: 0 | Y36: 0 | Z36: 0 | AA36: 0 | AB36: 0 | AC36: 0
A37: QOQ | B37: HUMBER AND NORTH YORKSHIRE ICB | C37: 65 | D37: 0.9384615385 | E37: 0.06153846154 | F37: 57 | G37: 4 | H37: 0 | I37: 1 | J37: 3 | K37: 0 | L37: =VLOOKUP($A37,[1]Sheet3!$A$49:$H$90,2,0) -> 65 | M37: 0.9384615385 | N37: 0.06153846154 | O37: =VLOOKUP($A37,[1]Sheet3!$A$49:$H$90,3,0) -> 57 | P37: =VLOOKUP($A37,[1]Sheet3!$A$49:$H$90,4,0) -> 4 | Q37: =VLOOKUP($A37,[1]Sheet3!$A$49:$H$90,5,0) -> 0 | R37: =VLOOKUP($A37,[1]Sheet3!$A$49:$H$90,6,0) -> 1 | S37: =VLOOKUP($A37,[1]Sheet3!$A$49:$H$90,7,0) -> 3 | T37: =VLOOKUP($A37,[1]Sheet3!$A$49:$H$90,8,0) -> 0 | U37: 0 | V37: 0 | W37: 0 | X37: 0 | Y37: 0 | Z37: 0 | AA37: 0 | AB37: 0 | AC37: 0
A38: QOX | B38: BATH AND NORTH EAST SOMERSET, SWINDON AND WILTSHIRE ICB | C38: 185 | D38: 0.9189189189 | E38: 0.05405405405 | F38: 151 | G38: 19 | H38: 3 | I38: 8 | J38: 2 | K38: 2 | L38: =VLOOKUP($A38,[1]Sheet3!$A$49:$H$90,2,0) -> 185 | M38: 0.9189189189 | N38: 0.05405405405 | O38: =VLOOKUP($A38,[1]Sheet3!$A$49:$H$90,3,0) -> 151 | P38: =VLOOKUP($A38,[1]Sheet3!$A$49:$H$90,4,0) -> 19 | Q38: =VLOOKUP($A38,[1]Sheet3!$A$49:$H$90,5,0) -> 3 | R38: =VLOOKUP($A38,[1]Sheet3!$A$49:$H$90,6,0) -> 8 | S38: =VLOOKUP($A38,[1]Sheet3!$A$49:$H$90,7,0) -> 2 | T38: =VLOOKUP($A38,[1]Sheet3!$A$49:$H$90,8,0) -> 2 | U38: 0 | V38: 0 | W38: 0 | X38: 0 | Y38: 0 | Z38: 0 | AA38: 0 | AB38: 0 | AC38: 0
A39: QPM | B39: NORTHAMPTONSHIRE ICB | C39: 133 | D39: 0.9473684211 | E39: 0.01503759398 | F39: 104 | G39: 22 | H39: 5 | I39: 2 | J39: 0 | K39: 0 | L39: =VLOOKUP($A39,[1]Sheet3!$A$49:$H$90,2,0) -> 133 | M39: 0.9473684211 | N39: 0.01503759398 | O39: =VLOOKUP($A39,[1]Sheet3!$A$49:$H$90,3,0) -> 104 | P39: =VLOOKUP($A39,[1]Sheet3!$A$49:$H$90,4,0) -> 22 | Q39: =VLOOKUP($A39,[1]Sheet3!$A$49:$H$90,5,0) -> 5 | R39: =VLOOKUP($A39,[1]Sheet3!$A$49:$H$90,6,0) -> 2 | S39: =VLOOKUP($A39,[1]Sheet3!$A$49:$H$90,7,0) -> 0 | T39: =VLOOKUP($A39,[1]Sheet3!$A$49:$H$90,8,0) -> 0 | U39: 0 | V39: 0 | W39: 0 | X39: 0 | Y39: 0 | Z39: 0 | AA39: 0 | AB39: 0 | AC39: 0
A40: QR1 | B40: GLOUCESTERSHIRE ICB | C40: 51 | D40: 0.9019607843 | E40: 0.03921568627 | F40: 29 | G40: 17 | H40: 3 | I40: 1 | J40: 1 | K40: 0 | L40: =VLOOKUP($A40,[1]Sheet3!$A$49:$H$90,2,0) -> 51 | M40: 0.9019607843 | N40: 0.03921568627 | O40: =VLOOKUP($A40,[1]Sheet3!$A$49:$H$90,3,0) -> 29 | P40: =VLOOKUP($A40,[1]Sheet3!$A$49:$H$90,4,0) -> 17 | Q40: =VLOOKUP($A40,[1]Sheet3!$A$49:$H$90,5,0) -> 3 | R40: =VLOOKUP($A40,[1]Sheet3!$A$49:$H$90,6,0) -> 1 | S40: =VLOOKUP($A40,[1]Sheet3!$A$49:$H$90,7,0) -> 1 | T40: =VLOOKUP($A40,[1]Sheet3!$A$49:$H$90,8,0) -> 0 | U40: 0 | V40: 0 | W40: 0 | X40: 0 | Y40: 0 | Z40: 0 | AA40: 0 | AB40: 0 | AC40: 0
A41: QRL | B41: HAMPSHIRE AND ISLE OF WIGHT ICB | C41: 482 | D41: 0.9232365145 | E41: 0.03941908714 | F41: 334 | G41: 111 | H41: 15 | I41: 11 | J41: 8 | K41: 3 | L41: =VLOOKUP($A41,[1]Sheet3!$A$49:$H$90,2,0) -> 482 | M41: 0.9232365145 | N41: 0.03941908714 | O41: =VLOOKUP($A41,[1]Sheet3!$A$49:$H$90,3,0) -> 334 | P41: =VLOOKUP($A41,[1]Sheet3!$A$49:$H$90,4,0) -> 111 | Q41: =VLOOKUP($A41,[1]Sheet3!$A$49:$H$90,5,0) -> 15 | R41: =VLOOKUP($A41,[1]Sheet3!$A$49:$H$90,6,0) -> 11 | S41: =VLOOKUP($A41,[1]Sheet3!$A$49:$H$90,7,0) -> 8 | T41: =VLOOKUP($A41,[1]Sheet3!$A$49:$H$90,8,0) -> 3 | U41: 0 | V41: 0 | W41: 0 | X41: 0 | Y41: 0 | Z41: 0 | AA41: 0 | AB41: 0 | AC41: 0
A42: QRV | B42: NORTH WEST LONDON ICB | C42: 324 | D42: 0.9290123457 | E42: 0.03086419753 | F42: 205 | G42: 96 | H42: 12 | I42: 3 | J42: 7 | K42: 1 | L42: =VLOOKUP($A42,[1]Sheet3!$A$49:$H$90,2,0) -> 324 | M42: 0.9290123457 | N42: 0.03086419753 | O42: =VLOOKUP($A42,[1]Sheet3!$A$49:$H$90,3,0) -> 205 | P42: =VLOOKUP($A42,[1]Sheet3!$A$49:$H$90,4,0) -> 96 | Q42: =VLOOKUP($A42,[1]Sheet3!$A$49:$H$90,5,0) -> 12 | R42: =VLOOKUP($A42,[1]Sheet3!$A$49:$H$90,6,0) -> 3 | S42: =VLOOKUP($A42,[1]Sheet3!$A$49:$H$90,7,0) -> 7 | T42: =VLOOKUP($A42,[1]Sheet3!$A$49:$H$90,8,0) -> 1 | U42: 0 | V42: 0 | W42: 0 | X42: 0 | Y42: 0 | Z42: 0 | AA42: 0 | AB42: 0 | AC42: 0
A43: QSL | B43: SOMERSET ICB | C43: 4 | D43: * | E43: * | F43: * | G43: * | H43: * | I43: * | J43: * | K43: * | L43: =VLOOKUP($A43,[1]Sheet3!$A$49:$H$90,2,0) -> 4 | M43: 1 | N43: 0 | O43: =VLOOKUP($A43,[1]Sheet3!$A$49:$H$90,3,0) -> 2 | P43: =VLOOKUP($A43,[1]Sheet3!$A$49:$H$90,4,0) -> 2 | Q43: =VLOOKUP($A43,[1]Sheet3!$A$49:$H$90,5,0) -> 0 | R43: =VLOOKUP($A43,[1]Sheet3!$A$49:$H$90,6,0) -> 0 | S43: =VLOOKUP($A43,[1]Sheet3!$A$49:$H$90,7,0) -> 0 | T43: =VLOOKUP($A43,[1]Sheet3!$A$49:$H$90,8,0) -> 0 | U43: 0 | V43: 0 | W43: 0 | X43: 0 | Y43: 0 | Z43: 0 | AA43: 0 | AB43: 0 | AC43: 0
A44: QT1 | B44: NOTTINGHAM AND NOTTINGHAMSHIRE ICB | C44: 119 | D44: 0.9159663866 | E44: 0.05042016807 | F44: 82 | G44: 27 | H44: 3 | I44: 2 | J44: 4 | K44: 1 | L44: =VLOOKUP($A44,[1]Sheet3!$A$49:$H$90,2,0) -> 119 | M44: 0.9159663866 | N44: 0.05042016807 | O44: =VLOOKUP($A44,[1]Sheet3!$A$49:$H$90,3,0) -> 82 | P44: =VLOOKUP($A44,[1]Sheet3!$A$49:$H$90,4,0) -> 27 | Q44: =VLOOKUP($A44,[1]Sheet3!$A$49:$H$90,5,0) -> 3 | R44: =VLOOKUP($A44,[1]Sheet3!$A$49:$H$90,6,0) -> 2 | S44: =VLOOKUP($A44,[1]Sheet3!$A$49:$H$90,7,0) -> 4 | T44: =VLOOKUP($A44,[1]Sheet3!$A$49:$H$90,8,0) -> 1 | U44: 0 | V44: 0 | W44: 0 | X44: 0 | Y44: 0 | Z44: 0 | AA44: 0 | AB44: 0 | AC44: 0
A45: QT6 | B45: CORNWALL AND THE ISLES OF SCILLY ICB | C45: 3 | D45: * | E45: * | F45: * | G45: * | H45: * | I45: * | J45: * | K45: * | L45: =VLOOKUP($A45,[1]Sheet3!$A$49:$H$90,2,0) -> 3 | M45: 0.6666666667 | N45: 0.3333333333 | O45: =VLOOKUP($A45,[1]Sheet3!$A$49:$H$90,3,0) -> 0 | P45: =VLOOKUP($A45,[1]Sheet3!$A$49:$H$90,4,0) -> 2 | Q45: =VLOOKUP($A45,[1]Sheet3!$A$49:$H$90,5,0) -> 0 | R45: =VLOOKUP($A45,[1]Sheet3!$A$49:$H$90,6,0) -> 1 | S45: =VLOOKUP($A45,[1]Sheet3!$A$49:$H$90,7,0) -> 0 | T45: =VLOOKUP($A45,[1]Sheet3!$A$49:$H$90,8,0) -> 0 | U45: 0 | V45: 0 | W45: 0 | X45: 0 | Y45: 0 | Z45: 0 | AA45: 0 | AB45: 0 | AC45: 0
A46: QU9 | B46: BUCKINGHAMSHIRE, OXFORDSHIRE AND BERKSHIRE WEST ICB | C46: 114 | D46: 0.8947368421 | E46: 0.05263157895 | F46: 84 | G46: 18 | H46: 6 | I46: 3 | J46: 3 | K46: 0 | L46: =VLOOKUP($A46,[1]Sheet3!$A$49:$H$90,2,0) -> 114 | M46: 0.8947368421 | N46: 0.05263157895 | O46: =VLOOKUP($A46,[1]Sheet3!$A$49:$H$90,3,0) -> 84 | P46: =VLOOKUP($A46,[1]Sheet3!$A$49:$H$90,4,0) -> 18 | Q46: =VLOOKUP($A46,[1]Sheet3!$A$49:$H$90,5,0) -> 6 | R46: =VLOOKUP($A46,[1]Sheet3!$A$49:$H$90,6,0) -> 3 | S46: =VLOOKUP($A46,[1]Sheet3!$A$49:$H$90,7,0) -> 3 | T46: =VLOOKUP($A46,[1]Sheet3!$A$49:$H$90,8,0) -> 0 | U46: 0 | V46: 0 | W46: 0 | X46: 0 | Y46: 0 | Z46: 0 | AA46: 0 | AB46: 0 | AC46: 0
A47: QUA | B47: BLACK COUNTRY ICB | C47: 169 | D47: 0.8402366864 | E47: 0.04733727811 | F47: 117 | G47: 25 | H47: 1 | I47: 3 | J47: 5 | K47: 18 | L47: =VLOOKUP($A47,[1]Sheet3!$A$49:$H$90,2,0) -> 169 | M47: 0.8402366864 | N47: 0.04733727811 | O47: =VLOOKUP($A47,[1]Sheet3!$A$49:$H$90,3,0) -> 117 | P47: =VLOOKUP($A47,[1]Sheet3!$A$49:$H$90,4,0) -> 25 | Q47: =VLOOKUP($A47,[1]Sheet3!$A$49:$H$90,5,0) -> 1 | R47: =VLOOKUP($A47,[1]Sheet3!$A$49:$H$90,6,0) -> 3 | S47: =VLOOKUP($A47,[1]Sheet3!$A$49:$H$90,7,0) -> 5 | T47: =VLOOKUP($A47,[1]Sheet3!$A$49:$H$90,8,0) -> 18 | U47: 0 | V47: 0 | W47: 0 | X47: 0 | Y47: 0 | Z47: 0 | AA47: 0 | AB47: 0 | AC47: 0
A48: QUE | B48: CAMBRIDGESHIRE AND PETERBOROUGH ICB | C48: 156 | D48: 0.9423076923 | E48: 0.01923076923 | F48: 121 | G48: 26 | H48: 3 | I48: 0 | J48: 3 | K48: 3 | L48: =VLOOKUP($A48,[1]Sheet3!$A$49:$H$90,2,0) -> 156 | M48: 0.9423076923 | N48: 0.01923076923 | O48: =VLOOKUP($A48,[1]Sheet3!$A$49:$H$90,3,0) -> 121 | P48: =VLOOKUP($A48,[1]Sheet3!$A$49:$H$90,4,0) -> 26 | Q48: =VLOOKUP($A48,[1]Sheet3!$A$49:$H$90,5,0) -> 3 | R48: =VLOOKUP($A48,[1]Sheet3!$A$49:$H$90,6,0) -> 0 | S48: =VLOOKUP($A48,[1]Sheet3!$A$49:$H$90,7,0) -> 3 | T48: =VLOOKUP($A48,[1]Sheet3!$A$49:$H$90,8,0) -> 3 | U48: 0 | V48: 0 | W48: 0 | X48: 0 | Y48: 0 | Z48: 0 | AA48: 0 | AB48: 0 | AC48: 0
A49: QUY | B49: BRISTOL, NORTH SOMERSET AND SOUTH GLOUCESTERSHIRE ICB | C49: 61 | D49: 0.8524590164 | E49: 0.09836065574 | F49: 44 | G49: 8 | H49: 3 | I49: 4 | J49: 2 | K49: 0 | L49: =VLOOKUP($A49,[1]Sheet3!$A$49:$H$90,2,0) -> 61 | M49: 0.8524590164 | N49: 0.09836065574 | O49: =VLOOKUP($A49,[1]Sheet3!$A$49:$H$90,3,0) -> 44 | P49: =VLOOKUP($A49,[1]Sheet3!$A$49:$H$90,4,0) -> 8 | Q49: =VLOOKUP($A49,[1]Sheet3!$A$49:$H$90,5,0) -> 3 | R49: =VLOOKUP($A49,[1]Sheet3!$A$49:$H$90,6,0) -> 4 | S49: =VLOOKUP($A49,[1]Sheet3!$A$49:$H$90,7,0) -> 2 | T49: =VLOOKUP($A49,[1]Sheet3!$A$49:$H$90,8,0) -> 0 | U49: 0 | V49: 0 | W49: 0 | X49: 0 | Y49: 0 | Z49: 0 | AA49: 0 | AB49: 0 | AC49: 0
A50: QVV | B50: DORSET ICB | C50: 13 | D50: 0.6923076923 | E50: 0.2307692308 | F50: 8 | G50: 1 | H50: 1 | I50: 1 | J50: 2 | K50: 0 | L50: =VLOOKUP($A50,[1]Sheet3!$A$49:$H$90,2,0) -> 13 | M50: 0.6923076923 | N50: 0.2307692308 | O50: =VLOOKUP($A50,[1]Sheet3!$A$49:$H$90,3,0) -> 8 | P50: =VLOOKUP($A50,[1]Sheet3!$A$49:$H$90,4,0) -> 1 | Q50: =VLOOKUP($A50,[1]Sheet3!$A$49:$H$90,5,0) -> 1 | R50: =VLOOKUP($A50,[1]Sheet3!$A$49:$H$90,6,0) -> 1 | S50: =VLOOKUP($A50,[1]Sheet3!$A$49:$H$90,7,0) -> 2 | T50: =VLOOKUP($A50,[1]Sheet3!$A$49:$H$90,8,0) -> 0 | U50: 0 | V50: 0 | W50: 0 | X50: 0 | Y50: 0 | Z50: 0 | AA50: 0 | AB50: 0 | AC50: 0
A51: QWE | B51: SOUTH WEST LONDON ICB | C51: 217 | D51: 0.9769585253 | E51: 0.004608294931 | F51: 173 | G51: 39 | H51: 4 | I51: 1 | J51: 0 | K51: 0 | L51: =VLOOKUP($A51,[1]Sheet3!$A$49:$H$90,2,0) -> 217 | M51: 0.9769585253 | N51: 0.004608294931 | O51: =VLOOKUP($A51,[1]Sheet3!$A$49:$H$90,3,0) -> 173 | P51: =VLOOKUP($A51,[1]Sheet3!$A$49:$H$90,4,0) -> 39 | Q51: =VLOOKUP($A51,[1]Sheet3!$A$49:$H$90,5,0) -> 4 | R51: =VLOOKUP($A51,[1]Sheet3!$A$49:$H$90,6,0) -> 1 | S51: =VLOOKUP($A51,[1]Sheet3!$A$49:$H$90,7,0) -> 0 | T51: =VLOOKUP($A51,[1]Sheet3!$A$49:$H$90,8,0) -> 0 | U51: 0 | V51: 0 | W51: 0 | X51: 0 | Y51: 0 | Z51: 0 | AA51: 0 | AB51: 0 | AC51: 0
A52: QWO | B52: WEST YORKSHIRE ICB | C52: 251 | D52: 0.9442231076 | E52: 0.0438247012 | F52: 186 | G52: 51 | H52: 3 | I52: 7 | J52: 4 | K52: 0 | L52: =VLOOKUP($A52,[1]Sheet3!$A$49:$H$90,2,0) -> 251 | M52: 0.9442231076 | N52: 0.0438247012 | O52: =VLOOKUP($A52,[1]Sheet3!$A$49:$H$90,3,0) -> 186 | P52: =VLOOKUP($A52,[1]Sheet3!$A$49:$H$90,4,0) -> 51 | Q52: =VLOOKUP($A52,[1]Sheet3!$A$49:$H$90,5,0) -> 3 | R52: =VLOOKUP($A52,[1]Sheet3!$A$49:$H$90,6,0) -> 7 | S52: =VLOOKUP($A52,[1]Sheet3!$A$49:$H$90,7,0) -> 4 | T52: =VLOOKUP($A52,[1]Sheet3!$A$49:$H$90,8,0) -> 0 | U52: 0 | V52: 0 | W52: 0 | X52: 0 | Y52: 0 | Z52: 0 | AA52: 0 | AB52: 0 | AC52: 0
A53: QWU | B53: COVENTRY AND WARWICKSHIRE ICB | C53: 78 | D53: 0.9743589744 | E53: 0.01282051282 | F53: 65 | G53: 11 | H53: 1 | I53: 1 | J53: 0 | K53: 0 | L53: =VLOOKUP($A53,[1]Sheet3!$A$49:$H$90,2,0) -> 78 | M53: 0.9743589744 | N53: 0.01282051282 | O53: =VLOOKUP($A53,[1]Sheet3!$A$49:$H$90,3,0) -> 65 | P53: =VLOOKUP($A53,[1]Sheet3!$A$49:$H$90,4,0) -> 11 | Q53: =VLOOKUP($A53,[1]Sheet3!$A$49:$H$90,5,0) -> 1 | R53: =VLOOKUP($A53,[1]Sheet3!$A$49:$H$90,6,0) -> 1 | S53: =VLOOKUP($A53,[1]Sheet3!$A$49:$H$90,7,0) -> 0 | T53: =VLOOKUP($A53,[1]Sheet3!$A$49:$H$90,8,0) -> 0 | U53: 0 | V53: 0 | W53: 0 | X53: 0 | Y53: 0 | Z53: 0 | AA53: 0 | AB53: 0 | AC53: 0
A54: QXU | B54: SURREY HEARTLANDS ICB | C54: 58 | D54: 0.9482758621 | E54: 0.03448275862 | F54: 42 | G54: 13 | H54: 1 | I54: 1 | J54: 1 | K54: 0 | L54: =VLOOKUP($A54,[1]Sheet3!$A$49:$H$90,2,0) -> 58 | M54: 0.9482758621 | N54: 0.03448275862 | O54: =VLOOKUP($A54,[1]Sheet3!$A$49:$H$90,3,0) -> 42 | P54: =VLOOKUP($A54,[1]Sheet3!$A$49:$H$90,4,0) -> 13 | Q54: =VLOOKUP($A54,[1]Sheet3!$A$49:$H$90,5,0) -> 1 | R54: =VLOOKUP($A54,[1]Sheet3!$A$49:$H$90,6,0) -> 1 | S54: =VLOOKUP($A54,[1]Sheet3!$A$49:$H$90,7,0) -> 1 | T54: =VLOOKUP($A54,[1]Sheet3!$A$49:$H$90,8,0) -> 0 | U54: 0 | V54: 0 | W54: 0 | X54: 0 | Y54: 0 | Z54: 0 | AA54: 0 | AB54: 0 | AC54: 0
A55: QYG | B55: CHESHIRE AND MERSEYSIDE ICB | C55: 162 | D55: 0.8888888889 | E55: 0.06790123457 | F55: 118 | G55: 26 | H55: 7 | I55: 3 | J55: 8 | K55: 0 | L55: =VLOOKUP($A55,[1]Sheet3!$A$49:$H$90,2,0) -> 162 | M55: 0.8888888889 | N55: 0.06790123457 | O55: =VLOOKUP($A55,[1]Sheet3!$A$49:$H$90,3,0) -> 118 | P55: =VLOOKUP($A55,[1]Sheet3!$A$49:$H$90,4,0) -> 26 | Q55: =VLOOKUP($A55,[1]Sheet3!$A$49:$H$90,5,0) -> 7 | R55: =VLOOKUP($A55,[1]Sheet3!$A$49:$H$90,6,0) -> 3 | S55: =VLOOKUP($A55,[1]Sheet3!$A$49:$H$90,7,0) -> 8 | T55: =VLOOKUP($A55,[1]Sheet3!$A$49:$H$90,8,0) -> 0 | U55: 0 | V55: 0 | W55: 0 | X55: 0 | Y55: 0 | Z55: 0 | AA55: 0 | AB55: 0 | AC55: 0

Sheet Trusts Q3
B6: Sort data by:
A9: ICB Code | B9: Trust Code | C9: Trust Name | D9: Total Responses | E9: Percentage Positive | F9: Percentage Negative | G9: Breakdown of Responses | M9: Mode of Collection
G10: Very Good | H10: Good | I10: Neither Good nor Poor | J10: Poor | K10: Very Poor | L10: Don't Know | M10: Mode SMS | N10: Mode Electronic Discharge | O10: Mode Electronic Home | P10: Mode Paper Discharge | Q10: Mode Paper Home | R10: Mode Telephone | S10: Mode Online | T10: Mode Other
C11: England (including Independent Sector providers) | D11: 5616 | E11: 0.9196937322 | F11: 0.04504985755 | G11: 4024 | H11: 1141 | I11: 164 | J11: 125 | K11: 128 | L11: 34 | M11: 1135 | N11: 1514 | O11: 85 | P11: 1932 | Q11: 61 | R11: 0 | S11: 885 | T11: 4
C12: England (excluding Independent Sector providers) | D12: 5616 | E12: 0.9196937322 | F12: 0.04504985755 | G12: 4024 | H12: 1141 | I12: 164 | J12: 125 | K12: 128 | L12: 34 | M12: 1135 | N12: 1514 | O12: 85 | P12: 1932 | Q12: 61 | R12: 0 | S12: 885 | T12: 4
C13: Selection (excluding suppressed data) | D13: =SUBTOTAL(9,D14:D299) -> 5616 | E13: =IFERROR((G13+H13)/SUM(G13:L13), "-") -> 0.9209950249 | F13: =IFERROR((J13+K13)/SUM(G13:L13), "-") -> 0.04218905473 | G13: =SUBTOTAL(9,G14:G299) -> 3573 | H13: 1055 | I13: 152 | J13: 106 | K13: 106 | L13: 33 | M13: 1008 | N13: 1349 | O13: 85 | P13: 1746 | Q13: 61 | R13: 0 | S13: 773 | T13: =SUBTOTAL(9,T14:T299) -> 3
A14: QE1 | B14: RXN | C14: LANCASHIRE TEACHING HOSPITALS NHS FOUNDATION TRUST | D14: 13 | E14: 0.7692307692 | F14: 0.1538461538 | G14: 8 | H14: 2 | I14: 1 | J14: 0 | K14: 2 | L14: 0 | M14: 13 | N14: 0 | O14: 0 | P14: 0 | Q14: 0 | R14: 0 | S14: 0 | T14: 0
A15: QE1 | B15: RTX | C15: UNIVERSITY HOSPITALS OF MORECAMBE BAY NHS FOUNDATION TRUST | D15: 21 | E15: 1 | F15: 0 | G15: 18 | H15: 3 | I15: 0 | J15: 0 | K15: 0 | L15: 0 | M15: 0 | N15: 0 | O15: 0 | P15: 0 | Q15: 0 | R15: 0 | S15: 21 | T15: 0
A16: QE1 | B16: RXR | C16: EAST LANCASHIRE HOSPITALS NHS TRUST | D16: 58 | E16: 0.7413793103 | F16: 0.1551724138 | G16: 30 | H16: 13 | I16: 6 | J16: 5 | K16: 4 | L16: 0 | M16: 49 | N16: 0 | O16: 0 | P16: 9 | Q16: 0 | R16: 0 | S16: 0 | T16: 0
A17: QE1 | B17: RXL | C17: BLACKPOOL TEACHING HOSPITALS NHS FOUNDATION TRUST | D17: 98 | E17: 0.7551020408 | F17: 0.1530612245 | G17: 42 | H17: 32 | I17: 8 | J17: 8 | K17: 7 | L17: 1 | M17: 19 | N17: 0 | O17: 0 | P17: 78 | Q17: 0 | R17: 0 | S17: 1 | T17: 0
A18: QF7 | B18: RP5 | C18: DONCASTER AND BASSETLAW TEACHING HOSPITALS NHS FOUNDATION TRUST | D18: 3 | E18: * | F18: * | G18: * | H18: * | I18: * | J18: * | K18: * | L18: * | M18: * | N18: * | O18: * | P18: * | Q18: * | R18: * | S18: * | T18: *
A19: QF7 | B19: RFR | C19: THE ROTHERHAM NHS FOUNDATION TRUST | D19: 4 | E19: * | F19: * | G19: * | H19: * | I19: * | J19: * | K19: * | L19: * | M19: * | N19: * | O19: * | P19: * | Q19: * | R19: * | S19: * | T19: *
A20: QF7 | B20: RHQ | C20: SHEFFIELD TEACHING HOSPITALS NHS FOUNDATION TRUST | D20: 22 | E20: 0.9090909091 | F20: 0.09090909091 | G20: 14 | H20: 6 | I20: 0 | J20: 2 | K20: 0 | L20: 0 | M20: 19 | N20: 0 | O20: 0 | P20: 0 | Q20: 0 | R20: 0 | S20: 3 | T20: 0
A21: QF7 | B21: RFF | C21: BARNSLEY HOSPITAL NHS FOUNDATION TRUST | D21: 30 | E21: 1 | F21: 0 | G21: 29 | H21: 1 | I21: 0 | J21: 0 | K21: 0 | L21: 0 | M21: 4 | N21: 24 | O21: 0 | P21: 0 | Q21: 0 | R21: 0 | S21: 2 | T21: 0
A22: QGH | B22: RLQ | C22: WYE VALLEY NHS TRUST | D22: 19 | E22: 0.8947368421 | F22: 0.05263157895 | G22: 13 | H22: 4 | I22: 1 | J22: 1 | K22: 0 | L22: 0 | M22: 19 | N22: 0 | O22: 0 | P22: 0 | Q22: 0 | R22: 0 | S22: 0 | T22: 0
A23: QGH | B23: RWP | C23: WORCESTERSHIRE ACUTE HOSPITALS NHS TRUST | D23: 25 | E23: 0.92 | F23: 0 | G23: 18 | H23: 5 | I23: 2 | J23: 0 | K23: 0 | L23: 0 | M23: 0 | N23: 25 | O23: 0 | P23: 0 | Q23: 0 | R23: 0 | S23: 0 | T23: 0
A24: QH8 | B24: RAJ | C24: MID AND SOUTH ESSEX NHS FOUNDATION TRUST | D24: 75 | E24: 0.76 | F24: 0.16 | G24: 50 | H24: 7 | I24: 5 | J24: 3 | K24: 9 | L24: 1 | M24: 61 | N24: 0 | O24: 0 | P24: 0 | Q24: 0 | R24: 0 | S24: 14 | T24: 0
A25: QHG | B25: RD8 | C25: MILTON KEYNES UNIVERSITY HOSPITAL NHS FOUNDATION TRUST | D25: 30 | E25: 0.9333333333 | F25: 0.06666666667 | G25: 17 | H25: 11 | I25: 0 | J25: 2 | K25: 0 | L25: 0 | M25: 8 | N25: 0 | O25: 0 | P25: 18 | Q25: 0 | R25: 0 | S25: 4 | T25: 0
A26: QHG | B26: RC9 | C26: BEDFORDSHIRE HOSPITALS NHS FOUNDATION TRUST | D26: 172 | E26: 0.9360465116 | F26: 0.04069767442 | G26: 118 | H26: 43 | I26: 4 | J26: 3 | K26: 4 | L26: 0 | M26: 0 | N26: 168 | O26: 0 | P26: 0 | Q26: 0 | R26: 0 | S26: 4 | T26: 0
A27: QHL | B27: RXK | C27: SANDWELL AND WEST BIRMINGHAM HOSPITALS NHS TRUST | D27: 1 | E27: * | F27: * | G27: * | H27: * | I27: * | J27: * | K27: * | L27: * | M27: * | N27: * | O27: * | P27: * | Q27: * | R27: * | S27: * | T27: *
A28: QHL | B28: RRK | C28: UNIVERSITY HOSPITALS BIRMINGHAM NHS FOUNDATION TRUST | D28: 33 | E28: 0.8484848485 | F28: 0.1515151515 | G28: * | H28: * | I28: * | J28: * | K28: * | L28: * | M28: * | N28: * | O28: * | P28: * | Q28: * | R28: * | S28: * | T28: *
A29: QHL | B29: RQ3 | C29: BIRMINGHAM WOMEN'S AND CHILDREN'S NHS FOUNDATION TRUST | D29: 126 | E29: 0.9603174603 | F29: 0.007936507937 | G29: 101 | H29: 20 | I29: 4 | J29: 0 | K29: 1 | L29: 0 | M29: 0 | N29: 0 | O29: 0 | P29: 0 | Q29: 0 | R29: 0 | S29: 126 | T29: 0
A30: QHM | B30: RVW | C30: NORTH TEES AND HARTLEPOOL NHS FOUNDATION TRUST | D30: 1 | E30: * | F30: * | G30: * | H30: * | I30: * | J30: * | K30: * | L30: * | M30: * | N30: * | O30: * | P30: * | Q30: * | R30: * | S30: * | T30: *
A31: QHM | B31: RR7 | C31: GATESHEAD HEALTH NHS FOUNDATION TRUST | D31: 8 | E31: 1 | F31: 0 | G31: * | H31: * | I31: * | J31: * | K31: * | L31: * | M31: * | N31: * | O31: * | P31: * | Q31: * | R31: * | S31: * | T31: *
A32: QHM | B32: RTR | C32: SOUTH TEES HOSPITALS NHS FOUNDATION TRUST | D32: 9 | E32: 0.7777777778 | F32: 0.2222222222 | G32: 7 | H32: 0 | I32: 0 | J32: 1 | K32: 1 | L32: 0 | M32: 7 | N32: 2 | O32: 0 | P32: 0 | Q32: 0 | R32: 0 | S32: 0 | T32: 0
A33: QHM | B33: RNN | C33: NORTH CUMBRIA INTEGRATED CARE NHS FOUNDATION TRUST | D33: 15 | E33: 1 | F33: 0 | G33: 13 | H33: 2 | I33: 0 | J33: 0 | K33: 0 | L33: 0 | M33: 0 | N33: 0 | O33: 0 | P33: 0 | Q33: 15 | R33: 0 | S33: 0 | T33: 0
A34: QHM | B34: R0B | C34: SOUTH TYNESIDE AND SUNDERLAND NHS FOUNDATION TRUST | D34: 24 | E34: 1 | F34: 0 | G34: 19 | H34: 5 | I34: 0 | J34: 0 | K34: 0 | L34: 0 | M34: 0 | N34: 0 | O34: 0 | P34: 20 | Q34: 0 | R34: 0 | S34: 4 | T34: 0
A35: QHM | B35: RTD | C35: THE NEWCASTLE UPON TYNE HOSPITALS NHS FOUNDATION TRUST | D35: 55 | E35: 0.8727272727 | F35: 0.09090909091 | G35: 46 | H35: 2 | I35: 2 | J35: 4 | K35: 1 | L35: 0 | M35: 55 | N35: 0 | O35: 0 | P35: 0 | Q35: 0 | R35: 0 | S35: 0 | T35: 0
A36: QHM | B36: RXP | C36: COUNTY DURHAM AND DARLINGTON NHS FOUNDATION TRUST | D36: 162 | E36: 0.9938271605 | F36: 0 | G36: 135 | H36: 26 | I36: 1 | J36: 0 | K36: 0 | L36: 0 | M36: 0 | N36: 0 | O36: 0 | P36: 162 | Q36: 0 | R36: 0 | S36: 0 | T36: 0
A37: QJ2 | B37: RTG | C37: UNIVERSITY HOSPITALS OF DERBY AND BURTON NHS FOUNDATION TRUST | D37: 29 | E37: 0.9310344828 | F37: 0.06896551724 | G37: 21 | H37: 6 | I37: 0 | J37: 1 | K37: 1 | L37: 0 | M37: 25 | N37: 0 | O37: 0 | P37: 4 | Q37: 0 | R37: 0 | S37: 0 | T37: 0
A38: QJ2 | B38: RFS | C38: CHESTERFIELD ROYAL HOSPITAL NHS FOUNDATION TRUST | D38: 53 | E38: 0.9433962264 | F38: 0.03773584906 | G38: 39 | H38: 11 | I38: 1 | J38: 1 | K38: 1 | L38: 0 | M38: 11 | N38: 4 | O38: 38 | P38: 0 | Q38: 0 | R38: 0 | S38: 0 | T38: 0
A39: QJG | B39: RDE | C39: EAST SUFFOLK AND NORTH ESSEX NHS FOUNDATION TRUST | D39: 4 | E39: * | F39: * | G39: * | H39: * | I39: * | J39: * | K39: * | L39: * | M39: * | N39: * | O39: * | P39: * | Q39: * | R39: * | S39: * | T39: *
A40: QJG | B40: RGR | C40: WEST SUFFOLK NHS FOUNDATION TRUST | D40: 32 | E40: 0.84375 | F40: 0.125 | G40: * | H40: * | I40: * | J40: * | K40: * | L40: * | M40: * | N40: * | O40: * | P40: * | Q40: * | R40: * | S40: * | T40: *
A41: QJK | B41: RA9 | C41: TORBAY AND SOUTH DEVON NHS FOUNDATION TRUST | D41: 0 | E41: NA | F41: NA | G41: 0 | H41: 0 | I41: 0 | J41: 0 | K41: 0 | L41: 0 | M41: 0 | N41: 0 | O41: 0 | P41: 0 | Q41: 0 | R41: 0 | S41: 0 | T41: 0
A42: QJK | B42: RK9 | C42: UNIVERSITY HOSPITALS PLYMOUTH NHS TRUST | D42: 0 | E42: NA | F42: NA | G42: 0 | H42: 0 | I42: 0 | J42: 0 | K42: 0 | L42: 0 | M42: 0 | N42: 0 | O42: 0 | P42: 0 | Q42: 0 | R42: 0 | S42: 0 | T42: 0
A43: QJK | B43: RH8 | C43: ROYAL DEVON UNIVERSITY HEALTHCARE NHS FOUNDATION TRUST | D43: 13 | E43: 0.9230769231 | F43: 0 | G43: * | H43: * | I43: * | J43: * | K43: * | L43: * | M43: * | N43: * | O43: * | P43: * | Q43: * | R43: * | S43: * | T43: *
A44: QJM | B44: RWD | C44: UNITED LINCOLNSHIRE TEACHING HOSPITALS NHS TRUST | D44: 0 | E44: NA | F44: NA | G44: 0 | H44: 0 | I44: 0 | J44: 0 | K44: 0 | L44: 0 | M44: 0 | N44: 0 | O44: 0 | P44: 0 | Q44: 0 | R44: 0 | S44: 0 | T44: 0
A45: QK1 | B45: RWE | C45: UNIVERSITY HOSPITALS OF LEICESTER NHS TRUST | D45: 102 | E45: 0.8823529412 | F45: 0.05882352941 | G45: 62 | H45: 28 | I45: 6 | J45: 5 | K45: 1 | L45: 0 | M45: 0 | N45: 102 | O45: 0 | P45: 0 | Q45: 0 | R45: 0 | S45: 0 | T45: 0
A46: QKK | B46: RJ2 | C46: LEWISHAM AND GREENWICH NHS TRUST | D46: 62 | E46: 0.9193548387 | F46: 0.04838709677 | G46: 33 | H46: 24 | I46: 2 | J46: 3 | K46: 0 | L46: 0 | M46: 0 | N46: 59 | O46: 0 | P46: 3 | Q46: 0 | R46: 0 | S46: 0 | T46: 0
A47: QKK | B47: RJ1 | C47: GUY'S AND ST THOMAS' NHS FOUNDATION TRUST | D47: 85 | E47: 0.8705882353 | F47: 0.05882352941 | G47: 42 | H47: 32 | I47: 5 | J47: 4 | K47: 1 | L47: 1 | M47: 0 | N47: 0 | O47: 0 | P47: 82 | Q47: 0 | R47: 0 | S47: 3 | T47: 0
A48: QKS | B48: RPA | C48: MEDWAY NHS FOUNDATION TRUST | D48: 31 | E48: 0.8387096774 | F48: 0.06451612903 | G48: 23 | H48: 3 | I48: 3 | J48: 2 | K48: 0 | L48: 0 | M48: 0 | N48: 0 | O48: 0 | P48: 0 | Q48: 0 | R48: 0 | S48: 31 | T48: 0
A49: QKS | B49: RVV | C49: EAST KENT HOSPITALS UNIVERSITY NHS FOUNDATION TRUST | D49: 32 | E49: 0.875 | F49: 0.03125 | G49: 21 | H49: 7 | I49: 3 | J49: 1 | K49: 0 | L49: 0 | M49: 32 | N49: 0 | O49: 0 | P49: 0 | Q49: 0 | R49: 0 | S49: 0 | T49: 0
A50: QKS | B50: RWF | C50: MAIDSTONE AND TUNBRIDGE WELLS NHS TRUST | D50: 73 | E50: 0.9315068493 | F50: 0.05479452055 | G50: 58 | H50: 10 | I50: 1 | J50: 2 | K50: 2 | L50: 0 | M50: 61 | N50: 0 | O50: 0 | P50: 0 | Q50: 0 | R50: 0 | S50: 12 | T50: 0
A51: QKS | B51: RN7 | C51: DARTFORD AND GRAVESHAM NHS TRUST | D51: 89 | E51: 1 | F51: 0 | G51: 76 | H51: 13 | I51: 0 | J51: 0 | K51: 0 | L51: 0 | M51: 0 | N51: 76 | O51: 0 | P51: 0 | Q51: 0 | R51: 0 | S51: 13 | T51: 0
A52: QM7 | B52: RWG | C52: WEST HERTFORDSHIRE TEACHING HOSPITALS NHS TRUST | D52: 0 | E52: NA | F52: NA | G52: 0 | H52: 0 | I52: 0 | J52: 0 | K52: 0 | L52: 0 | M52: 0 | N52: 0 | O52: 0 | P52: 0 | Q52: 0 | R52: 0 | S52: 0 | T52: 0
A53: QM7 | B53: RQW | C53: THE PRINCESS ALEXANDRA HOSPITAL NHS TRUST | D53: 7 | E53: 0.8571428571 | F53: 0.1428571429 | G53: 5 | H53: 1 | I53: 0 | J53: 0 | K53: 1 | L53: 0 | M53: 7 | N53: 0 | O53: 0 | P53: 0 | Q53: 0 | R53: 0 | S53: 0 | T53: 0
A54: QM7 | B54: RWH | C54: EAST AND NORTH HERTFORDSHIRE NHS TRUST | D54: 78 | E54: 0.9615384615 | F54: 0.02564102564 | G54: 58 | H54: 17 | I54: 1 | J54: 2 | K54: 0 | L54: 0 | M54: 0 | N54: 18 | O54: 47 | P54: 9 | Q54: 0 | R54: 0 | S54: 1 | T54: 3
A55: QMF | B55: RQX | C55: HOMERTON HEALTHCARE NHS FOUNDATION TRUST | D55: 4 | E55: * | F55: * | G55: * | H55: * | I55: * | J55: * | K55: * | L55: * | M55: * | N55: * | O55: * | P55: * | Q55: * | R55: * | S55: * | T55: *
A56: QMF | B56: RF4 | C56: BARKING, HAVERING AND REDBRIDGE UNIVERSITY HOSPITALS NHS TRUST | D56: 95 | E56: 0.9052631579 | F56: 0.07368421053 | G56: * | H56: * | I56: * | J56: * | K56: * | L56: * | M56: * | N56: * | O56: * | P56: * | Q56: * | R56: * | S56: * | T56: *
A57: QMF | B57: R1H | C57: BARTS HEALTH NHS TRUST | D57: 136 | E57: 0.9558823529 | F57: 0.03676470588 | G57: 117 | H57: 13 | I57: 1 | J57: 1 | K57: 4 | L57: 0 | M57: 1 | N57: 0 | O57: 0 | P57: 118 | Q57: 0 | R57: 0 | S57: 17 | T57: 0
A58: QMJ | B58: RRV | C58: UNIVERSITY COLLEGE LONDON HOSPITALS NHS FOUNDATION TRUST | D58: 0 | E58: NA | F58: NA | G58: 0 | H58: 0 | I58: 0 | J58: 0 | K58: 0 | L58: 0 | M58: 0 | N58: 0 | O58: 0 | P58: 0 | Q58: 0 | R58: 0 | S58: 0 | T58: 0
A59: QMJ | B59: RKE | C59: WHITTINGTON HEALTH NHS TRUST | D59: 126 | E59: 0.9920634921 | F59: 0.007936507937 | G59: 23 | H59: 102 | I59: 0 | J59: 0 | K59: 1 | L59: 0 | M59: 0 | N59: 0 | O59: 0 | P59: 2 | Q59: 0 | R59: 0 | S59: 124 | T59: 0
A60: QMJ | B60: RAL | C60: ROYAL FREE LONDON NHS FOUNDATION TRUST | D60: 135 | E60: 0.8888888889 | F60: 0.05185185185 | G60: 99 | H60: 21 | I60: 7 | J60: 2 | K60: 5 | L60: 1 | M60: 14 | N60: 118 | O60: 0 | P60: 0 | Q60: 2 | R60: 0 | S60: 1 | T60: 0
A61: QMM | B61: RGP | C61: JAMES PAGET UNIVERSITY HOSPITALS NHS FOUNDATION TRUST | D61: 4 | E61: * | F61: * | G61: * | H61: * | I61: * | J61: * | K61: * | L61: * | M61: * | N61: * | O61: * | P61: * | Q61: * | R61: * | S61: * | T61: *
A62: QMM | B62: RM1 | C62: NORFOLK AND NORWICH UNIVERSITY HOSPITALS NHS FOUNDATION TRUST | D62: 5 | E62: 0.6 | F62: 0.4 | G62: * | H62: * | I62: * | J62: * | K62: * | L62: * | M62: * | N62: * | O62: * | P62: * | Q62: * | R62: * | S62: * | T62: *
A63: QMM | B63: RCX | C63: THE QUEEN ELIZABETH HOSPITAL, KING'S LYNN, NHS FOUNDATION TRUST | D63: 16 | E63: 1 | F63: 0 | G63: 14 | H63: 2 | I63: 0 | J63: 0 | K63: 0 | L63: 0 | M63: 0 | N63: 0 | O63: 0 | P63: 15 | Q63: 0 | R63: 0 | S63: 1 | T63: 0
A64: QNC | B64: RJE | C64: UNIVERSITY HOSPITALS OF NORTH MIDLANDS NHS TRUST | D64: 49 | E64: 0.8775510204 | F64: 0.08163265306 | G64: 40 | H64: 3 | I64: 2 | J64: 2 | K64: 2 | L64: 0 | M64: 16 | N64: 0 | O64: 0 | P64: 32 | Q64: 0 | R64: 0 | S64: 1 | T64: 0
A65: QNQ | B65: RDU | C65: FRIMLEY HEALTH NHS FOUNDATION TRUST | D65: 83 | E65: 0.9879518072 | F65: 0.01204819277 | G65: 65 | H65: 17 | I65: 0 | J65: 0 | K65: 1 | L65: 0 | M65: 0 | N65: 0 | O65: 0 | P65: 0 | Q65: 0 | R65: 0 | S65: 83 | T65: 0
A66: QNX | B66: RYR | C66: UNIVERSITY HOSPITALS SUSSEX NHS FOUNDATION TRUST | D66: 146 | E66: 0.9383561644 | F66: 0.03424657534 | G66: 118 | H66: 19 | I66: 4 | J66: 1 | K66: 4 | L66: 0 | M66: 146 | N66: 0 | O66: 0 | P66: 0 | Q66: 0 | R66: 0 | S66: 0 | T66: 0
A67: QOC | B67: RXW | C67: THE SHREWSBURY AND TELFORD HOSPITAL NHS TRUST | D67: 4 | E67: * | F67: * | G67: * | H67: * | I67: * | J67: * | K67: * | L67: * | M67: * | N67: * | O67: * | P67: * | Q67: * | R67: * | S67: * | T67: *
A68: QOP | B68: RRF | C68: WRIGHTINGTON, WIGAN AND LEIGH NHS FOUNDATION TRUST | D68: 19 | E68: 1 | F68: 0 | G68: 17 | H68: 2 | I68: 0 | J68: 0 | K68: 0 | L68: 0 | M68: 0 | N68: 0 | O68: 0 | P68: 19 | Q68: 0 | R68: 0 | S68: 0 | T68: 0
A69: QOP | B69: RMP | C69: TAMESIDE AND GLOSSOP INTEGRATED CARE NHS FOUNDATION TRUST | D69: 36 | E69: 0.8333333333 | F69: 0.1111111111 | G69: 26 | H69: 4 | I69: 2 | J69: 2 | K69: 2 | L69: 0 | M69: 0 | N69: 17 | O69: 0 | P69: 19 | Q69: 0 | R69: 0 | S69: 0 | T69: 0
A70: QOP | B70: RWJ | C70: STOCKPORT NHS FOUNDATION TRUST | D70: 39 | E70: 1 | F70: 0 | G70: 34 | H70: 5 | I70: 0 | J70: 0 | K70: 0 | L70: 0 | M70: 0 | N70: 0 | O70: 0 | P70: 39 | Q70: 0 | R70: 0 | S70: 0 | T70: 0
A71: QOP | B71: RMC | C71: BOLTON NHS FOUNDATION TRUST | D71: 93 | E71: 0.9247311828 | F71: 0 | G71: 71 | H71: 15 | I71: 7 | J71: 0 | K71: 0 | L71: 0 | M71: 46 | N71: 27 | O71: 0 | P71: 20 | Q71: 0 | R71: 0 | S71: 0 | T71: 0
A72: QOP | B72: R0A | C72: MANCHESTER UNIVERSITY NHS FOUNDATION TRUST | D72: 287 | E72: 0.9233449477 | F72: 0.03832752613 | G72: 214 | H72: 51 | I72: 10 | J72: 6 | K72: 5 | L72: 1 | M72: 0 | N72: 220 | O72: 0 | P72: 58 | Q72: 0 | R72: 0 | S72: 9 | T72: 0
A73: QOQ | B73: RCD | C73: HARROGATE AND DISTRICT NHS FOUNDATION TRUST | D73: 0 | E73: NA | F73: NA | G73: 0 | H73: 0 | I73: 0 | J73: 0 | K73: 0 | L73: 0 | M73: 0 | N73: 0 | O73: 0 | P73: 0 | Q73: 0 | R73: 0 | S73: 0 | T73: 0
A74: QOQ | B74: RJL | C74: NORTHERN LINCOLNSHIRE AND GOOLE NHS FOUNDATION TRUST | D74: 3 | E74: * | F74: * | G74: * | H74: * | I74: * | J74: * | K74: * | L74: * | M74: * | N74: * | O74: * | P74: * | Q74: * | R74: * | S74: * | T74: *
A75: QOQ | B75: RCB | C75: YORK AND SCARBOROUGH TEACHING HOSPITALS NHS FOUNDATION TRUST | D75: 11 | E75: 1 | F75: 0 | G75: * | H75: * | I75: * | J75: * | K75: * | L75: * | M75: * | N75: * | O75: * | P75: * | Q75: * | R75: * | S75: * | T75: *
A76: QOQ | B76: RWA | C76: HULL UNIVERSITY TEACHING HOSPITALS NHS TRUST | D76: 51 | E76: 0.9215686275 | F76: 0.07843137255 | G76: 44 | H76: 3 | I76: 0 | J76: 1 | K76: 3 | L76: 0 | M76: 45 | N76: 0 | O76: 0 | P76: 0 | Q76: 0 | R76: 0 | S76: 6 | T76: 0
A77: QOX | B77: RNZ | C77: SALISBURY NHS FOUNDATION TRUST | D77: 2 | E77: * | F77: * | G77: * | H77: * | I77: * | J77: * | K77: * | L77: * | M77: * | N77: * | O77: * | P77: * | Q77: * | R77: * | S77: * | T77: *
A78: QOX | B78: RD1 | C78: ROYAL UNITED HOSPITALS BATH NHS FOUNDATION TRUST | D78: 81 | E78: 0.962962963 | F78: 0.02469135802 | G78: * | H78: * | I78: * | J78: * | K78: * | L78: * | M78: * | N78: * | O78: * | P78: * | Q78: * | R78: * | S78: * | T78: *
A79: QOX | B79: RN3 | C79: GREAT WESTERN HOSPITALS NHS FOUNDATION TRUST | D79: 102 | E79: 0.8921568627 | F79: 0.06862745098 | G79: 79 | H79: 12 | I79: 2 | J79: 5 | K79: 2 | L79: 2 | M79: 0 | N79: 99 | O79: 0 | P79: 0 | Q79: 0 | R79: 0 | S79: 3 | T79: 0
A80: QPM | B80: RNQ | C80: KETTERING GENERAL HOSPITAL NHS FOUNDATION TRUST | D80: 35 | E80: 0.9714285714 | F80: 0 | G80: 31 | H80: 3 | I80: 1 | J80: 0 | K80: 0 | L80: 0 | M80: 0 | N80: 0 | O80: 0 | P80: 0 | Q80: 21 | R80: 0 | S80: 14 | T80: 0
A81: QPM | B81: RNS | C81: NORTHAMPTON GENERAL HOSPITAL NHS TRUST | D81: 98 | E81: 0.9387755102 | F81: 0.02040816327 | G81: 73 | H81: 19 | I81: 4 | J81: 2 | K81: 0 | L81: 0 | M81: 17 | N81: 0 | O81: 0 | P81: 80 | Q81: 0 | R81: 0 | S81: 1 | T81: 0
A82: QR1 | B82: RTE | C82: GLOUCESTERSHIRE HOSPITALS NHS FOUNDATION TRUST | D82: 51 | E82: 0.9019607843 | F82: 0.03921568627 | G82: 29 | H82: 17 | I82: 3 | J82: 1 | K82: 1 | L82: 0 | M82: 40 | N82: 9 | O82: 0 | P82: 0 | Q82: 0 | R82: 0 | S82: 2 | T82: 0
A83: QRL | B83: R1F | C83: ISLE OF WIGHT NHS TRUST | D83: 10 | E83: 1 | F83: 0 | G83: 9 | H83: 1 | I83: 0 | J83: 0 | K83: 0 | L83: 0 | M83: 0 | N83: 0 | O83: 0 | P83: 0 | Q83: 10 | R83: 0 | S83: 0 | T83: 0
A84: QRL | B84: RHM | C84: UNIVERSITY HOSPITAL SOUTHAMPTON NHS FOUNDATION TRUST | D84: 139 | E84: 0.8561151079 | F84: 0.09352517986 | G84: 82 | H84: 37 | I84: 7 | J84: 8 | K84: 5 | L84: 0 | M84: 0 | N84: 0 | O84: 0 | P84: 0 | Q84: 0 | R84: 0 | S84: 139 | T84: 0
A85: QRL | B85: RHU | C85: PORTSMOUTH HOSPITALS UNIVERSITY NATIONAL HEALTH SERVICE TRUST | D85: 149 | E85: 0.932885906 | F85: 0.02013422819 | G85: 103 | H85: 36 | I85: 6 | J85: 1 | K85: 2 | L85: 1 | M85: 0 | N85: 0 | O85: 0 | P85: 149 | Q85: 0 | R85: 0 | S85: 0 | T85: 0
A86: QRL | B86: RN5 | C86: HAMPSHIRE HOSPITALS NHS FOUNDATION TRUST | D86: 184 | E86: 0.9619565217 | F86: 0.01630434783 | G86: 140 | H86: 37 | I86: 2 | J86: 2 | K86: 1 | L86: 2 | M86: 0 | N86: 0 | O86: 0 | P86: 182 | Q86: 0 | R86: 0 | S86: 2 | T86: 0
A87: QRV | B87: RYJ | C87: IMPERIAL COLLEGE HEALTHCARE NHS TRUST | D87: 79 | E87: 0.8481012658 | F87: 0.06329113924 | G87: 43 | H87: 24 | I87: 7 | J87: 2 | K87: 3 | L87: 0 | M87: 0 | N87: 37 | O87: 0 | P87: 10 | Q87: 0 | R87: 0 | S87: 32 | T87: 0
A88: QRV | B88: R1K | C88: LONDON NORTH WEST UNIVERSITY HEALTHCARE NHS TRUST | D88: 99 | E88: 0.9797979798 | F88: 0.0101010101 | G88: 58 | H88: 39 | I88: 1 | J88: 0 | K88: 1 | L88: 0 | M88: 0 | N88: 0 | O88: 0 | P88: 99 | Q88: 0 | R88: 0 | S88: 0 | T88: 0
A89: QRV | B89: RAS | C89: THE HILLINGDON HOSPITALS NHS FOUNDATION TRUST | D89: 146 | E89: 0.9383561644 | F89: 0.02739726027 | G89: 104 | H89: 33 | I89: 4 | J89: 1 | K89: 3 | L89: 1 | M89: 0 | N89: 0 | O89: 0 | P89: 118 | Q89: 0 | R89: 0 | S89: 28 | T89: 0
A90: QSL | B90: RH5 | C90: SOMERSET NHS FOUNDATION TRUST | D90: 4 | E90: * | F90: * | G90: * | H90: * | I90: * | J90: * | K90: * | L90: * | M90: * | N90: * | O90: * | P90: * | Q90: * | R90: * | S90: * | T90: *
A91: QT1 | B91: RK5 | C91: SHERWOOD FOREST HOSPITALS NHS FOUNDATION TRUST | D91: 28 | E91: 0.8571428571 | F91: 0.07142857143 | G91: 15 | H91: 9 | I91: 2 | J91: 0 | K91: 2 | L91: 0 | M91: 0 | N91: 0 | O91: 0 | P91: 0 | Q91: 0 | R91: 0 | S91: 28 | T91: 0
A92: QT1 | B92: RX1 | C92: NOTTINGHAM UNIVERSITY HOSPITALS NHS TRUST | D92: 91 | E92: 0.9340659341 | F92: 0.04395604396 | G92: 67 | H92: 18 | I92: 1 | J92: 2 | K92: 2 | L92: 1 | M92: 0 | N92: 38 | O92: 0 | P92: 51 | Q92: 0 | R92: 0 | S92: 2 | T92: 0
A93: QT6 | B93: REF | C93: ROYAL CORNWALL HOSPITALS NHS TRUST | D93: 3 | E93: * | F93: * | G93: * | H93: * | I93: * | J93: * | K93: * | L93: * | M93: * | N93: * | O93: * | P93: * | Q93: * | R93: * | S93: * | T93: *
A94: QU9 | B94: RTH | C94: OXFORD UNIVERSITY HOSPITALS NHS FOUNDATION TRUST | D94: 13 | E94: 0.6923076923 | F94: 0.1538461538 | G94: 7 | H94: 2 | I94: 2 | J94: 1 | K94: 1 | L94: 0 | M94: 0 | N94: 0 | O94: 0 | P94: 0 | Q94: 0 | R94: 0 | S94: 13 | T94: 0
A95: QU9 | B95: RXQ | C95: BUCKINGHAMSHIRE HEALTHCARE NHS TRUST | D95: 30 | E95: 0.8333333333 | F95: 0.1 | G95: 19 | H95: 6 | I95: 2 | J95: 1 | K95: 2 | L95: 0 | M95: 27 | N95: 0 | O95: 0 | P95: 0 | Q95: 0 | R95: 0 | S95: 3 | T95: 0
A96: QU9 | B96: RHW | C96: ROYAL BERKSHIRE NHS FOUNDATION TRUST | D96: 71 | E96: 0.9577464789 | F96: 0.01408450704 | G96: 58 | H96: 10 | I96: 2 | J96: 1 | K96: 0 | L96: 0 | M96: 0 | N96: 0 | O96: 0 | P96: 71 | Q96: 0 | R96: 0 | S96: 0 | T96: 0
A97: QUA | B97: RL4 | C97: THE ROYAL WOLVERHAMPTON NHS TRUST | D97: 32 | E97: 0.875 | F97: 0.09375 | G97: 26 | H97: 2 | I97: 1 | J97: 1 | K97: 2 | L97: 0 | M97: 32 | N97: 0 | O97: 0 | P97: 0 | Q97: 0 | R97: 0 | S97: 0 | T97: 0
A98: QUA | B98: RNA | C98: THE DUDLEY GROUP NHS FOUNDATION TRUST | D98: 49 | E98: 0.612244898 | F98: 0.04081632653 | G98: 24 | H98: 6 | I98: 0 | J98: 1 | K98: 1 | L98: 17 | M98: 1 | N98: 0 | O98: 0 | P98: 46 | Q98: 0 | R98: 0 | S98: 2 | T98: 0
A99: QUA | B99: RBK | C99: WALSALL HEALTHCARE NHS TRUST | D99: 88 | E99: 0.9545454545 | F99: 0.03409090909 | G99: 67 | H99: 17 | I99: 0 | J99: 1 | K99: 2 | L99: 1 | M99: 16 | N99: 72 | O99: 0 | P99: 0 | Q99: 0 | R99: 0 | S99: 0 | T99: 0
A100: QUE | B100: RGT | C100: CAMBRIDGE UNIVERSITY HOSPITALS NHS FOUNDATION TRUST | D100: 31 | E100: 0.8709677419 | F100: 0.09677419355 | G100: 22 | H100: 5 | I100: 1 | J100: 0 | K100: 3 | L100: 0 | M100: 0 | N100: 19 | O100: 0 | P100: 5 | Q100: 0 | R100: 0 | S100: 7 | T100: 0
A101: QUE | B101: RGN | C101: NORTH WEST ANGLIA NHS FOUNDATION TRUST | D101: 125 | E101: 0.96 | F101: 0 | G101: 99 | H101: 21 | I101: 2 | J101: 0 | K101: 0 | L101: 3 | M101: 0 | N101: 0 | O101: 0 | P101: 125 | Q101: 0 | R101: 0 | S101: 0 | T101: 0
A102: QUY | B102: RA7 | C102: UNIVERSITY HOSPITALS BRISTOL AND WESTON NHS FOUNDATION TRUST | D102: 1 | E102: * | F102: * | G102: * | H102: * | I102: * | J102: * | K102: * | L102: * | M102: * | N102: * | O102: * | P102: * | Q102: * | R102: * | S102: * | T102: *
A103: QUY | B103: RVJ | C103: NORTH BRISTOL NHS TRUST | D103: 60 | E103: 0.8666666667 | F103: 0.1 | G103: * | H103: * | I103: * | J103: * | K103: * | L103: * | M103: * | N103: * | O103: * | P103: * | Q103: * | R103: * | S103: * | T103: *
A104: QVV | B104: RBD | C104: DORSET COUNTY HOSPITAL NHS FOUNDATION TRUST | D104: 3 | E104: * | F104: * | G104: * | H104: * | I104: * | J104: * | K104: * | L104: * | M104: * | N104: * | O104: * | P104: * | Q104: * | R104: * | S104: * | T104: *
A105: QVV | B105: R0D | C105: UNIVERSITY HOSPITALS DORSET NHS FOUNDATION TRUST | D105: 10 | E105: 0.6 | F105: 0.3 | G105: * | H105: * | I105: * | J105: * | K105: * | L105: * | M105: * | N105: * | O105: * | P105: * | Q105: * | R105: * | S105: * | T105: *
A106: QWE | B106: RVR | C106: EPSOM AND ST HELIER UNIVERSITY HOSPITALS NHS TRUST | D106: 3 | E106: * | F106: * | G106: * | H106: * | I106: * | J106: * | K106: * | L106: * | M106: * | N106: * | O106: * | P106: * | Q106: * | R106: * | S106: * | T106: *
A107: QWE | B107: RJ7 | C107: ST GEORGE'S UNIVERSITY HOSPITALS NHS FOUNDATION TRUST | D107: 37 | E107: 0.972972973 | F107: 0 | G107: * | H107: * | I107: * | J107: * | K107: * | L107: * | M107: * | N107: * | O107: * | P107: * | Q107: * | R107: * | S107: * | T107: *
A108: QWE | B108: RAX | C108: KINGSTON AND RICHMOND NHS FOUNDATION TRUST | D108: 177 | E108: 0.9830508475 | F108: 0 | G108: 140 | H108: 34 | I108: 3 | J108: 0 | K108: 0 | L108: 0 | M108: 0 | N108: 173 | O108: 0 | P108: 0 | Q108: 0 | R108: 0 | S108: 4 | T108: 0
A109: QWO | B109: RAE | C109: BRADFORD TEACHING HOSPITALS NHS FOUNDATION TRUST | D109: 2 | E109: * | F109: * | G109: * | H109: * | I109: * | J109: * | K109: * | L109: * | M109: * | N109: * | O109: * | P109: * | Q109: * | R109: * | S109: * | T109: *
A110: QWO | B110: RWY | C110: CALDERDALE AND HUDDERSFIELD NHS FOUNDATION TRUST | D110: 69 | E110: 0.9855072464 | F110: 0 | G110: * | H110: * | I110: * | J110: * | K110: * | L110: * | M110: * | N110: * | O110: * | P110: * | Q110: * | R110: * | S110: * | T110: *
A111: QWO | B111: RR8 | C111: LEEDS TEACHING HOSPITALS NHS TRUST | D111: 78 | E111: 0.9102564103 | F111: 0.07692307692 | G111: 61 | H111: 10 | I111: 1 | J111: 4 | K111: 2 | L111: 0 | M111: 75 | N111: 3 | O111: 0 | P111: 0 | Q111: 0 | R111: 0 | S111: 0 | T111: 0
A112: QWO | B112: RXF | C112: MID YORKSHIRE TEACHING NHS TRUST | D112: 102 | E112: 0.9411764706 | F112: 0.04901960784 | G112: 68 | H112: 28 | I112: 1 | J112: 3 | K112: 2 | L112: 0 | M112: 9 | N112: 0 | O112: 0 | P112: 92 | Q112: 0 | R112: 0 | S112: 1 | T112: 0
A113: QWU | B113: RLT | C113: GEORGE ELIOT HOSPITAL NHS TRUST | D113: 0 | E113: NA | F113: NA | G113: 0 | H113: 0 | I113: 0 | J113: 0 | K113: 0 | L113: 0 | M113: 0 | N113: 0 | O113: 0 | P113: 0 | Q113: 0 | R113: 0 | S113: 0 | T113: 0
A114: QWU | B114: RJC | C114: SOUTH WARWICKSHIRE UNIVERSITY NHS FOUNDATION TRUST | D114: 3 | E114: * | F114: * | G114: * | H114: * | I114: * | J114: * | K114: * | L114: * | M114: * | N114: * | O114: * | P114: * | Q114: * | R114: * | S114: * | T114: *
A115: QWU | B115: RKB | C115: UNIVERSITY HOSPITALS COVENTRY AND WARWICKSHIRE NHS TRUST | D115: 75 | E115: 0.9733333333 | F115: 0.01333333333 | G115: * | H115: * | I115: * | J115: * | K115: * | L115: * | M115: * | N115: * | O115: * | P115: * | Q115: * | R115: * | S115: * | T115: *
A116: QXU | B116: RTK | C116: ASHFORD AND ST PETER'S HOSPITALS NHS FOUNDATION TRUST | D116: 0 | E116: NA | F116: NA | G116: 0 | H116: 0 | I116: 0 | J116: 0 | K116: 0 | L116: 0 | M116: 0 | N116: 0 | O116: 0 | P116: 0 | Q116: 0 | R116: 0 | S116: 0 | T116: 0
A117: QXU | B117: RA2 | C117: ROYAL SURREY COUNTY HOSPITAL NHS FOUNDATION TRUST | D117: 14 | E117: 1 | F117: 0 | G117: 13 | H117: 1 | I117: 0 | J117: 0 | K117: 0 | L117: 0 | M117: 0 | N117: 0 | O117: 0 | P117: 1 | Q117: 13 | R117: 0 | S117: 0 | T117: 0
A118: QXU | B118: RTP | C118: SURREY AND SUSSEX HEALTHCARE NHS TRUST | D118: 44 | E118: 0.9318181818 | F118: 0.04545454545 | G118: 29 | H118: 12 | I118: 1 | J118: 1 | K118: 1 | L118: 0 | M118: 17 | N118: 22 | O118: 0 | P118: 3 | Q118: 0 | R118: 0 | S118: 2 | T118: 0
A119: QYG | B119: RWW | C119: WARRINGTON AND HALTON TEACHING HOSPITALS NHS FOUNDATION TRUST | D119: 1 | E119: * | F119: * | G119: * | H119: * | I119: * | J119: * | K119: * | L119: * | M119: * | N119: * | O119: * | P119: * | Q119: * | R119: * | S119: * | T119: *
A120: QYG | B120: RJR | C120: COUNTESS OF CHESTER HOSPITAL NHS FOUNDATION TRUST | D120: 12 | E120: 0.8333333333 | F120: 0.1666666667 | G120: * | H120: * | I120: * | J120: * | K120: * | L120: * | M120: * | N120: * | O120: * | P120: * | Q120: * | R120: * | S120: * | T120: *
A121: QYG | B121: RJN | C121: EAST CHESHIRE NHS TRUST | D121: 13 | E121: 1 | F121: 0 | G121: 10 | H121: 3 | I121: 0 | J121: 0 | K121: 0 | L121: 0 | M121: 13 | N121: 0 | O121: 0 | P121: 0 | Q121: 0 | R121: 0 | S121: 0 | T121: 0
A122: QYG | B122: RBL | C122: WIRRAL UNIVERSITY TEACHING HOSPITAL NHS FOUNDATION TRUST | D122: 24 | E122: 0.9583333333 | F122: 0 | G122: 19 | H122: 4 | I122: 1 | J122: 0 | K122: 0 | L122: 0 | M122: 0 | N122: 17 | O122: 0 | P122: 7 | Q122: 0 | R122: 0 | S122: 0 | T122: 0
A123: QYG | B123: REP | C123: LIVERPOOL WOMEN'S NHS FOUNDATION TRUST | D123: 28 | E123: 0.8571428571 | F123: 0.07142857143 | G123: 15 | H123: 9 | I123: 2 | J123: 2 | K123: 0 | L123: 0 | M123: 28 | N123: 0 | O123: 0 | P123: 0 | Q123: 0 | R123: 0 | S123: 0 | T123: 0
A124: QYG | B124: RBN | C124: MERSEY AND WEST LANCASHIRE TEACHING HOSPITALS NHS TRUST | D124: 40 | E124: 0.925 | F124: 0.05 | G124: 33 | H124: 4 | I124: 1 | J124: 1 | K124: 1 | L124: 0 | M124: 38 | N124: 0 | O124: 0 | P124: 0 | Q124: 0 | R124: 0 | S124: 2 | T124: 0
A125: QYG | B125: RBT | C125: MID CHESHIRE HOSPITALS NHS FOUNDATION TRUST | D125: 44 | E125: 0.8409090909 | F125: 0.09090909091 | G125: 32 | H125: 5 | I125: 3 | J125: 0 | K125: 4 | L125: 0 | M125: 37 | N125: 0 | O125: 0 | P125: 0 | Q125: 0 | R125: 0 | S125: 7 | T125: 0

Sheet Sites Q3
B6: Sort data by:
A9: ICB Code | B9: Trust Code | C9: Trust Name | D9: Site Code | E9: Site Name | F9: Total Responses | G9: Percentage Positive | H9: Percentage Negative | I9: Breakdown of Responses
I10: Very Good | J10: Good | K10: Neither Good nor Poor | L10: Poor | M10: Very Poor | N10: Don't Know
E11: England (including Independent Sector providers) | F11: 5616 | G11: 0.9196937322 | H11: 0.04504985755 | I11: 4024 | J11: 1141 | K11: 164 | L11: 125 | M11: 128 | N11: 34
E12: England (excluding Independent Sector providers) | F12: 5616 | G12: 0.9196937322 | H12: 0.04504985755 | I12: 4024 | J12: 1141 | K12: 164 | L12: 125 | M12: 128 | N12: 34
E13: Selection (excluding suppressed data) | F13: =SUBTOTAL(9,F14:F298) -> 5616 | G13: =IFERROR((I13+J13)/SUM(I13:N13), "-") -> 0.9209510262 | H13: =IFERROR((L13+M13)/SUM(I13:N13), "-") -> 0.04165819955 | I13: =SUBTOTAL(9,I14:I298) -> 3490 | J13: 1042 | K13: 151 | L13: 104 | M13: 101 | N13: 33
A14: QE1 | B14: RXL | C14: BLACKPOOL TEACHING HOSPITALS NHS FOUNDATION TRUST | D14: RXL01 | E14: Blackpool Victoria Hospital | F14: 98 | G14: 0.7551020408 | H14: 0.1530612245 | I14: 42 | J14: 32 | K14: 8 | L14: 8 | M14: 7 | N14: 1
A15: QE1 | B15: RXR | C15: EAST LANCASHIRE HOSPITALS NHS TRUST | D15: RXR20 | E15: Royal Blackburn Hospital | F15: 58 | G15: 0.7413793103 | H15: 0.1551724138 | I15: 30 | J15: 13 | K15: 6 | L15: 5 | M15: 4 | N15: 0
A16: QE1 | B16: RXN | C16: LANCASHIRE TEACHING HOSPITALS NHS FOUNDATION TRUST | D16: RXN01 | E16: Chorley and South Ribble Hospital | F16: 0 | G16: NA | H16: NA | I16: 0 | J16: 0 | K16: 0 | L16: 0 | M16: 0 | N16: 0
A17: QE1 | B17: RXN | C17: LANCASHIRE TEACHING HOSPITALS NHS FOUNDATION TRUST | D17: RXN02 | E17: Royal Preston Hospital | F17: 13 | G17: 0.7692307692 | H17: 0.1538461538 | I17: 8 | J17: 2 | K17: 1 | L17: 0 | M17: 2 | N17: 0
A18: QE1 | B18: RTX | C18: UNIVERSITY HOSPITALS OF MORECAMBE BAY NHS FOUNDATION TRUST | D18: RTXBU | E18: Furness General Hospital | F18: 10 | G18: 1 | H18: 0 | I18: 9 | J18: 1 | K18: 0 | L18: 0 | M18: 0 | N18: 0
A19: QE1 | B19: RTX | C19: UNIVERSITY HOSPITALS OF MORECAMBE BAY NHS FOUNDATION TRUST | D19: RTX02 | E19: Royal Lancaster Infirmary | F19: 9 | G19: 1 | H19: 0 | I19: * | J19: * | K19: * | L19: * | M19: * | N19: *
A20: QE1 | B20: RTX | C20: UNIVERSITY HOSPITALS OF MORECAMBE BAY NHS FOUNDATION TRUST | D20: RTXBW | E20: Westmorland General Hospital | F20: 2 | G20: * | H20: * | I20: * | J20: * | K20: * | L20: * | M20: * | N20: *
A21: QF7 | B21: RFF | C21: BARNSLEY HOSPITAL NHS FOUNDATION TRUST | D21: RFFAA | E21: Barnsley Hospital NHS Foundation Trust HQ | F21: 30 | G21: 1 | H21: 0 | I21: 29 | J21: 1 | K21: 0 | L21: 0 | M21: 0 | N21: 0
A22: QF7 | B22: RP5 | C22: DONCASTER AND BASSETLAW TEACHING HOSPITALS NHS FOUNDATION TRUST | D22: RP5BA | E22: Bassetlaw Hospital | F22: 3 | G22: * | H22: * | I22: * | J22: * | K22: * | L22: * | M22: * | N22: *
A23: QF7 | B23: RP5 | C23: DONCASTER AND BASSETLAW TEACHING HOSPITALS NHS FOUNDATION TRUST | D23: RP5DR | E23: Doncaster Royal Infirmary | F23: 0 | G23: NA | H23: NA | I23: 0 | J23: 0 | K23: 0 | L23: 0 | M23: 0 | N23: 0
A24: QF7 | B24: RHQ | C24: SHEFFIELD TEACHING HOSPITALS NHS FOUNDATION TRUST | D24: RHQHH | E24: Royal Hallamshire Hospital | F24: 22 | G24: 0.9090909091 | H24: 0.09090909091 | I24: 14 | J24: 6 | K24: 0 | L24: 2 | M24: 0 | N24: 0
A25: QF7 | B25: RFR | C25: THE ROTHERHAM NHS FOUNDATION TRUST | D25: RFRPA | E25: Rotherham District General Hospital | F25: 4 | G25: * | H25: * | I25: * | J25: * | K25: * | L25: * | M25: * | N25: *
A26: QGH | B26: RWP | C26: WORCESTERSHIRE ACUTE HOSPITALS NHS TRUST | D26: RWP50 | E26: Worcestershire Royal Hospital | F26: 25 | G26: 0.92 | H26: 0 | I26: 18 | J26: 5 | K26: 2 | L26: 0 | M26: 0 | N26: 0
A27: QGH | B27: RLQ | C27: WYE VALLEY NHS TRUST | D27: RLQ01 | E27: Hereford County Hospital | F27: 19 | G27: 0.8947368421 | H27: 0.05263157895 | I27: 13 | J27: 4 | K27: 1 | L27: 1 | M27: 0 | N27: 0
A28: QH8 | B28: RAJ | C28: MID AND SOUTH ESSEX NHS FOUNDATION TRUST | D28: RAJ12 | E28: BASILDON HOSPITAL | F28: 23 | G28: 0.6086956522 | H28: 0.2608695652 | I28: 13 | J28: 1 | K28: 2 | L28: 2 | M28: 4 | N28: 1
A29: QH8 | B29: RAJ | C29: MID AND SOUTH ESSEX NHS FOUNDATION TRUST | D29: RAJ32 | E29: MID ESSEX HOSPITAL | F29: 15 | G29: 0.7333333333 | H29: 0.2 | I29: 7 | J29: 4 | K29: 1 | L29: 0 | M29: 3 | N29: 0
A30: QH8 | B30: RAJ | C30: MID AND SOUTH ESSEX NHS FOUNDATION TRUST | D30: RAJ01 | E30: Southend Hospital | F30: 37 | G30: 0.8648648649 | H30: 0.08108108108 | I30: 30 | J30: 2 | K30: 2 | L30: 1 | M30: 2 | N30: 0
A31: QHG | B31: RC9 | C31: BEDFORDSHIRE HOSPITALS NHS FOUNDATION TRUST | D31: RC979 | E31: BEDFORD HOSPITAL SOUTH WING | F31: 35 | G31: 0.9428571429 | H31: 0.05714285714 | I31: 27 | J31: 6 | K31: 0 | L31: 1 | M31: 1 | N31: 0
A32: QHG | B32: RC9 | C32: BEDFORDSHIRE HOSPITALS NHS FOUNDATION TRUST | D32: RC971 | E32: Luton and Dunstable Hospital | F32: 137 | G32: 0.9343065693 | H32: 0.03649635036 | I32: 91 | J32: 37 | K32: 4 | L32: 2 | M32: 3 | N32: 0
A33: QHG | B33: RD8 | C33: MILTON KEYNES UNIVERSITY HOSPITAL NHS FOUNDATION TRUST | D33: RD816 | E33: Milton Keynes Hospital | F33: 30 | G33: 0.9333333333 | H33: 0.06666666667 | I33: 17 | J33: 11 | K33: 0 | L33: 2 | M33: 0 | N33: 0
A34: QHL | B34: RQ3 | C34: BIRMINGHAM WOMEN'S AND CHILDREN'S NHS FOUNDATION TRUST | D34: RQ370 | E34: Birmingham Women's Hospital | F34: 126 | G34: 0.9603174603 | H34: 0.007936507937 | I34: 101 | J34: 20 | K34: 4 | L34: 0 | M34: 1 | N34: 0
A35: QHL | B35: RXK | C35: SANDWELL AND WEST BIRMINGHAM HOSPITALS NHS TRUST | D35: RXKTC | E35: Birmingham Treatment Centre | F35: 1 | G35: * | H35: * | I35: * | J35: * | K35: * | L35: * | M35: * | N35: *
A36: QHL | B36: RRK | C36: UNIVERSITY HOSPITALS BIRMINGHAM NHS FOUNDATION TRUST | D36: RRK98 | E36: Good Hope Hospital | F36: 16 | G36: 0.9375 | H36: 0.0625 | I36: * | J36: * | K36: * | L36: * | M36: * | N36: *
A37: QHL | B37: RRK | C37: UNIVERSITY HOSPITALS BIRMINGHAM NHS FOUNDATION TRUST | D37: RRK97 | E37: Heartlands Hospital | F37: 17 | G37: 0.7647058824 | H37: 0.2352941176 | I37: * | J37: * | K37: * | L37: * | M37: * | N37: *
A38: QHL | B38: RRK | C38: UNIVERSITY HOSPITALS BIRMINGHAM NHS FOUNDATION TRUST | D38: RRK99 | E38: Solihull Hospital | F38: 0 | G38: NA | H38: NA | I38: 0 | J38: 0 | K38: 0 | L38: 0 | M38: 0 | N38: 0
A39: QHM | B39: RXP | C39: COUNTY DURHAM AND DARLINGTON NHS FOUNDATION TRUST | D39: RXPDA | E39: Darlington Memorial Hospital | F39: 101 | G39: 0.9900990099 | H39: 0 | I39: 86 | J39: 14 | K39: 1 | L39: 0 | M39: 0 | N39: 0
A40: QHM | B40: RXP | C40: COUNTY DURHAM AND DARLINGTON NHS FOUNDATION TRUST | D40: RXPCP | E40: University Hospital Of North Durham | F40: 61 | G40: 1 | H40: 0 | I40: 49 | J40: 12 | K40: 0 | L40: 0 | M40: 0 | N40: 0
A41: QHM | B41: RR7 | C41: GATESHEAD HEALTH NHS FOUNDATION TRUST | D41: RR7EN | E41: Queen Elizabeth Hospital | F41: 8 | G41: 1 | H41: 0 | I41: * | J41: * | K41: * | L41: * | M41: * | N41: *
A42: QHM | B42: RNN | C42: NORTH CUMBRIA INTEGRATED CARE NHS FOUNDATION TRUST | D42: RNN62 | E42: Cumberland Infirmary | F42: 7 | G42: 1 | H42: 0 | I42: 6 | J42: 1 | K42: 0 | L42: 0 | M42: 0 | N42: 0
A43: QHM | B43: RNN | C43: NORTH CUMBRIA INTEGRATED CARE NHS FOUNDATION TRUST | D43: RNNBX | E43: West Cumberland Hospital | F43: 8 | G43: 1 | H43: 0 | I43: 7 | J43: 1 | K43: 0 | L43: 0 | M43: 0 | N43: 0
A44: QHM | B44: RVW | C44: NORTH TEES AND HARTLEPOOL NHS FOUNDATION TRUST | D44: RVWAE | E44: University Hospital Of North Tees | F44: 1 | G44: * | H44: * | I44: * | J44: * | K44: * | L44: * | M44: * | N44: *
A45: QHM | B45: RTR | C45: SOUTH TEES HOSPITALS NHS FOUNDATION TRUST | D45: RTR45 | E45: Friarage Hospital Site | F45: 0 | G45: NA | H45: NA | I45: 0 | J45: 0 | K45: 0 | L45: 0 | M45: 0 | N45: 0
A46: QHM | B46: RTR | C46: SOUTH TEES HOSPITALS NHS FOUNDATION TRUST | D46: RTRAT | E46: The James Cook University Hospital | F46: 9 | G46: 0.7777777778 | H46: 0.2222222222 | I46: 7 | J46: 0 | K46: 0 | L46: 1 | M46: 1 | N46: 0
A47: QHM | B47: R0B | C47: SOUTH TYNESIDE AND SUNDERLAND NHS FOUNDATION TRUST | D47: R0B01 | E47: Sunderland Royal Hospital | F47: 24 | G47: 1 | H47: 0 | I47: 19 | J47: 5 | K47: 0 | L47: 0 | M47: 0 | N47: 0
A48: QHM | B48: RTD | C48: THE NEWCASTLE UPON TYNE HOSPITALS NHS FOUNDATION TRUST | D48: RTD02 | E48: The Royal Victoria Infirmary | F48: 55 | G48: 0.8727272727 | H48: 0.09090909091 | I48: 46 | J48: 2 | K48: 2 | L48: 4 | M48: 1 | N48: 0
A49: QJ2 | B49: RFS | C49: CHESTERFIELD ROYAL HOSPITAL NHS FOUNDATION TRUST | D49: RFSDA | E49: Chesterfield Royal Hospital | F49: 53 | G49: 0.9433962264 | H49: 0.03773584906 | I49: 39 | J49: 11 | K49: 1 | L49: 1 | M49: 1 | N49: 0
A50: QJ2 | B50: RTG | C50: UNIVERSITY HOSPITALS OF DERBY AND BURTON NHS FOUNDATION TRUST | D50: RTG02 | E50: Queens Hospital, Burton Upon Trent | F50: 29 | G50: 0.9310344828 | H50: 0.06896551724 | I50: 21 | J50: 6 | K50: 0 | L50: 1 | M50: 1 | N50: 0
A51: QJG | B51: RDE | C51: EAST SUFFOLK AND NORTH ESSEX NHS FOUNDATION TRUST | D51: RDEE4 | E51: Colchester General Hospital | F51: 2 | G51: * | H51: * | I51: * | J51: * | K51: * | L51: * | M51: * | N51: *
A52: QJG | B52: RDE | C52: EAST SUFFOLK AND NORTH ESSEX NHS FOUNDATION TRUST | D52: RDE03 | E52: Ipswich Hospital | F52: 2 | G52: * | H52: * | I52: * | J52: * | K52: * | L52: * | M52: * | N52: *
A53: QJG | B53: RGR | C53: WEST SUFFOLK NHS FOUNDATION TRUST | D53: RGR50 | E53: West Suffolk Hospital | F53: 32 | G53: 0.84375 | H53: 0.125 | I53: * | J53: * | K53: * | L53: * | M53: * | N53: *
A54: QJK | B54: RH8 | C54: ROYAL DEVON UNIVERSITY HEALTHCARE NHS FOUNDATION TRUST | D54: RH880 | E54: North Devon District Hospital | F54: 13 | G54: 0.9230769231 | H54: 0 | I54: * | J54: * | K54: * | L54: * | M54: * | N54: *
A55: QJK | B55: RH8 | C55: ROYAL DEVON UNIVERSITY HEALTHCARE NHS FOUNDATION TRUST | D55: RH801 | E55: Royal Devon and Exeter Hospital (Wonford) | F55: 0 | G55: NA | H55: NA | I55: 0 | J55: 0 | K55: 0 | L55: 0 | M55: 0 | N55: 0
A56: QJK | B56: RA9 | C56: TORBAY AND SOUTH DEVON NHS FOUNDATION TRUST | D56: RA901 | E56: Torbay Hospital | F56: 0 | G56: NA | H56: NA | I56: 0 | J56: 0 | K56: 0 | L56: 0 | M56: 0 | N56: 0
A57: QJK | B57: RK9 | C57: UNIVERSITY HOSPITALS PLYMOUTH NHS TRUST | D57: RK950 | E57: Derriford Hospital | F57: 0 | G57: NA | H57: NA | I57: 0 | J57: 0 | K57: 0 | L57: 0 | M57: 0 | N57: 0
A58: QJM | B58: RWD | C58: UNITED LINCOLNSHIRE TEACHING HOSPITALS NHS TRUST | D58: RWDLP | E58: Grantham and District Hospital | F58: 0 | G58: NA | H58: NA | I58: 0 | J58: 0 | K58: 0 | L58: 0 | M58: 0 | N58: 0
A59: QJM | B59: RWD | C59: UNITED LINCOLNSHIRE TEACHING HOSPITALS NHS TRUST | D59: RWDDA | E59: Lincoln County Hospital | F59: 0 | G59: NA | H59: NA | I59: 0 | J59: 0 | K59: 0 | L59: 0 | M59: 0 | N59: 0
A60: QJM | B60: RWD | C60: UNITED LINCOLNSHIRE TEACHING HOSPITALS NHS TRUST | D60: RWDLA | E60: Pilgrim Hospital | F60: 0 | G60: NA | H60: NA | I60: 0 | J60: 0 | K60: 0 | L60: 0 | M60: 0 | N60: 0
A61: QK1 | B61: RWE | C61: UNIVERSITY HOSPITALS OF LEICESTER NHS TRUST | D61: RWEAK | E61: Leicester General Hospital | F61: 22 | G61: 0.7727272727 | H61: 0.04545454545 | I61: 13 | J61: 4 | K61: 4 | L61: 1 | M61: 0 | N61: 0
A62: QK1 | B62: RWE | C62: UNIVERSITY HOSPITALS OF LEICESTER NHS TRUST | D62: RWEAA | E62: Leicester Royal Infirmary | F62: 75 | G62: 0.9066666667 | H62: 0.06666666667 | I62: 44 | J62: 24 | K62: 2 | L62: 4 | M62: 1 | N62: 0
A63: QK1 | B63: RWE | C63: UNIVERSITY HOSPITALS OF LEICESTER NHS TRUST | D63: RWE10 | E63: St Mary's Hospital | F63: 5 | G63: 1 | H63: 0 | I63: 5 | J63: 0 | K63: 0 | L63: 0 | M63: 0 | N63: 0
A64: QKK | B64: RJ1 | C64: GUY'S AND ST THOMAS' NHS FOUNDATION TRUST | D64: RJ122 | E64: St Thomas' Hospital | F64: 85 | G64: 0.8705882353 | H64: 0.05882352941 | I64: 42 | J64: 32 | K64: 5 | L64: 4 | M64: 1 | N64: 1
A65: QKK | B65: RJ2 | C65: LEWISHAM AND GREENWICH NHS TRUST | D65: RJ231 | E65: Queen Elizabeth Hospital | F65: 29 | G65: 0.9655172414 | H65: 0.03448275862 | I65: 17 | J65: 11 | K65: 0 | L65: 1 | M65: 0 | N65: 0
A66: QKK | B66: RJ2 | C66: LEWISHAM AND GREENWICH NHS TRUST | D66: RJ224 | E66: University Hospital Lewisham | F66: 33 | G66: 0.8787878788 | H66: 0.06060606061 | I66: 16 | J66: 13 | K66: 2 | L66: 2 | M66: 0 | N66: 0
A67: QKS | B67: RN7 | C67: DARTFORD AND GRAVESHAM NHS TRUST | D67: RN707 | E67: Darent Valley Hospital | F67: 89 | G67: 1 | H67: 0 | I67: 76 | J67: 13 | K67: 0 | L67: 0 | M67: 0 | N67: 0
A68: QKS | B68: RVV | C68: EAST KENT HOSPITALS UNIVERSITY NHS FOUNDATION TRUST | D68: RVV09 | E68: Queen Elizabeth The Queen Mother Hospital | F68: 15 | G68: 0.9333333333 | H68: 0 | I68: 10 | J68: 4 | K68: 1 | L68: 0 | M68: 0 | N68: 0
A69: QKS | B69: RVV | C69: EAST KENT HOSPITALS UNIVERSITY NHS FOUNDATION TRUST | D69: RVV01 | E69: William Harvey Hospital (Ashford) | F69: 17 | G69: 0.8235294118 | H69: 0.05882352941 | I69: 11 | J69: 3 | K69: 2 | L69: 1 | M69: 0 | N69: 0
A70: QKS | B70: RWF | C70: MAIDSTONE AND TUNBRIDGE WELLS NHS TRUST | D70: RWF08 | E70: Crowborough Birthing Centre | F70: 1 | G70: * | H70: * | I70: * | J70: * | K70: * | L70: * | M70: * | N70: *
A71: QKS | B71: RWF | C71: MAIDSTONE AND TUNBRIDGE WELLS NHS TRUST | D71: RWFTW | E71: The Tunbridge Wells Hospital | F71: 72 | G71: 0.9305555556 | H71: 0.05555555556 | I71: * | J71: * | K71: * | L71: * | M71: * | N71: *
A72: QKS | B72: RPA | C72: MEDWAY NHS FOUNDATION TRUST | D72: RPA02 | E72: Medway Maritime Hospital | F72: 31 | G72: 0.8387096774 | H72: 0.06451612903 | I72: 23 | J72: 3 | K72: 3 | L72: 2 | M72: 0 | N72: 0
A73: QM7 | B73: RWH | C73: EAST AND NORTH HERTFORDSHIRE NHS TRUST | D73: RWH01 | E73: Lister Hospital | F73: 78 | G73: 0.9615384615 | H73: 0.02564102564 | I73: 58 | J73: 17 | K73: 1 | L73: 2 | M73: 0 | N73: 0
A74: QM7 | B74: RQW | C74: THE PRINCESS ALEXANDRA HOSPITAL NHS TRUST | D74: RQWG0 | E74: Princess Alexandra Hospital | F74: 7 | G74: 0.8571428571 | H74: 0.1428571429 | I74: 5 | J74: 1 | K74: 0 | L74: 0 | M74: 1 | N74: 0
A75: QM7 | B75: RWG | C75: WEST HERTFORDSHIRE TEACHING HOSPITALS NHS TRUST | D75: RWG02 | E75: Watford General Hospital | F75: 0 | G75: NA | H75: NA | I75: 0 | J75: 0 | K75: 0 | L75: 0 | M75: 0 | N75: 0
A76: QMF | B76: RF4 | C76: BARKING, HAVERING AND REDBRIDGE UNIVERSITY HOSPITALS NHS TRUST | D76: RF4QH | E76: Queen's Hospital | F76: 95 | G76: 0.9052631579 | H76: 0.07368421053 | I76: * | J76: * | K76: * | L76: * | M76: * | N76: *
A77: QMF | B77: R1H | C77: BARTS HEALTH NHS TRUST | D77: R1HNH | E77: Newham General Hospital | F77: 114 | G77: 0.9824561404 | H77: 0.01754385965 | I77: 102 | J77: 10 | K77: 0 | L77: 0 | M77: 2 | N77: 0
A78: QMF | B78: R1H | C78: BARTS HEALTH NHS TRUST | D78: R1H12 | E78: The Royal London Hospital | F78: 16 | G78: 0.75 | H78: 0.1875 | I78: 10 | J78: 2 | K78: 1 | L78: 1 | M78: 2 | N78: 0
A79: QMF | B79: R1H | C79: BARTS HEALTH NHS TRUST | D79: R1HKH | E79: Whipps Cross University Hospital | F79: 6 | G79: 1 | H79: 0 | I79: 5 | J79: 1 | K79: 0 | L79: 0 | M79: 0 | N79: 0
A80: QMF | B80: RQX | C80: HOMERTON HEALTHCARE NHS FOUNDATION TRUST | D80: RQXM1 | E80: Homerton University Hospital | F80: 4 | G80: * | H80: * | I80: * | J80: * | K80: * | L80: * | M80: * | N80: *
A81: QMJ | B81: RAL | C81: ROYAL FREE LONDON NHS FOUNDATION TRUST | D81: RAL26 | E81: Barnet Hospital | F81: 83 | G81: 0.8915662651 | H81: 0.04819277108 | I81: 68 | J81: 6 | K81: 5 | L81: 2 | M81: 2 | N81: 0
A82: QMJ | B82: RAL | C82: ROYAL FREE LONDON NHS FOUNDATION TRUST | D82: RALRA | E82: Edgware Community Hospital | F82: 3 | G82: * | H82: * | I82: * | J82: * | K82: * | L82: * | M82: * | N82: *
A83: QMJ | B83: RAL | C83: ROYAL FREE LONDON NHS FOUNDATION TRUST | D83: RAL27 | E83: North Middlesex University Hospital | F83: 17 | G83: 0.8235294118 | H83: 0.1764705882 | I83: * | J83: * | K83: * | L83: * | M83: * | N83: *
A84: QMJ | B84: RAL | C84: ROYAL FREE LONDON NHS FOUNDATION TRUST | D84: RAL01 | E84: Royal Free Hospital | F84: 32 | G84: 0.90625 | H84: 0 | I84: 15 | J84: 14 | K84: 2 | L84: 0 | M84: 0 | N84: 1
A85: QMJ | B85: RRV | C85: UNIVERSITY COLLEGE LONDON HOSPITALS NHS FOUNDATION TRUST | D85: RRV11 | E85: University College Hospital Elizabeth Garrett Anderson Wing | F85: 0 | G85: NA | H85: NA | I85: 0 | J85: 0 | K85: 0 | L85: 0 | M85: 0 | N85: 0
A86: QMJ | B86: RKE | C86: WHITTINGTON HEALTH NHS TRUST | D86: RKEQ4 | E86: The Whittington Hospital | F86: 126 | G86: 0.9920634921 | H86: 0.007936507937 | I86: 23 | J86: 102 | K86: 0 | L86: 0 | M86: 1 | N86: 0
A87: QMM | B87: RGP | C87: JAMES PAGET UNIVERSITY HOSPITALS NHS FOUNDATION TRUST | D87: RGP75 | E87: James Paget University Hospital | F87: 4 | G87: * | H87: * | I87: * | J87: * | K87: * | L87: * | M87: * | N87: *
A88: QMM | B88: RM1 | C88: NORFOLK AND NORWICH UNIVERSITY HOSPITALS NHS FOUNDATION TRUST | D88: RM102 | E88: Norfolk and Norwich University Hospital | F88: 5 | G88: 0.6 | H88: 0.4 | I88: * | J88: * | K88: * | L88: * | M88: * | N88: *
A89: QMM | B89: RCX | C89: THE QUEEN ELIZABETH HOSPITAL, KING'S LYNN, NHS FOUNDATION TRUST | D89: RCX70 | E89: The Queen Elizabeth Hospital | F89: 16 | G89: 1 | H89: 0 | I89: 14 | J89: 2 | K89: 0 | L89: 0 | M89: 0 | N89: 0
A90: QNC | B90: RJE | C90: UNIVERSITY HOSPITALS OF NORTH MIDLANDS NHS TRUST | D90: RJE01 | E90: Royal Stoke University Hospital | F90: 49 | G90: 0.8775510204 | H90: 0.08163265306 | I90: 40 | J90: 3 | K90: 2 | L90: 2 | M90: 2 | N90: 0
A91: QNQ | B91: RDU | C91: FRIMLEY HEALTH NHS FOUNDATION TRUST | D91: RDU01 | E91: Frimley Park Hospital | F91: 58 | G91: 1 | H91: 0 | I91: 44 | J91: 14 | K91: 0 | L91: 0 | M91: 0 | N91: 0
A92: QNQ | B92: RDU | C92: FRIMLEY HEALTH NHS FOUNDATION TRUST | D92: RDU50 | E92: Wexham Park Hospital | F92: 25 | G92: 0.96 | H92: 0.04 | I92: 21 | J92: 3 | K92: 0 | L92: 0 | M92: 1 | N92: 0
A93: QNX | B93: RYR | C93: UNIVERSITY HOSPITALS SUSSEX NHS FOUNDATION TRUST | D93: N6J7V | E93: Princess Royal Hospital | F93: 50 | G93: 0.96 | H93: 0.02 | I93: 40 | J93: 8 | K93: 1 | L93: 0 | M93: 1 | N93: 0
A94: QNX | B94: RYR | C94: UNIVERSITY HOSPITALS SUSSEX NHS FOUNDATION TRUST | D94: E0A3H | E94: Royal Sussex County Hospital | F94: 32 | G94: 0.9375 | H94: 0.0625 | I94: 25 | J94: 5 | K94: 0 | L94: 0 | M94: 2 | N94: 0
A95: QNX | B95: RYR | C95: UNIVERSITY HOSPITALS SUSSEX NHS FOUNDATION TRUST | D95: RYR16 | E95: St Richard's Hospital | F95: 32 | G95: 0.9375 | H95: 0.03125 | I95: 27 | J95: 3 | K95: 1 | L95: 0 | M95: 1 | N95: 0
A96: QNX | B96: RYR | C96: UNIVERSITY HOSPITALS SUSSEX NHS FOUNDATION TRUST | D96: RYR18 | E96: Worthing Hospital | F96: 32 | G96: 0.90625 | H96: 0.03125 | I96: 26 | J96: 3 | K96: 2 | L96: 1 | M96: 0 | N96: 0
A97: QOC | B97: RXW | C97: THE SHREWSBURY AND TELFORD HOSPITAL NHS TRUST | D97: RXWMB | E97: Bridgnorth Hospital (Maternity) | F97: 0 | G97: NA | H97: NA | I97: 0 | J97: 0 | K97: 0 | L97: 0 | M97: 0 | N97: 0
A98: QOC | B98: RXW | C98: THE SHREWSBURY AND TELFORD HOSPITAL NHS TRUST | D98: RXWML | E98: Ludlow Hospital (Maternity) | F98: 0 | G98: NA | H98: NA | I98: 0 | J98: 0 | K98: 0 | L98: 0 | M98: 0 | N98: 0
A99: QOC | B99: RXW | C99: THE SHREWSBURY AND TELFORD HOSPITAL NHS TRUST | D99: RXWMJ | E99: Robert Jones & Agnes Hunt Orthopaedic & District Hospital | F99: 0 | G99: NA | H99: NA | I99: 0 | J99: 0 | K99: 0 | L99: 0 | M99: 0 | N99: 0
A100: QOC | B100: RXW | C100: THE SHREWSBURY AND TELFORD HOSPITAL NHS TRUST | D100: RXWAS | E100: Royal Shrewsbury Hospital | F100: 0 | G100: NA | H100: NA | I100: 0 | J100: 0 | K100: 0 | L100: 0 | M100: 0 | N100: 0
A101: QOC | B101: RXW | C101: THE SHREWSBURY AND TELFORD HOSPITAL NHS TRUST | D101: RXWAT | E101: The Princess Royal Hospital | F101: 4 | G101: * | H101: * | I101: * | J101: * | K101: * | L101: * | M101: * | N101: *
A102: QOP | B102: RMC | C102: BOLTON NHS FOUNDATION TRUST | D102: RMC01 | E102: Royal Bolton Hospital | F102: 93 | G102: 0.9247311828 | H102: 0 | I102: 71 | J102: 15 | K102: 7 | L102: 0 | M102: 0 | N102: 0
A103: QOP | B103: R0A | C103: MANCHESTER UNIVERSITY NHS FOUNDATION TRUST | D103: R0A05 | E103: St Mary's Hospital | F103: 287 | G103: 0.9233449477 | H103: 0.03832752613 | I103: 214 | J103: 51 | K103: 10 | L103: 6 | M103: 5 | N103: 1
A104: QOP | B104: RWJ | C104: STOCKPORT NHS FOUNDATION TRUST | D104: RWJ09 | E104: Stepping Hill Hospital | F104: 39 | G104: 1 | H104: 0 | I104: 34 | J104: 5 | K104: 0 | L104: 0 | M104: 0 | N104: 0
A105: QOP | B105: RMP | C105: TAMESIDE AND GLOSSOP INTEGRATED CARE NHS FOUNDATION TRUST | D105: RMP01 | E105: Tameside General Hospital | F105: 36 | G105: 0.8333333333 | H105: 0.1111111111 | I105: 26 | J105: 4 | K105: 2 | L105: 2 | M105: 2 | N105: 0
A106: QOP | B106: RRF | C106: WRIGHTINGTON, WIGAN AND LEIGH NHS FOUNDATION TRUST | D106: RRF02 | E106: Royal Albert Edward Infirmary | F106: 19 | G106: 1 | H106: 0 | I106: 17 | J106: 2 | K106: 0 | L106: 0 | M106: 0 | N106: 0
A107: QOQ | B107: RCD | C107: HARROGATE AND DISTRICT NHS FOUNDATION TRUST | D107: RCD01 | E107: Harrogate District Hospital | F107: 0 | G107: NA | H107: NA | I107: 0 | J107: 0 | K107: 0 | L107: 0 | M107: 0 | N107: 0
A108: QOQ | B108: RWA | C108: HULL UNIVERSITY TEACHING HOSPITALS NHS TRUST | D108: RWA01 | E108: Hull Royal Infirmary | F108: 51 | G108: 0.9215686275 | H108: 0.07843137255 | I108: 44 | J108: 3 | K108: 0 | L108: 1 | M108: 3 | N108: 0
A109: QOQ | B109: RJL | C109: NORTHERN LINCOLNSHIRE AND GOOLE NHS FOUNDATION TRUST | D109: RJL32 | E109: Scunthorpe General Hospital | F109: 3 | G109: * | H109: * | I109: * | J109: * | K109: * | L109: * | M109: * | N109: *
A110: QOQ | B110: RCB | C110: YORK AND SCARBOROUGH TEACHING HOSPITALS NHS FOUNDATION TRUST | D110: RCBCA | E110: Scarborough General Hospital | F110: 7 | G110: 1 | H110: 0 | I110: * | J110: * | K110: * | L110: * | M110: * | N110: *
A111: QOQ | B111: RCB | C111: YORK AND SCARBOROUGH TEACHING HOSPITALS NHS FOUNDATION TRUST | D111: RCB55 | E111: York Hospital | F111: 4 | G111: * | H111: * | I111: * | J111: * | K111: * | L111: * | M111: * | N111: *
A112: QOX | B112: RN3 | C112: GREAT WESTERN HOSPITALS NHS FOUNDATION TRUST | D112: RN325 | E112: The Great Western Hospital | F112: 102 | G112: 0.8921568627 | H112: 0.06862745098 | I112: 79 | J112: 12 | K112: 2 | L112: 5 | M112: 2 | N112: 2
A113: QOX | B113: RD1 | C113: ROYAL UNITED HOSPITALS BATH NHS FOUNDATION TRUST | D113: RD102 | E113: Chippenham Community Hospital | F113: 1 | G113: * | H113: * | I113: * | J113: * | K113: * | L113: * | M113: * | N113: *
A114: QOX | B114: RD1 | C114: ROYAL UNITED HOSPITALS BATH NHS FOUNDATION TRUST | D114: RD130 | E114: Princess Anne Wing RUH | F114: 80 | G114: 0.9625 | H114: 0.025 | I114: * | J114: * | K114: * | L114: * | M114: * | N114: *
A115: QOX | B115: RNZ | C115: SALISBURY NHS FOUNDATION TRUST | D115: RNZ02 | E115: Salisbury District Hospital | F115: 2 | G115: * | H115: * | I115: * | J115: * | K115: * | L115: * | M115: * | N115: *
A116: QPM | B116: RNQ | C116: KETTERING GENERAL HOSPITAL NHS FOUNDATION TRUST | D116: RNQ51 | E116: Kettering General Hospital | F116: 35 | G116: 0.9714285714 | H116: 0 | I116: 31 | J116: 3 | K116: 1 | L116: 0 | M116: 0 | N116: 0
A117: QPM | B117: RNS | C117: NORTHAMPTON GENERAL HOSPITAL NHS TRUST | D117: RNS01 | E117: Northampton General Hospital (Acute) | F117: 98 | G117: 0.9387755102 | H117: 0.02040816327 | I117: 73 | J117: 19 | K117: 4 | L117: 2 | M117: 0 | N117: 0
A118: QR1 | B118: RTE | C118: GLOUCESTERSHIRE HOSPITALS NHS FOUNDATION TRUST | D118: RTE03 | E118: Gloucestershire Royal Hospital | F118: 51 | G118: 0.9019607843 | H118: 0.03921568627 | I118: 29 | J118: 17 | K118: 3 | L118: 1 | M118: 1 | N118: 0
A119: QRL | B119: RN5 | C119: HAMPSHIRE HOSPITALS NHS FOUNDATION TRUST | D119: RN506 | E119: Basingstoke and North Hampshire Hospital | F119: 69 | G119: 0.9710144928 | H119: 0.01449275362 | I119: 55 | J119: 12 | K119: 0 | L119: 0 | M119: 1 | N119: 1
A120: QRL | B120: RN5 | C120: HAMPSHIRE HOSPITALS NHS FOUNDATION TRUST | D120: RN541 | E120: Royal Hampshire County Hospital | F120: 115 | G120: 0.9565217391 | H120: 0.01739130435 | I120: 85 | J120: 25 | K120: 2 | L120: 2 | M120: 0 | N120: 1
A121: QRL | B121: R1F | C121: ISLE OF WIGHT NHS TRUST | D121: R1F01 | E121: St Mary's Hospital | F121: 10 | G121: 1 | H121: 0 | I121: 9 | J121: 1 | K121: 0 | L121: 0 | M121: 0 | N121: 0
A122: QRL | B122: RHU | C122: PORTSMOUTH HOSPITALS UNIVERSITY NATIONAL HEALTH SERVICE TRUST | D122: RHU03 | E122: Queen Alexandra Hospital | F122: 149 | G122: 0.932885906 | H122: 0.02013422819 | I122: 103 | J122: 36 | K122: 6 | L122: 1 | M122: 2 | N122: 1
A123: QRL | B123: RHM | C123: UNIVERSITY HOSPITAL SOUTHAMPTON NHS FOUNDATION TRUST | D123: RHM12 | E123: Princess Anne Hospital | F123: 139 | G123: 0.8561151079 | H123: 0.09352517986 | I123: 82 | J123: 37 | K123: 7 | L123: 8 | M123: 5 | N123: 0
A124: QRV | B124: RYJ | C124: IMPERIAL COLLEGE HEALTHCARE NHS TRUST | D124: RYJ04 | E124: Queen Charlotte's Hospital | F124: 68 | G124: 0.9117647059 | H124: 0.01470588235 | I124: 40 | J124: 22 | K124: 5 | L124: 1 | M124: 0 | N124: 0
A125: QRV | B125: RYJ | C125: IMPERIAL COLLEGE HEALTHCARE NHS TRUST | D125: RYJ01 | E125: St Mary's Hospital (HQ) | F125: 11 | G125: 0.4545454545 | H125: 0.3636363636 | I125: 3 | J125: 2 | K125: 2 | L125: 1 | M125: 3 | N125: 0
A126: QRV | B126: R1K | C126: LONDON NORTH WEST UNIVERSITY HEALTHCARE NHS TRUST | D126: R1K01 | E126: Northwick Park Hospital | F126: 99 | G126: 0.9797979798 | H126: 0.0101010101 | I126: 58 | J126: 39 | K126: 1 | L126: 0 | M126: 1 | N126: 0
A127: QRV | B127: RAS | C127: THE HILLINGDON HOSPITALS NHS FOUNDATION TRUST | D127: RAS01 | E127: Hillingdon Hospital | F127: 146 | G127: 0.9383561644 | H127: 0.02739726027 | I127: 104 | J127: 33 | K127: 4 | L127: 1 | M127: 3 | N127: 1
A128: QSL | B128: RH5 | C128: SOMERSET NHS FOUNDATION TRUST | D128: RH5K6 | E128: Bridgwater Hospital | F128: 0 | G128: NA | H128: NA | I128: 0 | J128: 0 | K128: 0 | L128: 0 | M128: 0 | N128: 0
A129: QSL | B129: RH5 | C129: SOMERSET NHS FOUNDATION TRUST | D129: RH5A8 | E129: MUSGROVE PARK HOSPITAL | F129: 0 | G129: NA | H129: NA | I129: 0 | J129: 0 | K129: 0 | L129: 0 | M129: 0 | N129: 0
A130: QSL | B130: RH5 | C130: SOMERSET NHS FOUNDATION TRUST | D130: RH5XXXX | E130: Non-hospital site home/in-transit births | F130: 0 | G130: NA | H130: NA | I130: 0 | J130: 0 | K130: 0 | L130: 0 | M130: 0 | N130: 0
A131: QSL | B131: RH5 | C131: SOMERSET NHS FOUNDATION TRUST | D131: RH5O4 | E131: Yeovil District Hospital | F131: 4 | G131: * | H131: * | I131: * | J131: * | K131: * | L131: * | M131: * | N131: *
A132: QT1 | B132: RX1 | C132: NOTTINGHAM UNIVERSITY HOSPITALS NHS TRUST | D132: RX1CC | E132: Nottingham University Hospitals NHS Trust - City Campus | F132: 9 | G132: 0.8888888889 | H132: 0 | I132: 8 | J132: 0 | K132: 1 | L132: 0 | M132: 0 | N132: 0
A133: QT1 | B133: RX1 | C133: NOTTINGHAM UNIVERSITY HOSPITALS NHS TRUST | D133: RX1RA | E133: Nottingham University Hospitals NHS Trust - Queen's Medical Centre Campus | F133: 82 | G133: 0.9390243902 | H133: 0.0487804878 | I133: 59 | J133: 18 | K133: 0 | L133: 2 | M133: 2 | N133: 1
A134: QT1 | B134: RK5 | C134: SHERWOOD FOREST HOSPITALS NHS FOUNDATION TRUST | D134: RK5BC | E134: King's Mill Hospital | F134: 28 | G134: 0.8571428571 | H134: 0.07142857143 | I134: 15 | J134: 9 | K134: 2 | L134: 0 | M134: 2 | N134: 0
A135: QT6 | B135: REF | C135: ROYAL CORNWALL HOSPITALS NHS TRUST | D135: REF12 | E135: Royal Cornwall Hospital (Treliske) | F135: 3 | G135: * | H135: * | I135: * | J135: * | K135: * | L135: * | M135: * | N135: *
A136: QU9 | B136: RXQ | C136: BUCKINGHAMSHIRE HEALTHCARE NHS TRUST | D136: RXQ02 | E136: Stoke Mandeville Hospital | F136: 30 | G136: 0.8333333333 | H136: 0.1 | I136: 19 | J136: 6 | K136: 2 | L136: 1 | M136: 2 | N136: 0
A137: QU9 | B137: RTH | C137: OXFORD UNIVERSITY HOSPITALS NHS FOUNDATION TRUST | D137: RTH19 | E137: Chipping Norton Community Hospital | F137: 0 | G137: NA | H137: NA | I137: 0 | J137: 0 | K137: 0 | L137: 0 | M137: 0 | N137: 0
A138: QU9 | B138: RTH | C138: OXFORD UNIVERSITY HOSPITALS NHS FOUNDATION TRUST | D138: RTH05 | E138: Horton General Hospital | F138: 0 | G138: NA | H138: NA | I138: 0 | J138: 0 | K138: 0 | L138: 0 | M138: 0 | N138: 0
A139: QU9 | B139: RTH | C139: OXFORD UNIVERSITY HOSPITALS NHS FOUNDATION TRUST | D139: RTH08 | E139: John Radcliffe Hospital | F139: 13 | G139: 0.6923076923 | H139: 0.1538461538 | I139: 7 | J139: 2 | K139: 2 | L139: 1 | M139: 1 | N139: 0
A140: QU9 | B140: RTH | C140: OXFORD UNIVERSITY HOSPITALS NHS FOUNDATION TRUST | D140: RTH16 | E140: Wallingford Community Hospital | F140: 0 | G140: NA | H140: NA | I140: 0 | J140: 0 | K140: 0 | L140: 0 | M140: 0 | N140: 0
A141: QU9 | B141: RTH | C141: OXFORD UNIVERSITY HOSPITALS NHS FOUNDATION TRUST | D141: RTH21 | E141: Wantage Community Hospital | F141: 0 | G141: NA | H141: NA | I141: 0 | J141: 0 | K141: 0 | L141: 0 | M141: 0 | N141: 0
A142: QU9 | B142: RHW | C142: ROYAL BERKSHIRE NHS FOUNDATION TRUST | D142: RHW01 | E142: Royal Berkshire Hospital | F142: 71 | G142: 0.9577464789 | H142: 0.01408450704 | I142: 58 | J142: 10 | K142: 2 | L142: 1 | M142: 0 | N142: 0
A143: QUA | B143: RNA | C143: THE DUDLEY GROUP NHS FOUNDATION TRUST | D143: RNA01 | E143: Russells Hall Hospital | F143: 49 | G143: 0.612244898 | H143: 0.04081632653 | I143: 24 | J143: 6 | K143: 0 | L143: 1 | M143: 1 | N143: 17
A144: QUA | B144: RL4 | C144: THE ROYAL WOLVERHAMPTON NHS TRUST | D144: RL403 | E144: New Cross Hospital | F144: 32 | G144: 0.875 | H144: 0.09375 | I144: 26 | J144: 2 | K144: 1 | L144: 1 | M144: 2 | N144: 0
A145: QUA | B145: RBK | C145: WALSALL HEALTHCARE NHS TRUST | D145: RBK02 | E145: Manor Hospital | F145: 88 | G145: 0.9545454545 | H145: 0.03409090909 | I145: 67 | J145: 17 | K145: 0 | L145: 1 | M145: 2 | N145: 1
A146: QUE | B146: RGT | C146: CAMBRIDGE UNIVERSITY HOSPITALS NHS FOUNDATION TRUST | D146: RGT32 | E146: Rosie Hospital | F146: 31 | G146: 0.8709677419 | H146: 0.09677419355 | I146: 22 | J146: 5 | K146: 1 | L146: 0 | M146: 3 | N146: 0
A147: QUE | B147: RGN | C147: NORTH WEST ANGLIA NHS FOUNDATION TRUST | D147: RGN90 | E147: Hinchingbrooke Hospital | F147: 68 | G147: 0.9852941176 | H147: 0 | I147: 54 | J147: 13 | K147: 0 | L147: 0 | M147: 0 | N147: 1
A148: QUE | B148: RGN | C148: NORTH WEST ANGLIA NHS FOUNDATION TRUST | D148: RGN80 | E148: Peterborough City Hospital | F148: 57 | G148: 0.9298245614 | H148: 0 | I148: 45 | J148: 8 | K148: 2 | L148: 0 | M148: 0 | N148: 2
A149: QUY | B149: RVJ | C149: NORTH BRISTOL NHS TRUST | D149: RVJ01 | E149: Southmead Hospital | F149: 60 | G149: 0.8666666667 | H149: 0.1 | I149: * | J149: * | K149: * | L149: * | M149: * | N149: *
A150: QUY | B150: RA7 | C150: UNIVERSITY HOSPITALS BRISTOL AND WESTON NHS FOUNDATION TRUST | D150: RA707 | E150: ST MICHAEL'S HOSPITAL | F150: 1 | G150: * | H150: * | I150: * | J150: * | K150: * | L150: * | M150: * | N150: *
A151: QVV | B151: RBD | C151: DORSET COUNTY HOSPITAL NHS FOUNDATION TRUST | D151: RBD01 | E151: Dorset County Hospital | F151: 3 | G151: * | H151: * | I151: * | J151: * | K151: * | L151: * | M151: * | N151: *
A152: QVV | B152: R0D | C152: UNIVERSITY HOSPITALS DORSET NHS FOUNDATION TRUST | D152: R0D01 | E152: Poole Hospital | F152: 10 | G152: 0.6 | H152: 0.3 | I152: * | J152: * | K152: * | L152: * | M152: * | N152: *
A153: QVV | B153: R0D | C153: UNIVERSITY HOSPITALS DORSET NHS FOUNDATION TRUST | D153: R0D02 | E153: Royal Bournemouth Hospital | F153: 0 | G153: NA | H153: NA | I153: 0 | J153: 0 | K153: 0 | L153: 0 | M153: 0 | N153: 0
A154: QWE | B154: RVR | C154: EPSOM AND ST HELIER UNIVERSITY HOSPITALS NHS TRUST | D154: RVR50 | E154: Epsom Hospital | F154: 0 | G154: NA | H154: NA | I154: 0 | J154: 0 | K154: 0 | L154: 0 | M154: 0 | N154: 0
A155: QWE | B155: RVR | C155: EPSOM AND ST HELIER UNIVERSITY HOSPITALS NHS TRUST | D155: RVR05 | E155: St Helier Hospital | F155: 3 | G155: * | H155: * | I155: * | J155: * | K155: * | L155: * | M155: * | N155: *
A156: QWE | B156: RAX | C156: KINGSTON AND RICHMOND NHS FOUNDATION TRUST | D156: RAX01 | E156: Kingston Hospital | F156: 177 | G156: 0.9830508475 | H156: 0 | I156: 140 | J156: 34 | K156: 3 | L156: 0 | M156: 0 | N156: 0
A157: QWE | B157: RJ7 | C157: ST GEORGE'S UNIVERSITY HOSPITALS NHS FOUNDATION TRUST | D157: RJ701 | E157: St George's Hospital (Tooting) | F157: 37 | G157: 0.972972973 | H157: 0 | I157: * | J157: * | K157: * | L157: * | M157: * | N157: *
A158: QWO | B158: RAE | C158: BRADFORD TEACHING HOSPITALS NHS FOUNDATION TRUST | D158: RAE01 | E158: Bradford Royal Infirmary | F158: 2 | G158: * | H158: * | I158: * | J158: * | K158: * | L158: * | M158: * | N158: *
A159: QWO | B159: RWY | C159: CALDERDALE AND HUDDERSFIELD NHS FOUNDATION TRUST | D159: RWY02 | E159: Calderdale Royal Hospital | F159: 69 | G159: 0.9855072464 | H159: 0 | I159: * | J159: * | K159: * | L159: * | M159: * | N159: *
A160: QWO | B160: RR8 | C160: LEEDS TEACHING HOSPITALS NHS TRUST | D160: RR801 | E160: Leeds General Infirmary | F160: 43 | G160: 0.8837209302 | H160: 0.09302325581 | I160: 33 | J160: 5 | K160: 1 | L160: 2 | M160: 2 | N160: 0
A161: QWO | B161: RR8 | C161: LEEDS TEACHING HOSPITALS NHS TRUST | D161: RR813 | E161: St James's University Hospital | F161: 35 | G161: 0.9428571429 | H161: 0.05714285714 | I161: 28 | J161: 5 | K161: 0 | L161: 2 | M161: 0 | N161: 0
A162: QWO | B162: RXF | C162: MID YORKSHIRE TEACHING NHS TRUST | D162: RXF05 | E162: Pinderfields General Hospital | F162: 102 | G162: 0.9411764706 | H162: 0.04901960784 | I162: 68 | J162: 28 | K162: 1 | L162: 3 | M162: 2 | N162: 0
A163: QWU | B163: RLT | C163: GEORGE ELIOT HOSPITAL NHS TRUST | D163: RLT01 | E163: George Eliot Hospital - Acute Services | F163: 0 | G163: NA | H163: NA | I163: 0 | J163: 0 | K163: 0 | L163: 0 | M163: 0 | N163: 0
A164: QWU | B164: RJC | C164: SOUTH WARWICKSHIRE UNIVERSITY NHS FOUNDATION TRUST | D164: RJC02 | E164: Warwick Hospital | F164: 3 | G164: * | H164: * | I164: * | J164: * | K164: * | L164: * | M164: * | N164: *
A165: QWU | B165: RKB | C165: UNIVERSITY HOSPITALS COVENTRY AND WARWICKSHIRE NHS TRUST | D165: RKB01 | E165: University Hospital (Coventry) | F165: 75 | G165: 0.9733333333 | H165: 0.01333333333 | I165: * | J165: * | K165: * | L165: * | M165: * | N165: *
A166: QXU | B166: RTK | C166: ASHFORD AND ST PETER'S HOSPITALS NHS FOUNDATION TRUST | D166: RTK02 | E166: Ashford Hospital | F166: 0 | G166: NA | H166: NA | I166: 0 | J166: 0 | K166: 0 | L166: 0 | M166: 0 | N166: 0
A167: QXU | B167: RA2 | C167: ROYAL SURREY COUNTY HOSPITAL NHS FOUNDATION TRUST | D167: RA201 | E167: Royal Surrey County Hospital | F167: 14 | G167: 1 | H167: 0 | I167: 13 | J167: 1 | K167: 0 | L167: 0 | M167: 0 | N167: 0
A168: QXU | B168: RTP | C168: SURREY AND SUSSEX HEALTHCARE NHS TRUST | D168: RTP04 | E168: East Surrey Hospital | F168: 44 | G168: 0.9318181818 | H168: 0.04545454545 | I168: 29 | J168: 12 | K168: 1 | L168: 1 | M168: 1 | N168: 0
A169: QYG | B169: RJR | C169: COUNTESS OF CHESTER HOSPITAL NHS FOUNDATION TRUST | D169: RJR05 | E169: Countess Of Chester Hospital | F169: 12 | G169: 0.8333333333 | H169: 0.1666666667 | I169: * | J169: * | K169: * | L169: * | M169: * | N169: *
A170: QYG | B170: RJN | C170: EAST CHESHIRE NHS TRUST | D170: RJN71 | E170: Macclesfield District General Hospital | F170: 13 | G170: 1 | H170: 0 | I170: 10 | J170: 3 | K170: 0 | L170: 0 | M170: 0 | N170: 0
A171: QYG | B171: REP | C171: LIVERPOOL WOMEN'S NHS FOUNDATION TRUST | D171: REP01 | E171: Liverpool Womens Hospital | F171: 28 | G171: 0.8571428571 | H171: 0.07142857143 | I171: 15 | J171: 9 | K171: 2 | L171: 2 | M171: 0 | N171: 0
A172: QYG | B172: RBN | C172: MERSEY AND WEST LANCASHIRE TEACHING HOSPITALS NHS TRUST | D172: RBN52 | E172: Ormskirk and District General Hospital | F172: 19 | G172: 0.8947368421 | H172: 0.05263157895 | I172: 15 | J172: 2 | K172: 1 | L172: 1 | M172: 0 | N172: 0
A173: QYG | B173: RBN | C173: MERSEY AND WEST LANCASHIRE TEACHING HOSPITALS NHS TRUST | D173: RBN01 | E173: Whiston Hospital | F173: 21 | G173: 0.9523809524 | H173: 0.04761904762 | I173: 18 | J173: 2 | K173: 0 | L173: 0 | M173: 1 | N173: 0
A174: QYG | B174: RBT | C174: MID CHESHIRE HOSPITALS NHS FOUNDATION TRUST | D174: RBT20 | E174: Leighton Hospital | F174: 44 | G174: 0.8409090909 | H174: 0.09090909091 | I174: 32 | J174: 5 | K174: 3 | L174: 0 | M174: 4 | N174: 0
A175: QYG | B175: RWW | C175: WARRINGTON AND HALTON TEACHING HOSPITALS NHS FOUNDATION TRUST | D175: RWWWH | E175: Warrington Hospital | F175: 1 | G175: * | H175: * | I175: * | J175: * | K175: * | L175: * | M175: * | N175: *
A176: QYG | B176: RBL | C176: WIRRAL UNIVERSITY TEACHING HOSPITAL NHS FOUNDATION TRUST | D176: RBL14 | E176: Arrowe Park Hospital | F176: 24 | G176: 0.9583333333 | H176: 0 | I176: 19 | J176: 4 | K176: 1 | L176: 0 | M176: 0 | N176: 0

Sheet ICB Q4
B6: Sort data by:
A9: ICB Code | B9: ICB Name | C9: Total Responses | D9: Percentage Positive | E9: Percentage Negative | F9: Breakdown of Responses | L9: Total Responses | M9: Percentage Positive | N9: Percentage Negative | O9: Breakdown of Responses | U9: Total Responses | V9: Percentage Positive | W9: Percentage Negative | X9: Breakdown of Responses
F10: Very Good | G10: Good | H10: Neither Good nor Poor | I10: Poor | J10: Very Poor | K10: Don't Know | O10: Very Good | P10: Good | Q10: Neither Good nor Poor | R10: Poor | S10: Very Poor | T10: Don't Know | X10: Very Good | Y10: Good | Z10: Neither Good nor Poor | AA10: Poor | AB10: Very Poor | AC10: Don't Know
B11: England (including Independent Sector providers) | C11: 1309 | D11: 0.9205500382 | E11: 0.04125286478 | F11: 1025 | G11: 180 | H11: 33 | I11: 24 | J11: 30 | K11: 17 | L11: =SUM(L14:L55) -> 1309 | M11: =SUM(O11+P11)/SUM(O11:T11) -> 0.9205500382 | N11: =SUM(R11+S11)/SUM(O11:T11) -> 0.04125286478 | O11: =SUM(O14:O55) -> 1025 | P11: 180 | Q11: 33 | R11: 24 | S11: 30 | T11: 17 | U11: =IFERROR(C11-L11,0) -> 0 | V11: =IFERROR(D11-M11,0) -> 0 | W11: =IFERROR(E11-N11,0) -> 0 | X11: =IFERROR(F11-O11,0) -> 0 | Y11: =IFERROR(G11-P11,0) -> 0 | Z11: =IFERROR(H11-Q11,0) -> 0 | AA11: =IFERROR(I11-R11,0) -> 0 | AB11: =IFERROR(J11-S11,0) -> 0 | AC11: =IFERROR(K11-T11,0) -> 0
B12: England (excluding Independent Sector providers) | C12: 1309 | D12: 0.9205500382 | E12: 0.04125286478 | F12: 1025 | G12: 180 | H12: 33 | I12: 24 | J12: 30 | K12: 17 | L12: =SUM(L14:L55) -> 1309 | M12: 0.9205500382 | N12: 0.04125286478 | O12: =SUM(O14:O55) -> 1025 | P12: 180 | Q12: 33 | R12: 24 | S12: 30 | T12: 17 | U12: 0 | V12: 0 | W12: 0 | X12: 0 | Y12: 0 | Z12: 0 | AA12: 0 | AB12: 0 | AC12: 0
B13: Selection (excluding suppressed data) | C13: =SUBTOTAL(9,C14:C55) -> 1309 | D13: =IFERROR((F13+G13)/SUM(F13:K13), "-") -> 0.9215987702 | E13: =IFERROR((I13+J13)/SUM(F13:K13), "-") -> 0.04073789393 | F13: =SUBTOTAL(9,F14:F55) -> 1019 | G13: 180 | H13: 32 | I13: 23 | J13: 30 | K13: 17 | L13: =SUMIF(C14:C55,"<>*",L14:L55) -> 1309 | M13: 0.9215987702 | N13: 0.04073789393 | O13: =SUMIF(F14:F55,"<>*",O14:O55) -> 1019 | P13: 180 | Q13: 32 | R13: 23 | S13: 30 | T13: 17 | U13: 0 | V13: 0 | W13: 0 | X13: 0 | Y13: 0 | Z13: 0 | AA13: 0 | AB13: 0 | AC13: 0
A14: QE1 | B14: LANCASHIRE AND SOUTH CUMBRIA ICB | C14: 124 | D14: 0.8790322581 | E14: 0.06451612903 | F14: 94 | G14: 15 | H14: 6 | I14: 4 | J14: 4 | K14: 1 | L14: =VLOOKUP($A14,[1]Sheet4!$A$49:$H$90,2,0) -> 124 | M14: =SUM(O14+P14)/SUM(O14:T14) -> 0.8790322581 | N14: =SUM(R14+S14)/SUM(O14:T14) -> 0.06451612903 | O14: =VLOOKUP($A14,[1]Sheet4!$A$49:$H$90,3,0) -> 94 | P14: =VLOOKUP($A14,[1]Sheet4!$A$49:$H$90,4,0) -> 15 | Q14: =VLOOKUP($A14,[1]Sheet4!$A$49:$H$90,5,0) -> 6 | R14: =VLOOKUP($A14,[1]Sheet4!$A$49:$H$90,6,0) -> 4 | S14: =VLOOKUP($A14,[1]Sheet4!$A$49:$H$90,7,0) -> 4 | T14: =VLOOKUP($A14,[1]Sheet4!$A$49:$H$90,8,0) -> 1 | U14: =IFERROR(C14-L14,0) -> 0 | V14: =IFERROR(D14-M14,0) -> 0 | W14: 0 | X14: 0 | Y14: 0 | Z14: 0 | AA14: 0 | AB14: 0 | AC14: 0
A15: QF7 | B15: SOUTH YORKSHIRE ICB | C15: 22 | D15: 1 | E15: 0 | F15: 17 | G15: 5 | H15: 0 | I15: 0 | J15: 0 | K15: 0 | L15: =VLOOKUP($A15,[1]Sheet4!$A$49:$H$90,2,0) -> 22 | M15: =SUM(O15+P15)/SUM(O15:T15) -> 1 | N15: =SUM(R15+S15)/SUM(O15:T15) -> 0 | O15: =VLOOKUP($A15,[1]Sheet4!$A$49:$H$90,3,0) -> 17 | P15: =VLOOKUP($A15,[1]Sheet4!$A$49:$H$90,4,0) -> 5 | Q15: =VLOOKUP($A15,[1]Sheet4!$A$49:$H$90,5,0) -> 0 | R15: =VLOOKUP($A15,[1]Sheet4!$A$49:$H$90,6,0) -> 0 | S15: =VLOOKUP($A15,[1]Sheet4!$A$49:$H$90,7,0) -> 0 | T15: =VLOOKUP($A15,[1]Sheet4!$A$49:$H$90,8,0) -> 0 | U15: =IFERROR(C15-L15,0) -> 0 | V15: =IFERROR(D15-M15,0) -> 0 | W15: =IFERROR(E15-N15,0) -> 0 | X15: =IFERROR(F15-O15,0) -> 0 | Y15: =IFERROR(G15-P15,0) -> 0 | Z15: =IFERROR(H15-Q15,0) -> 0 | AA15: =IFERROR(I15-R15,0) -> 0 | AB15: =IFERROR(J15-S15,0) -> 0 | AC15: =IFERROR(K15-T15,0) -> 0
A16: QGH | B16: HEREFORDSHIRE AND WORCESTERSHIRE ICB | C16: 0 | D16: NA | E16: NA | F16: 0 | G16: 0 | H16: 0 | I16: 0 | J16: 0 | K16: 0 | L16: =VLOOKUP($A16,[1]Sheet4!$A$49:$H$90,2,0) -> 0 | O16: =VLOOKUP($A16,[1]Sheet4!$A$49:$H$90,3,0) -> 0 | P16: =VLOOKUP($A16,[1]Sheet4!$A$49:$H$90,4,0) -> 0 | Q16: =VLOOKUP($A16,[1]Sheet4!$A$49:$H$90,5,0) -> 0 | R16: =VLOOKUP($A16,[1]Sheet4!$A$49:$H$90,6,0) -> 0 | S16: =VLOOKUP($A16,[1]Sheet4!$A$49:$H$90,7,0) -> 0 | T16: =VLOOKUP($A16,[1]Sheet4!$A$49:$H$90,8,0) -> 0 | U16: 0 | V16: 0 | W16: 0 | X16: 0 | Y16: 0 | Z16: 0 | AA16: 0 | AB16: 0 | AC16: 0
A17: QH8 | B17: MID AND SOUTH ESSEX ICB | C17: 0 | D17: NA | E17: NA | F17: 0 | G17: 0 | H17: 0 | I17: 0 | J17: 0 | K17: 0 | L17: =VLOOKUP($A17,[1]Sheet4!$A$49:$H$90,2,0) -> 0 | O17: =VLOOKUP($A17,[1]Sheet4!$A$49:$H$90,3,0) -> 0 | P17: =VLOOKUP($A17,[1]Sheet4!$A$49:$H$90,4,0) -> 0 | Q17: =VLOOKUP($A17,[1]Sheet4!$A$49:$H$90,5,0) -> 0 | R17: =VLOOKUP($A17,[1]Sheet4!$A$49:$H$90,6,0) -> 0 | S17: =VLOOKUP($A17,[1]Sheet4!$A$49:$H$90,7,0) -> 0 | T17: =VLOOKUP($A17,[1]Sheet4!$A$49:$H$90,8,0) -> 0 | U17: 0 | V17: 0 | W17: 0 | X17: 0 | Y17: 0 | Z17: 0 | AA17: 0 | AB17: 0 | AC17: 0
A18: QHG | B18: BEDFORDSHIRE, LUTON AND MILTON KEYNES ICB | C18: 48 | D18: 1 | E18: 0 | F18: 40 | G18: 8 | H18: 0 | I18: 0 | J18: 0 | K18: 0 | L18: =VLOOKUP($A18,[1]Sheet4!$A$49:$H$90,2,0) -> 48 | M18: 1 | N18: 0 | O18: =VLOOKUP($A18,[1]Sheet4!$A$49:$H$90,3,0) -> 40 | P18: =VLOOKUP($A18,[1]Sheet4!$A$49:$H$90,4,0) -> 8 | Q18: =VLOOKUP($A18,[1]Sheet4!$A$49:$H$90,5,0) -> 0 | R18: =VLOOKUP($A18,[1]Sheet4!$A$49:$H$90,6,0) -> 0 | S18: =VLOOKUP($A18,[1]Sheet4!$A$49:$H$90,7,0) -> 0 | T18: =VLOOKUP($A18,[1]Sheet4!$A$49:$H$90,8,0) -> 0 | U18: 0 | V18: 0 | W18: 0 | X18: 0 | Y18: 0 | Z18: 0 | AA18: 0 | AB18: 0 | AC18: 0
A19: QHL | B19: BIRMINGHAM AND SOLIHULL ICB | C19: 31 | D19: 1 | E19: 0 | F19: 26 | G19: 5 | H19: 0 | I19: 0 | J19: 0 | K19: 0 | L19: =VLOOKUP($A19,[1]Sheet4!$A$49:$H$90,2,0) -> 31 | M19: 1 | N19: 0 | O19: =VLOOKUP($A19,[1]Sheet4!$A$49:$H$90,3,0) -> 26 | P19: =VLOOKUP($A19,[1]Sheet4!$A$49:$H$90,4,0) -> 5 | Q19: =VLOOKUP($A19,[1]Sheet4!$A$49:$H$90,5,0) -> 0 | R19: =VLOOKUP($A19,[1]Sheet4!$A$49:$H$90,6,0) -> 0 | S19: =VLOOKUP($A19,[1]Sheet4!$A$49:$H$90,7,0) -> 0 | T19: =VLOOKUP($A19,[1]Sheet4!$A$49:$H$90,8,0) -> 0 | U19: 0 | V19: 0 | W19: 0 | X19: 0 | Y19: 0 | Z19: 0 | AA19: 0 | AB19: 0 | AC19: 0
A20: QHM | B20: NORTH EAST AND NORTH CUMBRIA ICB | C20: 80 | D20: 0.825 | E20: 0.0875 | F20: 46 | G20: 20 | H20: 6 | I20: 5 | J20: 2 | K20: 1 | L20: =VLOOKUP($A20,[1]Sheet4!$A$49:$H$90,2,0) -> 80 | M20: 0.825 | N20: 0.0875 | O20: =VLOOKUP($A20,[1]Sheet4!$A$49:$H$90,3,0) -> 46 | P20: =VLOOKUP($A20,[1]Sheet4!$A$49:$H$90,4,0) -> 20 | Q20: =VLOOKUP($A20,[1]Sheet4!$A$49:$H$90,5,0) -> 6 | R20: =VLOOKUP($A20,[1]Sheet4!$A$49:$H$90,6,0) -> 5 | S20: =VLOOKUP($A20,[1]Sheet4!$A$49:$H$90,7,0) -> 2 | T20: =VLOOKUP($A20,[1]Sheet4!$A$49:$H$90,8,0) -> 1 | U20: 0 | V20: 0 | W20: 0 | X20: 0 | Y20: 0 | Z20: 0 | AA20: 0 | AB20: 0 | AC20: 0
A21: QJ2 | B21: DERBY AND DERBYSHIRE ICB | C21: 1 | D21: * | E21: * | F21: * | G21: * | H21: * | I21: * | J21: * | K21: * | L21: =VLOOKUP($A21,[1]Sheet4!$A$49:$H$90,2,0) -> 1 | M21: 1 | N21: 0 | O21: =VLOOKUP($A21,[1]Sheet4!$A$49:$H$90,3,0) -> 1 | P21: =VLOOKUP($A21,[1]Sheet4!$A$49:$H$90,4,0) -> 0 | Q21: =VLOOKUP($A21,[1]Sheet4!$A$49:$H$90,5,0) -> 0 | R21: =VLOOKUP($A21,[1]Sheet4!$A$49:$H$90,6,0) -> 0 | S21: =VLOOKUP($A21,[1]Sheet4!$A$49:$H$90,7,0) -> 0 | T21: =VLOOKUP($A21,[1]Sheet4!$A$49:$H$90,8,0) -> 0 | U21: 0 | V21: 0 | W21: 0 | X21: 0 | Y21: 0 | Z21: 0 | AA21: 0 | AB21: 0 | AC21: 0
A22: QJG | B22: SUFFOLK AND NORTH EAST ESSEX ICB | C22: 43 | D22: 0.9069767442 | E22: 0.02325581395 | F22: 35 | G22: 4 | H22: 3 | I22: 1 | J22: 0 | K22: 0 | L22: =VLOOKUP($A22,[1]Sheet4!$A$49:$H$90,2,0) -> 43 | M22: 0.9069767442 | N22: 0.02325581395 | O22: =VLOOKUP($A22,[1]Sheet4!$A$49:$H$90,3,0) -> 35 | P22: =VLOOKUP($A22,[1]Sheet4!$A$49:$H$90,4,0) -> 4 | Q22: =VLOOKUP($A22,[1]Sheet4!$A$49:$H$90,5,0) -> 3 | R22: =VLOOKUP($A22,[1]Sheet4!$A$49:$H$90,6,0) -> 1 | S22: =VLOOKUP($A22,[1]Sheet4!$A$49:$H$90,7,0) -> 0 | T22: =VLOOKUP($A22,[1]Sheet4!$A$49:$H$90,8,0) -> 0 | U22: 0 | V22: 0 | W22: 0 | X22: 0 | Y22: 0 | Z22: 0 | AA22: 0 | AB22: 0 | AC22: 0
A23: QJK | B23: DEVON ICB | C23: 5 | D23: 1 | E23: 0 | F23: * | G23: * | H23: * | I23: * | J23: * | K23: * | L23: =VLOOKUP($A23,[1]Sheet4!$A$49:$H$90,2,0) -> 5 | M23: 1 | N23: 0 | O23: =VLOOKUP($A23,[1]Sheet4!$A$49:$H$90,3,0) -> 5 | P23: =VLOOKUP($A23,[1]Sheet4!$A$49:$H$90,4,0) -> 0 | Q23: =VLOOKUP($A23,[1]Sheet4!$A$49:$H$90,5,0) -> 0 | R23: =VLOOKUP($A23,[1]Sheet4!$A$49:$H$90,6,0) -> 0 | S23: =VLOOKUP($A23,[1]Sheet4!$A$49:$H$90,7,0) -> 0 | T23: =VLOOKUP($A23,[1]Sheet4!$A$49:$H$90,8,0) -> 0 | U23: 0 | V23: 0 | W23: 0 | X23: 0 | Y23: 0 | Z23: 0 | AA23: 0 | AB23: 0 | AC23: 0
A24: QJM | B24: LINCOLNSHIRE ICB | C24: 0 | D24: NA | E24: NA | F24: 0 | G24: 0 | H24: 0 | I24: 0 | J24: 0 | K24: 0 | L24: =VLOOKUP($A24,[1]Sheet4!$A$49:$H$90,2,0) -> 0 | O24: =VLOOKUP($A24,[1]Sheet4!$A$49:$H$90,3,0) -> 0 | P24: =VLOOKUP($A24,[1]Sheet4!$A$49:$H$90,4,0) -> 0 | Q24: =VLOOKUP($A24,[1]Sheet4!$A$49:$H$90,5,0) -> 0 | R24: =VLOOKUP($A24,[1]Sheet4!$A$49:$H$90,6,0) -> 0 | S24: =VLOOKUP($A24,[1]Sheet4!$A$49:$H$90,7,0) -> 0 | T24: =VLOOKUP($A24,[1]Sheet4!$A$49:$H$90,8,0) -> 0 | U24: 0 | V24: 0 | W24: 0 | X24: 0 | Y24: 0 | Z24: 0 | AA24: 0 | AB24: 0 | AC24: 0
A25: QK1 | B25: LEICESTER, LEICESTERSHIRE AND RUTLAND ICB | C25: 21 | D25: 0.9523809524 | E25: 0.04761904762 | F25: 19 | G25: 1 | H25: 0 | I25: 0 | J25: 1 | K25: 0 | L25: =VLOOKUP($A25,[1]Sheet4!$A$49:$H$90,2,0) -> 21 | M25: 0.9523809524 | N25: 0.04761904762 | O25: =VLOOKUP($A25,[1]Sheet4!$A$49:$H$90,3,0) -> 19 | P25: =VLOOKUP($A25,[1]Sheet4!$A$49:$H$90,4,0) -> 1 | Q25: =VLOOKUP($A25,[1]Sheet4!$A$49:$H$90,5,0) -> 0 | R25: =VLOOKUP($A25,[1]Sheet4!$A$49:$H$90,6,0) -> 0 | S25: =VLOOKUP($A25,[1]Sheet4!$A$49:$H$90,7,0) -> 1 | T25: =VLOOKUP($A25,[1]Sheet4!$A$49:$H$90,8,0) -> 0 | U25: 0 | V25: 0 | W25: 0 | X25: 0 | Y25: 0 | Z25: 0 | AA25: 0 | AB25: 0 | AC25: 0
A26: QKK | B26: SOUTH EAST LONDON ICB | C26: 6 | D26: 1 | E26: 0 | F26: 6 | G26: 0 | H26: 0 | I26: 0 | J26: 0 | K26: 0 | L26: =VLOOKUP($A26,[1]Sheet4!$A$49:$H$90,2,0) -> 6 | M26: 1 | N26: 0 | O26: =VLOOKUP($A26,[1]Sheet4!$A$49:$H$90,3,0) -> 6 | P26: =VLOOKUP($A26,[1]Sheet4!$A$49:$H$90,4,0) -> 0 | Q26: =VLOOKUP($A26,[1]Sheet4!$A$49:$H$90,5,0) -> 0 | R26: =VLOOKUP($A26,[1]Sheet4!$A$49:$H$90,6,0) -> 0 | S26: =VLOOKUP($A26,[1]Sheet4!$A$49:$H$90,7,0) -> 0 | T26: =VLOOKUP($A26,[1]Sheet4!$A$49:$H$90,8,0) -> 0 | U26: 0 | V26: 0 | W26: 0 | X26: 0 | Y26: 0 | Z26: 0 | AA26: 0 | AB26: 0 | AC26: 0
A27: QKS | B27: KENT AND MEDWAY ICB | C27: 11 | D27: 1 | E27: 0 | F27: 11 | G27: 0 | H27: 0 | I27: 0 | J27: 0 | K27: 0 | L27: =VLOOKUP($A27,[1]Sheet4!$A$49:$H$90,2,0) -> 11 | M27: 1 | N27: 0 | O27: =VLOOKUP($A27,[1]Sheet4!$A$49:$H$90,3,0) -> 11 | P27: =VLOOKUP($A27,[1]Sheet4!$A$49:$H$90,4,0) -> 0 | Q27: =VLOOKUP($A27,[1]Sheet4!$A$49:$H$90,5,0) -> 0 | R27: =VLOOKUP($A27,[1]Sheet4!$A$49:$H$90,6,0) -> 0 | S27: =VLOOKUP($A27,[1]Sheet4!$A$49:$H$90,7,0) -> 0 | T27: =VLOOKUP($A27,[1]Sheet4!$A$49:$H$90,8,0) -> 0 | U27: 0 | V27: 0 | W27: 0 | X27: 0 | Y27: 0 | Z27: 0 | AA27: 0 | AB27: 0 | AC27: 0
A28: QM7 | B28: HERTFORDSHIRE AND WEST ESSEX ICB | C28: 42 | D28: 0.9761904762 | E28: 0 | F28: 36 | G28: 5 | H28: 1 | I28: 0 | J28: 0 | K28: 0 | L28: =VLOOKUP($A28,[1]Sheet4!$A$49:$H$90,2,0) -> 42 | M28: 0.9761904762 | N28: 0 | O28: =VLOOKUP($A28,[1]Sheet4!$A$49:$H$90,3,0) -> 36 | P28: =VLOOKUP($A28,[1]Sheet4!$A$49:$H$90,4,0) -> 5 | Q28: =VLOOKUP($A28,[1]Sheet4!$A$49:$H$90,5,0) -> 1 | R28: =VLOOKUP($A28,[1]Sheet4!$A$49:$H$90,6,0) -> 0 | S28: =VLOOKUP($A28,[1]Sheet4!$A$49:$H$90,7,0) -> 0 | T28: =VLOOKUP($A28,[1]Sheet4!$A$49:$H$90,8,0) -> 0 | U28: 0 | V28: 0 | W28: 0 | X28: 0 | Y28: 0 | Z28: 0 | AA28: 0 | AB28: 0 | AC28: 0
A29: QMF | B29: NORTH EAST LONDON ICB | C29: 17 | D29: 0.9411764706 | E29: 0 | F29: 16 | G29: 0 | H29: 0 | I29: 0 | J29: 0 | K29: 1 | L29: =VLOOKUP($A29,[1]Sheet4!$A$49:$H$90,2,0) -> 17 | M29: 0.9411764706 | N29: 0 | O29: =VLOOKUP($A29,[1]Sheet4!$A$49:$H$90,3,0) -> 16 | P29: =VLOOKUP($A29,[1]Sheet4!$A$49:$H$90,4,0) -> 0 | Q29: =VLOOKUP($A29,[1]Sheet4!$A$49:$H$90,5,0) -> 0 | R29: =VLOOKUP($A29,[1]Sheet4!$A$49:$H$90,6,0) -> 0 | S29: =VLOOKUP($A29,[1]Sheet4!$A$49:$H$90,7,0) -> 0 | T29: =VLOOKUP($A29,[1]Sheet4!$A$49:$H$90,8,0) -> 1 | U29: 0 | V29: 0 | W29: 0 | X29: 0 | Y29: 0 | Z29: 0 | AA29: 0 | AB29: 0 | AC29: 0
A30: QMJ | B30: NORTH CENTRAL LONDON ICB | C30: 61 | D30: 0.9508196721 | E30: 0.01639344262 | F30: 54 | G30: 4 | H30: 2 | I30: 0 | J30: 1 | K30: 0 | L30: =VLOOKUP($A30,[1]Sheet4!$A$49:$H$90,2,0) -> 61 | M30: 0.9508196721 | N30: 0.01639344262 | O30: =VLOOKUP($A30,[1]Sheet4!$A$49:$H$90,3,0) -> 54 | P30: =VLOOKUP($A30,[1]Sheet4!$A$49:$H$90,4,0) -> 4 | Q30: =VLOOKUP($A30,[1]Sheet4!$A$49:$H$90,5,0) -> 2 | R30: =VLOOKUP($A30,[1]Sheet4!$A$49:$H$90,6,0) -> 0 | S30: =VLOOKUP($A30,[1]Sheet4!$A$49:$H$90,7,0) -> 1 | T30: =VLOOKUP($A30,[1]Sheet4!$A$49:$H$90,8,0) -> 0 | U30: 0 | V30: 0 | W30: 0 | X30: 0 | Y30: 0 | Z30: 0 | AA30: 0 | AB30: 0 | AC30: 0
A31: QMM | B31: NORFOLK AND WAVENEY ICB | C31: 6 | D31: 1 | E31: 0 | F31: 6 | G31: 0 | H31: 0 | I31: 0 | J31: 0 | K31: 0 | L31: =VLOOKUP($A31,[1]Sheet4!$A$49:$H$90,2,0) -> 6 | M31: 1 | N31: 0 | O31: =VLOOKUP($A31,[1]Sheet4!$A$49:$H$90,3,0) -> 6 | P31: =VLOOKUP($A31,[1]Sheet4!$A$49:$H$90,4,0) -> 0 | Q31: =VLOOKUP($A31,[1]Sheet4!$A$49:$H$90,5,0) -> 0 | R31: =VLOOKUP($A31,[1]Sheet4!$A$49:$H$90,6,0) -> 0 | S31: =VLOOKUP($A31,[1]Sheet4!$A$49:$H$90,7,0) -> 0 | T31: =VLOOKUP($A31,[1]Sheet4!$A$49:$H$90,8,0) -> 0 | U31: 0 | V31: 0 | W31: 0 | X31: 0 | Y31: 0 | Z31: 0 | AA31: 0 | AB31: 0 | AC31: 0
A32: QNC | B32: STAFFORDSHIRE AND STOKE-ON-TRENT ICB | C32: 0 | D32: NA | E32: NA | F32: 0 | G32: 0 | H32: 0 | I32: 0 | J32: 0 | K32: 0 | L32: =VLOOKUP($A32,[1]Sheet4!$A$49:$H$90,2,0) -> 0 | O32: =VLOOKUP($A32,[1]Sheet4!$A$49:$H$90,3,0) -> 0 | P32: =VLOOKUP($A32,[1]Sheet4!$A$49:$H$90,4,0) -> 0 | Q32: =VLOOKUP($A32,[1]Sheet4!$A$49:$H$90,5,0) -> 0 | R32: =VLOOKUP($A32,[1]Sheet4!$A$49:$H$90,6,0) -> 0 | S32: =VLOOKUP($A32,[1]Sheet4!$A$49:$H$90,7,0) -> 0 | T32: =VLOOKUP($A32,[1]Sheet4!$A$49:$H$90,8,0) -> 0 | U32: 0 | V32: 0 | W32: 0 | X32: 0 | Y32: 0 | Z32: 0 | AA32: 0 | AB32: 0 | AC32: 0
A33: QNQ | B33: FRIMLEY ICB | C33: 50 | D33: 0.96 | E33: 0.04 | F33: 45 | G33: 3 | H33: 0 | I33: 0 | J33: 2 | K33: 0 | L33: =VLOOKUP($A33,[1]Sheet4!$A$49:$H$90,2,0) -> 50 | M33: 0.96 | N33: 0.04 | O33: =VLOOKUP($A33,[1]Sheet4!$A$49:$H$90,3,0) -> 45 | P33: =VLOOKUP($A33,[1]Sheet4!$A$49:$H$90,4,0) -> 3 | Q33: =VLOOKUP($A33,[1]Sheet4!$A$49:$H$90,5,0) -> 0 | R33: =VLOOKUP($A33,[1]Sheet4!$A$49:$H$90,6,0) -> 0 | S33: =VLOOKUP($A33,[1]Sheet4!$A$49:$H$90,7,0) -> 2 | T33: =VLOOKUP($A33,[1]Sheet4!$A$49:$H$90,8,0) -> 0 | U33: 0 | V33: 0 | W33: 0 | X33: 0 | Y33: 0 | Z33: 0 | AA33: 0 | AB33: 0 | AC33: 0
A34: QNX | B34: SUSSEX ICB | C34: 12 | D34: 0.75 | E34: 0.25 | F34: 8 | G34: 1 | H34: 0 | I34: 2 | J34: 1 | K34: 0 | L34: =VLOOKUP($A34,[1]Sheet4!$A$49:$H$90,2,0) -> 12 | M34: 0.75 | N34: 0.25 | O34: =VLOOKUP($A34,[1]Sheet4!$A$49:$H$90,3,0) -> 8 | P34: =VLOOKUP($A34,[1]Sheet4!$A$49:$H$90,4,0) -> 1 | Q34: =VLOOKUP($A34,[1]Sheet4!$A$49:$H$90,5,0) -> 0 | R34: =VLOOKUP($A34,[1]Sheet4!$A$49:$H$90,6,0) -> 2 | S34: =VLOOKUP($A34,[1]Sheet4!$A$49:$H$90,7,0) -> 1 | T34: =VLOOKUP($A34,[1]Sheet4!$A$49:$H$90,8,0) -> 0 | U34: 0 | V34: 0 | W34: 0 | X34: 0 | Y34: 0 | Z34: 0 | AA34: 0 | AB34: 0 | AC34: 0
A35: QOC | B35: SHROPSHIRE, TELFORD AND WREKIN ICB | C35: 17 | D35: 1 | E35: 0 | F35: 15 | G35: 2 | H35: 0 | I35: 0 | J35: 0 | K35: 0 | L35: =VLOOKUP($A35,[1]Sheet4!$A$49:$H$90,2,0) -> 17 | M35: 1 | N35: 0 | O35: =VLOOKUP($A35,[1]Sheet4!$A$49:$H$90,3,0) -> 15 | P35: =VLOOKUP($A35,[1]Sheet4!$A$49:$H$90,4,0) -> 2 | Q35: =VLOOKUP($A35,[1]Sheet4!$A$49:$H$90,5,0) -> 0 | R35: =VLOOKUP($A35,[1]Sheet4!$A$49:$H$90,6,0) -> 0 | S35: =VLOOKUP($A35,[1]Sheet4!$A$49:$H$90,7,0) -> 0 | T35: =VLOOKUP($A35,[1]Sheet4!$A$49:$H$90,8,0) -> 0 | U35: 0 | V35: 0 | W35: 0 | X35: 0 | Y35: 0 | Z35: 0 | AA35: 0 | AB35: 0 | AC35: 0
A36: QOP | B36: GREATER MANCHESTER ICB | C36: 102 | D36: 0.9117647059 | E36: 0.04901960784 | F36: 80 | G36: 13 | H36: 1 | I36: 1 | J36: 4 | K36: 3 | L36: =VLOOKUP($A36,[1]Sheet4!$A$49:$H$90,2,0) -> 102 | M36: 0.9117647059 | N36: 0.04901960784 | O36: =VLOOKUP($A36,[1]Sheet4!$A$49:$H$90,3,0) -> 80 | P36: =VLOOKUP($A36,[1]Sheet4!$A$49:$H$90,4,0) -> 13 | Q36: =VLOOKUP($A36,[1]Sheet4!$A$49:$H$90,5,0) -> 1 | R36: =VLOOKUP($A36,[1]Sheet4!$A$49:$H$90,6,0) -> 1 | S36: =VLOOKUP($A36,[1]Sheet4!$A$49:$H$90,7,0) -> 4 | T36: =VLOOKUP($A36,[1]Sheet4!$A$49:$H$90,8,0) -> 3 | U36: 0 | V36: 0 | W36: 0 | X36: 0 | Y36: 0 | Z36: 0 | AA36: 0 | AB36: 0 | AC36: 0
A37: QOQ | B37: HUMBER AND NORTH YORKSHIRE ICB | C37: 48 | D37: 1 | E37: 0 | F37: 46 | G37: 2 | H37: 0 | I37: 0 | J37: 0 | K37: 0 | L37: =VLOOKUP($A37,[1]Sheet4!$A$49:$H$90,2,0) -> 48 | M37: 1 | N37: 0 | O37: =VLOOKUP($A37,[1]Sheet4!$A$49:$H$90,3,0) -> 46 | P37: =VLOOKUP($A37,[1]Sheet4!$A$49:$H$90,4,0) -> 2 | Q37: =VLOOKUP($A37,[1]Sheet4!$A$49:$H$90,5,0) -> 0 | R37: =VLOOKUP($A37,[1]Sheet4!$A$49:$H$90,6,0) -> 0 | S37: =VLOOKUP($A37,[1]Sheet4!$A$49:$H$90,7,0) -> 0 | T37: =VLOOKUP($A37,[1]Sheet4!$A$49:$H$90,8,0) -> 0 | U37: 0 | V37: 0 | W37: 0 | X37: 0 | Y37: 0 | Z37: 0 | AA37: 0 | AB37: 0 | AC37: 0
